Workbook

Sheet Premios (hidden)
A1: APURAÇÃO DE CUSTEIO INDIVIDUAL E DESTINAÇÃO DAS CONTRIBUIÇÕES
A3: Faixa Etária | B3: Limite Superior | C3: Preços Morte | D3: Preços Invalidez | E3: Preços Total | G3: Idade | H3: Prêmio Morte | I3: Prêmio Invalidez
A4: até 31 | B4: 31 | C4: 13.1 | D4: 10.08 | E4: =C4+D4 -> 23.18 | G4: 0 | H4: =IF(ISERROR(VLOOKUP(G4,$B$4:$E$12,2,0)),H5,VLOOKUP(G4,$B$4:$E$12,2,0)) -> 13.1 | I4: =IF(ISERROR(VLOOKUP(G4,$B$4:$E$12,3,0)),I5,VLOOKUP(G4,$B$4:$E$12,3,0)) -> 10.08
A5: 31 a 35 | B5: 35 | C5: 13.1 | D5: 10.08 | E5: =C5+D5 -> 23.18 | G5: =G4+1 -> 1 | H5: 13.1 | I5: 10.08
A6: 36 a 40 | B6: 40 | C6: 19.23 | D6: 12.73 | E6: 31.96 | G6: =G5+1 -> 2 | H6: 13.1 | I6: 10.08
A7: 41 a 45 | B7: 45 | C7: 32.56 | D7: 16.9 | E7: 49.46 | G7: 3 | H7: 13.1 | I7: 10.08
A8: 46 a 50 | B8: 50 | C8: 57.71 | D8: 25.18 | E8: 82.89 | G8: 4 | H8: 13.1 | I8: 10.08
A9: 51 a 55 | B9: 55 | C9: 89.73 | D9: 41.32 | E9: 131.05 | G9: 5 | H9: 13.1 | I9: 10.08
A10: 56 a 60 | B10: 60 | C10: 125.84 | D10: 72.5 | E10: 198.34 | G10: 6 | H10: 13.1 | I10: 10.08
A11: 61 a 65 | B11: 65 | C11: 183.49 | D11: 132.45 | E11: 315.94 | G11: 7 | H11: 13.1 | I11: 10.08
A12: 66 a 70 | B12: 70 | C12: 300.6 | D12: 247.45 | E12: 548.05 | G12: 8 | H12: 13.1 | I12: 10.08
G13: 9 | H13: 13.1 | I13: 10.08
G14: 10 | H14: 13.1 | I14: 10.08
G15: 11 | H15: 13.1 | I15: 10.08
G16: 12 | H16: 13.1 | I16: 10.08
G17: 13 | H17: 13.1 | I17: 10.08
G18: 14 | H18: 13.1 | I18: 10.08
G19: 15 | H19: 13.1 | I19: 10.08
G20: 16 | H20: 13.1 | I20: 10.08
G21: 17 | H21: 13.1 | I21: 10.08
G22: 18 | H22: =IF(ISERROR(VLOOKUP(G22,$B$4:$E$12,2,0)),H23,VLOOKUP(G22,$B$4:$E$12,2,0)) -> 13.1 | I22: =IF(ISERROR(VLOOKUP(G22,$B$4:$E$12,3,0)),I23,VLOOKUP(G22,$B$4:$E$12,3,0)) -> 10.08
G23: =G22+1 -> 19 | H23: 13.1 | I23: 10.08
G24: 20 | H24: 13.1 | I24: 10.08
G25: 21 | H25: 13.1 | I25: 10.08
G26: 22 | H26: 13.1 | I26: 10.08
G27: 23 | H27: 13.1 | I27: 10.08
G28: 24 | H28: 13.1 | I28: 10.08
G29: 25 | H29: 13.1 | I29: 10.08
G30: 26 | H30: 13.1 | I30: 10.08
G31: 27 | H31: 13.1 | I31: 10.08
G32: 28 | H32: 13.1 | I32: 10.08
G33: 29 | H33: 13.1 | I33: 10.08
G34: 30 | H34: 13.1 | I34: 10.08
G35: 31 | H35: 13.1 | I35: 10.08
G36: 32 | H36: 13.1 | I36: 10.08
G37: 33 | H37: 13.1 | I37: 10.08
G38: 34 | H38: 13.1 | I38: 10.08
G39: 35 | H39: =IF(ISERROR(VLOOKUP(G39,$B$4:$E$12,2,0)),H40,VLOOKUP(G39,$B$4:$E$12,2,0)) -> 13.1 | I39: 10.08
G40: 36 | H40: 19.23 | I40: 12.73
G41: 37 | H41: 19.23 | I41: 12.73
G42: 38 | H42: 19.23 | I42: 12.73
G43: 39 | H43: 19.23 | I43: 12.73
G44: 40 | H44: 19.23 | I44: 12.73
G45: 41 | H45: 32.56 | I45: 16.9
G46: 42 | H46: 32.56 | I46: 16.9
G47: 43 | H47: 32.56 | I47: 16.9
G48: 44 | H48: 32.56 | I48: 16.9
G49: 45 | H49: 32.56 | I49: 16.9
G50: 46 | H50: 57.71 | I50: 25.18
G51: 47 | H51: 57.71 | I51: 25.18
G52: 48 | H52: 57.71 | I52: 25.18
G53: 49 | H53: 57.71 | I53: 25.18
G54: 50 | H54: 57.71 | I54: 25.18
G55: 51 | H55: 89.73 | I55: 41.32
G56: 52 | H56: 89.73 | I56: 41.32
G57: 53 | H57: 89.73 | I57: 41.32
G58: 54 | H58: 89.73 | I58: 41.32
G59: 55 | H59: 89.73 | I59: 41.32
G60: 56 | H60: 125.84 | I60: 72.5
G61: 57 | H61: 125.84 | I61: 72.5
G62: 58 | H62: 125.84 | I62: 72.5
G63: 59 | H63: 125.84 | I63: 72.5
G64: 60 | H64: 125.84 | I64: 72.5
G65: 61 | H65: 183.49 | I65: 132.45
G66: 62 | H66: 183.49 | I66: 132.45
G67: 63 | H67: 183.49 | I67: 132.45
G68: 64 | H68: 183.49 | I68: 132.45
G69: 65 | H69: 183.49 | I69: 132.45
G70: 66 | H70: 300.6 | I70: 247.45
G71: 67 | H71: 300.6 | I71: 247.45
G72: 68 | H72: =IF(ISERROR(VLOOKUP(G72,$B$4:$E$12,2,0)),H73,VLOOKUP(G72,$B$4:$E$12,2,0)) -> 300.6 | I72: =IF(ISERROR(VLOOKUP(G72,$B$4:$E$12,3,0)),I73,VLOOKUP(G72,$B$4:$E$12,3,0)) -> 247.45
G73: 69 | H73: 300.6 | I73: 247.45
G74: 70 | H74: 300.6 | I74: 247.45
G75: 71 | H75: 0 | I75: 0
G76: 72 | H76: 0 | I76: 0
G77: 73 | H77: 0 | I77: 0
G78: 74 | H78: 0 | I78: 0
G79: 75 | H79: =IF(ISERROR(VLOOKUP(G79,$B$4:$E$12,2,0)),H80,VLOOKUP(G79,$B$4:$E$12,2,0)) -> 0 | I79: =IF(ISERROR(VLOOKUP(G79,$B$4:$E$12,3,0)),I80,VLOOKUP(G79,$B$4:$E$12,3,0)) -> 0
G80: 76 | H80: 0 | I80: 0
G81: 77 | H81: 0 | I81: 0
G82: 78 | H82: 0 | I82: 0
G83: 79 | H83: 0 | I83: 0
G84: 80 | H84: 0 | I84: 0
G85: 81 | H85: 0 | I85: 0
G86: =G85+1 -> 82 | H86: 0 | I86: 0
G87: 83 | H87: 0 | I87: 0
G88: 84 | H88: 0 | I88: 0
G89: 85 | H89: 0 | I89: 0
G90: 86 | H90: 0 | I90: 0
G91: 87 | H91: 0 | I91: 0
G92: 88 | H92: =IF(ISERROR(VLOOKUP(G92,$B$4:$E$12,2,0)),H104,VLOOKUP(G92,$B$4:$E$12,2,0)) -> 0 | I92: =IF(ISERROR(VLOOKUP(G92,$B$4:$E$12,3,0)),I104,VLOOKUP(G92,$B$4:$E$12,3,0)) -> 0
G93: 89 | H93: =IF(ISERROR(VLOOKUP(G93,$B$4:$E$12,2,0)),H105,VLOOKUP(G93,$B$4:$E$12,2,0)) -> 0 | I93: =IF(ISERROR(VLOOKUP(G93,$B$4:$E$12,3,0)),I105,VLOOKUP(G93,$B$4:$E$12,3,0)) -> 0
G94: 90 | H94: 0 | I94: 0
G95: 91 | H95: 0 | I95: 0
G96: 92 | H96: 0 | I96: 0
G97: 93 | H97: 0 | I97: 0
G98: 94 | H98: 0 | I98: 0
G99: 95 | H99: 0 | I99: 0
G100: 96 | H100: 0 | I100: 0
G101: 97 | H101: 0 | I101: 0
G102: 98 | H102: 0 | I102: 0
G103: 99 | H103: 0 | I103: 0
G104: 100 | H104: 0 | I104: 0

Sheet TbSobrVAL (hidden)
A1: Taxa de juros atuariais | C1: 0.045 | D1: PARÂMETRO W TABELA VÁLIDOS | G1: 116 | H1: =EDATE('Anexo I - Parametros'!$K$9,G1*12) -> 2015-12-31 | M1: Taxa de juros atuariais | O1: 0.045 | P1: PARÂMETRO W TABELA VÁLIDOS | S1: 116
Y2: =UPPER('Anexo I - Parametros'!K11) ->  | AO2: https://www.maxwell.vrac.puc-rio.br/9504/9504_4.PDF
A3: x | B3: RPPS-CE Val_Homem_Civis | C3: p(x) | D3: q(x) | E3: dx | F3: Dx | G3: Nx | H3: Lx | I3: Tx | J3: ex | K3: ax | M3: x | N3: RPPS-CE Val_Mulher_Civis | O3: p(x) | P3: q(x) | Q3: dx | R3: Dx | S3: Nx | T3: Lx | U3: Tx | V3: ex | W3: ax | Y3: ex
A4: 0 | B4: =B5 -> 100000000 | C4: =B5/B4 -> 1 | D4: =1-C4 -> 0 | E4: =B4-B5 -> 0 | F4: =B4*(1/(1+$C$1)^A4) -> 100000000 | G4: =SUM(F4:$F$134) -> 2234863196 | H4: =(B4+B5)/2 -> 100000000 | I4: =SUM(H4:H$134) -> 7963738579 | J4: =I4/B4 -> 79.63738579 | K4: =(12*G4/F4-11/24)+G4/F4 -> 290.0738821 | M4: 0 | N4: =N5 -> 100000000 | O4: =N5/N4 -> 1 | P4: =1-O4 -> 0 | Q4: =N4-N5 -> 0 | R4: =N4*(1/(1+$C$1)^M4) -> 100000000 | S4: =SUM($R4:R$134) -> 2258229080 | T4: =(N4+N5)/2 -> 100000000 | U4: =SUM(T4:T$134) -> 8539021747 | V4: =U4/N4 -> 85.39021747 | W4: =(12*S4/R4-11/24)+S4/R4 -> 293.111447 | Y4: =IF($Y$2="F",TbSobrVAL!V4,TbSobrVAL!J4) -> 79.63738579
A5: =A4+1 -> 1 | B5: 100000000 | C5: 1 | D5: =1-C5 -> 0 | E5: =B5-B6 -> 0 | F5: =B5*(1/(1+$C$1)^A5) -> 95693779.9 | G5: =SUM(F5:$F$134) -> 2134863196 | H5: =(B5+B6)/2 -> 100000000 | I5: =SUM(H5:H$134) -> 7863738579 | J5: =I5/B5 -> 78.63738579 | K5: =(12*G5/F5-11/24)+G5/F5 -> 289.5628318 | M5: =M4+1 -> 1 | N5: 100000000 | O5: 1 | P5: 0 | Q5: =N5-N6 -> 0 | R5: =N5*(1/(1+$C$1)^M5) -> 95693779.9 | S5: =SUM($R5:R$134) -> 2158229080 | T5: =(N5+N6)/2 -> 100000000 | U5: =SUM(T5:T$134) -> 8439021747 | V5: =U5/N5 -> 84.39021747 | W5: =(12*S5/R5-11/24)+S5/R5 -> 292.7370872 | Y5: =IF($Y$2="F",TbSobrVAL!V5,TbSobrVAL!J5) -> 78.63738579
A6: 2 | B6: 100000000 | C6: 1 | D6: 0 | E6: =B6-B7 -> 0 | F6: =B6*(1/(1+$C$1)^A6) -> 91572995.12 | G6: =SUM(F6:$F$134) -> 2039169416 | H6: 100000000 | I6: =SUM(H6:H$134) -> 7763738579 | J6: 77.63738579 | K6: 289.0287843 | M6: 2 | N6: 100000000 | O6: 1 | P6: 0 | Q6: =N6-N7 -> 0 | R6: =N6*(1/(1+$C$1)^M6) -> 91572995.12 | S6: =SUM($R6:R$134) -> 2062535300 | T6: 100000000 | U6: =SUM(T6:T$134) -> 8339021747 | V6: 83.39021747 | W6: 292.3458811 | Y6: =IF($Y$2="F",TbSobrVAL!V6,TbSobrVAL!J6) -> 77.63738579
A7: 3 | B7: 100000000 | C7: 1 | D7: 0 | E7: 0 | F7: 87629660.41 | G7: =SUM(F7:$F$134) -> 1947596421 | H7: 100000000 | I7: =SUM(H7:H$134) -> 7663738579 | J7: 76.63738579 | K7: 288.4707046 | M7: 3 | N7: 100000000 | O7: 1 | P7: 0 | Q7: 0 | R7: 87629660.41 | S7: =SUM($R7:R$134) -> 1970962305 | T7: 100000000 | U7: =SUM(T7:T$134) -> 8239021747 | V7: 82.39021747 | W7: 291.9370707 | Y7: =IF($Y$2="F",TbSobrVAL!V7,TbSobrVAL!J7) -> 76.63738579
A8: 4 | B8: 100000000 | C8: 1 | D8: 0 | E8: 0 | F8: 83856134.36 | G8: =SUM(F8:$F$134) -> 1859966761 | H8: 100000000 | I8: =SUM(H8:H$134) -> 7563738579 | J8: 75.63738579 | K8: 287.8875113 | M8: 4 | N8: 100000000 | O8: 1 | P8: 0 | Q8: 0 | R8: 83856134.36 | S8: =SUM($R8:R$134) -> 1883332644 | T8: 100000000 | U8: =SUM(T8:T$134) -> 8139021747 | V8: 81.39021747 | W8: 291.5098639 | Y8: =IF($Y$2="F",TbSobrVAL!V8,TbSobrVAL!J8) -> 75.63738579
A9: 5 | B9: 100000000 | C9: 1 | D9: 0 | E9: 0 | F9: 80245104.65 | G9: =SUM(F9:$F$134) -> 1776110626 | H9: 100000000 | I9: =SUM(H9:H$134) -> 7463738579 | J9: 74.63738579 | K9: 287.2780743 | M9: 5 | N9: 100000000 | O9: 1 | P9: 0 | Q9: 0 | R9: 80245104.65 | S9: =SUM($R9:R$134) -> 1799476510 | T9: 100000000 | U9: =SUM(T9:T$134) -> 8039021747 | V9: 80.39021747 | W9: 291.0634328 | Y9: =IF($Y$2="F",TbSobrVAL!V9,TbSobrVAL!J9) -> 74.63738579
A10: 6 | B10: 100000000 | C10: 1 | D10: =1-C10 -> 0 | E10: 0 | F10: 76789573.83 | G10: =SUM(F10:$F$134) -> 1695865522 | H10: 100000000 | I10: =SUM(H10:H$134) -> 7363738579 | J10: 73.63738579 | K10: 286.6412126 | M10: 6 | N10: 100000000 | O10: 1 | P10: 0 | Q10: 0 | R10: 76789573.83 | S10: =SUM($R10:R$134) -> 1719231405 | T10: 100000000 | U10: =SUM(T10:T$134) -> 7939021747 | V10: 79.39021747 | W10: 290.5969123 | Y10: =IF($Y$2="F",TbSobrVAL!V10,TbSobrVAL!J10) -> 73.63738579
A11: 7 | B11: 100000000 | C11: 1 | D11: 0 | E11: 0 | F11: 73482845.77 | G11: =SUM(F11:$F$134) -> 1619075948 | H11: 100000000 | I11: =SUM(H11:H$134) -> 7263738579 | J11: 72.63738579 | K11: 285.9756922 | M11: 7 | N11: 100000000 | O11: 1 | P11: =1-O11 -> 0 | Q11: 0 | R11: 73482845.77 | S11: =SUM($R11:R$134) -> 1642441832 | T11: 100000000 | U11: =SUM(T11:T$134) -> 7839021747 | V11: 78.39021747 | W11: 290.1093983 | Y11: =IF($Y$2="F",TbSobrVAL!V11,TbSobrVAL!J11) -> 72.63738579
A12: 8 | B12: 100000000 | C12: 1 | D12: 0 | E12: 0 | F12: 70318512.7 | G12: =SUM(F12:$F$134) -> 1545593102 | H12: 100000000 | I12: =SUM(H12:H$134) -> 7163738579 | J12: 71.63738579 | K12: 285.2802233 | M12: 8 | N12: 100000000 | O12: 1 | P12: 0 | Q12: 0 | R12: 70318512.7 | S12: =SUM($R12:R$134) -> 1568958986 | T12: 100000000 | U12: =SUM(T12:T$134) -> 7739021747 | V12: 77.39021747 | W12: 289.5999462 | Y12: =IF($Y$2="F",TbSobrVAL!V12,TbSobrVAL!J12) -> 71.63738579
A13: 9 | B13: 100000000 | C13: 1 | D13: 0 | E13: 0 | F13: 67290442.77 | G13: =SUM(F13:$F$134) -> 1475274589 | H13: 100000000 | I13: =SUM(H13:H$134) -> 7063738579 | J13: 70.63738579 | K13: 284.5534584 | M13: 9 | N13: 100000000 | O13: 1 | P13: 0 | Q13: 0 | R13: 67290442.77 | S13: =SUM($R13:R$134) -> 1498640473 | T13: 100000000 | U13: =SUM(T13:T$134) -> 7639021747 | V13: 76.39021747 | W13: 289.0675688 | Y13: =IF($Y$2="F",TbSobrVAL!V13,TbSobrVAL!J13) -> 70.63738579
A14: 10 | B14: 100000000 | C14: 1 | D14: 0 | E14: 0 | F14: 64392768.2 | G14: =SUM(F14:$F$134) -> 1407984146 | H14: 100000000 | I14: =SUM(H14:H$134) -> 6963738579 | J14: 69.63738579 | K14: 283.793989 | M14: 10 | N14: 100000000 | O14: 1 | P14: 0 | Q14: 0 | R14: 64392768.2 | S14: =SUM($R14:R$134) -> 1431350030 | T14: 100000000 | U14: =SUM(T14:T$134) -> 7539021747 | V14: 75.39021747 | W14: 288.5112344 | Y14: =IF($Y$2="F",TbSobrVAL!V14,TbSobrVAL!J14) -> 69.63738579
A15: 11 | B15: 100000000 | C15: 1 | D15: 0 | E15: 0 | F15: 61619873.88 | G15: =SUM(F15:$F$134) -> 1343591378 | H15: 100000000 | I15: =SUM(H15:H$134) -> 6863738579 | J15: 68.63738579 | K15: 283.0003435 | M15: 11 | N15: 100000000 | O15: 1 | P15: 0 | Q15: 0 | R15: 61619873.88 | S15: =SUM($R15:R$134) -> 1366957262 | T15: 100000000 | U15: =SUM(T15:T$134) -> 7439021747 | V15: 74.39021747 | W15: 287.929865 | Y15: =IF($Y$2="F",TbSobrVAL!V15,TbSobrVAL!J15) -> 68.63738579
A16: 12 | B16: 100000000 | C16: 1 | D16: 0 | E16: 0 | F16: 58966386.49 | G16: =SUM(F16:$F$134) -> 1281971504 | H16: 100000000 | I16: =SUM(H16:H$134) -> 6763738579 | J16: 67.63738579 | K16: 282.170984 | M16: 12 | N16: 100000000 | O16: 1 | P16: 0 | Q16: 0 | R16: 58966386.49 | S16: =SUM($R16:R$134) -> 1305337388 | T16: 100000000 | U16: =SUM(T16:T$134) -> 7339021747 | V16: 73.39021747 | W16: 287.3223339 | Y16: =IF($Y$2="F",TbSobrVAL!V16,TbSobrVAL!J16) -> 67.63738579
A17: 13 | B17: 100000000 | C17: 1 | D17: 0 | E17: 0 | F17: 56427164.1 | G17: =SUM(F17:$F$134) -> 1223005118 | H17: 100000000 | I17: =SUM(H17:H$134) -> 6663738579 | J17: 66.63738579 | K17: 281.3043033 | M17: 13 | N17: 100000000 | O17: 1 | P17: 0 | Q17: 0 | R17: 56427164.1 | S17: =SUM($R17:R$134) -> 1246371002 | T17: 100000000 | U17: =SUM(T17:T$134) -> 7239021747 | V17: 72.39021747 | W17: 286.6874639 | Y17: =IF($Y$2="F",TbSobrVAL!V17,TbSobrVAL!J17) -> 66.63738579
A18: 14 | B18: 100000000 | C18: 1 | D18: 0 | E18: 0 | F18: 53997286.22 | G18: =SUM(F18:$F$134) -> 1166577954 | H18: 100000000 | I18: =SUM(H18:H$134) -> 6563738579 | J18: 65.63738579 | K18: 280.3986219 | M18: 14 | N18: 100000000 | O18: 1 | P18: 0 | Q18: 0 | R18: 53997286.22 | S18: =SUM($R18:R$134) -> 1189943838 | T18: 100000000 | U18: =SUM(T18:T$134) -> 7139021747 | V18: 71.39021747 | W18: 286.0240248 | Y18: =IF($Y$2="F",TbSobrVAL!V18,TbSobrVAL!J18) -> 65.63738579
A19: 15 | B19: 100000000 | C19: 1 | D19: 0 | E19: 0 | F19: 51672044.23 | G19: =SUM(F19:$F$134) -> 1112580668 | H19: 100000000 | I19: =SUM(H19:H$134) -> 6463738579 | J19: 64.63738579 | K19: 279.4521849 | M19: 15 | N19: 100000000 | O19: 1 | P19: 0 | Q19: 0 | R19: 51672044.23 | S19: =SUM($R19:R$134) -> 1135946551 | T19: 100000000 | U19: =SUM(T19:T$134) -> 7039021747 | V19: 70.39021747 | W19: 285.3307309 | Y19: =IF($Y$2="F",TbSobrVAL!V19,TbSobrVAL!J19) -> 64.63738579
A20: 16 | B20: 100000000 | C20: 1 | D20: 0 | E20: 0 | F20: 49446932.28 | G20: =SUM(F20:$F$134) -> 1060908623 | H20: 100000000 | I20: =SUM(H20:H$134) -> 6363738579 | J20: 63.63738579 | K20: 278.4631582 | M20: 16 | N20: 100000000 | O20: 1 | P20: 0 | Q20: 0 | R20: 49446932.28 | S20: =SUM($R20:R$134) -> 1084274507 | T20: 100000000 | U20: =SUM(T20:T$134) -> 6939021747 | V20: 69.39021747 | W20: 284.6062388 | Y20: =IF($Y$2="F",TbSobrVAL!V20,TbSobrVAL!J20) -> 63.63738579
A21: 17 | B21: =B22 -> 100000000 | C21: 1 | D21: 0 | E21: 0 | F21: 47317638.54 | G21: =SUM(F21:$F$134) -> 1011461691 | H21: 100000000 | I21: =SUM(H21:H$134) -> 6263738579 | J21: 62.63738579 | K21: 277.4296253 | M21: 17 | N21: =N22 -> 100000000 | O21: 1 | P21: 0 | Q21: 0 | R21: 47317638.54 | S21: =SUM($R21:R$134) -> 1034827575 | T21: 100000000 | U21: =SUM(T21:T$134) -> 6839021747 | V21: 68.39021747 | W21: 283.8491446 | Y21: =IF($Y$2="F",TbSobrVAL!V21,TbSobrVAL!J21) -> 62.63738579
A22: 18 | B22: 100000000 | C22: 0.9995515115 | D22: 0.0004484885 | E22: 44848.85 | F22: 45280036.88 | G22: =SUM(F22:$F$134) -> 964144052.5 | H22: 99977575.58 | I22: =SUM(H22:H$134) -> 6163738579 | J22: 61.63738579 | K22: 276.3495835 | M22: 18 | N22: 100000000 | O22: 0.9998711878 | P22: 0.0001288121735 | Q22: 12881.21735 | R22: 45280036.88 | S22: =SUM($R22:R$134) -> 987509936.4 | T22: 99993559.39 | U22: =SUM(T22:T$134) -> 6739021747 | V22: 67.39021747 | W22: 283.0579811 | Y22: =IF($Y$2="F",TbSobrVAL!V22,TbSobrVAL!J22) -> 61.63738579
A23: 19 | B23: 99955151.15 | C23: 0.9994113255 | D23: 0.0005886745137 | E23: 58841.05 | F23: 43310745.75 | G23: =SUM(F23:$F$134) -> 918864015.7 | H23: 99925730.62 | I23: =SUM(H23:H$134) -> 6063761003 | J23: 60.6648175 | K23: 275.3446342 | M23: 19 | N23: 99987118.78 | O23: 0.999846525 | P23: 0.0001534750151 | Q23: 15345.52456 | R23: 43324597.38 | S23: =SUM($R23:R$134) -> 942229899.5 | T23: 99979446.02 | U23: =SUM(T23:T$134) -> 6639028188 | V23: 66.39883485 | W23: 282.2676338 | Y23: =IF($Y$2="F",TbSobrVAL!V23,TbSobrVAL!J23) -> 60.6648175
A24: 20 | B24: 99896310.1 | C24: 0.9992750947 | D24: 0.0007249052535 | E24: 72415.36 | F24: 41421291.69 | G24: =SUM(F24:$F$134) -> 875553269.9 | H24: 99860102.42 | I24: =SUM(H24:H$134) -> 5963835273 | J24: 59.70025586 | K24: 274.3325301 | M24: 20 | N24: 99971773.26 | O24: 0.9998255573 | P24: 0.0001744427269 | Q24: 17439.34874 | R24: 41452581.95 | S24: =SUM($R24:R$134) -> 898905302.1 | T24: 99963053.58 | U24: =SUM(T24:T$134) -> 6539048742 | V24: 65.40895023 | W24: 281.4485679 | Y24: =IF($Y$2="F",TbSobrVAL!V24,TbSobrVAL!J24) -> 59.70025586
A25: 21 | B25: 99823894.74 | C25: 0.9991547202 | D25: 0.0008452797822 | E25: 84379.12 | F25: 39608866.2 | G25: =SUM(F25:$F$134) -> 834131978.2 | H25: 99781705.18 | I25: =SUM(H25:H$134) -> 5863975170 | J25: 58.74320157 | K25: 273.3115762 | M25: 21 | N25: 99954333.91 | O25: 0.9998067686 | P25: 0.0001932313861 | Q25: 19314.31448 | R25: 39660622.82 | S25: =SUM($R25:R$134) -> 857452720.2 | T25: 99944676.75 | U25: =SUM(T25:T$134) -> 6439085688 | V25: 64.4202751 | W25: 280.5984068 | Y25: =IF($Y$2="F",TbSobrVAL!V25,TbSobrVAL!J25) -> 58.74320157
A26: 22 | B26: 99739515.62 | C26: 0.9990910747 | D26: 0.0009089253085 | E26: 90655.77 | F26: 37871182.42 | G26: =SUM(F26:$F$134) -> 794523112 | H26: 99694187.73 | I26: =SUM(H26:H$134) -> 5764193465 | J26: 57.79247502 | K26: 272.2767596 | M26: 22 | N26: 99935019.59 | O26: 0.9997874786 | P26: 0.0002125214382 | Q26: 21238.33409 | R26: 37945415.45 | S26: =SUM($R26:R$134) -> 817792097.4 | T26: 99924400.43 | U26: =SUM(T26:T$134) -> 6339141011 | V26: 63.43262889 | W26: 279.7150984 | Y26: =IF($Y$2="F",TbSobrVAL!V26,TbSobrVAL!J26) -> 57.79247502
A27: 23 | B27: 99648859.85 | C27: 0.999070598 | D27: 0.0009294020036 | E27: 92613.85 | F27: 36207426.16 | G27: =SUM(F27:$F$134) -> 756651929.6 | H27: 99602552.92 | I27: =SUM(H27:H$134) -> 5664499277 | J27: 56.84459698 | K27: 271.2117666 | M27: 23 | N27: 99913781.26 | O27: 0.9997725122 | P27: 0.0002274878174 | Q27: 22729.16803 | R27: 36303685.39 | S27: =SUM($R27:R$134) -> 779846681.9 | T27: 99902416.68 | U27: =SUM(T27:T$134) -> 6239216611 | V27: 62.44600627 | W27: 278.7972506 | Y27: =IF($Y$2="F",TbSobrVAL!V27,TbSobrVAL!J27) -> 56.84459698
A28: 24 | B28: 99556246 | C28: 0.9990834384 | D28: 0.0009165615787 | E28: 91249.43 | F28: 34616052.55 | G28: =SUM(F28:$F$134) -> 720444503.4 | H28: 99510621.28 | I28: =SUM(H28:H$134) -> 5564896724 | J28: 55.89701247 | K28: 270.1033817 | M28: 24 | N28: 99891052.09 | O28: 0.9997685488 | P28: 0.0002314511528 | Q28: 23119.89916 | R28: 34732465.79 | S28: =SUM($R28:R$134) -> 743542996.5 | T28: 99879492.14 | U28: =SUM(T28:T$134) -> 6139314194 | V28: 61.46010143 | W28: 277.8420619 | Y28: =IF($Y$2="F",TbSobrVAL!V28,TbSobrVAL!J28) -> 55.89701247
A29: 25 | B29: 99464996.57 | C29: 0.9991081528 | D29: 0.0008918472132 | E29: 88707.58 | F29: 33095047.66 | G29: =SUM(F29:$F$134) -> 685828450.9 | H29: 99420642.78 | I29: =SUM(H29:H$134) -> 5465386103 | J29: 54.94783383 | K29: 268.9405796 | M29: 25 | N29: 99867932.19 | O29: 0.9997637791 | P29: 0.0002362208532 | Q29: 23590.88815 | R29: 33229116.67 | S29: =SUM($R29:R$134) -> 708810530.7 | T29: 99856136.75 | U29: =SUM(T29:T$134) -> 6039434702 | V29: 60.47421399 | W29: 276.8447618 | Y29: =IF($Y$2="F",TbSobrVAL!V29,TbSobrVAL!J29) -> 54.94783383
A30: 26 | B30: 99376288.99 | C30: 0.9991308479 | D30: 0.0008691520973 | E30: 86373.11 | F30: 31641657.35 | G30: =SUM(F30:$F$134) -> 652733403.2 | H30: 99333102.44 | I30: =SUM(H30:H$134) -> 5365965460 | J30: 53.99643632 | K30: 267.7177027 | M30: 26 | N30: 99844341.31 | O30: 0.9997588314 | P30: 0.0002411686363 | Q30: 24079.32364 | R30: 31790686.37 | S30: =SUM($R30:R$134) -> 675581414.1 | T30: 99832301.64 | U30: =SUM(T30:T$134) -> 5939578565 | V30: 59.48838449 | W30: 275.8036599 | Y30: =IF($Y$2="F",TbSobrVAL!V30,TbSobrVAL!J30) -> 53.99643632
A31: 27 | B31: 99289915.88 | C31: 0.9991421375 | D31: 0.0008578625457 | E31: 85177.1 | F31: 30252780.8 | G31: =SUM(F31:$F$134) -> 621091745.9 | H31: 99247327.33 | I31: =SUM(H31:H$134) -> 5266632358 | J31: 53.04297331 | K31: 266.4325931 | M31: 27 | N31: 99820261.98 | O31: 0.9997477705 | P31: 0.0002522294719 | Q31: 25177.61197 | R31: 30414372.68 | S31: =SUM($R31:R$134) -> 643790727.7 | T31: 99807673.18 | U31: =SUM(T31:T$134) -> 5839746264 | V31: 58.50261407 | W31: 274.7168132 | Y31: =IF($Y$2="F",TbSobrVAL!V31,TbSobrVAL!J31) -> 53.04297331
A32: 28 | B32: 99204738.78 | C32: 0.9991492676 | D32: 0.0008507324452 | E32: 84396.69 | F32: 28925194.33 | G32: =SUM(F32:$F$134) -> 590838965.1 | H32: 99162540.44 | I32: =SUM(H32:H$134) -> 5167385030 | J32: 52.08808666 | K32: 265.0854849 | M32: 28 | N32: 99795084.37 | O32: 0.9997292598 | P32: 0.0002707401952 | Q32: 27018.54062 | R32: 29097321.8 | S32: =SUM($R32:R$134) -> 613376355 | T32: 99781575.1 | U32: =SUM(T32:T$134) -> 5739938590 | V32: 57.51724773 | W32: 273.5838163 | Y32: =IF($Y$2="F",TbSobrVAL!V32,TbSobrVAL!J32) -> 52.08808666
A33: 29 | B33: 99120342.09 | C33: 0.9991611557 | D33: 0.0008388442599 | E33: 83146.53 | F33: 27656063.85 | G33: =SUM(F33:$F$134) -> 561913770.7 | H33: 99078768.83 | I33: =SUM(H33:H$134) -> 5068222490 | J33: 51.13201169 | K33: 263.6746633 | M33: 29 | N33: 99768065.83 | O33: 0.9997079244 | P33: 0.0002920755888 | Q33: 29139.81657 | R33: 27836788.5 | S33: =SUM($R33:R$134) -> 584279033.2 | T33: 99753495.92 | U33: =SUM(T33:T$134) -> 5640157015 | V33: 56.53268878 | W33: 272.404588 | Y33: =IF($Y$2="F",TbSobrVAL!V33,TbSobrVAL!J33) -> 51.13201169
A34: 30 | B34: 99037195.56 | C34: 0.9991595811 | D34: 0.0008404188904 | E34: 83232.73 | F34: 26442932.75 | G34: =SUM(F34:$F$134) -> 534257706.9 | H34: 98995579.19 | I34: =SUM(H34:H$134) -> 4969143721 | J34: 50.17451972 | K34: 262.1959742 | M34: 30 | N34: 99738926.01 | O34: 0.9996902244 | P34: 0.0003097756127 | Q34: 30896.68691 | R34: 26630294.79 | S34: =SUM($R34:R$134) -> 556442244.7 | T34: 99723477.67 | U34: =SUM(T34:T$134) -> 5540403519 | V34: 55.54905934 | W34: 271.1777577 | Y34: =IF($Y$2="F",TbSobrVAL!V34,TbSobrVAL!J34) -> 50.17451972
A35: 31 | B35: 98953962.83 | C35: 0.9991467501 | D35: 0.0008532499112 | E35: 84432.46 | F35: 25282975.7 | G35: =SUM(F35:$F$134) -> 507814774.1 | H35: 98911746.6 | I35: =SUM(H35:H$134) -> 4870148142 | J35: 49.21630224 | K35: 260.6498582 | M35: 31 | N35: 99708029.33 | O35: 0.9996764491 | P35: 0.0003235508728 | Q35: 32260.61991 | R35: 25475641.51 | S35: =SUM($R35:R$134) -> 529811949.9 | T35: 99691899.02 | U35: =SUM(T35:T$134) -> 5440680042 | V35: 54.56611748 | W35: 269.9001323 | Y35: =IF($Y$2="F",TbSobrVAL!V35,TbSobrVAL!J35) -> 49.21630224
A36: 32 | B36: 98869530.37 | C36: 0.999121716 | D36: 0.0008782840343 | E36: 86835.53 | F36: 24173591.39 | G36: =SUM(F36:$F$134) -> 482531798.4 | H36: 98826112.61 | I36: =SUM(H36:H$134) -> 4771236395 | J36: 48.25790491 | K36: 259.0361405 | M36: 32 | N36: 99675768.71 | O36: 0.9996609197 | P36: 0.000339080267 | Q36: 33798.08626 | R36: 24370716.6 | S36: =SUM($R36:R$134) -> 504336308.4 | T36: 99658869.66 | U36: =SUM(T36:T$134) -> 5340988143 | V36: 53.58361628 | W36: 268.568307 | Y36: =IF($Y$2="F",TbSobrVAL!V36,TbSobrVAL!J36) -> 48.25790491
A37: 33 | B37: 98782694.84 | C37: 0.999082388 | D37: 0.0009176120387 | E37: 90644.19 | F37: 23112306.33 | G37: =SUM(F37:$F$134) -> 458358207 | H37: 98737372.75 | I37: =SUM(H37:H$134) -> 4672410283 | J37: 47.29988679 | K37: 257.354825 | M37: 33 | N37: 99641970.62 | O37: 0.9996415937 | P37: 0.000358406294 | Q37: 35712.30942 | R37: 23313352.12 | S37: =SUM($R37:R$134) -> 479965591.8 | T37: 99624114.46 | U37: =SUM(T37:T$134) -> 5241329273 | V37: 52.60162199 | W37: 267.1802568 | Y37: =IF($Y$2="F",TbSobrVAL!V37,TbSobrVAL!J37) -> 47.29988679
A38: 34 | B38: 98692050.65 | C38: 0.999032691 | D38: 0.0009673090119 | E38: 95465.71 | F38: 22096744.69 | G38: =SUM(F38:$F$134) -> 435245900.7 | H38: 98644317.8 | I38: =SUM(H38:H$134) -> 4573672910 | J38: 46.34287037 | K38: 255.6063852 | M38: 34 | N38: 99606258.31 | O38: 0.9996097315 | P38: 0.000390268467 | Q38: 38873.18174 | R38: 22301432.03 | S38: =SUM($R38:R$134) -> 456652239.7 | T38: 99586821.72 | U38: =SUM(T38:T$134) -> 5141705159 | V38: 51.62030224 | W38: 265.7343985 | Y38: =IF($Y$2="F",TbSobrVAL!V38,TbSobrVAL!J38) -> 46.34287037
A39: 35 | B39: 98596584.94 | C39: 0.9989886845 | D39: 0.001011315453 | E39: 99712.25 | F39: 21124756.28 | G39: =SUM(F39:$F$134) -> 413149156 | H39: 98546728.81 | I39: =SUM(H39:H$134) -> 4475028592 | J39: 45.38725753 | K39: 253.7902345 | M39: 35 | N39: 99567385.13 | O39: 0.9995601741 | P39: 0.0004398258817 | Q39: 43792.31295 | R39: 21332754.53 | S39: =SUM($R39:R$134) -> 434350807.7 | T39: 99545488.97 | U39: =SUM(T39:T$134) -> 5042118337 | V39: 50.64026067 | W39: 264.2313715 | Y39: =IF($Y$2="F",TbSobrVAL!V39,TbSobrVAL!J39) -> 45.38725753
A40: 36 | B40: 98496872.69 | C40: 0.9989457383 | D40: 0.001054261695 | E40: 103841.48 | F40: 20194633.96 | G40: =SUM(F40:$F$134) -> 392024399.7 | H40: 98444951.95 | I40: =SUM(H40:H$134) -> 4376481863 | J40: 44.43269866 | K40: 251.9016356 | M40: 36 | N40: 99523592.82 | O40: 0.9995091679 | P40: 0.0004908320858 | Q40: 48849.37264 | R40: 20405140.51 | S40: =SUM($R40:R$134) -> 413018053.1 | T40: 99499168.13 | U40: =SUM(T40:T$134) -> 4942572848 | V40: 49.66232335 | W40: 262.6731403 | Y40: =IF($Y$2="F",TbSobrVAL!V40,TbSobrVAL!J40) -> 44.43269866
A41: 37 | B41: 98393031.21 | C41: 0.9989133262 | D41: 0.001086673809 | E41: 106921.13 | F41: 19304634.95 | G41: =SUM(F41:$F$134) -> 371829765.8 | H41: 98339570.64 | I41: =SUM(H41:H$134) -> 4278036912 | J41: 43.47906411 | K41: 249.9368162 | M41: 37 | N41: 99474743.44 | O41: 0.9994664768 | P41: 0.0005335231505 | Q41: 53072.07852 | R41: 19516866.04 | S41: =SUM($R41:R$134) -> 392612912.6 | T41: 99448207.4 | U41: =SUM(T41:T$134) -> 4843073680 | V41: 48.68646565 | W41: 261.0574169 | Y41: =IF($Y$2="F",TbSobrVAL!V41,TbSobrVAL!J41) -> 43.47906411
A42: 38 | B42: 98286110.08 | C42: 0.9988749559 | D42: 0.001125044118 | E42: 110576.21 | F42: 18453260.39 | G42: =SUM(F42:$F$134) -> 352525130.8 | H42: 98230821.97 | I42: =SUM(H42:H$134) -> 4179697341 | J42: 42.52581914 | K42: 247.889471 | M42: 38 | N42: 99421671.36 | O42: 0.9994330666 | P42: 0.0005669333871 | Q42: 56365.4649 | R42: 18666462.52 | S42: =SUM($R42:R$134) -> 373096046.6 | T42: 99393488.63 | U42: =SUM(T42:T$134) -> 4743625472 | V42: 47.71218797 | W42: 259.379255 | Y42: =IF($Y$2="F",TbSobrVAL!V42,TbSobrVAL!J42) -> 42.52581914
A43: 39 | B43: 98175533.87 | C43: 0.9988310202 | D43: 0.001168979841 | E43: 114765.22 | F43: 17638755.66 | G43: =SUM(F43:$F$134) -> 334071870.4 | H43: 98118151.26 | I43: =SUM(H43:H$134) -> 4081466519 | J43: 41.57315329 | K43: 245.7571254 | M43: 39 | N43: 99365305.9 | O43: 0.9994038558 | P43: 0.0005961442299 | Q43: 59236.05377 | R43: 17852516.64 | S43: =SUM($R43:R$134) -> 354429584.1 | T43: 99335687.87 | U43: =SUM(T43:T$134) -> 4644231984 | V43: 46.73896932 | W43: 257.6332672 | Y43: =IF($Y$2="F",TbSobrVAL!V43,TbSobrVAL!J43) -> 41.57315329
A44: 40 | B44: 98060768.65 | C44: 0.9987672965 | D44: 0.001232703472 | E44: 120879.85 | F44: 16859460.58 | G44: =SUM(F44:$F$134) -> 316433114.8 | H44: 98000328.72 | I44: =SUM(H44:H$134) -> 3983348368 | J44: 40.62122317 | K44: 243.5370467 | M44: 40 | N44: 99306069.85 | O44: 0.9993729867 | P44: 0.0006270132514 | Q44: 62266.22173 | R44: 17073563.6 | S44: =SUM($R44:R$134) -> 336577067.4 | T44: 99274936.73 | U44: =SUM(T44:T$134) -> 4544896296 | V44: 45.76655085 | W44: 255.8151652 | Y44: =IF($Y$2="F",TbSobrVAL!V44,TbSobrVAL!J44) -> 40.62122317
A45: 41 | B45: 97939888.8 | C45: 0.9986793467 | D45: 0.001320653327 | E45: 129344.64 | F45: 16113567.34 | G45: =SUM(F45:$F$134) -> 299573654.2 | H45: 97875216.48 | I45: =SUM(H45:H$134) -> 3885348039 | J45: 39.67074178 | K45: 241.2297686 | M45: 41 | N45: 99243803.62 | O45: 0.9993382771 | P45: 0.000661722902 | Q45: 65671.89774 | R45: 16328094.02 | S45: =SUM($R45:R$134) -> 319503503.8 | T45: 99210967.68 | U45: =SUM(T45:T$134) -> 4445621359 | V45: 44.79495139 | W45: 253.9219725 | Y45: =IF($Y$2="F",TbSobrVAL!V45,TbSobrVAL!J45) -> 39.67074178
A46: 42 | B46: 97810544.16 | C46: 0.998566985 | D46: 0.001433015031 | E46: 140163.98 | F46: 15399317.61 | G46: =SUM(F46:$F$134) -> 283460086.9 | H46: 97740462.17 | I46: =SUM(H46:H$134) -> 3787472822 | J46: 38.72254116 | K46: 238.836759 | M46: 42 | N46: 99178131.73 | O46: 0.9992761479 | P46: 0.000723852078 | Q46: 71790.29674 | R46: 15614630.95 | S46: =SUM($R46:R$134) -> 303175409.8 | T46: 99142236.58 | U46: =SUM(T46:T$134) -> 4346410391 | V46: 43.82428178 | W46: 251.9511114 | Y46: =IF($Y$2="F",TbSobrVAL!V46,TbSobrVAL!J46) -> 38.72254116
A47: 43 | B47: 97670380.18 | C47: 0.9984317092 | D47: 0.001568290814 | E47: 153175.56 | F47: 14715071.92 | G47: =SUM(F47:$F$134) -> 268060769.3 | H47: 97593792.4 | I47: =SUM(H47:H$134) -> 3689732360 | J47: 37.77739324 | K47: 236.3594016 | M47: 43 | N47: 99106341.43 | O47: 0.999199435 | P47: 0.0008005649605 | Q47: 79341.06431 | R47: 14931414.61 | S47: =SUM($R47:R$134) -> 287560778.9 | T47: 99066670.9 | U47: =SUM(T47:T$134) -> 4247268155 | V47: 42.85566487 | W47: 249.9057629 | Y47: =IF($Y$2="F",TbSobrVAL!V47,TbSobrVAL!J47) -> 37.77739324
A48: 44 | B48: 97517204.62 | C48: 0.9982672336 | D48: 0.001732766445 | E48: 168974.54 | F48: 14059324.79 | G48: =SUM(F48:$F$134) -> 253345697.3 | H48: 97432717.35 | I48: =SUM(H48:H$134) -> 3592138568 | J48: 36.83594687 | K48: 233.7985826 | M48: 44 | N48: 99027000.37 | O48: 0.9991182125 | P48: 0.0008817874934 | Q48: 87320.77043 | R48: 14276996.21 | S48: =SUM($R48:R$134) -> 272629364.2 | T48: 98983339.98 | U48: =SUM(T48:T$134) -> 4148201484 | V48: 41.8896005 | W48: 247.7858829 | Y48: =IF($Y$2="F",TbSobrVAL!V48,TbSobrVAL!J48) -> 36.83594687
A49: 45 | B49: 97348230.08 | C49: 0.9981068564 | D49: 0.001893143613 | E49: 184294.18 | F49: 13430586.86 | G49: =SUM(F49:$F$134) -> 239286372.6 | H49: 97256082.99 | I49: =SUM(H49:H$134) -> 3494705851 | J49: 35.89901786 | K49: 231.1564782 | M49: 45 | N49: 98939679.59 | O49: 0.9990347903 | P49: 0.0009652096939 | Q49: 95497.53785 | R49: 13650150.18 | S49: =SUM($R49:R$134) -> 258352368 | T49: 98891930.83 | U49: =SUM(T49:T$134) -> 4049218144 | V49: 40.92612954 | W49: 245.5888339 | Y49: =IF($Y$2="F",TbSobrVAL!V49,TbSobrVAL!J49) -> 35.89901786
A50: 46 | B50: 97163935.9 | C50: 0.9979467859 | D50: 0.002053214067 | E50: 199498.36 | F50: 12827905.1 | G50: =SUM(F50:$F$134) -> 225855785.7 | H50: 97064186.72 | I50: =SUM(H50:H$134) -> 3397449768 | J50: 34.9661604 | K50: 228.4274584 | M50: 46 | N50: 98844182.06 | O50: 0.9989408035 | P50: 0.001059196493 | Q50: 104695.411 | R50: 13049736.77 | S50: =SUM($R50:R$134) -> 244702217.9 | T50: 98791834.35 | U50: =SUM(T50:T$134) -> 3950326213 | V50: 39.96518693 | W50: 243.3112452 | Y50: =IF($Y$2="F",TbSobrVAL!V50,TbSobrVAL!J50) -> 34.9661604
A51: 47 | B51: 96964437.54 | C51: 0.9977835815 | D51: 0.002216418467 | E51: 214913.77 | F51: 12250303.02 | G51: =SUM(F51:$F$134) -> 213027880.6 | H51: 96856980.66 | I51: =SUM(H51:H$134) -> 3300385581 | J51: 34.0370724 | K51: 225.6064785 | M51: 47 | N51: 98739486.65 | O51: 0.998823125 | P51: 0.001176874966 | Q51: 116204.03 | R51: 12474559.36 | S51: =SUM($R51:R$134) -> 231652481.1 | T51: 98681384.63 | U51: =SUM(T51:T$134) -> 3851534379 | V51: 39.00703264 | W51: 240.9515768 | Y51: =IF($Y$2="F",TbSobrVAL!V51,TbSobrVAL!J51) -> 34.0370724
A52: 48 | B52: 96749523.77 | C52: 0.9975779871 | D52: 0.002422012852 | E52: 234328.59 | F52: 11696795.43 | G52: =SUM(F52:$F$134) -> 200777577.6 | H52: 96632359.47 | I52: =SUM(H52:H$134) -> 3203528600 | J52: 33.1115697 | K52: 222.6889828 | M52: 48 | N52: 98623282.62 | O52: 0.9987026096 | P52: 0.001297390413 | Q52: 127952.9014 | R52: 11923328.58 | S52: =SUM($R52:R$134) -> 219177921.7 | T52: 98559306.17 | U52: =SUM(T52:T$134) -> 3752852994 | V52: 38.052404 | W52: 238.5112601 | Y52: =IF($Y$2="F",TbSobrVAL!V52,TbSobrVAL!J52) -> 33.1115697
A53: 49 | B53: 96515195.18 | C53: 0.9973405731 | D53: 0.002659426938 | E53: 256675.11 | F53: 11165995.83 | G53: =SUM(F53:$F$134) -> 189080782.1 | H53: 96386857.62 | I53: =SUM(H53:H$134) -> 3106896241 | J53: 32.19074711 | K53: 219.678787 | M53: 49 | N53: 98495329.71 | O53: 0.9985527938 | P53: 0.001447206229 | Q53: 142543.0547 | R53: 11395080.73 | S53: =SUM($R53:R$134) -> 207254593.1 | T53: 98424058.19 | U53: =SUM(T53:T$134) -> 3654293688 | V53: 37.10118742 | W53: 235.9866533 | Y53: =IF($Y$2="F",TbSobrVAL!V53,TbSobrVAL!J53) -> 32.19074711
A54: 50 | B54: 96258520.07 | C54: 0.9970619774 | D54: 0.002938022627 | E54: 282809.71 | F54: 10656747.06 | G54: =SUM(F54:$F$134) -> 177914786.3 | H54: 96117115.22 | I54: =SUM(H54:H$134) -> 3010509383 | J54: 31.27525107 | K54: 216.5771474 | M54: 50 | N54: 98352786.66 | O54: 0.9984093774 | P54: 0.001590622582 | Q54: 156442.1635 | R54: 10888602.58 | S54: =SUM($R54:R$134) -> 195859512.4 | T54: 98274565.58 | U54: =SUM(T54:T$134) -> 3555869630 | V54: 36.15423366 | W54: 233.3800901 | Y54: =IF($Y$2="F",TbSobrVAL!V54,TbSobrVAL!J54) -> 31.27525107
A55: 51 | B55: 95975710.36 | C55: 0.9967451962 | D55: 0.003254803833 | E55: 312382.11 | F55: 10167882.58 | G55: =SUM(F55:$F$134) -> 167258039.3 | H55: 95819519.31 | I55: =SUM(H55:H$134) -> 2914392268 | J55: 30.36593589 | K55: 213.3870266 | M55: 51 | N55: 98196344.5 | O55: 0.9982646844 | P55: 0.001735315592 | Q55: 170401.6477 | R55: 10403141.56 | S55: =SUM($R55:R$134) -> 184970909.8 | T55: 98111143.67 | U55: =SUM(T55:T$134) -> 3457595064 | V55: 35.21103644 | W55: 230.6854817 | Y55: =IF($Y$2="F",TbSobrVAL!V55,TbSobrVAL!J55) -> 30.36593589
A56: 52 | B56: 95663328.25 | C56: 0.996367201 | D56: 0.003632798967 | E56: 347525.64 | F56: 9698361.837 | G56: =SUM(F56:$F$134) -> 157090156.7 | H56: 95489565.43 | I56: =SUM(H56:H$134) -> 2818572749 | J56: 29.46346108 | K56: 210.1104278 | M56: 52 | N56: 98025942.85 | O56: 0.9981352889 | P56: 0.001864711072 | Q56: 182790.061 | R56: 9937884.041 | S56: =SUM($R56:R$134) -> 174567768.3 | T56: 97934547.82 | U56: =SUM(T56:T$134) -> 3359483921 | V56: 34.27137575 | W56: 227.8982241 | Y56: =IF($Y$2="F",TbSobrVAL!V56,TbSobrVAL!J56) -> 29.46346108
A57: 53 | B57: 95315802.61 | C57: 0.9959411714 | D57: 0.004058828645 | E57: 386870.51 | F57: 9247014.008 | G57: =SUM(F57:$F$134) -> 147391794.8 | H57: 95122367.35 | I57: =SUM(H57:H$134) -> 2723083183 | J57: 28.56906314 | K57: 206.753782 | M57: 53 | N57: 97843152.79 | O57: 0.9979729427 | P57: 0.00202705726 | Q57: 198333.6732 | R57: 9492203.597 | S57: =SUM($R57:R$134) -> 164629884.2 | T57: 97743985.95 | U57: =SUM(T57:T$134) -> 3261549373 | V57: 33.33446725 | W57: 225.0097019 | Y57: =IF($Y$2="F",TbSobrVAL!V57,TbSobrVAL!J57) -> 28.56906314
A58: 54 | B58: 94928932.1 | C58: 0.9954796035 | D58: 0.004520396475 | E58: 429116.41 | F58: 8812901.4 | G58: =SUM(F58:$F$134) -> 138144780.8 | H58: 94714373.89 | I58: =SUM(H58:H$134) -> 2627960816 | J58: 27.68345496 | K58: 203.3204302 | M58: 54 | N58: 97644819.11 | O58: 0.9977678056 | P58: 0.002232194439 | Q58: 217962.2223 | R58: 9065035.748 | S58: =SUM($R58:R$134) -> 155137680.6 | T58: 97535838 | U58: =SUM(T58:T$134) -> 3163805387 | V58: 32.40115979 | W58: 222.0217433 | Y58: =IF($Y$2="F",TbSobrVAL!V58,TbSobrVAL!J58) -> 27.68345496
A59: 55 | B59: 94499815.69 | C59: 0.9949888886 | D59: 0.005011111361 | E59: 473549.1 | F59: 8395276.164 | G59: =SUM(F59:$F$134) -> 129331879.4 | H59: 94263041.14 | I59: =SUM(H59:H$134) -> 2533246442 | J59: 26.80689294 | K59: 199.8107704 | M59: 55 | N59: 97426856.89 | O59: 0.997533944 | P59: 0.002466055956 | Q59: 240260.0807 | R59: 8655311.795 | S59: =SUM($R59:R$134) -> 146072644.9 | T59: 97306726.85 | U59: =SUM(T59:T$134) -> 3066269549 | V59: 31.47252869 | W59: 218.9380822 | Y59: =IF($Y$2="F",TbSobrVAL!V59,TbSobrVAL!J59) -> 26.80689294
A60: 56 | B60: 94026266.59 | C60: 0.9944416525 | D60: 0.005558347459 | E60: 522630.66 | F60: 7993499.043 | G60: =SUM(F60:$F$134) -> 120936603.3 | H60: 93764951.26 | I60: =SUM(H60:H$134) -> 2438983401 | J60: 25.93938363 | K60: 196.2234745 | M60: 56 | N60: 97186596.81 | O60: 0.9972594916 | P60: 0.00274050843 | Q60: 266340.6878 | R60: 8262169.676 | S60: =SUM($R60:R$134) -> 137417333.1 | T60: 97053426.47 | U60: =SUM(T60:T$134) -> 2968962822 | V60: 30.5490975 | W60: 215.7591253 | Y60: =IF($Y$2="F",TbSobrVAL!V60,TbSobrVAL!J60) -> 25.93938363
A61: 57 | B61: 93503635.93 | C61: 0.993850421 | D61: 0.006149579043 | E61: 575008 | F61: 7606764.017 | G61: =SUM(F61:$F$134) -> 112943104.2 | H61: 93216131.93 | I61: =SUM(H61:H$134) -> 2345218449 | J61: 25.08157492 | K61: 192.5620301 | M61: 57 | N61: 96920256.12 | O61: 0.9969626937 | P61: 0.003037306293 | Q61: 294376.5038 | R61: 7884714.958 | S61: =SUM($R61:R$134) -> 129155163.4 | T61: 96773067.87 | U61: =SUM(T61:T$134) -> 2871909395 | V61: 29.63167361 | W61: 212.4874908 | Y61: =IF($Y$2="F",TbSobrVAL!V61,TbSobrVAL!J61) -> 25.08157492
A62: 58 | B62: 92928627.93 | C62: 0.9932527177 | D62: 0.006747282339 | E62: 627015.69 | F62: 7234436.001 | G62: =SUM(F62:$F$134) -> 105336340.2 | H62: 92615120.09 | I62: =SUM(H62:H$134) -> 2252002318 | J62: 24.23367661 | K62: 188.8269714 | M62: 58 | N62: 96625879.62 | O62: 0.9966592212 | P62: 0.003340778837 | Q62: 322805.6938 | R62: 7522264.75 | S62: =SUM($R62:R$134) -> 121270448.5 | T62: 96464476.77 | U62: =SUM(T62:T$134) -> 2775136328 | V62: 28.72042499 | W62: 209.1216113 | Y62: =IF($Y$2="F",TbSobrVAL!V62,TbSobrVAL!J62) -> 24.23367661
A63: 59 | B63: 92301612.24 | C63: 0.9926424162 | D63: 0.007357583833 | E63: 679116.85 | F63: 6876194.467 | G63: =SUM(F63:$F$134) -> 98101904.2 | H63: 91962053.81 | I63: =SUM(H63:H$134) -> 2159387197 | J63: 23.39490227 | K63: 185.0112255 | M63: 59 | N63: 96303073.93 | O63: 0.9963557038 | P63: 0.003644296211 | Q63: 350956.9274 | R63: 7174291.413 | S63: =SUM($R63:R$134) -> 113748183.7 | T63: 96127595.46 | U63: =SUM(T63:T$134) -> 2678671851 | V63: 27.81501921 | W63: 205.6562922 | Y63: =IF($Y$2="F",TbSobrVAL!V63,TbSobrVAL!J63) -> 23.39490227
A64: 60 | B64: 91622495.39 | C64: 0.9919802143 | D64: 0.008019785718 | E64: 734792.78 | F64: 6531676.833 | G64: =SUM(F64:$F$134) -> 91225709.73 | H64: 91255099 | I64: =SUM(H64:H$134) -> 2067425144 | J64: 22.56460201 | K64: 181.108247 | M64: 60 | N64: 95952117 | O64: 0.9960063481 | P64: 0.003993651871 | Q64: 383199.3516 | R64: 6840331.263 | S64: =SUM($R64:R$134) -> 106573892.3 | T64: 95760517.32 | U64: =SUM(T64:T$134) -> 2582544255 | V64: 26.91492732 | W64: 202.0845767 | Y64: =IF($Y$2="F",TbSobrVAL!V64,TbSobrVAL!J64) -> 22.56460201
A65: 61 | B65: 90887702.61 | C65: 0.9912364392 | D65: 0.008763560824 | E65: 796499.91 | F65: 6200281.516 | G65: =SUM(F65:$F$134) -> 84694032.9 | H65: 90489452.66 | I65: =SUM(H65:H$134) -> 1976170045 | J65: 21.74298599 | K65: 177.1178662 | M65: 61 | N65: 95568917.65 | O65: 0.9956190046 | P65: 0.004380995399 | Q65: 418686.9885 | R65: 6519630.011 | S65: =SUM($R65:R$134) -> 99733561.03 | T65: 95359574.15 | U65: =SUM(T65:T$134) -> 2486783738 | V65: 26.02084233 | W65: 198.4082114 | Y65: =IF($Y$2="F",TbSobrVAL!V65,TbSobrVAL!J65) -> 21.74298599
A66: 62 | B66: 90091202.7 | C66: 0.9903580961 | D66: 0.009641903915 | E66: 868650.72 | F66: 5881287.054 | G66: =SUM(F66:$F$134) -> 78493751.38 | H66: 89656877.34 | I66: =SUM(H66:H$134) -> 1885680592 | J66: 20.93079608 | K66: 173.044296 | M66: 62 | N66: 95150230.66 | O66: 0.9951982019 | P66: 0.004801798088 | Q66: 456892.1957 | R66: 6211547.887 | S66: =SUM($R66:R$134) -> 93213931.02 | T66: 94921784.56 | U66: =SUM(T66:T$134) -> 2391424164 | V66: 25.13314101 | W66: 194.6268733 | Y66: =IF($Y$2="F",TbSobrVAL!V66,TbSobrVAL!J66) -> 20.93079608
A67: 63 | B67: 89222551.98 | C67: 0.9893140529 | D67: 0.01068594709 | E67: 953427.47 | F67: 5573761.004 | G67: =SUM(F67:$F$134) -> 72612464.33 | H67: 88745838.25 | I67: =SUM(H67:H$134) -> 1796023715 | J67: 20.12970572 | K67: 168.8998497 | M67: 63 | N67: 94693338.46 | O67: 0.9946994547 | P67: 0.005300545299 | Q67: 501926.33 | R67: 5915522.764 | S67: =SUM($R67:R$134) -> 87002383.13 | T67: 94442375.3 | U67: =SUM(T67:T$134) -> 2296502379 | V67: 24.25199509 | W67: 190.7387977 | Y67: =IF($Y$2="F",TbSobrVAL!V67,TbSobrVAL!J67) -> 20.12970572
A68: 64 | B68: 88269124.51 | C68: =B69/B68 -> 0.9880269095 | D68: 0.01197309054 | E68: 1056854.22 | F68: 5276746.497 | G68: =SUM(F68:$F$134) -> 67038703.32 | H68: 87740697.4 | I68: =SUM(H68:H$134) -> 1707277876 | J68: 19.34173343 | K68: 164.7008502 | M68: 64 | N68: 94191412.13 | O68: =N69/N68 -> 0.9941350011 | P68: 0.005864998908 | Q68: 552432.5293 | R68: 5630782.074 | S68: =SUM($R68:R$134) -> 81086860.37 | T68: 93915195.87 | U68: =SUM(T68:T$134) -> 2202060004 | V68: 23.3785645 | W68: 186.7499747 | Y68: =IF($Y$2="F",TbSobrVAL!V68,TbSobrVAL!J68) -> 19.34173343
A69: =A68+1 -> 65 | B69: 87212270.29 | C69: 0.9866601969 | D69: =1-C69 -> 0.01333980306 | E69: 1163394.51 | F69: 4989059.84 | G69: =SUM(F69:$F$134) -> 61761956.83 | H69: =(B69+B70)/2 -> 86630573.03 | I69: =SUM(H69:H$134) -> 1619537179 | J69: =I69/B69 -> 18.570061 | K69: =(12*G69/F69-11/24)+G69/F69 -> 160.4748814 | M69: =M68+1 -> 65 | N69: 93638979.6 | O69: 0.9934409375 | P69: 0.00655906248 | Q69: 614183.9178 | R69: 5356705.783 | S69: =SUM($R69:R$134) -> 75456078.3 | T69: =(N69+N70)/2 -> 93331887.64 | U69: =SUM(T69:T$134) -> 2108144808 | V69: =U69/N69 -> 22.51353888 | W69: =(12*S69/R69-11/24)+S69/R69 -> 182.663357 | Y69: =IF($Y$2="F",TbSobrVAL!V69,TbSobrVAL!J69) -> 18.570061
A70: 66 | B70: 86048875.78 | C70: 0.9852167935 | D70: 0.0147832065 | E70: =B70-B71 -> 1272078.3 | F70: =B70*(1/(1+$C$1)^A70) -> 4710532.789 | G70: =SUM(F70:$F$134) -> 56772896.99 | H70: 85412836.63 | I70: =SUM(H70:H$134) -> 1532906606 | J70: 17.8143711 | K70: 156.2219604 | M70: 66 | N70: 93024795.69 | O70: 0.9926987586 | P70: 0.00730124143 | Q70: =N70-N71 -> 679196.4923 | R70: =N70*(1/(1+$C$1)^M70) -> 5092412.263 | S70: =SUM($R70:R$134) -> 70099372.51 | T70: 92685197.44 | U70: =SUM(T70:T$134) -> 2014812920 | V70: 21.65888036 | W70: 178.4925834 | Y70: =IF($Y$2="F",TbSobrVAL!V70,TbSobrVAL!J70) -> 17.8143711
A71: 67 | B71: 84776797.48 | C71: 0.9837935494 | D71: 0.0162064506 | E71: 1373930.98 | F71: 4441048.814 | G71: =SUM(F71:$F$134) -> 52062364.2 | H71: 84089831.99 | I71: =SUM(H71:H$134) -> 1447493769 | J71: 17.07417374 | K71: 151.9405173 | M71: 67 | N71: 92345599.19 | O71: 0.9918769811 | P71: 0.008123018936 | Q71: 750125.0509 | R71: 4837541.945 | S71: =SUM($R71:R$134) -> 65006960.25 | T71: 91970536.67 | U71: =SUM(T71:T$134) -> 1922127723 | V71: 20.81450269 | W71: 174.2358591 | Y71: =IF($Y$2="F",TbSobrVAL!V71,TbSobrVAL!J71) -> 17.07417374
A72: 68 | B72: 83402866.5 | C72: 0.9821766351 | D72: 0.01782336486 | E72: 1486519.72 | F72: 4180933.182 | G72: =SUM(F72:$F$134) -> 47621315.38 | H72: 82659606.64 | I72: =SUM(H72:H$134) -> 1363403937 | J72: 16.34720717 | K72: 147.6131792 | M72: 68 | N72: 91595474.14 | O72: 0.9909079968 | P72: 0.009092003229 | Q72: 832786.3467 | R72: 4591623.445 | S72: =SUM($R72:R$134) -> 60169418.31 | T72: 91179080.97 | U72: =SUM(T72:T$134) -> 1830157186 | V72: 19.98086918 | W72: 169.8958883 | Y72: =IF($Y$2="F",TbSobrVAL!V72,TbSobrVAL!J72) -> 16.34720717
A73: 69 | B73: 81916346.78 | C73: 0.9804541465 | D73: 0.01954585346 | E73: 1601124.91 | F73: 3929583.622 | G73: =SUM(F73:$F$134) -> 43440382.2 | H73: 81115784.33 | I73: =SUM(H73:H$134) -> 1280744331 | J73: 15.6347833 | K73: 143.2528134 | M73: 69 | N73: 90762687.8 | O73: 0.9897944524 | P73: 0.01020554759 | Q73: 926282.9293 | R73: 4353948.698 | S73: =SUM($R73:R$134) -> 55577794.86 | T73: 90299546.33 | U73: =SUM(T73:T$134) -> 1738978105 | V73: 19.15961446 | W73: 165.485591 | Y73: =IF($Y$2="F",TbSobrVAL!V73,TbSobrVAL!J73) -> 15.6347833
A74: 70 | B74: 80315221.87 | C74: 0.9782152012 | D74: 0.02178479881 | E74: 1749650.95 | F74: 3686867.518 | G74: =SUM(F74:$F$134) -> 39510798.58 | H74: 79440396.4 | I74: =SUM(H74:H$134) -> 1199628546 | J74: 14.93650292 | K74: 138.8578691 | M74: 70 | N74: 89836404.87 | O74: 0.988537057 | P74: 0.01146294299 | Q74: 1029789.588 | R74: 4123937.098 | S74: =SUM($R74:R$134) -> 51223846.16 | T74: 89321510.07 | U74: =SUM(T74:T$134) -> 1648678559 | V74: 18.35200954 | W74: 161.0160016 | Y74: =IF($Y$2="F",TbSobrVAL!V74,TbSobrVAL!J74) -> 14.93650292
A75: 71 | B75: 78565570.92 | C75: 0.9760268559 | D75: 0.02397314406 | E75: 1883463.75 | F75: 3451243.876 | G75: =SUM(F75:$F$134) -> 35823931.06 | H75: 77623839.05 | I75: =SUM(H75:H$134) -> 1120188150 | J75: 14.25800305 | K75: 134.4817406 | M75: 71 | N75: 88806615.28 | O75: 0.9873065043 | P75: =1-O75 -> 0.01269349568 | Q75: 1127266.387 | R75: 3901114.49 | S75: =SUM($R75:R$134) -> 47099909.06 | T75: 88242982.09 | U75: =SUM(T75:T$134) -> 1559357049 | V75: 17.55901904 | W75: 156.4965111 | Y75: =IF($Y$2="F",TbSobrVAL!V75,TbSobrVAL!J75) -> 14.25800305
A76: 72 | B76: 76682107.17 | C76: 0.9733286221 | D76: 0.02667137792 | E76: 2045217.46 | F76: 3223451.397 | G76: =SUM(F76:$F$134) -> 32372687.19 | H76: 75659498.44 | I76: =SUM(H76:H$134) -> 1042564311 | J76: 13.59592673 | K76: 130.0989116 | M76: 72 | N76: 87679348.89 | O76: 0.9859443279 | P76: 0.01405567212 | Q76: 1232392.179 | R76: 3685737.522 | S76: =SUM($R76:R$134) -> 43198794.57 | T76: 87063152.8 | U76: =SUM(T76:T$134) -> 1471114067 | V76: 16.7783416 | W76: 151.9085474 | Y76: =IF($Y$2="F",TbSobrVAL!V76,TbSobrVAL!J76) -> 13.59592673
A77: 73 | B77: 74636889.71 | C77: 0.9704611492 | D77: 0.02953885081 | E77: 2204687.95 | F77: 3002370.819 | G77: =SUM(F77:$F$134) -> 29149235.79 | H77: 73534545.73 | I77: =SUM(H77:H$134) -> 966904812.5 | J77: 12.95478437 | K77: 125.7552785 | M77: 73 | N77: 86446956.71 | O77: 0.9845396472 | P77: 0.01546035281 | Q77: 1336500.45 | R77: 3477446.893 | S77: =SUM($R77:R$134) -> 39513057.05 | T77: 85778706.49 | U77: =SUM(T77:T$134) -> 1384050914 | V77: 16.01040646 | W77: 147.2562853 | Y77: =IF($Y$2="F",TbSobrVAL!V77,TbSobrVAL!J77) -> 12.95478437
A78: 74 | B78: 72432201.76 | C78: 0.9673050697 | D78: 0.03269493033 | E78: 2368165.79 | F78: 2788214.58 | G78: =SUM(F78:$F$134) -> 26146864.97 | H78: 71248118.87 | I78: =SUM(H78:H$134) -> 893370266.7 | J78: 12.33388251 | K78: 121.4509512 | M78: 74 | N78: 85110456.26 | O78: 0.9831261311 | P78: 0.01687386892 | Q78: 1436142.682 | R78: 3276252.955 | S78: =SUM($R78:R$134) -> 36035610.16 | T78: 84392384.92 | U78: =SUM(T78:T$134) -> 1298272208 | V78: 15.25396837 | W78: 142.529079 | Y78: =IF($Y$2="F",TbSobrVAL!V78,TbSobrVAL!J78) -> 12.33388251
A79: 75 | B79: 70064035.97 | C79: 0.9640890488 | D79: 0.03591095125 | E79: 2516066.18 | F79: 2580913.013 | G79: =SUM(F79:$F$134) -> 23358650.39 | H79: 68806002.88 | I79: =SUM(H79:H$134) -> 822122147.9 | J79: 11.73386798 | K79: 117.1986561 | M79: 75 | N79: 83674313.58 | O79: 0.9816759011 | P79: 0.01832409886 | Q79: 1533256.394 | R79: 3082267.839 | S79: =SUM($R79:R$134) -> 32759357.2 | T79: 82907685.38 | U79: =SUM(T79:T$134) -> 1213879823 | V79: 14.50719786 | W79: 137.709946 | Y79: =IF($Y$2="F",TbSobrVAL!V79,TbSobrVAL!J79) -> 11.73386798
A80: 76 | B80: 67547969.79 | C80: 0.9603912791 | D80: 0.03960872086 | E80: 2675488.68 | F80: 2381081.312 | G80: =SUM(F80:$F$134) -> 20777737.38 | H80: 66210225.45 | I80: =SUM(H80:H$134) -> 753316145 | J80: 11.15231364 | K80: 112.9819698 | M80: 76 | N80: 82141057.19 | O80: 0.9799230107 | P80: 0.02007698933 | Q80: 1649145.129 | R80: 2895490.965 | S80: =SUM($R80:R$134) -> 29677089.37 | T80: 81316484.62 | U80: =SUM(T80:T$134) -> 1130972137 | V80: 13.76865816 | W80: 132.7840654 | Y80: =IF($Y$2="F",TbSobrVAL!V80,TbSobrVAL!J80) -> 11.15231364
A81: 77 | B81: 64872481.11 | C81: 0.9565206718 | D81: 0.04347932824 | E81: 2820611.9 | F81: 2188296.39 | G81: =SUM(F81:$F$134) -> 18396656.07 | H81: 63462175.16 | I81: =SUM(H81:H$134) -> 687105919.5 | J81: 10.59163929 | K81: 108.8305774 | M81: 77 | N81: 80491912.06 | O81: 0.9777972928 | P81: 0.0222027072 | Q81: 1787138.356 | R81: 2715175.334 | S81: =SUM($R81:R$134) -> 26781598.4 | T81: 79598342.88 | U81: =SUM(T81:T$134) -> 1049655653 | V81: 13.04051085 | W81: 127.7694002 | Y81: =IF($Y$2="F",TbSobrVAL!V81,TbSobrVAL!J81) -> 10.59163929
A82: 78 | B82: 62051869.21 | C82: 0.9526216975 | D82: 0.0473783025 | E82: 2939912.23 | F82: 2003015.055 | G82: =SUM(F82:$F$134) -> 16208359.68 | H82: 60581913.09 | I82: =SUM(H82:H$134) -> 623643744.4 | J82: 10.05036194 | K82: 104.7374191 | M82: 78 | N82: 78704773.7 | O82: 0.9750788989 | P82: 0.02492110109 | Q82: 1961409.622 | R82: 2540565.637 | S82: =SUM($R82:R$134) -> 24066423.07 | T82: 77724068.89 | U82: =SUM(T82:T$134) -> 970057309.8 | V82: 12.32526649 | W82: 122.688849 | Y82: =IF($Y$2="F",TbSobrVAL!V82,TbSobrVAL!J82) -> 10.05036194
A83: 79 | B83: 59111956.98 | C83: 0.9484230623 | D83: 0.05157693766 | E83: 3048813.72 | F83: 1825947.944 | G83: =SUM(F83:$F$134) -> 14205344.62 | H83: 57587550.12 | I83: =SUM(H83:H$134) -> 563061831.3 | J83: 9.525345802 | K83: 100.6778905 | M83: 79 | N83: 76743364.08 | O83: 0.9716951044 | P83: 0.02830489563 | Q83: 2172212.911 | R83: 2370576.023 | S83: =SUM($R83:R$134) -> 21525857.43 | T83: 75657257.62 | U83: =SUM(T83:T$134) -> 892333240.9 | V83: 11.62749707 | W83: 117.5872994 | Y83: =IF($Y$2="F",TbSobrVAL!V83,TbSobrVAL!J83) -> 9.525345802
A84: 80 | B84: 56063143.26 | C84: 0.9440815024 | D84: 0.05591849757 | E84: 3134966.74 | F84: 1657197.264 | G84: =SUM(F84:$F$134) -> 12379396.68 | H84: 54495659.89 | I84: =SUM(H84:H$134) -> 505474281.2 | J84: 9.016160204 | K84: 96.65271089 | M84: 80 | N84: 74571151.17 | O84: 0.9675641006 | P84: 0.03243589938 | Q84: 2418782.356 | R84: 2204284.322 | S84: =SUM($R84:R$134) -> 19155281.41 | T84: 73361759.99 | U84: =SUM(T84:T$134) -> 816675983.3 | V84: 10.95163439 | W84: 112.5119654 | Y84: =IF($Y$2="F",TbSobrVAL!V84,TbSobrVAL!J84) -> 9.016160204
A85: 81 | B85: 52928176.52 | C85: 0.939200558 | D85: 0.06079944203 | E85: 3218003.6 | F85: 1497157.209 | G85: =SUM(F85:$F$134) -> 10722199.41 | H85: 51319174.72 | I85: =SUM(H85:H$134) -> 450978621.3 | J85: 8.520577336 | K85: 92.64384162 | M85: 81 | N85: 72152368.81 | O85: 0.9629969248 | P85: 0.03700307524 | Q85: 2669859.532 | R85: 2040943.902 | S85: =SUM($R85:R$134) -> 16950997.08 | T85: 70817439.05 | U85: =SUM(T85:T$134) -> 743314223.3 | V85: 10.3020072 | W85: 107.5127686 | Y85: =IF($Y$2="F",TbSobrVAL!V85,TbSobrVAL!J85) -> 8.520577336
A86: 82 | B86: 49710172.92 | C86: 0.9342219828 | D86: 0.06577801721 | E86: 3269836.61 | F86: 1345579.795 | G86: =SUM(F86:$F$134) -> 9225042.205 | H86: 48075254.62 | I86: =SUM(H86:H$134) -> 399659446.6 | J86: 8.03979192 | K86: 88.66722363 | M86: 82 | N86: 69482509.28 | O86: 0.9581767324 | P86: 0.04182326758 | Q86: 2905985.578 | R86: 1880787.274 | S86: =SUM($R86:R$134) -> 14910053.18 | T86: 68029516.49 | U86: =SUM(T86:T$134) -> 672496784.3 | V86: 9.678648501 | W86: 102.5999413 | Y86: =IF($Y$2="F",TbSobrVAL!V86,TbSobrVAL!J86) -> 8.03979192
A87: 83 | B87: 46440336.31 | C87: 0.928929517 | D87: 0.07107048295 | E87: 3300537.13 | F87: 1202938.013 | G87: =SUM(F87:$F$134) -> 7879462.41 | H87: 44790067.75 | I87: =SUM(H87:H$134) -> 351584191.9 | J87: 7.570664209 | K87: 84.69402712 | M87: 83 | N87: 66576523.7 | O87: 0.9532619104 | P87: 0.04673808961 | Q87: 3111659.531 | R87: 1724523.066 | S87: =SUM($R87:R$134) -> 13029265.91 | T87: 65020693.94 | U87: =SUM(T87:T$134) -> 604467267.8 | V87: 9.079285522 | W87: 97.76039169 | Y87: =IF($Y$2="F",TbSobrVAL!V87,TbSobrVAL!J87) -> 7.570664209
A88: 84 | B88: 43139799.18 | C88: 0.9226386934 | D88: 0.07736130658 | E88: 3337351.23 | F88: 1069325.003 | G88: =SUM(F88:$F$134) -> 6676524.396 | H88: 41471123.56 | I88: =SUM(H88:H$134) -> 306794124.2 | J88: 7.111626156 | K88: 80.70952202 | M88: 84 | N88: 63464864.17 | O88: 0.9477984269 | P88: 0.05220157312 | Q88: 3312965.748 | R88: 1573131.246 | S88: =SUM($R88:R$134) -> 11304742.84 | T88: 61808381.3 | U88: =SUM(T88:T$134) -> 539446573.8 | V88: 8.499924815 | W88: 92.9614988 | Y88: =IF($Y$2="F",TbSobrVAL!V88,TbSobrVAL!J88) -> 7.111626156
A89: 85 | B89: 39802447.95 | C89: 0.9145285201 | D89: 0.0854714799 | E89: 3401974.13 | F89: 944115.4291 | G89: =SUM(F89:$F$134) -> 5607199.394 | H89: 38101460.89 | I89: =SUM(H89:H$134) -> 265323000.6 | J89: 6.66599705 | K89: 76.75001415 | M89: 85 | N89: 60151898.42 | O89: 0.9411615271 | P89: 0.05883847286 | Q89: 3539245.843 | R89: 1426805.092 | S89: =SUM($R89:R$134) -> 9731611.597 | T89: 58382275.5 | U89: =SUM(T89:T$134) -> 477638192.5 | V89: 7.940533966 | W89: 88.20896363 | Y89: =IF($Y$2="F",TbSobrVAL!V89,TbSobrVAL!J89) -> 6.66599705
A90: 86 | B90: 36400473.82 | C90: 0.9051647702 | D90: 0.09483522981 | E90: 3452047.3 | F90: 826239.6997 | G90: =SUM(F90:$F$134) -> 4663083.964 | H90: 34674450.17 | I90: =SUM(H90:H$134) -> 227221539.8 | J90: 6.242268737 | K90: 72.9103169 | M90: 86 | N90: 56612652.58 | O90: 0.9325622481 | P90: 0.06743775193 | Q90: 3817830.021 | R90: 1285027.808 | S90: =SUM($R90:R$134) -> 8304806.506 | T90: 54703737.57 | U90: =SUM(T90:T$134) -> 419255917 | V90: 7.405692861 | W90: 83.55734628 | Y90: =IF($Y$2="F",TbSobrVAL!V90,TbSobrVAL!J90) -> 6.242268737
A91: 87 | B91: 32948426.52 | C91: 0.8939200739 | D91: 0.1060799261 | E91: 3495166.65 | F91: 715677.5769 | G91: =SUM(F91:$F$134) -> 3836844.265 | H91: 31200843.2 | I91: =SUM(H91:H$134) -> 192547089.6 | J91: 5.843893318 | K91: 69.23642454 | M91: 87 | N91: 52794822.56 | O91: 0.922690769 | P91: 0.07730923095 | Q91: 4081527.13 | R91: 1146764.039 | S91: =SUM($R91:R$134) -> 7019778.698 | T91: 50754059 | U91: =SUM(T91:T$134) -> 364552179.5 | V91: 6.905074433 | W91: 79.11960943 | Y91: =IF($Y$2="F",TbSobrVAL!V91,TbSobrVAL!J91) -> 5.843893318
A92: 88 | B92: 29453259.87 | C92: 0.8829412576 | D92: 0.1170587424 | E92: 3447761.56 | F92: 612209.1411 | G92: =SUM(F92:$F$134) -> 3121166.688 | H92: 27729379.09 | I92: =SUM(H92:H$134) -> 161346246.4 | J92: 5.478043758 | K92: 65.81831008 | M92: 88 | N92: 48713295.43 | O92: 0.912571178 | P92: 0.08742882202 | Q92: 4258946.036 | R92: 1012544.108 | S92: =SUM($R92:R$134) -> 5873014.659 | T92: 46583822.41 | U92: =SUM(T92:T$134) -> 313798120.5 | V92: 6.441734596 | W92: 74.94498977 | Y92: =IF($Y$2="F",TbSobrVAL!V92,TbSobrVAL!J92) -> 5.478043758
A93: 89 | B93: 26005498.31 | C93: 0.8696329019 | D93: 0.1303670981 | E93: 3390261.35 | F93: 517267.6641 | G93: =SUM(F93:$F$134) -> 2508957.547 | H93: 24310367.63 | I93: =SUM(H93:H$134) -> 133616867.3 | J93: 5.138023725 | K93: 62.59692872 | M93: 89 | N93: 44454349.39 | O93: 0.9024844768 | P93: 0.09751552324 | Q93: 4334989.141 | R93: 884228.2964 | S93: =SUM($R93:R$134) -> 4860470.551 | T93: 42286854.82 | U93: =SUM(T93:T$134) -> 267214298.1 | V93: 6.010982091 | W93: 71.00072018 | Y93: =IF($Y$2="F",TbSobrVAL!V93,TbSobrVAL!J93) -> 5.138023725
A94: 90 | B94: 22615236.96 | C94: 0.8591458159 | D94: 0.1408541841 | E94: 3185450.75 | F94: 430462.1816 | G94: =SUM(F94:$F$134) -> 1991689.883 | H94: 21022511.59 | I94: =SUM(H94:H$134) -> 109306499.7 | J94: 4.833312154 | K94: 59.69089599 | M94: 90 | N94: 40119360.25 | O94: 0.8920309325 | P94: 0.1079690675 | Q94: 4331649.917 | R94: 763638.5756 | S94: =SUM($R94:R$134) -> 3976242.254 | T94: 37953535.29 | U94: =SUM(T94:T$134) -> 224927443.2 | V94: 5.60645638 | W94: 67.23226135 | Y94: =IF($Y$2="F",TbSobrVAL!V94,TbSobrVAL!J94) -> 4.833312154
A95: 91 | B95: 19429786.21 | C95: 0.8476495774 | D95: 0.1523504226 | E95: 2960136.14 | F95: 353904.0978 | G95: =SUM(F95:$F$134) -> 1561227.701 | H95: 17949718.14 | I95: =SUM(H95:H$134) -> 88283988.07 | J95: 4.543744698 | K95: 56.89042369 | M95: 91 | N95: 35787710.34 | O95: 0.8804675926 | P95: 0.1195324074 | Q95: 4277791.17 | R95: 651855.7231 | S95: =SUM($R95:R$134) -> 3212603.679 | T95: 33648814.75 | U95: =SUM(T95:T$134) -> 186973907.9 | V95: 5.22452837 | W95: 63.61082544 | Y95: =IF($Y$2="F",TbSobrVAL!V95,TbSobrVAL!J95) -> 4.543744698
A96: 92 | B96: 16469650.07 | C96: 0.8393665762 | D96: 0.1606334238 | E96: 2645576.28 | F96: 287068.5732 | G96: =SUM(F96:$F$134) -> 1207323.603 | H96: 15146861.93 | I96: =SUM(H96:H$134) -> 70334269.93 | J96: 4.27053821 | K96: 54.2157352 | M96: 92 | N96: 31509919.17 | O96: 0.8684459129 | P96: 0.1315540871 | Q96: 4145258.651 | R96: 549222.8127 | S96: =SUM($R96:R$134) -> 2560747.955 | T96: 29437289.84 | U96: =SUM(T96:T$134) -> 153325093.2 | V96: 4.865931023 | W96: 60.15408598 | Y96: =IF($Y$2="F",TbSobrVAL!V96,TbSobrVAL!J96) -> 4.27053821
A97: 93 | B97: 13824073.79 | C97: 0.8238538801 | D97: 0.1761461199 | E97: 2435056.96 | F97: 230579.6798 | G97: =SUM(F97:$F$134) -> 920255.0301 | H97: 12606545.31 | I97: =SUM(H97:H$134) -> 55187408 | J97: 3.992123367 | K97: 51.42531662 | M97: 93 | N97: 27364660.51 | O97: 0.8542168781 | P97: 0.1457831219 | Q97: 3989305.641 | R97: 456430.9157 | S97: =SUM($R97:R$134) -> 2011525.143 | T97: 25370007.69 | U97: =SUM(T97:T$134) -> 123887803.3 | V97: 4.527291807 | W97: 56.83363782 | Y97: =IF($Y$2="F",TbSobrVAL!V97,TbSobrVAL!J97) -> 3.992123367
A98: 94 | B98: 11389016.83 | C98: 0.8110586434 | D98: 0.1889413566 | E98: 2151856.29 | F98: 181783.6975 | G98: =SUM(F98:$F$134) -> 689675.3503 | H98: 10313088.68 | I98: =SUM(H98:H$134) -> 42580862.69 | J98: 3.738765455 | K98: 48.86280866 | M98: 94 | N98: 23375354.87 | O98: 0.8389650671 | P98: 0.1610349329 | Q98: 3764248.703 | R98: 373101.4276 | S98: =SUM($R98:R$134) -> 1555094.227 | T98: 21493230.52 | U98: =SUM(T98:T$134) -> 98517795.65 | V98: 4.21460107 | W98: 53.72592718 | Y98: =IF($Y$2="F",TbSobrVAL!V98,TbSobrVAL!J98) -> 3.738765455
A99: 95 | B99: 9237160.54 | C99: 0.7947340201 | D99: 0.2052659799 | E99: 1896074.81 | F99: 141088.267 | G99: =SUM(F99:$F$134) -> 507891.6529 | H99: 8289123.135 | I99: =SUM(H99:H$134) -> 32267774.01 | J99: 3.493256815 | K99: 46.339261 | M99: 95 | N99: 19611106.17 | O99: 0.822875075 | P99: 0.177124925 | Q99: 3473615.71 | R99: 299539.7744 | S99: =SUM($R99:R$134) -> 1181992.799 | T99: 17874298.32 | U99: =SUM(T99:T$134) -> 77024565.13 | V99: 3.927599211 | W99: 50.84005073 | Y99: =IF($Y$2="F",TbSobrVAL!V99,TbSobrVAL!J99) -> 3.493256815
A100: 96 | B100: 7341085.73 | C100: 0.7779405867 | D100: 0.2220594133 | E100: 1630157.19 | F100: 107299.1824 | G100: =SUM(F100:$F$134) -> 366803.3858 | H100: 6526007.135 | I100: =SUM(H100:H$134) -> 23978650.88 | J100: 3.266363009 | K100: 43.98230365 | M100: 96 | N100: 16137490.46 | O100: 0.8075406349 | P100: 0.1924593651 | Q100: 3105811.169 | R100: 235869.6788 | S100: =SUM($R100:R$134) -> 882453.025 | T100: 14584584.88 | U100: =SUM(T100:T$134) -> 59150266.81 | V100: 3.665394378 | W100: 48.17822471 | Y100: =IF($Y$2="F",TbSobrVAL!V100,TbSobrVAL!J100) -> 3.266363009
A101: 97 | B101: 5710928.54 | C101: 0.7614127895 | D101: 0.2385872105 | E101: 1362554.51 | F101: 79877.88416 | G101: =SUM(F101:$F$134) -> 259504.2034 | H101: 5029651.285 | I101: =SUM(H101:H$134) -> 17452643.74 | J101: 3.056008076 | K101: 41.77556757 | M101: 97 | N101: 13031679.29 | O101: 0.7924278208 | P101: 0.2075721792 | Q101: 2705014.069 | R101: 182272.1054 | S101: =SUM($R101:R$134) -> 646583.3462 | T101: 11679172.26 | U101: =SUM(T101:T$134) -> 44565681.94 | V101: 3.419795787 | W101: 45.6572447 | Y101: =IF($Y$2="F",TbSobrVAL!V101,TbSobrVAL!J101) -> 3.056008076
A102: 98 | B102: 4348374.03 | C102: 0.7441434333 | D102: 0.2558565667 | E102: 1112560.05 | F102: 58200.9977 | G102: =SUM(F102:$F$134) -> 179626.3192 | H102: 3792094.005 | I102: =SUM(H102:H$134) -> 12422992.46 | J102: 2.856928215 | K102: 39.66369622 | M102: 98 | N102: 10326665.22 | O102: 0.7760995771 | P102: 0.2239004229 | Q102: 2312144.71 | R102: 138217.6912 | S102: =SUM($R102:R$134) -> 464311.2407 | T102: 9170592.868 | U102: =SUM(T102:T$134) -> 32886509.68 | V102: 3.184620492 | W102: 43.21224225 | Y102: =IF($Y$2="F",TbSobrVAL!V102,TbSobrVAL!J102) -> 2.856928215
A103: 99 | B103: 3235813.98 | C103: 0.7256222714 | D103: 0.2743777286 | E103: 887835.29 | F103: 41444.87105 | G103: =SUM(F103:$F$134) -> 121425.3215 | H103: 2791896.335 | I103: =SUM(H103:H$134) -> 8630898.45 | J103: 2.667303653 | K103: 37.62911005 | M103: 99 | N103: 8014520.513 | O103: 0.7584793051 | P103: 0.2415206949 | Q103: 1935672.564 | R103: 102651.3796 | S103: =SUM($R103:R$134) -> 326093.5495 | T103: 7046684.231 | U103: =SUM(T103:T$134) -> 23715916.81 | V103: 2.959118612 | W103: 40.83888216 | Y103: =IF($Y$2="F",TbSobrVAL!V103,TbSobrVAL!J103) -> 2.667303653
A104: 100 | B104: 2347978.69 | C104: 0.705756597 | D104: 0.294243403 | E104: 690877.24 | F104: 28778.29806 | G104: =SUM(F104:$F$134) -> 79980.45045 | H104: 2002540.07 | I104: =SUM(H104:H$134) -> 5839002.115 | J104: 2.486820745 | K104: 35.67117835 | M104: 100 | N104: 6078847.949 | O104: 0.7442075832 | P104: 0.2557924168 | Q104: 1554923.208 | R104: 74506.16944 | S104: =SUM($R104:R$134) -> 223442.1699 | T104: 5301386.345 | U104: =SUM(T104:T$134) -> 16669232.58 | V104: 2.742169688 | W104: 38.52834698 | Y104: =IF($Y$2="F",TbSobrVAL!V104,TbSobrVAL!J104) -> 2.486820745
A105: 101 | B105: 1657101.45 | C105: 0.6844466161 | D105: 0.3155533839 | E105: 522903.97 | F105: 19435.86 | G105: =SUM(F105:$F$134) -> 51202.15239 | H105: 1395649.465 | I105: =SUM(H105:H$134) -> 3836462.045 | J105: 2.315164256 | K105: 33.78908258 | M105: 101 | N105: 4523924.741 | O105: 0.7212597487 | P105: 0.2787402513 | Q105: 1260999.919 | R105: 53060.34095 | S105: =SUM($R105:R$134) -> 148936.0005 | T105: 3893424.781 | U105: =SUM(T105:T$134) -> 11367846.24 | V105: 2.512828327 | W105: 36.0315944 | Y105: =IF($Y$2="F",TbSobrVAL!V105,TbSobrVAL!J105) -> 2.315164256
A106: 102 | B106: 1134197.48 | C106: 0.661584092 | D106: 0.338415908 | E106: 383830.47 | F106: 12729.96039 | G106: =SUM(F106:$F$134) -> 31766.29239 | H106: 942282.245 | I106: =SUM(H106:H$134) -> 2440812.58 | J106: 2.152017284 | K106: 31.98181481 | M106: 102 | N106: 3262924.821 | O106: 0.6926491506 | P106: 0.3073508494 | Q106: 1002862.715 | R106: 36622.28534 | S106: =SUM($R106:R$134) -> 95875.65955 | T106: 2761493.464 | U106: =SUM(T106:T$134) -> 7474421.456 | V106: 2.290712126 | W106: 33.57514008 | Y106: =IF($Y$2="F",TbSobrVAL!V106,TbSobrVAL!J106) -> 2.152017284
A107: 103 | B107: 750367.01 | C107: 0.6370521007 | D107: 0.3629478993 | E107: 272344.13 | F107: 8059.272046 | G107: =SUM(F107:$F$134) -> 19036.332 | H107: 614194.945 | I107: =SUM(H107:H$134) -> 1498530.335 | J107: 1.99706319 | K107: 30.24820127 | M107: 103 | N107: 2260062.106 | O107: 0.6613937587 | P107: 0.3386062413 | Q107: 765271.1348 | R107: 24274.06204 | S107: =SUM($R107:R$134) -> 59253.37422 | T107: 1877426.539 | U107: =SUM(T107:T$134) -> 4712927.992 | V107: 2.085309063 | W107: 31.27487488 | Y107: =IF($Y$2="F",TbSobrVAL!V107,TbSobrVAL!J107) -> 1.99706319
A108: 104 | B108: 478022.88 | C108: 0.6107234449 | D108: 0.3892765551 | E108: 186083.1 | F108: 4913.08726 | G108: =SUM(F108:$F$134) -> 10977.05995 | H108: 384981.33 | I108: =SUM(H108:H$134) -> 884335.39 | J108: 1.849985486 | K108: 28.58690275 | M108: 104 | N108: 1494790.971 | O108: 0.6273292467 | P108: 0.3726707533 | Q108: 557064.8772 | R108: 15363.36185 | S108: =SUM($R108:R$134) -> 34979.31218 | T108: 1216258.533 | U108: =SUM(T108:T$134) -> 2835501.454 | V108: 1.896921716 | W108: 29.14007506 | Y108: =IF($Y$2="F",TbSobrVAL!V108,TbSobrVAL!J108) -> 1.849985486
A109: 105 | B109: 291939.78 | C109: 0.5824602937 | D109: 0.4175397063 | E109: 121896.45 | F109: 2871.327824 | G109: =SUM(F109:$F$134) -> 6063.97269 | H109: 230991.555 | I109: =SUM(H109:H$134) -> 499354.06 | J109: 1.710469399 | K109: 26.99643665 | M109: 105 | N109: 937726.094 | O109: 0.5903068342 | P109: 0.4096931658 | Q109: 384179.9721 | R109: 9222.857623 | S109: =SUM($R109:R$134) -> 19615.95033 | T109: 745636.1079 | U109: =SUM(T109:T$134) -> 1619242.921 | V109: 1.726776008 | W109: 27.19116151 | Y109: =IF($Y$2="F",TbSobrVAL!V109,TbSobrVAL!J109) -> 1.710469399
A110: 106 | B110: 170043.33 | C110: 0.5521120411 | D110: 0.4478879589 | E110: 76160.36 | F110: 1600.41574 | G110: =SUM(F110:$F$134) -> 3192.644866 | H110: 131963.15 | I110: =SUM(H110:H$134) -> 268362.505 | J110: 1.578200715 | K110: 25.47516771 | M110: 106 | N110: 553546.1219 | O110: 0.5521120291 | P110: 0.4478879709 | Q110: 247926.6493 | R110: 5209.871661 | S110: =SUM($R110:R$134) -> 10393.0927 | T110: 429582.7972 | U110: =SUM(T110:T$134) -> 873606.813 | V110: 1.578200584 | W110: 25.47516637 | Y110: =IF($Y$2="F",TbSobrVAL!V110,TbSobrVAL!J110) -> 1.578200715
A111: 107 | B111: 93882.97 | C111: 0.5195143486 | D111: 0.4804856514 | E111: 45109.42 | F111: 845.5586608 | G111: =SUM(F111:$F$134) -> 1592.229126 | H111: 71328.26 | I111: =SUM(H111:H$134) -> 136399.355 | J111: 1.452865786 | K111: 24.02131498 | M111: 107 | N111: 305619.4726 | O111: 0.5195143189 | P111: 0.4804856811 | Q111: 146845.7804 | R111: 2752.567286 | S111: =SUM($R111:R$134) -> 5183.221044 | T111: 232196.5823 | U111: =SUM(T111:T$134) -> 444024.0158 | V111: 1.452865591 | W111: 24.02131296 | Y111: =IF($Y$2="F",TbSobrVAL!V111,TbSobrVAL!J111) -> 1.452865786
A112: 108 | B112: 48773.55 | C112: 0.4844865711 | D112: 0.5155134289 | E112: 25143.42 | F112: 420.3634994 | G112: =SUM(F112:$F$134) -> 746.6704656 | H112: 36201.84 | I112: =SUM(H112:H$134) -> 65071.095 | J112: 1.334147197 | K112: 22.63291047 | M112: 108 | N112: 158773.6921 | O112: 0.4844865638 | P112: 0.5155134362 | Q112: 81849.97162 | R112: 1368.419253 | S112: =SUM($R112:R$134) -> 2430.653758 | T112: 117848.7063 | U112: =SUM(T112:T$134) -> 211827.4334 | V112: 1.334146927 | W112: 22.63290774 | Y112: =IF($Y$2="F",TbSobrVAL!V112,TbSobrVAL!J112) -> 1.334147197
A113: 109 | B113: 23630.13 | C113: 0.4468303814 | D113: 0.5531696186 | E113: 13071.47 | F113: 194.8904023 | G113: =SUM(F113:$F$134) -> 326.3069662 | H113: 17094.395 | I113: =SUM(H113:H$134) -> 28869.255 | J113: 1.221713761 | K113: 21.30769778 | M113: 109 | N113: 76923.72051 | O113: 0.4468302534 | P113: 0.5531697466 | Q113: 42551.87499 | R113: 634.4313315 | S113: =SUM($R113:R$134) -> 1062.234505 | T113: 55647.78302 | U113: =SUM(T113:T$134) -> 93978.7271 | V113: 1.221713231 | W113: 21.30769221 | Y113: =IF($Y$2="F",TbSobrVAL!V113,TbSobrVAL!J113) -> 1.221713761
A114: 110 | B114: 10558.66 | C114: 0.4063252345 | D114: 0.5936747655 | E114: 6268.41 | F114: 83.33296919 | G114: =SUM(F114:$F$134) -> 131.4165638 | H114: 7424.455 | I114: =SUM(H114:H$134) -> 11774.86 | J114: 1.115185071 | K114: 20.04274021 | M114: 110 | N114: 34371.84553 | O114: 0.406325513 | P114: 0.593674487 | Q114: 20405.68776 | R114: 271.2757058 | S114: =SUM($R114:R$134) -> 427.8031735 | T114: 24169.00165 | U114: =SUM(T114:T$134) -> 38330.94408 | V114: 1.115184346 | W114: 20.04273306 | Y114: =IF($Y$2="F",TbSobrVAL!V114,TbSobrVAL!J114) -> 1.115185071
A115: 111 | B115: 4290.25 | C115: =B116/B115 -> 0.3627271138 | D115: 0.6372728862 | E115: 2734.06 | F115: 32.40218971 | G115: =SUM(F115:$F$134) -> 48.08359466 | H115: 2923.22 | I115: =SUM(H115:H$134) -> 4350.405 | J115: 1.014021327 | K115: 18.8331632 | M115: 111 | N115: 13966.15777 | O115: =N116/N115 -> 0.3627275385 | P115: 0.6372724615 | Q115: 8900.247738 | R115: 105.4796558 | S115: =SUM($R115:R$134) -> 156.5274677 | T115: 9516.033898 | U115: =SUM(T115:T$134) -> 14161.94243 | V115: 1.014018506 | W115: 18.83313158 | Y115: =IF($Y$2="F",TbSobrVAL!V115,TbSobrVAL!J115) -> 1.014021327
A116: 112 | B116: 1556.19 | C116: =B117/B116 -> 0.3157647845 | D116: =1-C116 -> 0.6842352155 | E116: 1064.8 | F116: 11.24703613 | G116: =SUM(F116:$F$134) -> 15.68140495 | H116: 1023.79 | I116: =SUM(H116:H$134) -> 1427.185 | J116: 0.9171020248 | K116: =(12*G116/F116-11/24)+G116/F116 -> 17.66717654 | M116: 112 | N116: 5065.910029 | O116: =N117/N116 -> 0.3157617819 | P116: 0.6842382181 | Q116: 3466.289252 | R116: 36.61279993 | S116: =SUM($R116:R$134) -> 51.04781182 | T116: 3332.765403 | U116: =SUM(T116:T$134) -> 4645.908536 | V116: 0.9170925873 | W116: =(12*S116/R116-11/24)+S116/R116 -> 17.66706421 | Y116: =IF($Y$2="F",TbSobrVAL!V116,TbSobrVAL!J116) -> 0.9171020248
A117: 113 | B117: 491.39 | C117: =B118/B117 -> 0.2651254604 | D117: =1-C117 -> 0.7348745396 | E117: 361.11 | F117: 3.398486066 | G117: =SUM(F117:$F$134) -> 4.434368823 | H117: 310.835 | I117: =SUM(H117:H$134) -> 403.395 | J117: 0.8209263518 | K117: 16.50415925 | M117: 113 | N117: 1599.620778 | O117: =N118/N117 -> 0.2651176367 | P117: 0.7348823633 | Q117: 1175.533097 | R117: 11.06308416 | S117: =SUM($R117:R$134) -> 14.4350119 | T117: 1011.854229 | U117: =SUM(T117:T$134) -> 1313.143132 | V117: 0.8209090247 | W117: =(12*S117/R117-11/24)+S117/R117 -> 16.50394879 | Y117: =IF($Y$2="F",TbSobrVAL!V117,TbSobrVAL!J117) -> 0.8209263518
A118: 114 | B118: 130.28 | C118: =B119/B118 -> 0.2104697574 | D118: =1-C118 -> 0.7895302426 | E118: 102.86 | F118: 0.8622250555 | G118: =SUM(F118:$F$134) -> 1.035882757 | H118: 78.85 | I118: =SUM(H118:H$134) -> 92.56 | J118: 0.7104697574 | K118: 15.15995073 | M118: 114 | N118: 424.0876802 | O118: =N119/N118 -> 0.2104401227 | P118: 0.7895598773 | Q118: 334.8426168 | R118: 2.806716485 | S118: =SUM($R118:R$134) -> 3.37192774 | T118: 256.6663718 | U118: =SUM(T118:T$134) -> 301.2889036 | V118: 0.7104401227 | W118: =(12*S118/R118-11/24)+S118/R118 -> 15.15958207 | Y118: =IF($Y$2="F",TbSobrVAL!V118,TbSobrVAL!J118) -> 0.7104697574
A119: 115 | B119: 27.42 | C119: =B120/B119 -> 0 | D119: =1-C119 -> 1 | E119: 27.42 | F119: 0.1736577017 | G119: =SUM(F119:$F$134) -> 0.1736577017 | H119: 13.71 | I119: =SUM(H119:H$134) -> 13.71 | J119: 0.5 | K119: 12.54166667 | M119: 115 | N119: 89.24506345 | O119: =N120/N119 -> 0 | P119: 1 | Q119: 89.24506345 | R119: 0.5652112549 | S119: =SUM($R119:R$134) -> 0.5652112549 | T119: 44.62253172 | U119: =SUM(T119:T$134) -> 44.62253172 | V119: 0.5 | W119: =(12*S119/R119-11/24)+S119/R119 -> 12.54166667 | Y119: =IF($Y$2="F",TbSobrVAL!V119,TbSobrVAL!J119) -> 0.5
A120: 116 | B120: 0 | E120: 0 | F120: 0 | G120: =SUM(F120:$F$134) -> 0 | H120: 0 | I120: =SUM(H120:H$134) -> 0 | M120: 116 | N120: 0 | Q120: 0 | R120: 0 | S120: =SUM($R120:R$134) -> 0 | T120: 0 | U120: =SUM(T120:T$134) -> 0
A121: 117 | E121: 0 | F121: 0 | G121: =SUM(F121:$F$134) -> 0 | H121: 0 | I121: =SUM(H121:H$134) -> 0 | M121: 117 | Q121: 0 | R121: 0 | S121: =SUM($R121:R$134) -> 0 | T121: 0 | U121: =SUM(T121:T$134) -> 0
A122: 118 | E122: 0 | F122: 0 | G122: =SUM(F122:$F$134) -> 0 | H122: 0 | I122: =SUM(H122:H$134) -> 0 | M122: 118 | Q122: 0 | R122: 0 | S122: =SUM($R122:R$134) -> 0 | T122: 0 | U122: =SUM(T122:T$134) -> 0
A123: 119 | E123: 0 | F123: 0 | G123: =SUM(F123:$F$134) -> 0 | H123: 0 | I123: =SUM(H123:H$134) -> 0 | M123: 119 | Q123: 0 | R123: 0 | S123: =SUM($R123:R$134) -> 0 | T123: 0 | U123: =SUM(T123:T$134) -> 0
A124: 120 | E124: 0 | F124: 0 | G124: =SUM(F124:$F$134) -> 0 | H124: 0 | I124: =SUM(H124:H$134) -> 0 | M124: 120 | Q124: 0 | R124: 0 | S124: =SUM($R124:R$134) -> 0 | T124: 0 | U124: =SUM(T124:T$134) -> 0
A125: 121 | E125: 0 | F125: 0 | G125: =SUM(F125:$F$134) -> 0 | H125: 0 | I125: =SUM(H125:H$134) -> 0 | M125: 121 | Q125: 0 | R125: 0 | S125: =SUM($R125:R$134) -> 0 | T125: 0 | U125: =SUM(T125:T$134) -> 0
A126: 122 | E126: 0 | F126: 0 | G126: =SUM(F126:$F$134) -> 0 | H126: 0 | I126: =SUM(H126:H$134) -> 0 | M126: 122 | Q126: 0 | R126: 0 | S126: =SUM($R126:R$134) -> 0 | T126: 0 | U126: =SUM(T126:T$134) -> 0
A127: 123 | E127: 0 | F127: 0 | G127: =SUM(F127:$F$134) -> 0 | H127: 0 | I127: =SUM(H127:H$134) -> 0 | M127: 123 | Q127: 0 | R127: 0 | S127: =SUM($R127:R$134) -> 0 | T127: 0 | U127: =SUM(T127:T$134) -> 0
A128: 124 | E128: 0 | F128: 0 | G128: =SUM(F128:$F$134) -> 0 | H128: 0 | I128: =SUM(H128:H$134) -> 0 | M128: 124 | Q128: 0 | R128: 0 | S128: =SUM($R128:R$134) -> 0 | T128: 0 | U128: =SUM(T128:T$134) -> 0
A129: 125 | E129: 0 | F129: 0 | G129: =SUM(F129:$F$134) -> 0 | H129: 0 | I129: =SUM(H129:H$134) -> 0 | M129: 125 | Q129: 0 | R129: 0 | S129: =SUM($R129:R$134) -> 0 | T129: 0 | U129: =SUM(T129:T$134) -> 0
A130: 126 | E130: 0 | F130: 0 | G130: =SUM(F130:$F$134) -> 0 | H130: 0 | I130: =SUM(H130:H$134) -> 0 | M130: 126 | Q130: 0 | R130: 0 | S130: =SUM($R130:R$134) -> 0 | T130: 0 | U130: =SUM(T130:T$134) -> 0
A131: 127 | E131: 0 | F131: 0 | G131: =SUM(F131:$F$134) -> 0 | H131: 0 | I131: =SUM(H131:H$134) -> 0 | M131: 127 | Q131: 0 | R131: 0 | S131: =SUM($R131:R$134) -> 0 | T131: 0 | U131: =SUM(T131:T$134) -> 0
A132: 128 | E132: 0 | F132: 0 | G132: =SUM(F132:$F$134) -> 0 | H132: 0 | I132: =SUM(H132:H$134) -> 0 | M132: 128 | Q132: 0 | R132: 0 | S132: =SUM($R132:R$134) -> 0 | T132: 0 | U132: =SUM(T132:T$134) -> 0
A133: =A132+1 -> 129 | E133: 0 | F133: 0 | G133: =SUM(F133:$F$134) -> 0 | H133: =(B133+B134)/2 -> 0 | I133: =SUM(H133:H$134) -> 0 | M133: =M132+1 -> 129 | Q133: 0 | R133: 0 | S133: =SUM($R133:R$134) -> 0 | T133: =(N133+N134)/2 -> 0 | U133: =SUM(T133:T$134) -> 0
A134: =A133+1 -> 130 | E134: =B134-B135 -> 0 | F134: =B134*(1/(1+$C$1)^A134) -> 0 | G134: =SUM(F134:$F$134) -> 0 | H134: =(B134+B135)/2 -> 0 | I134: =SUM(H134:H$134) -> 0 | M134: =M133+1 -> 130 | Q134: =N134-N135 -> 0 | R134: =N134*(1/(1+$C$1)^M134) -> 0 | S134: =SUM($R134:R$134) -> 0 | T134: =(N134+N135)/2 -> 0 | U134: =SUM(T134:T$134) -> 0

Sheet ANOTAÇÕES (hidden)
I2: =ATENDIMENTO!I2 -> Nome
I3: =ATENDIMENTO!I3 -> Assessor Previdenciário
H4: E-mail: | I4: =ATENDIMENTO!I4 -> @ceprevcom.com.br
I5: =ATENDIMENTO!I5 -> (85) 99999-9999
B6: PARA USO PELA EQUIPE DE CONSULTORES DA CE-PREVCOM
B7: Assessoria Previdenciária
B8: Nome: | C8: =IF(ATENDIMENTO!C8="","",ATENDIMENTO!C8) ->  | G8: Órgão: | H8: =IF(ATENDIMENTO!H8="","",ATENDIMENTO!H8) ->  | I8: Matrícula: | J8: =IF(ATENDIMENTO!J8="","",ATENDIMENTO!J8) -> 
B10: ANOTAÇÕES
J30: ='1-Tipo Simulacao'!B36 -> Versão do Simulador: 2025.11-1

Sheet RESUMO ATEND (hidden)
H2: =ATENDIMENTO!I2 -> Nome
E3: =IF(ATENDIMENTO!E3="","",ATENDIMENTO!E3) ->  | H3: =ATENDIMENTO!I3 -> Assessor Previdenciário
G4: E-mail: | H4: =ATENDIMENTO!I4 -> @ceprevcom.com.br
H5: =ATENDIMENTO!I5 -> (85) 99999-9999
B6: PARA USO PELA EQUIPE DE CONSULTORES DA CE-PREVCOM
B7: Assessoria Previdenciária
B8: Nome: | C8: =IF(ATENDIMENTO!C8="","",ATENDIMENTO!C8) ->  | F8: Órgão: | G8: =IF(ATENDIMENTO!H8="","",ATENDIMENTO!H8) ->  | H8: Matrícula: | I8: =IF(ATENDIMENTO!J8="","",ATENDIMENTO!J8) -> 
B9: Data Nascimento: | C9: =IF('2-Entrada de Dados'!K11="","",'2-Entrada de Dados'!K11) ->  | E9: Idade Atual: | F9: ='Anexo I - Parametros'!K14 -> 125
B10: CPF: | C10: =IF(ATENDIMENTO!E9="","",ATENDIMENTO!E9) ->  | E10: Tipo Participante: | F10: ='1-Tipo Simulacao'!K28 -> PATROCINADO | H10: Remun. Bruta: | I10: ='Anexo I - Parametros'!K18 -> 0
B11: Tempo Ctb.: | C11: =IF(ATENDIMENTO!J10="","",ATENDIMENTO!J10) -> - | E11: Tempo Restante: | F11: =IF(I12="","", INT((EDATE(C9,C12*12)-I12)/365.25) & " anos e "& INT(((EDATE(C9,C12*12) - I12) - INT((EDATE(C9,C12*12)-I12)/365.25)*365.25)/365*12)& " meses") ->  | H11: Data de Ingresso: | I11: =IF(ATENDIMENTO!H10="","",ATENDIMENTO!H10) -> 
B12: Idade Aposentadoria: | C12: ='Anexo I - Parametros'!K15 -> 0 | E12: Regime: | F12: =IF(ATENDIMENTO!H11="","",ATENDIMENTO!H11) ->  | H12: Data Simulação: | I12: =IF('2-Entrada de Dados'!K16=0,"",'2-Entrada de Dados'!K16) -> 
B14: RESUMO RELATÓRIO COMPARATIVO
B16: ="Ao aderir à CE-PREVCOM com uma alíquota de "&TEXT('2-Entrada de Dados'!K43,"0,00%")&", a contribuição mensal seria de R$ " & TEXT(-ATENDIMENTO!E19,"#.##0,00") & IF(SUM(ATENDIMENTO!H51:H52)=0,"",". Optando por acrescentar uma Parcela Adicional de Risco (PAR) de R$ "&TEXT(SUM(ATENDIMENTO!H51:H52),"#.##0,00") &" para a cobertura de morte ou invalidez, o total bruto descontado em folha seria de R$ "& TEXT(-SUM(ATENDIMENTO!E19:E20),"#.##0,00")) &"." -> Ao aderir à CE-PREVCOM com uma alíquota de 8,50%, a contribuição mensal seria de R$ 0,00.
B17: ="Devido ao benefício fiscal de dedução do Imposto de Renda na Fonte, o impacto líquido mensal na remuneração seria de R$ " & TEXT(-ATENDIMENTO!E24,"#.##0,00") &", com uma redução de R$ " & TEXT(-(ATENDIMENTO!D22-ATENDIMENTO!E22),"#.##0,00") &" no imposto retido. " -> Devido ao benefício fiscal de dedução do Imposto de Renda na Fonte, o impacto líquido mensal na remuneração seria de R$ 0,00, com uma redução de R$ 0,00 no imposto retido.
B19: ="Projeção de Aposentadoria (aos "&'2-Entrada de Dados'!K21&" anos)" -> Projeção de Aposentadoria (aos anos)
B21: ="A simulação projeta que, aos "&'2-Entrada de Dados'!K21&" anos, terá um saldo total acumulado na CE-PREVCOM de R$ "&TEXT('2-Entrada de Dados'!K56,"#.##0,00")&". Este valor é composto por suas contribuições (R$ "&TEXT(ATENDIMENTO!I29,"#.##0,00")&")"& IF(ATENDIMENTO!I30>0,", pelas contribuições feitas pelo Patrocinador (R$ " &TEXT(ATENDIMENTO!I30,"#.##0,00")&")","") &" e pelo retorno dos investimentos (R$ "&TEXT(ATENDIMENTO!I31,"#.##0,00")&")." -> A simulação projeta que, aos anos, terá um saldo total acumulado na CE-PREVCOM de R$ 0,00. Este valor é composto por suas contribuições (R$ 0,00) e pelo retorno dos investimentos (R$ 0,00).
B22: ="Ao se aposentar, poderá optar por receber um Benefício em Pagamento Único de até 25% desse saldo (R$ "&TEXT(ATENDIMENTO!I32*25%, "#.##0,00")&"), e o restante (R$ "&TEXT(ATENDIMENTO!I32*75%, "#.##0,00")&") poderá ser recebido em forma de renda por um período que pode variar de 5 a 30 anos. " -> Ao se aposentar, poderá optar por receber um Benefício em Pagamento Único de até 25% desse saldo (R$ 0,00), e o restante (R$ 0,00) poderá ser recebido em forma de renda por um período que pode variar de 5 a 30 anos.
B23: ="Considerando a distribuição do saldo total de R$ "&TEXT('2-Entrada de Dados'!K56,"#.##0,00")&" em "&'2-Entrada de Dados'!K58&" anos, receberia um benefício complementar mensal da CE-PREVCOM de R$ "&TEXT(ATENDIMENTO!J18,"#.##0,00")&". Isso resultaria em uma aposentadoria líquida total (RGPS + CE-PREVCOM) de R$ "&TEXT(ATENDIMENTO!J23,"#.##0,00")&", um valor R$ "&TEXT(ATENDIMENTO!J24,"#.##0,00")&" superior ao que receberia apenas pelo RGPS durante os "&'2-Entrada de Dados'!K58&" anos." -> Considerando a distribuição do saldo total de R$ 0,00 em 86 anos, receberia um benefício complementar mensal da CE-PREVCOM de R$ 0,00. Isso resultaria em uma aposentadoria líquida total (RGPS + CE-PREVCOM) de R$ 0,00, um valor R$ 0,00 superior ao que receberia apenas pelo RGPS durante os 86 anos.
B25: Pensão por Morte
B27: • CE-PREVCOM: | C27: ="Com as coberturas do plano de previdência complementar (PR e PAR, conforme o caso), o(a) beneficiário(a) indicado(a) receberia uma renda bruta complementar de R$ "&TEXT(ATENDIMENTO!E42,"#.##0,00")&", que corresponde a um valor líquido de R$ "&TEXT(ATENDIMENTO!E45,"#.##0,00")&"." -> 
B28: Beneficiários na CE-PREVCOM: É importante notar que para a pensão na CE-PREVCOM, os(as) beneficiários(as) são de livre indicação do(a) participante, diferentemente das regras do RGPS que exigem vínculos específicos como cônjuge ou filhos(as) menores de 21 anos, por exemplo.
B30: Benefício por Invalidez
B32: • CE-PREVCOM: | C32: ="Com as coberturas do plano de previdência complementar (PR e PAR, conforme o caso), o(a) participante receberia uma renda bruta complementar de R$ "&TEXT(ATENDIMENTO!J42,"#.##0,00")&", que corresponde a um valor líquido de R$ "&TEXT(ATENDIMENTO!J45,"#.##0,00")&"." -> 
B34: Informações sobre as Coberturas Adicionais de Risco consideradas na simulação
B36: O(a) participante pode optar por incluir uma Parcela Adicional de Risco (PAR) que oferece as seguintes coberturas:
B37: • Morte: | C37: ="Com a contribuição de uma PAR de R$ "&TEXT(ATENDIMENTO!H51,"#.##0,00")&", haverá uma cobertura de R$ "&TEXT(ATENDIMENTO!I51,"#.##0,00")&" e, em caso de sinistro, geraria uma renda mensal de R$ "&TEXT(ATENDIMENTO!J51,"#.##0,00")&" por "&ATENDIMENTO!G55&" anos aos beneficiários indicados livremente. " -> Com a contribuição de uma PAR de R$ 0,00, haverá uma cobertura de R$ 0,00 e, em caso de sinistro, geraria uma renda mensal de R$ 0,00 por 0 anos aos beneficiários indicados livremente.
B38: • Invalidez: | C38: ="Com a contribuição de uma PAR de R$ "&TEXT(ATENDIMENTO!H52,"#.##0,00")&", haverá uma cobertura de R$ "&TEXT(ATENDIMENTO!I52,"#.##0,00")&" e, em caso de sinistro, geraria uma renda mensal de R$ "&TEXT(ATENDIMENTO!J52,"#.##0,00")&" por "&ATENDIMENTO!G55&" anos ao participante ou seus beneficiários. " -> Com a contribuição de uma PAR de R$ 0,00, haverá uma cobertura de R$ 0,00 e, em caso de sinistro, geraria uma renda mensal de R$ 0,00 por 0 anos ao participante ou seus beneficiários.
B39: Os valores da PAR podem ser escolhidos pelo(a) participante e a contribuição possui benefício fiscal, reduzindo a base de cálculo do Imposto de Renda. O custo da PAR é apresentado como mais acessível que produtos similares no mercado e não exige carência.
I41: ='1-Tipo Simulacao'!B36 -> Versão do Simulador: 2025.11-1

Sheet ATENDIMENTO (hidden)
I2: Nome
I3: Assessor Previdenciário
H4: E-mail: | I4: @ceprevcom.com.br
I5: (85) 99999-9999
B6: PARA USO PELA EQUIPE DE CONSULTORES DA CE-PREVCOM
B7: Assessoria Previdenciária
B8: Nome do Servidor(a): | G8: Órgão: | I8: Matrícula:
B9: Data de Nascimento: | C9: =IF('2-Entrada de Dados'!K11="","",'2-Entrada de Dados'!K11) ->  | D9: CPF: | G9: Remun. Bruta: | H9: ='Anexo I - Parametros'!K18 -> 0
B10: Idade Atual: | C10: ='Anexo I - Parametros'!K14 -> 125 | D10: Tipo Participante: | E10: ='1-Tipo Simulacao'!K28 -> PATROCINADO | G10: Data de Ingresso: | I10: Tempo Contrib.: | J10: =IF(H10="", "-", INT((J11-H10)/365.25) & " anos e "& ROUND(((J11-H10) - INT((J11-H10)/365.25)*365.25)/365.25*12,0)& " meses") -> -
B11: Idade Aposentadoria: | C11: ='Anexo I - Parametros'!K15 -> 0 | D11: Tempo Restante: | E11: =IF(J11="","", INT((EDATE(C9,C11*12)-J11)/365.25) & " anos e "& INT(((EDATE(C9,C11*12) - J11) - INT((EDATE(C9,C11*12)-J11)/365.25)*365.25)/365*12)& " meses") ->  | G11: Regime: | I11: Data Simulação: | J11: =IF('2-Entrada de Dados'!K16=0,"",'2-Entrada de Dados'!K16) -> 
B13: COMPARATIVO DE CONTRIBUIÇÕES, PROJEÇÃO DE APOSENTADORIA E SALDOS ACUMULADOS - ESTIMATIVAS COM OS DADOS FORNECIDOS
B15: COMPARATIVO DE CONTRIBUIÇÕES - EFEITO NO LÍQUIDO | G15: PROJEÇÃO DE APOSENTADORIA - VALORES ESTIMADOS
B16: DESCRIÇÃO | D16: SEM RPC | E16: COM RPC | G16: DESCRIÇÃO | I16: SEM RPC | J16: COM RPC
B17: Remuneração de Contribuição | D17: =H9 -> 0 | E17: =H9 -> 0 | G17: (+) Benefício RGPS | I17: ='3-Resultados'!F9 -> 0 | J17: ='3-Resultados'!I9 -> 0
B18: (-) Contribuição para RGPS/INSS | D18: ='Anexo I - Efeito Liquido'!K8 -> 0 | E18: ='Anexo I - Efeito Liquido'!K13 -> 0 | G18: ="(+) Benefício CE-PREVCOM (por "& TEXT('2-Entrada de Dados'!K58,"#.##0")&" anos)" -> (+) Benefício CE-PREVCOM (por 86 anos) | I18: 0 | J18: ='3-Resultados'!I14 -> 0
B19: ="(-) Contribuição CE-PREVCOM ("&TEXT('Anexo II - Situacao com RPC'!K10,"0,00%")&")" -> (-) Contribuição CE-PREVCOM (8,50%) | D19: 0 | E19: ='Anexo I - Efeito Liquido'!K14 -> 0 | G19: (-) Taxa de Carregamento | I19: 0 | J19: ='3-Resultados'!I15 -> 0
B20: (-) Contribuição PaR | D20: 0 | E20: =-(H51+H52) -> 0 | G20: - | I20: 0 | J20: 0
B21: Base de Cálculo do I.R. | D21: =MIN(SUM(D17:D20),D17-'CALC BASE'!$S$10) -> -607.2 | E21: =MIN(SUM(E17:E20),E17-'CALC BASE'!S10) -> -607.2
B22: (-) Imposto de Renda | D22: =-IF(D21<='CALC BASE'!$Q$5,0,IF(D21<='CALC BASE'!$Q$6,D21*'CALC BASE'!$R$6-'CALC BASE'!$S$6,IF(D21<='CALC BASE'!$Q$7,D21*'CALC BASE'!$R$7-'CALC BASE'!$S$7,IF(D21<'CALC BASE'!$Q$8,D21*'CALC BASE'!$R$8-'CALC BASE'!$S$8,D21*'CALC BASE'!$R$9-'CALC BASE'!$S$9)))) -> 0 | E22: =-IF(E21<='CALC BASE'!$Q$5,0,IF(E21<='CALC BASE'!$Q$6,E21*'CALC BASE'!$R$6-'CALC BASE'!$S$6,IF(E21<='CALC BASE'!$Q$7,E21*'CALC BASE'!$R$7-'CALC BASE'!$S$7,IF(E21<'CALC BASE'!$Q$8,E21*'CALC BASE'!$R$8-'CALC BASE'!$S$8,E21*'CALC BASE'!$R$9-'CALC BASE'!$S$9)))) -> 0 | G22: (-) Imposto de Renda | I22: ='3-Resultados'!F10 -> 0 | J22: =('3-Resultados'!I10+'3-Resultados'!I16) -> 0
B23: Remuneração Líquida após IR | D23: =SUM(D17:D20,D22) -> 0 | E23: =SUM(E17:E20,E22) -> 0 | G23: Aposentadoria Líq. após IR | I23: =SUM(I17:I22) -> 0 | J23: =SUM(J17:J22) -> 0
B24: Diferença entre os valores líquidos no mês | E24: =E23-D23 -> 0 | G24: Diferença entre os valores líquidos no mês | J24: =J23-I23 -> 0
B25: Diferença entre os valores líquidos no ano | E25: =E24*13 -> 0 | G25: Diferença entre os valores líquidos no ano | J25: =J24*13 -> 0
B27: Observações: | G27: PROJEÇÃO DE SALDOS ACUMULADOS - VALORES ESTIMADOS
B28: 1) No Comparativo de Contribuições, foram consideradas apenas a REMUNERAÇÃO DE CONTRIBUIÇÃO (Base de incidência para o RGPS), a CONTRIBUIÇÃO PREVIDÊNCIÁRIA e o IMPOSTO DE RENDA. Não foram considerados quaisquer outros descontos e/ou créditos. | G28: Tipo de Saldo | I28: ="Valor aos "&C11& " anos" -> Valor aos 0 anos | J28: %
G29: (+) Acumulado Participante | I29: =IFERROR('Anexos II e III - Graficos'!H62,0) -> 0 | J29: =IF($I$32=0,0,I29/$I$32) -> 0
B30: ="2) Na Projeção de Aposentadoria e na Projeção de Saldos Acumulados, os valores estimados são resultado da simulação com uma taxa de juros real de "&TEXT('Anexo II - Situacao com RPC'!K9, "0,00%")&"a.a." -> 2) Na Projeção de Aposentadoria e na Projeção de Saldos Acumulados, os valores estimados são resultado da simulação com uma taxa de juros real de 4,00%a.a. | G30: (+) Acumulado Patrocinador | I30: =IFERROR('Anexos II e III - Graficos'!H63,0) -> 0 | J30: =IF($I$32=0,0,I30/$I$32) -> 0
G31: (+) Retorno dos Investimentos | I31: =IFERROR('Anexos II e III - Graficos'!H64,0) -> 0 | J31: =IF($I$32=0,0,I31/$I$32) -> 0
G32: Total Acumulado | I32: =SUM(I29:I31) -> 0 | J32: =IF($I$32=0,0,I32/$I$32) -> 0
B35: BENEFÍCIOS DE PENSÃO POR MORTE E APOSENTADORIA POR INVALIDEZ - SIMULAÇÃO NO RPC
B37: BENEFÍCIO PENSÃO (R$) | G37: BENEFÍCIO INVALIDEZ (R$)
B38: DESCRIÇÃO | E38: RPC | G38: DESCRIÇÃO | J38: RPC
B39: (+)Pensão CE-PREVCOM (Saldo já Acumulado + Portabilidade) | E39: =('2-Entrada de Dados'!K48+'2-Entrada de Dados'!K51)/H50 ->  | G39: (+)Invalidez CE-PREVCOM (Saldo já Acumulado + Portabilidade) | J39: =E39 -> 
B40: (+)Pensão CE-PREVCOM (Parcela de Risco para Patrocinados) | E40: =E51 -> 0 | G40: (+)Invalidez CE-PREVCOM (Parcela de Risco para Patrocinados) | J40: =E52 -> 0
B41: (+)Pensão CE-PREVCOM (Parcela Adicional) | E41: =J51 -> 0 | G41: (+)Invalidez CE-PREVCOM (Parcela Adicional de Risco) | J41: =+J52 -> 0
B42: ="Valor Bruto (por "& J50 &" anos) (1)" -> Valor Bruto (por 0 anos) (1) | E42: =SUM(E39:E41) ->  | G42: ="Valor Bruto (por "& J50 &" anos) (1)" -> Valor Bruto (por 0 anos) (1) | J42: =SUM(J39:J41) -> 
B43: (-) Taxa de Carregamento | E43: =-'CALC BASE'!$G$17*E42 ->  | G43: (-) Taxa de Carregamento | J43: =-'CALC BASE'!$G$17*J42 -> 
B44: (-) Imposto de Renda Regressivo | E44: =-E42*25% ->  | G44: (-) Imposto de Renda Regressivo | J44: =-J42*25% -> 
B45: Valor Líquido | E45: =E42+E43+E44 ->  | G45: Valor Líquido | J45: =J42+J43+J44 -> 
B46: ="Nota (1): Conversão em renda por "& J50 &" anos " & IF(J50=G56, "(mínimo entre a Expectativa de Sobrevida e 30 anos)", "(prazo escolhido para simulação)") -> Nota (1): Conversão em renda por 0 anos (mínimo entre a Expectativa de Sobrevida e 30 anos) | G46: =B46 -> Nota (1): Conversão em renda por 0 anos (mínimo entre a Expectativa de Sobrevida e 30 anos)
B47: PARCELA DE RISCO - PR (*) | G47: PARCELA ADICIONAL DE RISCO - PAR (**)
B48: DESCRIÇÃO | C48: INCLUÍDA? (S/N) | D48: COBERTURA | E48: RENDA | G48: DESCRIÇÃO | H48: CONTRIBUIÇÃO | I48: COBERTURA | J48: RENDA
I49: Número de Meses | J49: =ROUND(('CALC BASE'!$G$27-'CALC BASE'!A42)/365.25*12,0) -> -1510
G50: Fator de Conversão | H50: =(1/PMT('CALC BASE'!G7, J50*12,-1,0,0) + (1/PMT('CALC BASE'!$G$6, J50,-1,0,1)) / (1+'CALC BASE'!$G$7)^(12-MONTH('Anexo I - Parametros'!$K$9))) ->  | I50: Prazo Certo | J50: =G55 -> 0
B51: Para Morte | C51: S | D51: =IF(UPPER(C51)="S", 'Anexos VI - Benef. Risco'!J19,0) -> 0 | E51: =IF(UPPER(C51)="S", IF($J$50=0, 0, D51/ $H$50),0) -> 0 | G51: Para Morte | I51: =IF(H51=0,0,H51/VLOOKUP(C10,Premios!$G$4:$I$104,2,FALSE)*100000) -> 0 | J51: =IF($J$50=0, 0, I51/ $H$50) -> 0
B52: Para Invalidez | C52: S | D52: =IF(UPPER(C52)="S", 'Anexos VI - Benef. Risco'!J15, 0) -> 0 | E52: =IF(UPPER(C52)="S", IF($J$50=0, 0, D52/ $H$50),0) -> 0 | G52: Para Invalidez | I52: =IF(H52=0,0,H52/VLOOKUP(C10,Premios!$G$4:$I$104,3,FALSE)*100000) -> 0 | J52: =IF($J$50=0, 0, I52/ $H$50) -> 0
B53: ="(*) Para Patrocinados: Cobertura básica de risco, com contribuição mensal já incluída na alíquota de "& TEXT(MIN('2-Entrada de Dados'!K43, 8.5%), "0,00%") &" (art. 16, inciso IV do Regulamento do Plano)." -> (*) Para Patrocinados: Cobertura básica de risco, com contribuição mensal já incluída na alíquota de 8,50% (art. 16, inciso IV do Regulamento do Plano). | G53: ="(**) Cobertura adicional de risco, com contribuição em valor adicional mensal, dada a opção existente no RPC para melhorar a cobertura para a família." -> (**) Cobertura adicional de risco, com contribuição em valor adicional mensal, dada a opção existente no RPC para melhorar a cobertura para a família.
B55: Prazo para Recebimento do Benefíciio de Pensão ou Invalidez (em anos): | G55: =G56 -> 0 | H55: =IF(G55> 30, "O prazo máximo permitido no Regulamento é de 30 anos. Favor ajustar.","") -> 
B56: Sugestão com foco previdencial (mínimo entre a Expectativa de Sobrevida e 30 anos): | G56: =MIN( 30, IF('CALC BASE'!$G$18="M", ROUND(VLOOKUP('CALC BASE'!C42,TbSobrVAL!$A$4:$K$134,10,FALSE),0), ROUND(VLOOKUP('CALC BASE'!C42,TbSobrVAL!$M$4:$W$134,10,FALSE),0))) -> 0
B58: Observações:
B59: =IF('1-Tipo Simulacao'!K25=1, "1) Parcela de Risco (PR): calculada com base na Contribuição Básica de Participante (" & TEXT(MIN('2-Entrada de Dados'!K43, 8.5%), "0,00%") & ") e na Contribuição Básica do Patrocinador (" & TEXT(MIN('Anexo II - Situacao com RPC'!K11, 8.5%), "0,00%")&"), de acordo com o nº de meses projetados até a aposentadoria ("& 'CALC BASE'!AX42 &"). Parcela Adicional de Risco (PAR): importante avaliar a opção existente no RPC para melhorar os benefícios por morte ou invalidez com a PAR.", "1) Para o Participante Facultativo, as coberturas de Morte e Invalidez podem ser contratadas somente por meio da Parcela Adicional de Risco (PAR).") -> 1) Parcela de Risco (PR): calculada com base na Contribuição Básica de Participante (8,50%) e na Contribuição Básica do Patrocinador (8,50%), de acordo com o nº de meses projetados até a aposentadoria (0). Parcela Adicional de Risco (PAR): importante avaliar a opção existente no RPC para melhorar os benefícios por morte ou invalidez com a PAR. | G59: 4) No RGPS, a duração da Pensão depende da idade do cônjuge, conforme a seguinte tabela:
B61: =IF(G55=G56, "2) Rendas no RPC calculadas em prazo certo de " & J50 & " anos ou com a Expectativa de Sobrevida do Participante ("& IF('CALC BASE'!$G$18="M", ROUND(VLOOKUP('CALC BASE'!C42,TbSobrVAL!$A$4:$K$134,10,FALSE),0), ROUND(VLOOKUP('CALC BASE'!C42,TbSobrVAL!$M$4:$W$134,10,FALSE),0)) &" anos), se menor que o prazo certo de 30 anos. Ademais, as regras da Pensão e Invalidez no RPC são diferentes das regras no RGPS.", "2) Rendas no RPC calculadas em prazo certo de " & G55 & " anos, escolhido para simulação.") -> 2) Rendas no RPC calculadas em prazo certo de 0 anos ou com a Expectativa de Sobrevida do Participante (0 anos), se menor que o prazo certo de 30 anos. Ademais, as regras da Pensão e Invalidez no RPC são diferentes das regras no RGPS. | J61: Obs.: No RGPS, filhos recebem até 21 anos.
B62: 3) Benefícios de Pensão e Invalidez da CE-PREVCOM simulados com I.R. Regressivo de 25% (Lei nº 11.196/2006). Após dez anos, a alíquota de I.R. cai para 10% (Lei nº 11.053/2005).
J64: ='1-Tipo Simulacao'!B36 -> Versão do Simulador: 2025.11-1

Sheet 1-Tipo Simulacao
B3: SIMULADOR RPC para Contribuintes do RGPS/INSS
B7: PARA MELHOR OPERAÇÃO, USAR PLANILHA EXCEL. PARA MELHOR VISUALIZAÇÃO, AJUSTAR ZOOM DA JANELA CONFORME SEU COMPUTADOR E MONITOR
B9: ANÁLISE DE SITUAÇÃO PREVIDENCIÁRIA INDIVIDUAL NO RPC
B10: SIMULAÇÃO ILUSTRATIVA
B22: 1. NESSA ETAPA, BASTA SELECIONAR QUE TIPO DE SIMULAÇÃO DESEJA REALIZAR
C24: Deve ser digitado no campo desse item o número correspondente à simulação de interesse: | K24: RESPOSTA:
C25: - "1" para Tipo de Participante PATROCINADO; | K25: 1
C26: - "2" para Tipo de Participante FACULTATIVO;
F28: Com a escolha acima, será simulado: | G28: a) Tipo de Participante no RPC: | J28: =IF(K25=1,1,2) -> 1 | K28: =IF(J28=1,"PATROCINADO", "FACULTATIVO") -> PATROCINADO
G29: =IF(OR(K25=5,K25=6), "b) Situação Atual no RGPS:", "b) Situação Atual no RPPS:") -> b) Situação Atual no RPPS: | J29: 2 | K29: =IF(J29=1,"RPPS SEM LIMITE", IF(J29=2, "RPPS COM LIMITE", "RGPS COM LIMITE")) -> RPPS COM LIMITE
K30: =IF(AND(K25<>1,K25<>2), "Atenção: Informe a opção ''1'' para Patrocinado ou ''2'' para Facultativo no campo ''RESPOSTA:'' acima.", "") -> 
C31: GLOSSÁRIO PARA "TIPO DE PARTICIPANTE":
C32: - "PATROCINADO": Empregado(a) Público(a) ou Agente Político(a) que tenha Remuneração de Contribuição acima do teto do RGPS e, assim, COM direito à contrapartida da Contribuição de Patrocinador (entre 3,0% e 8,5%).
C33: - "FACULTATIVO": Servidor(a) Comissionado, independente da Remuneração; Empregado(a) Público(a) ou Agente Político(a) que tenha Remuneração de Contribuição abaixo do teto do RGPS e, assim, SEM direito à contrapartida da Contribuição de Patrocinador, contribuindo sozinho para o Plano do RPC (mínimo de 1,0%).
B35: Seguir para a guia ENTRADA DE DADOS
B36: Versão do Simulador: 2025.11-1

Sheet 2-Entrada de Dados
B5: 2. AGORA, BASTA ENTRAR COM OS DADOS PARA A SIMULAÇÃO (PREENCHER OS CAMPOS EM AZUL; todos os campos são obrigatórios)
B7: Valor vigente do teto do RGPS/INSS: | K7: 8157.41
B9: 2.1. PARÂMETROS PESSOAIS E FUNCIONAIS
B11: Data do seu nascimento (no formato dd/mm/aaaa):
B12: Idade atual: | C12: =IF(K11="","",'Anexo I - Parametros'!K14) ->  | D12: anos
B14: Sexo de nascimento para efeito de aposentadoria (F-Feminino ou M-Masculino):
K15: =IF(AND(UPPER(K14)<>"F", UPPER(K14)<>"M"),"Preencher o campo acima com ''F'' ou ''M''.","") -> Preencher o campo acima com ''F'' ou ''M''.
B16: Data da simulação (sugestão: dia 01 do mês seguinte para efeito da migração):
B18: Categoria | K18: 1
B19: 1 - GERAL [Servidor(ar) Comissionado(a); Empregado(a) Público(a); Agente Político(a)].
K20: =IF(AND(K18<>1,K18<>2),"ATENÇÃO: Preencher o campo acima com ''1'' ou ''2''.", "") -> 
B21: Idade planejada para a aposentadoria:
B22: Informação das idades para aposentadoria (anos) atualmente previstas em lei:
B23: Homem=65; Mulher=62.
B25: Remuneração atual de incidência de contribuição para a Previdência:
B27: Maior remuneração de incidência para a Previdência qua poderá atingir na carreira:
B29: Quantidade de anos para atingir essa maior remuneração na carreira:
B30: Essa quantidade de anos será utilizada para estimar o Crescimento Salarial na carreira. | K30: ="Será admitido crescimento salarial de "& TEXT('Anexo I - Parametros'!K24, "0,00%") &" ao ano." -> Será admitido crescimento salarial de 1,00% ao ano.
B31: Deixar em branco caso queira utilizar o Crescimento Salarial de 1% ao ano, acima da inflação.
B33: 2.2. PARÂMETRO DO RGPS
B35: ="Estimativa de valor bruto de aposentadoria no RGPS, na data da concessão:" -> Estimativa de valor bruto de aposentadoria no RGPS, na data da concessão:
B36: ="(caso não tenha essa informação, uma estimativa seria o próprio valor do teto do RGPS/INSS: R$ "& TEXT(K7,"#.##0,00") &".)" -> (caso não tenha essa informação, uma estimativa seria o próprio valor do teto do RGPS/INSS: R$ 8.157,41.)
K37: =IF(K35>K7, "ATENÇÃO: O valor do benefício no RGPS não poderá ser superior ao teto do RGPS ("& TEXT(K7,"#.##0,00")&"). Favor ajustar.", "") -> 
B38: 2.4. PARÂMETROS PARA O RPC
B40: Estimativa da taxa de juros de longo prazo para retornos de investimentos no RPC: | K40: 0.04
B41: (serão apresentados resultados com 1% para mais e com 1% para menos)
B43: Alíquota de contribuição para o RPC a ser considerada: | K43: 0.085
B44: (sugestão de simulação com esforço contributivo entre 8,5% e 14,0%)
B45: (opcionalmente, essa alíquota pode ser alterada, pois é de livre escolha pelo participante, com mínima de 1%)
B46: (no caso de participante PATROCINADO, o Patrocinador acompanha paritariamente até a alíquota de 8,5% - máxima do Patrocinador)
B48: Informar valor de portabilidade para a simulação, se desejar: | K48: 0
B49: (caso exista valor a ser trazido para a sua conta na CE-PREVCOM)
B51: Informar valores já acumulados na CE-PREVCOM, caso existam: | K51: =K52+K53 -> 0
B52: Saldo de Contibuições realizadas pelo Participante | K52: 0
B53: Saldo de Contibuições realizadas pelo Patrocinador | K53: 0
B54: (ver Área do Participante / Meu Dinheiro / Extrato de Conta Individual, Tabela Resumo, coluna "Atualizado")
C56: A estimativa de saldo acumulado no RPC até a data da aposentadoria seria de: | K56: ='Anexo II - Situacao com RPC'!K16 -> 0
B58: Informar prazo, em anos, para receber benefício no RPC (para converter Saldo Acumulado em renda) | K58: =I60+1 -> 86
B59: Considerar o prazo pretendido para o recebimento do benefício no RPC, observados os parâmteros abaixo:
C60: ="1) Expectativa de sobrevida na data da aposentadoria (aos " & INT('Anexo I - Parametros'!K15) & " anos; sexo "& IF('Anexo I - Parametros'!K11="F", "Feminino", "Masculino") &"):" -> 1) Expectativa de sobrevida na data da aposentadoria (aos 0 anos; sexo Masculino): | I60: ='Anexo II - Situacao com RPC'!I20 -> 85 | J60: anos
C61: 2) Prazo mínimo de renda permitido no regulamento do plano: | I61: ='Anexo II - Situacao com RPC'!I21 -> 5 | J61: anos
C62: 3) Prazo máximo de renda permitido no regulamento do plano: | I62: ='Anexo II - Situacao com RPC'!I22 -> 30 | J62: anos
C64: A estimativa de benefício bruto no RPC seria de: | K64: ='3-Resultados'!I14 -> 0
B66: Seguir para a guia "RESULTADOS"
B67: ='1-Tipo Simulacao'!B36 -> Versão do Simulador: 2025.11-1

Sheet 3-Resultados
B4: 3. RESULTADO DA SIMULAÇÃO - QUADRO RESUMO
B5: COMPARATIVO DE BENEFÍCIOS ESTIMADOS: SITUAÇÕES "SEM RPC" E "COM RPC", DADOS OS PARÂMETROS INSERIDOS E AS POSSIBILIDADES DE RENDAS ESTIMADAS NO RPC, CONFORME TAXA DE JUROS CONSIDERADA
B6: DESCRIÇÃO | F6: SITUAÇÃO SEM RPC | G6: SITUAÇÃO COM RPC Cenários Simulados para Rentabilidade dos Investimentos
G7: ="Se Taxa de Juros de "& TEXT('Anexo II - Situacao com RPC'!H37,"0,00%") -> Se Taxa de Juros de 3,00% | I7: ="Se Taxa de Juros de "& TEXT('Anexo II - Situacao com RPC'!H38,"0,00%") -> Se Taxa de Juros de 4,00% | K7: ="Se Taxa de Juros de "& TEXT('Anexo II - Situacao com RPC'!H39,"0,00%") -> Se Taxa de Juros de 5,00%
B8: 1) RGPS - GESTÃO PELO INSS:
B9: a) Benefício RGPS | F9: ='CALC BASE'!M12 -> 0 | G9: ='CALC BASE'!N12 -> 0 | I9: =G9 -> 0 | K9: =I9 -> 0
B10: b) Imposto de Renda Progressivo | F10: ='CALC BASE'!M18 -> 0 | G10: ='CALC BASE'!N18 -> 0 | I10: =G10 -> 0 | K10: =I10 -> 0
B12: c) RGPS - BENEF.TOTAL LÍQ. (a+b) | F12: =SUM(F9:F10) -> 0 | G12: =SUM(G9:H10) -> 0 | I12: =G12 -> 0 | K12: =I12 -> 0
B13: 2) RPC - GESTÃO PELA CE-PREVCOM
B14: ="d) Benefício RPC (durante "& TEXT('2-Entrada de Dados'!K58,"#.##0")&" anos)" -> d) Benefício RPC (durante 86 anos) | F14: 0 | G14: ='Anexo II - Situacao com RPC'!K37 -> 0 | I14: ='Anexo II - Situacao com RPC'!K38 -> 0 | K14: ='Anexo II - Situacao com RPC'!K39 -> 0
B15: e) Taxa de Carregamento | F15: 0 | G15: ='CALC BASE - 1%'!N17 -> 0 | I15: ='CALC BASE'!N17 -> 0 | K15: ='CALC BASE + 1%'!N17 -> 0
B16: f) Imposto de Renda Regressivo | F16: 0 | G16: ='CALC BASE - 1%'!N19 -> 0 | I16: ='CALC BASE'!N19 -> 0 | K16: ='CALC BASE + 1%'!N19 -> 0
B17: g) RPC -BENEF.TOTAL. LÍQ. (d-e-f) | F17: 0 | G17: =SUM(G14:G16) -> 0 | I17: =SUM(I14:I16) -> 0 | K17: =SUM(K14:K16) -> 0
B19: RENDA TOTAL BRUTA (a + d) | F19: =F9+F14 -> 0 | G19: =G9+G14 -> 0 | H19: 0 | I19: =I9+I14 -> 0 | K19: =K9+K14 -> 0
B20: RENDA TOTAL LÍQUIDA (c + g) | F20: =F12+F17 -> 0 | G20: =G12+G17 -> 0 | I20: =I12+I17 -> 0 | K20: =K12+K17 -> 0
B21: Variação sobre a Situação Atual (Renda Líquida) | G21: =IF($F$20=0,0,G20/$F$20-1) -> 0 | I21: =IF($F$20=0,0,I20/$F$20-1) -> 0 | K21: =IF($F$20=0,0,K20/$F$20-1) -> 0
B23: ='1-Tipo Simulacao'!B36 -> Versão do Simulador: 2025.11-1

Sheet Anexo I - Efeito Liquido
B4: ANEXO I EFEITO NA REMUNERAÇÃO LÍQUIDA COM BENEFÍCIO FISCAL
B5: => Passar a contribuir para o RPC diminui o líquido (valor negativo na comparação desse quadro). Contudo, o valor que é destinado ao Plano do RPC é maior que o valor da diminuição do resultado líquido no seu contracheque, devido ao benefício fiscal no IR.
B6: RENDA LÍQUIDA SEM RPC
B7: A. Remuneração de Contribuição Atual | K7: ='Anexo I - Parametros'!K18 -> 0
B8: B. Contribuição ao RGPS (até o teto do RGPS) | J8: =MIN('2-Entrada de Dados'!K7, K7) -> 0 | K8: =-IF(J8<= 'CALC BASE'!X5, J8*'CALC BASE'!Y5, IF(J8<='CALC BASE'!X6, J8*'CALC BASE'!Y6-'CALC BASE'!Z6, IF(J8<='CALC BASE'!X7, J8*'CALC BASE'!Y7-'CALC BASE'!Z7, J8*'CALC BASE'!Y8-'CALC BASE'!Z8))) -> 0
B9: C. Estimativa de IR na fonte, no mês, sem dependentes | J9: =MIN(K7+K8,K7-'CALC BASE'!S10) -> -607.2 | K9: =-IF((J9)<='CALC BASE'!$Q$5,0,IF((J9)<='CALC BASE'!$Q$6,(J9)*'CALC BASE'!$R$6-'CALC BASE'!$S$6,IF((J9)<='CALC BASE'!$Q$7,(J9)*'CALC BASE'!$R$7-'CALC BASE'!$S$7,IF((J9)<'CALC BASE'!$Q$8,(J9)*'CALC BASE'!$R$8-'CALC BASE'!$S$8,(J9)*'CALC BASE'!$R$9-'CALC BASE'!$S$9)))) -> 0
B10: D. Líquido atual estimado com base nessas rubricas (A - B - C) | K10: =K7+K8+K9 -> 0
B11: =IF('1-Tipo Simulacao'!$J$28=2, "RENDA LÍQUIDA COMO PARTICIPANTE FACULTATIVO", "RENDA LÍQUIDA COM RPC") -> RENDA LÍQUIDA COM RPC
B12: E. Remuneração de Contribuição Atual | K12: =K7 -> 0
B13: F. Contribuição ao RGPS (até o teto do RGPS) | K13: =K8 -> 0
B14: =IF('1-Tipo Simulacao'!K25=1, "G. Contribuição ao RPC ("& TEXT('Anexo II - Situacao com RPC'!K10,"0,0%") &" sobre Parcela Acima Teto RGPS)", "G. Contribuição ao RPC ("& TEXT('Anexo II - Situacao com RPC'!K10,"0,0%") &" sobre o Total da Remuneração de Contribuição)") -> G. Contribuição ao RPC (8,5% sobre Parcela Acima Teto RGPS) | K14: =IF('1-Tipo Simulacao'!J28=1, -'2-Entrada de Dados'!K43*MAX(K12-'2-Entrada de Dados'!K7,0), -'2-Entrada de Dados'!K43*K12) -> 0
B15: H. NOVA Contribuição Total RGPS e RPC (F + G) | K15: =K13+K14 -> 0
B16: I. Estimativa de IR na fonte, no mês, sem dependentes | J16: =MIN(K12+K15,K12-'CALC BASE'!S10) -> -607.2 | K16: =-IF((J16)<='CALC BASE'!$Q$5,0,IF((J16)<='CALC BASE'!$Q$6,(J16)*'CALC BASE'!$R$6-'CALC BASE'!$S$6,IF((J16)<='CALC BASE'!$Q$7,(J16)*'CALC BASE'!$R$7-'CALC BASE'!$S$7,IF((J16)<'CALC BASE'!$Q$8,(J16)*'CALC BASE'!$R$8-'CALC BASE'!$S$8,(J16)*'CALC BASE'!$R$9-'CALC BASE'!$S$9)))) -> 0
B17: J. Líquido estimado com base nessas rubricas (E - H - I) | K17: =K12+K15+K16 -> 0
B19: K. Diferença entre os valores líquidos, no mês (J - D) | K19: =K17-K10 -> 0
B20: L. Diferença entre os valores líquidos, no ano (K x 13) | K20: =K19*13 -> 0
B22: =IF('1-Tipo Simulacao'!J28=1,"No caso de Participante PATROCINADO:", "No caso de Participante FACULTATIVO:") -> No caso de Participante PATROCINADO:
B23: ="Ao realizar uma Contribuição de Participante para o RPC com efeito na remuneração líquida de R$ "&TEXT(-K19,"#.##0,00")&", haverá o ingresso de R$ "& TEXT(-K14, "#.##0,00") &" na sua Previdência Complementar, justamente por conta do importante benefício fiscal na dedução do Imposto de Renda na Fonte de R$ "& TEXT(-(K9-K16), "#.##0,00") &"." -> Ao realizar uma Contribuição de Participante para o RPC com efeito na remuneração líquida de R$ 0,00, haverá o ingresso de R$ 0,00 na sua Previdência Complementar, justamente por conta do importante benefício fiscal na dedução do Imposto de Renda na Fonte de R$ 0,00.
B24: =IF('1-Tipo Simulacao'!J28=1,"Além disso, ainda terá direito à contribuição de Patrocinador de R$ "& TEXT('CALC BASE'!AN42, "#.##0,00") &". Logo, será destinado um total de R$ "& TEXT('CALC BASE'!AM42+'CALC BASE'!AN42, "#.##0,00") &" (contribuições de participante + patrocinador) para a sua conta no RPC.","") -> Além disso, ainda terá direito à contribuição de Patrocinador de R$ 0,00. Logo, será destinado um total de R$ 0,00 (contribuições de participante + patrocinador) para a sua conta no RPC.
B26: ='1-Tipo Simulacao'!B36 -> Versão do Simulador: 2025.11-1

Sheet Anexos II e III - Graficos
B4: ANEXO II DEMONSTRAÇÃO GRÁFICA COMPARATIVA DAS SITUAÇÕES ESTIMADAS
D10: Situação Sem RPC | E10: ="Situação Com RPC e Tx.Juros de "& TEXT('Anexo II - Situacao com RPC'!H37,"0,00%") -> Situação Com RPC e Tx.Juros de 3,00% | F10: ="Situação Com RPC e Tx.Juros de "& TEXT('Anexo II - Situacao com RPC'!H38,"0,00%") -> Situação Com RPC e Tx.Juros de 4,00% | G10: ="Situação Com RPC e Tx.Juros de "& TEXT('Anexo II - Situacao com RPC'!H39,"0,00%") -> Situação Com RPC e Tx.Juros de 5,00%
D11: ='3-Resultados'!F20 -> 0 | E11: ='3-Resultados'!G20 -> 0 | F11: ='3-Resultados'!I20 -> 0 | G11: ='3-Resultados'!K20 -> 0
F14: Sexo | I14: Tipo de Simulação
F15: FEMININO | I15: TIPO 1 - MIGRAÇÃO DE REGIME
F16: MASCULINO | I16: TIPO 2 - PROJEÇÃO DE NOVO(A) SERVIDOR(A) PATROCINADO(A)
I17: TIPO 3 - PROJEÇÃO DE FACULTATIVO - RPPS SEM LIMITE
I18: TIPO 4 - PROJEÇÃO DE FACULTATIVO - RPPS COM LIMITE
B30: ='1-Tipo Simulacao'!B36 -> Versão do Simulador: 2025.11-1
B31: ="ANEXO III - DEMONSTRAÇÃO GRÁFICA - ESTIMATIVAS COM TAXA DE JUROS DE "&TEXT('Anexo II - Situacao com RPC'!K9,"0,00%") -> ANEXO III - DEMONSTRAÇÃO GRÁFICA - ESTIMATIVAS COM TAXA DE JUROS DE 4,00%
F59: =ROUND(('Anexo I - Parametros'!$K$15-'Anexo I - Parametros'!$K$14)*50%,0) -> -63 | G59: =ROUND(('Anexo I - Parametros'!$K$15-'Anexo I - Parametros'!$K$14)*75%,0) -> -94 | H59: =('Anexo I - Parametros'!$K$15-'Anexo I - Parametros'!$K$14)*100% -> -125 | I59: =H59 -> -125
F60: =EDATE(DATE(YEAR('Anexo I - Parametros'!$K$13),MONTH('Anexo I - Parametros'!$K$13),1),F59*12) -> 1962-11-01 | G60: =EDATE(DATE(YEAR('Anexo I - Parametros'!$K$13),MONTH('Anexo I - Parametros'!$K$13),1),G59*12) -> 1931-11-01 | H60: =DATE(YEAR('Anexo I - Parametros'!K16),MONTH('Anexo I - Parametros'!K16),1) -> 1900-01-01 | I60: =H60 -> 1900-01-01
F61: =F59& " anos de acumulação "& IF('1-Tipo Simulacao'!$J$28=1, "- Com Patronal", "") -> -63 anos de acumulação - Com Patronal | G61: =G59& " anos de acumulação "& IF('1-Tipo Simulacao'!$J$28=1, "- Com Patronal", "") -> -94 anos de acumulação - Com Patronal | H61: =H59& " anos de acumulação "& IF('1-Tipo Simulacao'!$J$28=1, "- Com Patronal", "") -> -125 anos de acumulação - Com Patronal | I61: =IF('1-Tipo Simulacao'!$J$28=1, I59& " anos de acumulação - Sem Patronal", "") -> -125 anos de acumulação - Sem Patronal
E62: Contribuições de Participante | F62: =VLOOKUP(F60,'CALC BASE'!$A$42:$BQ$1204,69,FALSE) ->  | G62: =VLOOKUP(G60,'CALC BASE'!$A$42:$BQ$1204,69,FALSE) ->  | H62: =VLOOKUP(H60,'CALC BASE'!$A$42:$BQ$1204,69,FALSE) ->  | I62: =IF('1-Tipo Simulacao'!$J$28=1,H62,"") -> 
E63: Contribuições de Patrocinador | F63: =VLOOKUP(F60,'CALC BASE'!$A$42:$BZ$1205,76,FALSE) ->  | G63: =VLOOKUP(G60,'CALC BASE'!$A$42:$BZ$1205,76,FALSE) ->  | H63: =VLOOKUP(H60,'CALC BASE'!$A$42:$BZ$1205,76,FALSE) ->  | I63: =IF('1-Tipo Simulacao'!$J$28=1, 0,"") -> 0
E64: Retorno dos Investimentos | F64: =VLOOKUP(F60,'CALC BASE'!$A$42:$BZ$1205,78,FALSE) ->  | G64: =VLOOKUP(G60,'CALC BASE'!$A$42:$BZ$1205,78,FALSE) ->  | H64: =VLOOKUP(H60,'CALC BASE'!$A$42:$BZ$1205,78,FALSE) ->  | I64: =IF('1-Tipo Simulacao'!$J$28=1,VLOOKUP(I60,'CALC BASE'!$A$42:$CA$1205,79,FALSE),"") -> 
E65: Contribuições de Participante + Contribuições de Patrocinador + Retorno dos Investimentos | F65: =SUM(F62:F64) ->  | G65: =SUM(G62:G64) ->  | H65: =SUM(H62:H64) ->  | I65: =IF('1-Tipo Simulacao'!$J$28=1, SUM(I62:I64),"") -> 
H66: =H65-'Anexo II - Situacao com RPC'!K16 -> 
B97: ='1-Tipo Simulacao'!B36 -> Versão do Simulador: 2025.11-1

Sheet Anexo I - Parametros (hidden)
B5: ANEXO I DETALHAMENTO DOS PARÂMETROS PESSOAIS E FUNCIONAIS NA SIMULAÇÃO
B7: 1) Valor vigente do teto do RGPS/INSS? | K7: ='2-Entrada de Dados'!K7 -> 8157.41
B9: 2) Dia/mês/ano de seu nascimento? | K9: ='2-Entrada de Dados'!K11 -> 00:00:00
B11: 3) Sexo de nascimento, para efeito de aposentadoria? | K11: =UPPER('2-Entrada de Dados'!K14) -> 
B13: 4) Dia/mês/ano dos efeitos da simulação? (melhor sempre dia 01 do mês seguinte ao da simulação) | K13: =IF('2-Entrada de Dados'!K16="",NOW(),'2-Entrada de Dados'!K16) -> 2025-11-27T10:49:08.400
J14: Sua idade atual é: | K14: =IF(OR(K13="", K9=""), 0, INT((K13-K9)/365)) -> 125
B15: 5) Estimativa de sua idade para aposentadoria no RGPS? | K15: ='2-Entrada de Dados'!K21 -> 0
J16: A estimativa do mês/ano de sua aposentadoria no RGPS seria: | K16: =EDATE(K9,K15*12) -> 00:00:00
B18: 6) Base de incidência de contribuição atual para a Previdência - No mês da simulação? | K18: ='2-Entrada de Dados'!K25 -> 0
B19: (Soma das rubricas que sofrem incidência de contribuição ao RGPS, independentemente de teto do RGPS)
B21: 7) Remuneração de contribuição máxima que você poderá atingir na CARREIRA? | K21: ='2-Entrada de Dados'!K27 -> 0
B22: Resposta com a expectativa de remuneração máxima que você poderá atingir na carreira.
B24: 8) Estimativa da taxa real anual de crescimento salarial, para efeito da simulação? | K24: =IF(J28=0, 1%, MAX(0,J29)) -> 0.01
B25: Resposta com a expectativa de crescimento salarial individual anual acima da inflação (taxa real), considerando um dos seguintes caminhos:
C26: 1) ESTIMAR USANDO PARÂMETRO GERAL NESSE TIPO DE PROJEÇÃO: 1,0%, para representar algum crescimento individual + reajuste geral de tabelas; ou
C27: 2) ESTIMAR USANDO CRESCIMENTO COM BASE NO TEMPO PARA SE CHEGAR NO VALOR MÁXIMO JÁ INDICADO ACIMA PARA A SUA CARREIRA:
C28: ="- Em quanto anos você alcançará a remuneração máxima indicada na carreira, no valor de R$ "&TEXT(K21,"0.000,00")&"?.........................." -> - Em quanto anos você alcançará a remuneração máxima indicada na carreira, no valor de R$ 0.000,00?.......................... | J28: ='2-Entrada de Dados'!K29 -> 0 | K28: anos;
C29: - Nesse caso, uma estimativa simulada de Taxa a ser digitada na célula de resposta seria de: | J29: =IF(OR(K18=0,J28=0), 0, (K21/K18)^(1/J28)-1) -> 0
C30: 3) OU, CASO CONSIDERE QUE NÃO HAVERÁ CRESCIMENTO REAL NA CARREIRA AO LONGO DOS ANOS, ESTIMAR DIGITANDO 0,00% PARA A SUA SIMULAÇÃO.
J31: Para efeito da simulação, a estimativa da última remuneração seria: | K31: =IFERROR(MAX('CALC BASE'!D42:D1205), 0) -> 0
B34: ='1-Tipo Simulacao'!B36 -> Versão do Simulador: 2025.11-1

Sheet Anexo II - Situacao com RPC (hidden)
B3: ANEXO II DETALHAMENTO DOS CÁLCULOS DA SITUAÇÃO COM RPC
B5: RENDA 1: RENDA BRUTA DE APOSENTADORIA PAGA PELO RGPS (INSS)
B6: 1) Valor estimado do benefício no RGPS (Limitado ao valor do teto do RGPS) | K6: ='2-Entrada de Dados'!K35 -> 0
B8: RENDA 2: RENDA BRUTA DE APOSENTADORIA PAGA PELO RPC (CE-PREVCOM)
B9: 2) Estimativa da taxa anual real de juros dos investimentos no RPC até a aposentadoria? (sugestão: entre 3% e 5%) | K9: ='2-Entrada de Dados'!K40 -> 0.04
B10: 3) Alíquota pretendida de contribuição do participante para o RPC? (ver comentário na célula de resposta) | K10: ='2-Entrada de Dados'!K43 -> 0.085
I11: A alíquota de contribuição do patrocinador para o RPC seria de: | K11: =IF('1-Tipo Simulacao'!J28=1, MIN(VALUE(K10),8.5%), 0) -> 0.085
B12: 4) Informado algum valor de portabilidade inicial que fará para a CE-PREVCOM? (em reais - R$) | K12: ='2-Entrada de Dados'!K48 -> 0
C13: (Considerar caso queira fazer portabilidade de outra Entidade para a CE-Prevcom, a fim de melhorar seu saldo acumulado final na simulação)
B14: 5) Informados valores já acumulados na CE-PREVCOM? (em reais - R$) | K14: ='2-Entrada de Dados'!K51 -> 0
C15: ='2-Entrada de Dados'!B54 -> (ver Área do Participante / Meu Dinheiro / Extrato de Conta Individual, Tabela Resumo, coluna "Atualizado")
B16: A estimativa de saldo acumulado do Participante no RPC até a data da aposentadoria seria de: | K16: =IFERROR('CALC BASE'!M5,0) -> 0
B18: 7) Prazo, em anos, para a duração do recebimento do benefício no RPC (é uma escolha do Participante)? | K18: ='2-Entrada de Dados'!K58 -> 86
B19: Considerado o prazo para recebimento pretendido, respeitados os limites mínimo e máximo, e observada a Expectativa de Sobrevida. Observa parâmetros abaixo:
C20: ="1) Expectativa de sobrevida na data da aposentadoria (aos " & 'Anexo I - Parametros'!K15 & " anos; sexo "& IF('Anexo I - Parametros'!K11="F", "Feminino", "Masculino") &"):" -> 1) Expectativa de sobrevida na data da aposentadoria (aos 0 anos; sexo Masculino): | I20: ='CALC BASE'!G32 -> 85
C21: 2) Prazo mínimo de renda permitido no regulamento do plano, em anos: | I21: 5
C22: 3) Prazo máximo de renda permitido no regulamento do plano, em anos: | I22: 30
B23: =IF(K18="", "", IF(K18>I22, "ATENÇÃO: O prazo digitado está superior ao máximo permitido no Regulamento do Plano (30 anos)! Por favor, ajustar.",IF(K18<I21, "ATENÇÃO: O prazo digitado está inferior ao mínimo permitido no Regulamento do Plano (5 anos)! Por favor, ajustar.",""))) -> ATENÇÃO: O prazo digitado está superior ao máximo permitido no Regulamento do Plano (30 anos)! Por favor, ajustar.
J24: Com o prazo digitado para essa simulação, o recebimento do benefício encerraria na seguinte idade: | K24: ='Anexo I - Parametros'!K15+K18 -> 86
B25: REGIME TRIBUTÁRIO PROGRESSIVO OU REGRESSIVO? (P ou R) | K25: R
B26: ESTIMATIVA DE VALOR DA RENDA BRUTA DE APOSENTADORIA PAGA PELO RPC (CE-PREVCOM) | K26: =IFERROR('CALC BASE'!M8, 0) -> 0
B28: COM ISSO, NA SITUAÇÃO SIMULADA COM RPC, A DIVERSIFICAÇÃO DAS RENDAS NA FASE DE APOSENTADORIA FICARIA:
C29: RENDA 1: | D29: Benefício do RGPS (pago pelo INSS, vitalício) | K29: =K6 -> 0
C30: RENDA 2: | D30: ="Benefício do RPC (pago pela CE-PREVCOM, durante "& TEXT('2-Entrada de Dados'!K58,"#.##0")&" anos)" -> Benefício do RPC (pago pela CE-PREVCOM, durante 86 anos) | K30: =K26 -> 0
B31: RENDA BRUTA TOTAL NA SITUAÇÃO COM RPC, COM DIVERSIFICAÇÃO (RENDAS 1+2): | K31: =SUM(K29:K30) -> 0
B33: ADEMAIS, IMPORTANTE SABER QUE EXISTE O EFEITO DA TAXA DE JUROS NA PROJEÇÃO DE BENEFÍCIOS DO RPC
B34: O benefício no RPC depende do saldo acumulado na conta do participante, dependendo da expectativa futura dos investimentos.
B35: Com base na taxa de juros acima considerada, mostram-se resultados com 1,0% acima e 1,0% abaixo da taxa de juros digitada para o RPC,
B36: de modo a demonstrar o efeito estimado no valor desse benefício do RPC:
H37: =H38-1% -> 0.03 | I37: a.a. (Um Cenário Negativo) | K37: ='CALC BASE - 1%'!N14 -> 0
B38: ESTIMATIVA DE VALOR DO BENEFÍCIO BRUTO NO RPC COM JUROS DE: | H38: =K9 -> 0.04 | I38: a.a. (Um Cenário Base) | K38: ='CALC BASE'!M8 -> 0
B39: ="(Pago durante "& TEXT('2-Entrada de Dados'!K58,"#.##0")&" anos, conforme digitado na aba Entrada de Dados)" -> (Pago durante 86 anos, conforme digitado na aba Entrada de Dados) | H39: =H38+1% -> 0.05 | I39: a.a. (Um Cenário Positivo) | K39: ='CALC BASE + 1%'!N14 -> 0
B42: ='1-Tipo Simulacao'!B36 -> Versão do Simulador: 2025.11-1

Sheet Anexos VI - Benef. Risco (hidden)
B1: PREV-CE
B3: ANEXO VI DETALHAMENTO DA SIMULAÇÃO ILUSTRATIVA DE BENEFÍCIOS DE RISCO
B4: Valores estimados. Benefícios efetivos do RPPS são calculados e concedidos pela Cearaprev.
B5: PARÂMETROS ILUSTRATIVOS:
C6: Data da simulação | J6: ='2-Entrada de Dados'!K16 -> 00:00:00
C7: Data de nascimento | J7: ='2-Entrada de Dados'!K11 -> 00:00:00
C8: Idade atual | J8: ='Anexo I - Parametros'!K14 -> 125
C9: Idade na aposentadoria | J9: =INT('2-Entrada de Dados'!K21) -> 0
C10: Tempo futuro até a aposentadoria (em anos) | J10: =J9-J8 -> -125
B12: SITUAÇÃO COM RPC - VALORES ESTIMADOS
B14: 1) INVALIDEZ RPC: Estimativa do benefício no RPC, calculada no momento atual:
C15: A) Valor do CAPITAL SEGURADO BÁSICO estimado | J15: ='CALC BASE'!$AZ$42 -> 0
C16: ="B) Conversão em renda por "& 'CALC BASE'!BC42 &" anos (mínimo entre a Expectativa de Sobrevida e 30 anos)" -> B) Conversão em renda por 0 anos (mínimo entre a Expectativa de Sobrevida e 30 anos) | J16: =IF(J15=0,0, J15/'CALC BASE'!BD42) -> 0
B18: 2) PENSÃO RPC: Estimativa no RPC, calculada no momento atual:
C19: A) Valor do CAPITAL SEGURADO básico estimado | J19: =J15 -> 0
C20: =C16 -> B) Conversão em renda por 0 anos (mínimo entre a Expectativa de Sobrevida e 30 anos) | J20: =J16 -> 0
B22: ='1-Tipo Simulacao'!B36 -> Versão do Simulador: 2025.11-1

Sheet CALC BASE (hidden)
A1: MODELO DE SIMULAÇÃO INDIVIDUAL
U2: Imposto de Renda Regresssivo
A3: PARÂMETROS | I3: RESULTADOS NO REGIME DE PREVIDÊNCIA COMPLEMENTAR (RPC) | Q3: Imposto de Renda Progressivo - A partir de 05/2025 | U3: Tempo Perm. | V3: Alíquota | X3: Alíquotas RGPS - A partir de 01/2025
A4: Taxa de Juros (a.a.) - Fase Ativa | G4: ='Anexo II - Situacao com RPC'!K9 -> 0.04 | I4: Descrição | M4: Total | Q4: Limite Sup. | R4: Alíquota | S4: Dedução | U4: 2 | V4: 0.35 | X4: Limite Sup. | Y4: Alíquota | Z4: Dedução
A5: Taxa de Juros (a.m.) - Fase Ativa | G5: =(1+G4)^(1/12)-1 -> 0.003273739782 | I5: Reserva Acumulada pelo Participante | M5: =IFERROR(VLOOKUP(G27,A42:AS1205,45,FALSE),0) -> 0 | Q5: 2428.8 | R5: 0 | S5: 0 | U5: 4 | V5: 0.3 | X5: 1518 | Y5: 0.075 | Z5: 0
A6: Taxa de Juros (a.a.) - Fase Inativa | G6: 0.0468 | I6: Duração do Benefício em Prazo Certo (anos) | M6: =G29 -> 86 | Q6: 2826.65 | R6: 0.075 | S6: 182.16 | U6: 6 | V6: 0.25 | X6: 2793.88 | Y6: 0.09 | Z6: 22.77
A7: Taxa de Juros (a.m.) - Fase Inativa | G7: =(1+G6)^(1/12)-1 -> 0.003818763942 | I7: Anuidade Financeira (13 pagamentos anuais) | M7: =IF(M6=0,0, 1/PMT(G7,M6*12,-1,0,0) + (1/PMT(G6,M6,-1,0,1)) / (1+G7)^(12-MONTH('Anexo I - Parametros'!K9))) -> 277.7678455 | Q7: 3751.05 | R7: 0.15 | S7: 394.16 | U7: 8 | V7: 0.2 | X7: 4190.83 | Y7: 0.12 | Z7: 106.59
A8: RGPS - Contribuição Laboral | G8: 0.14 | I8: Benefício de Aposentadoria em Prazo Certo | M8: =IF(M7=0,0, M5/M7) -> 0 | Q8: 4664.68 | R8: 0.225 | S8: 675.49 | U8: 10 | V8: 0.15 | X8: 8157.41 | Y8: 0.14 | Z8: 190.4
A9: RGPS - Contribuição Patronal | G9: =G8*2 -> 0.28 | R9: 0.275 | S9: 908.73 | U9: Acima | V9: 0.1
A10: RGPS - Contribuição Inativo | G10: 0 | I10: COMPARATIVO DE RESULTADOS | Q10: Limite de desconto simplificado | S10: =Q5*0.25 -> 607.2
A11: Situação Atual no RGPS (1 - SEM Limite; 2 - COM Limite) | G11: ='1-Tipo Simulacao'!J29 -> 2 | I11: Descrição | M11: Atual Situação | N11: Nova Situação | O11: Variação | Q11: Isenção para Maiores de 65 anos | S11: 1903.98
A12: Tipo de Participante (1 - Patrocinado; 2 - Facultativo) | G12: ='1-Tipo Simulacao'!J28 -> 1 | I12: Benefício RGPS | M12: ='2-Entrada de Dados'!K35 -> 0 | N12: ='2-Entrada de Dados'!K35 -> 0 | O12: -
A13: RPC - Contribuição Laboral | G13: ='Anexo II - Situacao com RPC'!K10 -> 0.085 | I13: Benefício Especial | M13: 0 | N13: 0 | O13: - | Q13: IR - Progressivo
A14: RPC - Contribuição Patronal | G14: ='Anexo II - Situacao com RPC'!K11 -> 0.085 | I14: Benefício RPC | M14: 0 | N14: =M8 -> 0 | O14: - | Q14: Descrição | S14: Atual Situação | T14: Nova Situação
A15: RPC - Taxa de Carregamento - Contribuição Básica | G15: =IF(G12=1, 6.8%, 3.4%) -> 0.068 | I15: Benefício Total Bruto | M15: =SUM(M12:M14) -> 0 | N15: =SUM(N12:N14) -> 0 | O15: =N15/M15-1 ->  | T15: RGPS | U15: Ben. Especial | V15: RPC | W15: TOTAL
A16: RPC - Taxa de Carregamento - Contribuição Adicional | G16: 0.034 | I16: Contribuição de Inativo no RGPS | M16: =-MAX(M12-G24,0)*G10 -> 0 | N16: =-MAX(N12-G24,0)*G10 -> 0 | O16: =N16/M16-1 ->  | Q16: a) Renda | S16: =M12 -> 0 | T16: =N12 -> 0 | U16: =N13 -> 0 | V16: =IF(UPPER(G30)="P",N14,0) -> 0 | W16: =SUM(T16:V16) -> 0
A17: RPC - Taxa de Carregamento - Benefício | G17: 0.02 | I17: Taxa de Carregamento no RPC | M17: 0 | N17: =-N14*G17 -> 0 | O17: - | Q17: b) Contribuição de Inativo | S17: =M16 -> 0 | T17: =N16 -> 0 | U17: 0 | V17: =IF(UPPER(G30)="P",N17,0) -> 0 | W17: =SUM(T17:V17) -> 0
A18: Sexo de Nascimento | G18: =UPPER('2-Entrada de Dados'!K14) ->  | I18: Imposto de Renda Progressivo | M18: =-S22 -> 0 | N18: =-W22 -> 0 | O18: =N18/M18-1 ->  | Q18: c) Isenção para Maiores de 65 anos | S18: =-IF($G$20>=65, S11, 0) -> 0 | T18: =- IF($G$20>=65, $S$11, 0) -> 0 | U18: - | V18: - | W18: =SUM(T18:V18) -> 0
A19: Idade Atual | G19: ='Anexo I - Parametros'!K14 -> 125 | I19: Imposto de Renda Regressivo | M19: 0 | N19: =IF(UPPER(G30)="P", 0, -S29) -> 0 | O19: - | Q19: d.1) Base de Cálculo (a + b + c) | S19: =SUM(S16:S18) -> 0 | T19: =SUM(T16:T18) -> 0 | U19: =SUM(U16:U18) -> 0 | V19: =SUM(V16:V18) -> 0 | W19: =SUM(W16:W18) -> 0
A20: Idade na Aposentadoria | G20: ='Anexo I - Parametros'!K15 -> 0 | I20: Benefício Total Líquido | M20: =SUM(M15:M19) -> 0 | N20: =SUM(N15:N19) -> 0 | O20: =N20/M20-1 ->  | Q20: d.2) Base de Cálculo Simplificada | S20: =S16+S18-$S$10 -> -607.2 | T20: =T16+T18-$S$10 -> -607.2 | W20: =W16+W18-$S$10 -> -607.2
A21: Remuneração Atual | G21: ='Anexo I - Parametros'!K18 -> 0 | I21: % Atingimento do Benefício Total Líquido na Nova Situação | M21: 0 | N21: =N20/M20 ->  | Q21: d) Base de Cálculo (mín(d.1 e d.2)) | S21: =MIN(S19:S20) -> -607.2 | T21: =MIN(T19:T20) -> -607.2 | W21: =MIN(W19:W20) -> -607.2
A22: Teto do Poder | G22: ='Anexo I - Parametros'!K21 -> 0 | I22: Poupança Individual na Aposentadoria | M22: 0 | N22: =MAX(AV42:AV1205) -> 0 | Q22: Imposto de Renda Progressivo | S22: =IF(S21<=Q5,0,IF(S21<=Q6,S21*R6-S6,IF(S21<=Q7,S21*R7-S7,IF(S21<Q8,S21*R8-S8,S21*R9-S9)))) -> 0 | T22: - | U22: - | V22: - | W22: =IF(W21<=Q5,0,IF(W21<=Q6,W21*R6-S6,IF(W21<=Q7,W21*R7-S7,IF(W21<Q8,W21*R8-S8,W21*R9-S9)))) -> 0
A23: Taxa Real Anual de Crescimento Salarial | G23: ='Anexo I - Parametros'!K24 -> 0.01 | I23: VP - Benefícios Brutos | M23: =NPV($G$5,L42:L1205) -> 0 | N23: =NPV($G$5,Z42:Z1205) + NPV($G$5,AF42:AF1205) + NPV($G$5,AA42:AA1205) -> 0 | O23: =N23/M23-1 ->  | Q23: https://www27.receita.fazenda.gov.br/simulador-irpf/
A24: Teto de Isenção de Contribuição de Inativo no RGPS | G24: 0 | I24: VP - Contribuições Laborais | M24: =NPV($G$5,H42:H1205) -> 0 | N24: =NPV($G$5,U42:U1205)+NPV($G$5,V42:V1205) -> 0 | O24: =N24/M24-1 -> 
A25: Teto do RGPS | G25: ='Anexo I - Parametros'!K7 -> 8157.41 | I25: VP - Contribuições Inativo | M25: =NPV($G$5,M42:M1205) -> 0 | N25: =NPV($G$5,AB42:AB1205) -> 0 | O25: =N25/M25-1 ->  | Q25: IR - Regressivo
A26: Mês de Entrada no RPC (Posição da Simulação) | G26: =DATE(YEAR('Anexo I - Parametros'!K13),MONTH('Anexo I - Parametros'!K13),1) -> 2025-11-01 | I26: VP - Taxa de Carregamento no RPC | M26: 0 | N26: =NPV($G$5,AI42:AI1205) -> 0 | O26: 0 | Q26: Tempo de RPC na Aposentadoria (anos) | S26: =G28 -> -125.83436
A27: Mês de Aposentadoria | G27: =DATE(YEAR('Anexo I - Parametros'!K16),MONTH('Anexo I - Parametros'!K16),1) -> 1900-01-01 | I27: VP - Imposto de Renda | M27: =NPV($G$5,O42:O1205) -> 0 | N27: =NPV($G$5,AD42:AD1205)+NPV($G$5,AH42:AH1205) - (NPV($G$5,J42:J1205)-NPV($G$5,X42:X1205)) -> 0 | O27: =N27/M27-1 ->  | Q27: Alíquota Aplicada na Aposentadoria | S27: =IF(G28<=U4,V4,IF(G28<=U5,V5,IF(G28<=U6,V6,IF(G28<=U7,V7,IF(G28<=U8,V8,V9))))) -> 0.35
A28: Tempo de Contribuição Futura ao RPC (anos) | G28: =(G27-G26)/365.25 -> -125.83436 | I28: VPL - Benefícios Líquidos | M28: =SUM(M23:M27) -> 0 | N28: =SUM(N23:N27) -> 0 | O28: =N28/M28-1 ->  | Q28: Base de Cálculo (Benefício Líquido RPC) | S28: =IF(UPPER('Anexo II - Situacao com RPC'!K25)="R", N14+N17*0,0) -> 0
A29: Duração do Benefício em Prazo Certo (anos) | G29: ='Anexo II - Situacao com RPC'!K18 -> 86 | I29: VPL - Fluxo do Segurado nas Fases Ativa e Inativa | M29: =NPV($G$5,Q42:Q1205) -> 0 | N29: =NPV($G$5,AK42:AK1205) -> 0 | O29: =N29/M29-1 ->  | Q29: Imposto de Renda Regressivo | S29: =S27*S28 -> 0
A30: Regime Tribuário Regressivo | G30: ='Anexo II - Situacao com RPC'!K25 -> R
A31: Mês de Encerramento do Benefício em Prazo Certo | G31: =EDATE(G27,G29*12+1) -> 1986-02-01
A32: Expectativa de Sobrevida do Participante na Aposentadoria (anos) | G32: =IF(G18="M", ROUND(VLOOKUP(INT(G20),TbSobrVAL!$A$4:$K$134,10,FALSE),0), ROUND(VLOOKUP(INT(G20),TbSobrVAL!$M$4:$W$134,10,FALSE),0)) -> 85
A33: Estimativa de Tempo de Recebimento do Benefício no RGPS (anos) | G33: =MAX(G32,G29)*0+G32 -> 85
A34: Estimativa de Término do Benefício no RGPS | G34: =EDATE(G27,G33*12+1) -> 1985-02-01
A35: Idade de Aposentadoria por Categoria (Projeção do Capital Segurado) | G35: =IF('2-Entrada de Dados'!K18=1, IF(G18="M", 65, 62), IF('2-Entrada de Dados'!K18=2, IF(G18="M", 60, 57), 'CALC BASE'!G20)) -> 62
A36: Mês de Aposentadoria por Categoria (Projeção do Capital Segurado) | G36: =DATE(YEAR(EDATE('2-Entrada de Dados'!K11,G35*12)), MONTH(EDATE('2-Entrada de Dados'!K11,G35*12)), 1) -> 1961-12-01
A37: Nota: Os valores em azul foram informados pelo usuário.
AX38: Cálculos do Seguro
D39: Evolução da Remuneração de Contribuição | F39: Cenário 1: Somente RGPS | S39: Cenário 2: RGPS + BE + RPC | AM39: Projeção de Saldo no RPC | AU39: Poupança Individual (Diferença no Salário Líquido, resultante da redução de contribuição para o RGPS) | AV39: Saldo | AX39: Meses até a Aposentadoria | AY39: Contribuição Básica (Participante + Patrocinador) | AZ39: Capital Segurado (Parcela de Risco) | BA39: Prêmio Cobertura Morte (a cada R$ 100.000,00) | BB39: Prêmio Cobertura Invalidez (a cada R$ 100.000,00) | BC39: Prazo Certo (Mínimo entre 30 e a Expectativa de Sobrevida do Participante em anos) | BD39: Anuidade Financeira (13 pagamentos anuais) | BE39: Benefício por Invalidez ou Morte (Conversão do Saldo Acumulado + Capital Segurado) | BL39: Projeção de Saldo no RPC - CONTA DE PARTICIPANTE | BS39: Projeção de Saldo no RPC - CONTA DE PATROCINADOR | BZ39: Projeção | CA39: Projeção
A40: Data | B40: Nº Remunerações | C40: Idade | F40: Remuneração | L40: Benefício no RGPS | Q40: Fluxo Segurado | S40: Remuneração | Z40: Benefício RGPS + Benefício Especial | AF40: Benefício RPC | AK40: Fluxo Segurado | BZ40: (Part + Patr) | CA40: (Part)
F41: Remuneração de Contribuição Bruta | G41: Salário Bruto Base RGPS | H41: Ctb Laboral RGPS | I41: Base de Cálculo IR | J41: Imposto de Renda | K41: Salário Líquido | L41: Benefício Bruto | M41: Contribuição de Inativo | N41: Base de Cálculo IR | O41: Imposto de Renda | P41: Benefício Líquido | S41: Salário Bruto Base RGPS | T41: Salário Bruto Base RPC | U41: Contribuição Laboral RGPS | V41: Ctribuição Laboral RPC | W41: Base de Cálculo IR | X41: Imposto de Renda | Y41: Salário Líquido | Z41: Benefício RGPS Bruto | AA41: Benefício Especial Bruto | AB41: Contribuição de Inativo | AC41: Base de Cálculo IR Progressivo | AD41: Imposto de Renda Progressivo | AE41: Benefício RGPS + BE Líquido | AF41: Benefício Bruto (RPC) | AG41: Tempo de RPC (em anos) | AH41: Imposto de Renda Regressivo | AI41: Taxa de Carreg. sobre Benefício RPC | AJ41: Benefício Líquido RPC | AM41: Contribuição Laboral | AN41: Contribuição Patronal | AO41: Taxa de Carregamento | AP41: Ctb Risco | AQ41: Benefício RPC | AR41: Retono dos Investimentos | AS41: Saldo Acumulado | BG41: Sem Migração | BH41: Com Migração | BI41: Fase Ativa: Efeito na Remuneração Líquida | BJ41: Fase Inativa: Efeito no Benefício Líquido | BL41: Contribuição Laboral | BM41: Taxa de Carregamento | BN41: Ctb Risco | BO41: Retono dos Investimentos | BP41: Saldo Acumulado | BQ41: Saldo Participante Sem Retorno Investimentos | BS41: Contribuição Patronal | BT41: Taxa de Carregamento | BU41: Ctb Risco | BV41: Retono dos Investimentos | BW41: Saldo Acumulado | BX41: Saldo Patronal Sem Retorno Investimentos | BZ41: Saldo do Retorno dos Investimentos | CA41: Saldo do Retorno dos Investimentos
A42: =G26 -> 2025-11-01 | B42: =IF(A42="-", 1, IF(MONTH($A42)=12,2,1)) -> 1 | C42: =IF(A42="-", A42, INT((A42-'Anexo I - Parametros'!$K$9)/365.25)) -> 125 | D42: =G21 -> 0 | F42: =IF(A42="-", 0, D42*$B42) -> 0 | G42: =IF($G$11=1, F42, MIN(F42, $G$25*B42)) -> 0 | H42: =-G42*$G$8 -> 0 | I42: =(F42+H42) / $B42 -> 0 | J42: =-IF(I42<=$Q$5,0,IF(I42<=$Q$6,I42*$R$6-$S$6,IF(I42<=$Q$7,I42*$R$7-$S$7,IF(I42<$Q$8,I42*$R$8-$S$8,I42*$R$9-$S$9)))) * $B42 -> 0 | K42: =F42+H42+J42 -> 0 | L42: =IF(AND($A42>$G$27,$A42<$G$34), $M$12 * $B42,0) -> 0 | M42: =-MAX(0, L42-$G$24 * $B42 ) * $G$10 -> 0 | N42: =IF(L42=0,0, (L42+M42-IF(C42>=65, $Q$5, 0) * $B42 ) / $B42 ) -> 0 | O42: =-IF(N42<=$Q$5,0,IF(N42<=$Q$6,N42*$R$6-$S$6,IF(N42<=$Q$7,N42*$R$7-$S$7,IF(N42<$Q$8,N42*$R$8-$S$8,N42*$R$9-$S$9)))) * $B42 -> 0 | P42: =L42+M42+O42 -> 0 | Q42: =K42+P42 -> 0 | S42: =IF($A42>$G$27,0, IF($G$12=1, MIN($G$25*B42,F42), IF($G$11=1, F42, MIN($G$25*B42,F42)))) -> 0 | T42: =IF($G$12=1,F42-S42,F42) -> 0 | U42: =-$S42*$G$8 -> 0 | V42: =-$T42*$G$13 -> 0 | W42: =(F42+U42+V42) / $B42 -> 0 | X42: =-IF(W42<=$Q$5,0,IF(W42<=$Q$6,W42*$R$6-$S$6,IF(W42<=$Q$7,W42*$R$7-$S$7,IF(W42<$Q$8,W42*$R$8-$S$8,W42*$R$9-$S$9)))) * $B42 -> 0 | Y42: =F42+U42+V42+X42 -> 0 | Z42: =IF(AND($A42>$G$27,$A42<$G$34), $N$12 * $B42,0) -> 0 | AA42: =IF(AND($A42>$G$27,$A42<$G$34), $N$13 * $B42,0) -> 0 | AB42: =-MAX(0,(Z42-$G$24 * $B42 ) )*$G$10 -> 0 | AC42: =IF(Z42+AA42=0,0, (Z42+AA42+AB42-IF(C42>=65, $Q$5, 0) * $B42 ) / $B42 ) -> 0 | AD42: =-IF(AC42<=$Q$5,0,IF(AC42<=$Q$6,AC42*$R$6-$S$6,IF(AC42<=$Q$7,AC42*$R$7-$S$7,IF(AC42<$Q$8,AC42*$R$8-$S$8,AC42*$R$9-$S$9)))) * $B42 -> 0 | AE42: =Z42+AA42+AB42+AD42 -> 0 | AF42: =IF(AND($A42>$G$27,$A42<$G$31), $M$8 * $B42,0) -> 0 | AG42: =IF(A42="-",0,(A42-$G$26)/365.25) -> 0 | AH42: =-AF42*IF(AG42<=$U$4,$V$4,IF(AG42<=$U$5,$V$5,IF(AG42<=$U$6,$V$6,IF(AG42<=$U$7,$V$7,IF(AG42<=$U$8,$V$8,$V$9))))) -> 0 | AI42: =-AF42*$G$17 -> 0 | AJ42: =AF42+AH42+AI42 -> 0 | AK42: =Y42+AE42+AJ42 -> 0 | AM42: =-V42 -> 0 | AN42: =$T42*$G$14 -> 0 | AO42: =-(($T42*(MIN($G$13, 8.5%) + $G$14) + AP42)*$G$15 + $T42*MAX($G$13- 8.5%,0)*$G$16) -> 0 | AP42: =-AZ42/100000 * (BA42+BB42) -> 0 | AQ42: =-AF42 -> 0 | AR42: 0 | AS42: =SUM(AM42:AP42)+'2-Entrada de Dados'!K48+'2-Entrada de Dados'!K51 -> 0 | AU42: =IF($A42="-",0, MAX(Y42-K42, 0)) -> 0 | AV42: =IF(AU42=0,0, AV41*(1+$G$5)+AU42) -> 0 | AX42: =IF($G$12=2, 0, IF(A42>$G$36,0, ROUND(($G$36-A42)/365.25*12,0))) -> 0 | AY42: =IF(AX42<=0,0, $T42*(MIN($G$13, 8.5%)+$G$14) / IF(MONTH(A42)=12,2,1)) -> 0 | AZ42: =AY42*AX42 -> 0 | BA42: =IF(AX42<=0,0, IF(UPPER(ATENDIMENTO!$C$51)="S", VLOOKUP(C42,Premios!$G$4:$I$104,2,FALSE), 0)) -> 0 | BB42: =IF(AX42<=0,0, IF(UPPER(ATENDIMENTO!$C$52)="S", VLOOKUP(C42,Premios!$G$4:$I$104,3,FALSE), 0)) -> 0 | BC42: =IF(AX42=0,0, MIN( 30, IF($G$18="M", ROUND(VLOOKUP(C42,TbSobrVAL!$A$4:$K$134,10,FALSE),0), ROUND(VLOOKUP(C42,TbSobrVAL!$M$4:$W$134,10,FALSE),0))) ) -> 0 | BD42: =IF(AX42=0,0, 1/PMT($G$7,BC42*12,-1,0,0) + (1/PMT($G$6,BC42,-1,0,1)) / (1+$G$7)^(12-MONTH('Anexo I - Parametros'!$K$9)) ) -> 0 | BE42: =IF(BD42=0,0,(AS42+AZ42)/BD42) -> 0 | BG42: =Q42 / $B42 -> 0 | BH42: =IF(A42<$G$34, AK42 / $B42, 0) -> 0 | BI42: =(Y42-K42) / $B42 -> 0 | BJ42: =IF(A42<$G$34, (AJ42+AE42-P42) / $B42, 0) -> 0 | BL42: =-V42 -> 0 | BM42: =-(($T42*MIN($G$13, 8.5%) + BN42)*$G$15 + $T42*MAX($G$13- 8.5%,0)*$G$16) -> 0 | BN42: =IF(AX42<=0,0, -($T42*MIN($G$13, 8.5%) / IF(MONTH(A42)=12,2,1) * AX42)/100000 * (BA42+BB42)) -> 0 | BO42: 0 | BP42: =SUM(BL42:BN42)+'2-Entrada de Dados'!$K$48+'2-Entrada de Dados'!$K$52 -> 0 | BQ42: =BP42 -> 0 | BS42: =$T42*$G$14 -> 0 | BT42: =-(BS42 + BU42)*$G$15 -> 0 | BU42: =IF(AX42<=0,0, -($T42*$G$14 / IF(MONTH(A42)=12,2,1) * AX42)/100000 * (BA42+BB42)) -> 0 | BV42: 0 | BW42: =SUM(BS42:BU42)+'2-Entrada de Dados'!$K$53 -> 0 | BX42: =BW42 -> 0 | BY42: =IF($A42>$G$27, 0, AS42-BP42-BW42) -> 0 | BZ42: =BO42+BV42 -> 0 | CA42: =BO42 -> 0 | CB42: =IF($A42>$G$27, 0, AS42-BQ42-BX42-BZ42) -> 0 | CC42: =BP42-BQ42-CA42 -> 0
A43: =IF(A42>TbSobrVAL!$H$1,"-",EDATE(A42,1)) -> - | B43: =IF(A43="-", 1, IF(MONTH($A43)=12,2,1)) -> 1 | C43: =IF(A43="-", A43, INT((A43-'Anexo I - Parametros'!$K$9)/365.25)) -> - | D43: =IF($A43>$G$27,0, IF(MONTH(A43)<> 1, D42, MIN(D42*(1+$G$23),$G$22))) -> 0 | F43: =IF(A43="-", 0, D43*$B43) -> 0 | G43: =IF($G$11=1, F43, MIN(F43, $G$25*B43)) -> 0 | H43: =-G43*$G$8 -> 0 | I43: 0 | J43: =-IF(I43<=$Q$5,0,IF(I43<=$Q$6,I43*$R$6-$S$6,IF(I43<=$Q$7,I43*$R$7-$S$7,IF(I43<$Q$8,I43*$R$8-$S$8,I43*$R$9-$S$9)))) * $B43 -> 0 | K43: 0 | L43: 0 | M43: 0 | N43: 0 | O43: =-IF(N43<=$Q$5,0,IF(N43<=$Q$6,N43*$R$6-$S$6,IF(N43<=$Q$7,N43*$R$7-$S$7,IF(N43<$Q$8,N43*$R$8-$S$8,N43*$R$9-$S$9)))) * $B43 -> 0 | P43: 0 | Q43: 0 | S43: 0 | T43: 0 | U43: 0 | V43: 0 | W43: 0 | X43: 0 | Y43: 0 | Z43: 0 | AA43: 0 | AB43: 0 | AC43: 0 | AD43: =-IF(AC43<=$Q$5,0,IF(AC43<=$Q$6,AC43*$R$6-$S$6,IF(AC43<=$Q$7,AC43*$R$7-$S$7,IF(AC43<$Q$8,AC43*$R$8-$S$8,AC43*$R$9-$S$9)))) * $B43 -> 0 | AE43: =Z43+AA43+AB43+AD43 -> 0 | AF43: 0 | AG43: 0 | AH43: =-AF43*IF(AG43<=$U$4,$V$4,IF(AG43<=$U$5,$V$5,IF(AG43<=$U$6,$V$6,IF(AG43<=$U$7,$V$7,IF(AG43<=$U$8,$V$8,$V$9))))) -> 0 | AI43: 0 | AJ43: =AF43+AH43+AI43 -> 0 | AK43: =Y43+AE43+AJ43 -> 0 | AM43: 0 | AN43: 0 | AO43: 0 | AP43: 0 | AQ43: =-AF43 -> 0 | AR43: =IF(A43<=$G$27, $G$5, $G$7)*AS42 -> 0 | AS43: =IF(A43>=$G$31,0, AS42+SUM(AM43:AR43)) -> 0 | AU43: =IF($A43="-",0, MAX(Y43-K43, 0)) -> 0 | AV43: 0 | AX43: =IF($G$12=2, 0, IF(A43>$G$36,0, ROUND(($G$36-A43)/365.25*12,0))) -> 0 | AY43: 0 | AZ43: =IF(AX43<=0,0, IF(MONTH(A43)<> 1, AZ42, AY43*AX43)) -> 0 | BA43: =IF(AX43<=0,0, IF(UPPER(ATENDIMENTO!$C$51)="S", IF(MONTH(A43)<> 1, BA42, VLOOKUP(C43,Premios!$G$4:$I$104,2,FALSE)), 0)) -> 0 | BB43: =IF(AX43<=0,0, IF(UPPER(ATENDIMENTO!$C$52)="S", IF(MONTH(A43)<> 1, BB42, VLOOKUP(C43,Premios!$G$4:$I$104,3,FALSE)), 0)) -> 0 | BC43: =IF(AX43=0,0, MIN( 30, IF($G$18="M", ROUND(VLOOKUP(C43,TbSobrVAL!$A$4:$K$134,10,FALSE),0), ROUND(VLOOKUP(C43,TbSobrVAL!$M$4:$W$134,10,FALSE),0))) ) -> 0 | BD43: =IF(AX43=0,0, 1/PMT($G$7,BC43*12,-1,0,0) + (1/PMT($G$6,BC43,-1,0,1)) / (1+$G$7)^(12-MONTH('Anexo I - Parametros'!$K$9)) ) -> 0 | BE43: =IF(BD43=0,0,(AS43+AZ43)/BD43) -> 0 | BG43: 0 | BH43: 0 | BI43: =(Y43-K43) / $B43 -> 0 | BJ43: 0 | BL43: 0 | BM43: 0 | BN43: =IF(AX43<=0,0, IF(MONTH(A43)<> 1, BN42, -($T43*MIN($G$13, 8.5%) / IF(MONTH(A43)=12,2,1) * AX43)/100000 * (BA43+BB43))) -> 0 | BO43: =IF($A43>$G$27, 0, IF($A43<=$G$27, $G$5, $G$7)*BP42) -> 0 | BP43: =IF($A43>$G$27, 0, IF($A43>=$G$31,0, BP42+SUM(BL43:BO43))) -> 0 | BQ43: =IF($A43>$G$27,0,BQ42+SUM(BL43:BN43)) -> 0 | BS43: 0 | BT43: 0 | BU43: =IF(AX43<=0,0, IF(MONTH(A43)<> 1, BU42, -($T43*$G$14 / IF(MONTH(A43)=12,2,1) * AX43)/100000 * (BA43+BB43))) -> 0 | BV43: =IF($A43>$G$27, 0, IF($A43<=$G$27, $G$5, $G$7)*BW42) -> 0 | BW43: =IF($A43>$G$27, 0, IF($A43>=$G$31,0, BW42+SUM(BS43:BV43))) -> 0 | BX43: =IF($A43>$G$27,0,BX42+SUM(BS43:BU43)) -> 0 | BY43: =IF($A43>$G$27, 0, AS43-BP43-BW43) -> 0 | BZ43: =IF($A43>$G$27,0, BZ42+BO43+BV43) -> 0 | CA43: =IF($A43>$G$27,0, CA42+BO43) -> 0 | CB43: 0 | CC43: =BP43-BQ43-CA43 -> 0
A44: =IF(A43>TbSobrVAL!$H$1,"-",EDATE(A43,1)) -> - | B44: 1 | C44: =IF(A44="-", A44, INT((A44-'Anexo I - Parametros'!$K$9)/365.25)) -> - | D44: 0 | F44: 0 | G44: 0 | H44: 0 | I44: 0 | J44: 0 | K44: 0 | L44: 0 | M44: 0 | N44: 0 | O44: 0 | P44: 0 | Q44: 0 | S44: 0 | T44: 0 | U44: 0 | V44: 0 | W44: 0 | X44: 0 | Y44: 0 | Z44: 0 | AA44: 0 | AB44: 0 | AC44: 0 | AD44: 0 | AE44: 0 | AF44: 0 | AG44: 0 | AH44: 0 | AI44: 0 | AJ44: 0 | AK44: 0 | AM44: 0 | AN44: 0 | AO44: 0 | AP44: 0 | AQ44: 0 | AR44: 0 | AS44: 0 | AU44: 0 | AV44: 0 | AX44: 0 | AY44: 0 | AZ44: =IF(AX44<=0,0, IF(MONTH(A44)<> 1, AZ43, AY44*AX44)) -> 0 | BA44: =IF(AX44<=0,0, IF(UPPER(ATENDIMENTO!$C$51)="S", IF(MONTH(A44)<> 1, BA43, VLOOKUP(C44,Premios!$G$4:$I$104,2,FALSE)), 0)) -> 0 | BB44: =IF(AX44<=0,0, IF(UPPER(ATENDIMENTO!$C$52)="S", IF(MONTH(A44)<> 1, BB43, VLOOKUP(C44,Premios!$G$4:$I$104,3,FALSE)), 0)) -> 0 | BC44: =IF(AX44=0,0, MIN( 30, IF($G$18="M", ROUND(VLOOKUP(C44,TbSobrVAL!$A$4:$K$134,10,FALSE),0), ROUND(VLOOKUP(C44,TbSobrVAL!$M$4:$W$134,10,FALSE),0))) ) -> 0 | BD44: =IF(AX44=0,0, 1/PMT($G$7,BC44*12,-1,0,0) + (1/PMT($G$6,BC44,-1,0,1)) / (1+$G$7)^(12-MONTH('Anexo I - Parametros'!$K$9)) ) -> 0 | BE44: 0 | BG44: 0 | BH44: 0 | BI44: 0 | BJ44: 0 | BL44: 0 | BM44: 0 | BN44: 0 | BO44: 0 | BP44: 0 | BQ44: 0 | BS44: 0 | BT44: 0 | BU44: 0 | BV44: 0 | BW44: 0 | BX44: 0 | BY44: 0 | BZ44: 0 | CA44: 0 | CB44: 0 | CC44: 0
A45: =IF(A44>TbSobrVAL!$H$1,"-",EDATE(A44,1)) -> - | B45: 1 | C45: =IF(A45="-", A45, INT((A45-'Anexo I - Parametros'!$K$9)/365.25)) -> - | D45: 0 | F45: 0 | G45: 0 | H45: 0 | I45: 0 | J45: 0 | K45: 0 | L45: 0 | M45: 0 | N45: 0 | O45: 0 | P45: 0 | Q45: 0 | S45: 0 | T45: 0 | U45: 0 | V45: 0 | W45: 0 | X45: 0 | Y45: 0 | Z45: 0 | AA45: 0 | AB45: 0 | AC45: 0 | AD45: 0 | AE45: 0 | AF45: 0 | AG45: 0 | AH45: 0 | AI45: 0 | AJ45: 0 | AK45: 0 | AM45: 0 | AN45: 0 | AO45: 0 | AP45: 0 | AQ45: 0 | AR45: 0 | AS45: 0 | AU45: 0 | AV45: 0 | AX45: 0 | AY45: 0 | AZ45: 0 | BA45: =IF(AX45<=0,0, IF(UPPER(ATENDIMENTO!$C$51)="S", IF(MONTH(A45)<> 1, BA44, VLOOKUP(C45,Premios!$G$4:$I$104,2,FALSE)), 0)) -> 0 | BB45: =IF(AX45<=0,0, IF(UPPER(ATENDIMENTO!$C$52)="S", IF(MONTH(A45)<> 1, BB44, VLOOKUP(C45,Premios!$G$4:$I$104,3,FALSE)), 0)) -> 0 | BC45: =IF(AX45=0,0, MIN( 30, IF($G$18="M", ROUND(VLOOKUP(C45,TbSobrVAL!$A$4:$K$134,10,FALSE),0), ROUND(VLOOKUP(C45,TbSobrVAL!$M$4:$W$134,10,FALSE),0))) ) -> 0 | BD45: =IF(AX45=0,0, 1/PMT($G$7,BC45*12,-1,0,0) + (1/PMT($G$6,BC45,-1,0,1)) / (1+$G$7)^(12-MONTH('Anexo I - Parametros'!$K$9)) ) -> 0 | BE45: 0 | BG45: 0 | BH45: 0 | BI45: 0 | BJ45: 0 | BL45: 0 | BM45: 0 | BN45: 0 | BO45: 0 | BP45: 0 | BQ45: 0 | BS45: 0 | BT45: 0 | BU45: 0 | BV45: 0 | BW45: 0 | BX45: 0 | BY45: 0 | BZ45: 0 | CA45: 0 | CB45: 0 | CC45: 0
A46: =IF(A45>TbSobrVAL!$H$1,"-",EDATE(A45,1)) -> - | B46: 1 | C46: =IF(A46="-", A46, INT((A46-'Anexo I - Parametros'!$K$9)/365.25)) -> - | D46: 0 | F46: 0 | G46: 0 | H46: 0 | I46: 0 | J46: 0 | K46: 0 | L46: 0 | M46: 0 | N46: 0 | O46: 0 | P46: 0 | Q46: 0 | S46: 0 | T46: 0 | U46: 0 | V46: 0 | W46: 0 | X46: 0 | Y46: 0 | Z46: 0 | AA46: 0 | AB46: 0 | AC46: 0 | AD46: 0 | AE46: 0 | AF46: 0 | AG46: 0 | AH46: 0 | AI46: 0 | AJ46: 0 | AK46: 0 | AM46: 0 | AN46: 0 | AO46: 0 | AP46: 0 | AQ46: 0 | AR46: 0 | AS46: 0 | AU46: 0 | AV46: 0 | AX46: 0 | AY46: 0 | AZ46: 0 | BA46: =IF(AX46<=0,0, IF(UPPER(ATENDIMENTO!$C$51)="S", IF(MONTH(A46)<> 1, BA45, VLOOKUP(C46,Premios!$G$4:$I$104,2,FALSE)), 0)) -> 0 | BB46: =IF(AX46<=0,0, IF(UPPER(ATENDIMENTO!$C$52)="S", IF(MONTH(A46)<> 1, BB45, VLOOKUP(C46,Premios!$G$4:$I$104,3,FALSE)), 0)) -> 0 | BC46: =IF(AX46=0,0, MIN( 30, IF($G$18="M", ROUND(VLOOKUP(C46,TbSobrVAL!$A$4:$K$134,10,FALSE),0), ROUND(VLOOKUP(C46,TbSobrVAL!$M$4:$W$134,10,FALSE),0))) ) -> 0 | BD46: =IF(AX46=0,0, 1/PMT($G$7,BC46*12,-1,0,0) + (1/PMT($G$6,BC46,-1,0,1)) / (1+$G$7)^(12-MONTH('Anexo I - Parametros'!$K$9)) ) -> 0 | BE46: 0 | BG46: 0 | BH46: 0 | BI46: 0 | BJ46: 0 | BL46: 0 | BM46: 0 | BN46: 0 | BO46: 0 | BP46: 0 | BQ46: 0 | BS46: 0 | BT46: 0 | BU46: 0 | BV46: 0 | BW46: 0 | BX46: 0 | BY46: 0 | BZ46: 0 | CA46: 0 | CB46: 0 | CC46: 0
A47: =IF(A46>TbSobrVAL!$H$1,"-",EDATE(A46,1)) -> - | B47: 1 | C47: =IF(A47="-", A47, INT((A47-'Anexo I - Parametros'!$K$9)/365.25)) -> - | D47: 0 | F47: 0 | G47: 0 | H47: 0 | I47: 0 | J47: 0 | K47: 0 | L47: 0 | M47: 0 | N47: 0 | O47: 0 | P47: 0 | Q47: 0 | S47: 0 | T47: 0 | U47: 0 | V47: 0 | W47: 0 | X47: 0 | Y47: 0 | Z47: 0 | AA47: 0 | AB47: 0 | AC47: 0 | AD47: 0 | AE47: 0 | AF47: 0 | AG47: 0 | AH47: 0 | AI47: 0 | AJ47: 0 | AK47: 0 | AM47: 0 | AN47: 0 | AO47: 0 | AP47: 0 | AQ47: 0 | AR47: 0 | AS47: 0 | AU47: 0 | AV47: 0 | AX47: 0 | AY47: 0 | AZ47: 0 | BA47: =IF(AX47<=0,0, IF(UPPER(ATENDIMENTO!$C$51)="S", IF(MONTH(A47)<> 1, BA46, VLOOKUP(C47,Premios!$G$4:$I$104,2,FALSE)), 0)) -> 0 | BB47: =IF(AX47<=0,0, IF(UPPER(ATENDIMENTO!$C$52)="S", IF(MONTH(A47)<> 1, BB46, VLOOKUP(C47,Premios!$G$4:$I$104,3,FALSE)), 0)) -> 0 | BC47: =IF(AX47=0,0, MIN( 30, IF($G$18="M", ROUND(VLOOKUP(C47,TbSobrVAL!$A$4:$K$134,10,FALSE),0), ROUND(VLOOKUP(C47,TbSobrVAL!$M$4:$W$134,10,FALSE),0))) ) -> 0 | BD47: =IF(AX47=0,0, 1/PMT($G$7,BC47*12,-1,0,0) + (1/PMT($G$6,BC47,-1,0,1)) / (1+$G$7)^(12-MONTH('Anexo I - Parametros'!$K$9)) ) -> 0 | BE47: 0 | BG47: 0 | BH47: 0 | BI47: 0 | BJ47: 0 | BL47: 0 | BM47: 0 | BN47: 0 | BO47: 0 | BP47: 0 | BQ47: 0 | BS47: 0 | BT47: 0 | BU47: 0 | BV47: 0 | BW47: 0 | BX47: 0 | BY47: 0 | BZ47: 0 | CA47: 0 | CB47: 0 | CC47: 0
A48: =IF(A47>TbSobrVAL!$H$1,"-",EDATE(A47,1)) -> - | B48: 1 | C48: =IF(A48="-", A48, INT((A48-'Anexo I - Parametros'!$K$9)/365.25)) -> - | D48: 0 | F48: 0 | G48: 0 | H48: 0 | I48: 0 | J48: 0 | K48: 0 | L48: 0 | M48: 0 | N48: 0 | O48: 0 | P48: 0 | Q48: 0 | S48: 0 | T48: 0 | U48: 0 | V48: 0 | W48: 0 | X48: 0 | Y48: 0 | Z48: 0 | AA48: 0 | AB48: 0 | AC48: 0 | AD48: 0 | AE48: 0 | AF48: 0 | AG48: 0 | AH48: 0 | AI48: 0 | AJ48: 0 | AK48: 0 | AM48: 0 | AN48: 0 | AO48: 0 | AP48: 0 | AQ48: 0 | AR48: 0 | AS48: 0 | AU48: 0 | AV48: 0 | AX48: 0 | AY48: 0 | AZ48: 0 | BA48: =IF(AX48<=0,0, IF(UPPER(ATENDIMENTO!$C$51)="S", IF(MONTH(A48)<> 1, BA47, VLOOKUP(C48,Premios!$G$4:$I$104,2,FALSE)), 0)) -> 0 | BB48: =IF(AX48<=0,0, IF(UPPER(ATENDIMENTO!$C$52)="S", IF(MONTH(A48)<> 1, BB47, VLOOKUP(C48,Premios!$G$4:$I$104,3,FALSE)), 0)) -> 0 | BC48: =IF(AX48=0,0, MIN( 30, IF($G$18="M", ROUND(VLOOKUP(C48,TbSobrVAL!$A$4:$K$134,10,FALSE),0), ROUND(VLOOKUP(C48,TbSobrVAL!$M$4:$W$134,10,FALSE),0))) ) -> 0 | BD48: =IF(AX48=0,0, 1/PMT($G$7,BC48*12,-1,0,0) + (1/PMT($G$6,BC48,-1,0,1)) / (1+$G$7)^(12-MONTH('Anexo I - Parametros'!$K$9)) ) -> 0 | BE48: 0 | BG48: 0 | BH48: 0 | BI48: 0 | BJ48: 0 | BL48: 0 | BM48: 0 | BN48: 0 | BO48: 0 | BP48: 0 | BQ48: 0 | BS48: 0 | BT48: 0 | BU48: 0 | BV48: 0 | BW48: 0 | BX48: 0 | BY48: 0 | BZ48: 0 | CA48: 0 | CB48: 0 | CC48: 0
A49: =IF(A48>TbSobrVAL!$H$1,"-",EDATE(A48,1)) -> - | B49: 1 | C49: =IF(A49="-", A49, INT((A49-'Anexo I - Parametros'!$K$9)/365.25)) -> - | D49: 0 | F49: 0 | G49: 0 | H49: 0 | I49: 0 | J49: 0 | K49: 0 | L49: 0 | M49: 0 | N49: 0 | O49: 0 | P49: 0 | Q49: 0 | S49: 0 | T49: 0 | U49: 0 | V49: 0 | W49: 0 | X49: 0 | Y49: 0 | Z49: 0 | AA49: 0 | AB49: 0 | AC49: 0 | AD49: 0 | AE49: 0 | AF49: 0 | AG49: 0 | AH49: 0 | AI49: 0 | AJ49: 0 | AK49: 0 | AM49: 0 | AN49: 0 | AO49: 0 | AP49: 0 | AQ49: 0 | AR49: 0 | AS49: 0 | AU49: 0 | AV49: 0 | AX49: 0 | AY49: 0 | AZ49: 0 | BA49: =IF(AX49<=0,0, IF(UPPER(ATENDIMENTO!$C$51)="S", IF(MONTH(A49)<> 1, BA48, VLOOKUP(C49,Premios!$G$4:$I$104,2,FALSE)), 0)) -> 0 | BB49: =IF(AX49<=0,0, IF(UPPER(ATENDIMENTO!$C$52)="S", IF(MONTH(A49)<> 1, BB48, VLOOKUP(C49,Premios!$G$4:$I$104,3,FALSE)), 0)) -> 0 | BC49: =IF(AX49=0,0, MIN( 30, IF($G$18="M", ROUND(VLOOKUP(C49,TbSobrVAL!$A$4:$K$134,10,FALSE),0), ROUND(VLOOKUP(C49,TbSobrVAL!$M$4:$W$134,10,FALSE),0))) ) -> 0 | BD49: =IF(AX49=0,0, 1/PMT($G$7,BC49*12,-1,0,0) + (1/PMT($G$6,BC49,-1,0,1)) / (1+$G$7)^(12-MONTH('Anexo I - Parametros'!$K$9)) ) -> 0 | BE49: 0 | BG49: 0 | BH49: 0 | BI49: 0 | BJ49: 0 | BL49: 0 | BM49: 0 | BN49: 0 | BO49: 0 | BP49: 0 | BQ49: 0 | BS49: 0 | BT49: 0 | BU49: 0 | BV49: 0 | BW49: 0 | BX49: 0 | BY49: 0 | BZ49: 0 | CA49: 0 | CB49: 0 | CC49: 0
A50: =IF(A49>TbSobrVAL!$H$1,"-",EDATE(A49,1)) -> - | B50: 1 | C50: =IF(A50="-", A50, INT((A50-'Anexo I - Parametros'!$K$9)/365.25)) -> - | D50: 0 | F50: 0 | G50: 0 | H50: 0 | I50: 0 | J50: 0 | K50: 0 | L50: 0 | M50: 0 | N50: 0 | O50: 0 | P50: 0 | Q50: 0 | S50: 0 | T50: 0 | U50: 0 | V50: 0 | W50: 0 | X50: 0 | Y50: 0 | Z50: 0 | AA50: 0 | AB50: 0 | AC50: 0 | AD50: 0 | AE50: 0 | AF50: 0 | AG50: 0 | AH50: 0 | AI50: 0 | AJ50: 0 | AK50: 0 | AM50: 0 | AN50: 0 | AO50: 0 | AP50: 0 | AQ50: 0 | AR50: 0 | AS50: 0 | AU50: 0 | AV50: 0 | AX50: 0 | AY50: 0 | AZ50: 0 | BA50: =IF(AX50<=0,0, IF(UPPER(ATENDIMENTO!$C$51)="S", IF(MONTH(A50)<> 1, BA49, VLOOKUP(C50,Premios!$G$4:$I$104,2,FALSE)), 0)) -> 0 | BB50: =IF(AX50<=0,0, IF(UPPER(ATENDIMENTO!$C$52)="S", IF(MONTH(A50)<> 1, BB49, VLOOKUP(C50,Premios!$G$4:$I$104,3,FALSE)), 0)) -> 0 | BC50: =IF(AX50=0,0, MIN( 30, IF($G$18="M", ROUND(VLOOKUP(C50,TbSobrVAL!$A$4:$K$134,10,FALSE),0), ROUND(VLOOKUP(C50,TbSobrVAL!$M$4:$W$134,10,FALSE),0))) ) -> 0 | BD50: =IF(AX50=0,0, 1/PMT($G$7,BC50*12,-1,0,0) + (1/PMT($G$6,BC50,-1,0,1)) / (1+$G$7)^(12-MONTH('Anexo I - Parametros'!$K$9)) ) -> 0 | BE50: 0 | BG50: 0 | BH50: 0 | BI50: 0 | BJ50: 0 | BL50: 0 | BM50: 0 | BN50: 0 | BO50: 0 | BP50: 0 | BQ50: 0 | BS50: 0 | BT50: 0 | BU50: 0 | BV50: 0 | BW50: 0 | BX50: 0 | BY50: 0 | BZ50: 0 | CA50: 0 | CB50: 0 | CC50: 0
A51: =IF(A50>TbSobrVAL!$H$1,"-",EDATE(A50,1)) -> - | B51: 1 | C51: =IF(A51="-", A51, INT((A51-'Anexo I - Parametros'!$K$9)/365.25)) -> - | D51: 0 | F51: 0 | G51: 0 | H51: 0 | I51: 0 | J51: 0 | K51: 0 | L51: 0 | M51: 0 | N51: 0 | O51: 0 | P51: 0 | Q51: 0 | S51: 0 | T51: 0 | U51: 0 | V51: 0 | W51: 0 | X51: 0 | Y51: 0 | Z51: 0 | AA51: 0 | AB51: 0 | AC51: 0 | AD51: 0 | AE51: 0 | AF51: 0 | AG51: 0 | AH51: 0 | AI51: 0 | AJ51: 0 | AK51: 0 | AM51: 0 | AN51: 0 | AO51: 0 | AP51: 0 | AQ51: 0 | AR51: 0 | AS51: 0 | AU51: 0 | AV51: 0 | AX51: 0 | AY51: 0 | AZ51: 0 | BA51: =IF(AX51<=0,0, IF(UPPER(ATENDIMENTO!$C$51)="S", IF(MONTH(A51)<> 1, BA50, VLOOKUP(C51,Premios!$G$4:$I$104,2,FALSE)), 0)) -> 0 | BB51: =IF(AX51<=0,0, IF(UPPER(ATENDIMENTO!$C$52)="S", IF(MONTH(A51)<> 1, BB50, VLOOKUP(C51,Premios!$G$4:$I$104,3,FALSE)), 0)) -> 0 | BC51: =IF(AX51=0,0, MIN( 30, IF($G$18="M", ROUND(VLOOKUP(C51,TbSobrVAL!$A$4:$K$134,10,FALSE),0), ROUND(VLOOKUP(C51,TbSobrVAL!$M$4:$W$134,10,FALSE),0))) ) -> 0 | BD51: =IF(AX51=0,0, 1/PMT($G$7,BC51*12,-1,0,0) + (1/PMT($G$6,BC51,-1,0,1)) / (1+$G$7)^(12-MONTH('Anexo I - Parametros'!$K$9)) ) -> 0 | BE51: 0 | BG51: 0 | BH51: 0 | BI51: 0 | BJ51: 0 | BL51: 0 | BM51: 0 | BN51: 0 | BO51: 0 | BP51: 0 | BQ51: 0 | BS51: 0 | BT51: 0 | BU51: 0 | BV51: 0 | BW51: 0 | BX51: 0 | BY51: 0 | BZ51: 0 | CA51: 0 | CB51: 0 | CC51: 0
A52: =IF(A51>TbSobrVAL!$H$1,"-",EDATE(A51,1)) -> - | B52: 1 | C52: =IF(A52="-", A52, INT((A52-'Anexo I - Parametros'!$K$9)/365.25)) -> - | D52: 0 | F52: 0 | G52: 0 | H52: 0 | I52: 0 | J52: 0 | K52: 0 | L52: 0 | M52: 0 | N52: 0 | O52: 0 | P52: 0 | Q52: 0 | S52: 0 | T52: 0 | U52: 0 | V52: 0 | W52: 0 | X52: 0 | Y52: 0 | Z52: 0 | AA52: 0 | AB52: 0 | AC52: 0 | AD52: 0 | AE52: 0 | AF52: 0 | AG52: 0 | AH52: 0 | AI52: 0 | AJ52: 0 | AK52: 0 | AM52: 0 | AN52: 0 | AO52: 0 | AP52: 0 | AQ52: 0 | AR52: 0 | AS52: 0 | AU52: 0 | AV52: 0 | AX52: 0 | AY52: 0 | AZ52: 0 | BA52: =IF(AX52<=0,0, IF(UPPER(ATENDIMENTO!$C$51)="S", IF(MONTH(A52)<> 1, BA51, VLOOKUP(C52,Premios!$G$4:$I$104,2,FALSE)), 0)) -> 0 | BB52: =IF(AX52<=0,0, IF(UPPER(ATENDIMENTO!$C$52)="S", IF(MONTH(A52)<> 1, BB51, VLOOKUP(C52,Premios!$G$4:$I$104,3,FALSE)), 0)) -> 0 | BC52: =IF(AX52=0,0, MIN( 30, IF($G$18="M", ROUND(VLOOKUP(C52,TbSobrVAL!$A$4:$K$134,10,FALSE),0), ROUND(VLOOKUP(C52,TbSobrVAL!$M$4:$W$134,10,FALSE),0))) ) -> 0 | BD52: =IF(AX52=0,0, 1/PMT($G$7,BC52*12,-1,0,0) + (1/PMT($G$6,BC52,-1,0,1)) / (1+$G$7)^(12-MONTH('Anexo I - Parametros'!$K$9)) ) -> 0 | BE52: 0 | BG52: 0 | BH52: 0 | BI52: 0 | BJ52: 0 | BL52: 0 | BM52: 0 | BN52: 0 | BO52: 0 | BP52: 0 | BQ52: 0 | BS52: 0 | BT52: 0 | BU52: 0 | BV52: 0 | BW52: 0 | BX52: 0 | BY52: 0 | BZ52: 0 | CA52: 0 | CB52: 0 | CC52: 0
A53: =IF(A52>TbSobrVAL!$H$1,"-",EDATE(A52,1)) -> - | B53: 1 | C53: =IF(A53="-", A53, INT((A53-'Anexo I - Parametros'!$K$9)/365.25)) -> - | D53: 0 | F53: 0 | G53: 0 | H53: 0 | I53: 0 | J53: 0 | K53: 0 | L53: 0 | M53: 0 | N53: 0 | O53: 0 | P53: 0 | Q53: 0 | S53: 0 | T53: 0 | U53: 0 | V53: 0 | W53: 0 | X53: 0 | Y53: 0 | Z53: 0 | AA53: 0 | AB53: 0 | AC53: 0 | AD53: 0 | AE53: 0 | AF53: 0 | AG53: 0 | AH53: 0 | AI53: 0 | AJ53: 0 | AK53: 0 | AM53: 0 | AN53: 0 | AO53: 0 | AP53: 0 | AQ53: 0 | AR53: 0 | AS53: 0 | AU53: 0 | AV53: 0 | AX53: 0 | AY53: 0 | AZ53: 0 | BA53: =IF(AX53<=0,0, IF(UPPER(ATENDIMENTO!$C$51)="S", IF(MONTH(A53)<> 1, BA52, VLOOKUP(C53,Premios!$G$4:$I$104,2,FALSE)), 0)) -> 0 | BB53: =IF(AX53<=0,0, IF(UPPER(ATENDIMENTO!$C$52)="S", IF(MONTH(A53)<> 1, BB52, VLOOKUP(C53,Premios!$G$4:$I$104,3,FALSE)), 0)) -> 0 | BC53: =IF(AX53=0,0, MIN( 30, IF($G$18="M", ROUND(VLOOKUP(C53,TbSobrVAL!$A$4:$K$134,10,FALSE),0), ROUND(VLOOKUP(C53,TbSobrVAL!$M$4:$W$134,10,FALSE),0))) ) -> 0 | BD53: =IF(AX53=0,0, 1/PMT($G$7,BC53*12,-1,0,0) + (1/PMT($G$6,BC53,-1,0,1)) / (1+$G$7)^(12-MONTH('Anexo I - Parametros'!$K$9)) ) -> 0 | BE53: 0 | BG53: 0 | BH53: 0 | BI53: 0 | BJ53: 0 | BL53: 0 | BM53: 0 | BN53: 0 | BO53: 0 | BP53: 0 | BQ53: 0 | BS53: 0 | BT53: 0 | BU53: 0 | BV53: 0 | BW53: 0 | BX53: 0 | BY53: 0 | BZ53: 0 | CA53: 0 | CB53: 0 | CC53: 0
A54: =IF(A53>TbSobrVAL!$H$1,"-",EDATE(A53,1)) -> - | B54: 1 | C54: =IF(A54="-", A54, INT((A54-'Anexo I - Parametros'!$K$9)/365.25)) -> - | D54: 0 | F54: 0 | G54: 0 | H54: 0 | I54: 0 | J54: 0 | K54: 0 | L54: 0 | M54: 0 | N54: 0 | O54: 0 | P54: 0 | Q54: 0 | S54: 0 | T54: 0 | U54: 0 | V54: 0 | W54: 0 | X54: 0 | Y54: 0 | Z54: 0 | AA54: 0 | AB54: 0 | AC54: 0 | AD54: 0 | AE54: 0 | AF54: 0 | AG54: 0 | AH54: 0 | AI54: 0 | AJ54: 0 | AK54: 0 | AM54: 0 | AN54: 0 | AO54: 0 | AP54: 0 | AQ54: 0 | AR54: 0 | AS54: 0 | AU54: 0 | AV54: 0 | AX54: 0 | AY54: 0 | AZ54: 0 | BA54: =IF(AX54<=0,0, IF(UPPER(ATENDIMENTO!$C$51)="S", IF(MONTH(A54)<> 1, BA53, VLOOKUP(C54,Premios!$G$4:$I$104,2,FALSE)), 0)) -> 0 | BB54: =IF(AX54<=0,0, IF(UPPER(ATENDIMENTO!$C$52)="S", IF(MONTH(A54)<> 1, BB53, VLOOKUP(C54,Premios!$G$4:$I$104,3,FALSE)), 0)) -> 0 | BC54: =IF(AX54=0,0, MIN( 30, IF($G$18="M", ROUND(VLOOKUP(C54,TbSobrVAL!$A$4:$K$134,10,FALSE),0), ROUND(VLOOKUP(C54,TbSobrVAL!$M$4:$W$134,10,FALSE),0))) ) -> 0 | BD54: =IF(AX54=0,0, 1/PMT($G$7,BC54*12,-1,0,0) + (1/PMT($G$6,BC54,-1,0,1)) / (1+$G$7)^(12-MONTH('Anexo I - Parametros'!$K$9)) ) -> 0 | BE54: 0 | BG54: 0 | BH54: 0 | BI54: 0 | BJ54: 0 | BL54: 0 | BM54: 0 | BN54: 0 | BO54: 0 | BP54: 0 | BQ54: 0 | BS54: 0 | BT54: 0 | BU54: 0 | BV54: 0 | BW54: 0 | BX54: 0 | BY54: 0 | BZ54: 0 | CA54: 0 | CB54: 0 | CC54: 0
A55: =IF(A54>TbSobrVAL!$H$1,"-",EDATE(A54,1)) -> - | B55: 1 | C55: =IF(A55="-", A55, INT((A55-'Anexo I - Parametros'!$K$9)/365.25)) -> - | D55: 0 | F55: 0 | G55: 0 | H55: 0 | I55: 0 | J55: 0 | K55: 0 | L55: 0 | M55: 0 | N55: 0 | O55: 0 | P55: 0 | Q55: 0 | S55: 0 | T55: 0 | U55: 0 | V55: 0 | W55: 0 | X55: 0 | Y55: 0 | Z55: 0 | AA55: 0 | AB55: 0 | AC55: 0 | AD55: 0 | AE55: 0 | AF55: 0 | AG55: 0 | AH55: 0 | AI55: 0 | AJ55: 0 | AK55: 0 | AM55: 0 | AN55: 0 | AO55: 0 | AP55: 0 | AQ55: 0 | AR55: 0 | AS55: 0 | AU55: 0 | AV55: 0 | AX55: 0 | AY55: 0 | AZ55: 0 | BA55: =IF(AX55<=0,0, IF(UPPER(ATENDIMENTO!$C$51)="S", IF(MONTH(A55)<> 1, BA54, VLOOKUP(C55,Premios!$G$4:$I$104,2,FALSE)), 0)) -> 0 | BB55: =IF(AX55<=0,0, IF(UPPER(ATENDIMENTO!$C$52)="S", IF(MONTH(A55)<> 1, BB54, VLOOKUP(C55,Premios!$G$4:$I$104,3,FALSE)), 0)) -> 0 | BC55: =IF(AX55=0,0, MIN( 30, IF($G$18="M", ROUND(VLOOKUP(C55,TbSobrVAL!$A$4:$K$134,10,FALSE),0), ROUND(VLOOKUP(C55,TbSobrVAL!$M$4:$W$134,10,FALSE),0))) ) -> 0 | BD55: =IF(AX55=0,0, 1/PMT($G$7,BC55*12,-1,0,0) + (1/PMT($G$6,BC55,-1,0,1)) / (1+$G$7)^(12-MONTH('Anexo I - Parametros'!$K$9)) ) -> 0 | BE55: 0 | BG55: 0 | BH55: 0 | BI55: 0 | BJ55: 0 | BL55: 0 | BM55: 0 | BN55: 0 | BO55: 0 | BP55: 0 | BQ55: 0 | BS55: 0 | BT55: 0 | BU55: 0 | BV55: 0 | BW55: 0 | BX55: 0 | BY55: 0 | BZ55: 0 | CA55: 0 | CB55: 0 | CC55: 0
A56: =IF(A55>TbSobrVAL!$H$1,"-",EDATE(A55,1)) -> - | B56: 1 | C56: =IF(A56="-", A56, INT((A56-'Anexo I - Parametros'!$K$9)/365.25)) -> - | D56: 0 | F56: 0 | G56: 0 | H56: 0 | I56: 0 | J56: 0 | K56: 0 | L56: 0 | M56: 0 | N56: 0 | O56: 0 | P56: 0 | Q56: 0 | S56: 0 | T56: 0 | U56: 0 | V56: 0 | W56: 0 | X56: 0 | Y56: 0 | Z56: 0 | AA56: 0 | AB56: 0 | AC56: 0 | AD56: 0 | AE56: 0 | AF56: 0 | AG56: 0 | AH56: 0 | AI56: 0 | AJ56: 0 | AK56: 0 | AM56: 0 | AN56: 0 | AO56: 0 | AP56: 0 | AQ56: 0 | AR56: 0 | AS56: 0 | AU56: 0 | AV56: 0 | AX56: 0 | AY56: 0 | AZ56: 0 | BA56: =IF(AX56<=0,0, IF(UPPER(ATENDIMENTO!$C$51)="S", IF(MONTH(A56)<> 1, BA55, VLOOKUP(C56,Premios!$G$4:$I$104,2,FALSE)), 0)) -> 0 | BB56: =IF(AX56<=0,0, IF(UPPER(ATENDIMENTO!$C$52)="S", IF(MONTH(A56)<> 1, BB55, VLOOKUP(C56,Premios!$G$4:$I$104,3,FALSE)), 0)) -> 0 | BC56: =IF(AX56=0,0, MIN( 30, IF($G$18="M", ROUND(VLOOKUP(C56,TbSobrVAL!$A$4:$K$134,10,FALSE),0), ROUND(VLOOKUP(C56,TbSobrVAL!$M$4:$W$134,10,FALSE),0))) ) -> 0 | BD56: =IF(AX56=0,0, 1/PMT($G$7,BC56*12,-1,0,0) + (1/PMT($G$6,BC56,-1,0,1)) / (1+$G$7)^(12-MONTH('Anexo I - Parametros'!$K$9)) ) -> 0 | BE56: 0 | BG56: 0 | BH56: 0 | BI56: 0 | BJ56: 0 | BL56: 0 | BM56: 0 | BN56: 0 | BO56: 0 | BP56: 0 | BQ56: 0 | BS56: 0 | BT56: 0 | BU56: 0 | BV56: 0 | BW56: 0 | BX56: 0 | BY56: 0 | BZ56: 0 | CA56: 0 | CB56: 0 | CC56: 0
A57: =IF(A56>TbSobrVAL!$H$1,"-",EDATE(A56,1)) -> - | B57: 1 | C57: =IF(A57="-", A57, INT((A57-'Anexo I - Parametros'!$K$9)/365.25)) -> - | D57: 0 | F57: 0 | G57: 0 | H57: 0 | I57: 0 | J57: 0 | K57: 0 | L57: 0 | M57: 0 | N57: 0 | O57: 0 | P57: 0 | Q57: 0 | S57: 0 | T57: 0 | U57: 0 | V57: 0 | W57: 0 | X57: 0 | Y57: 0 | Z57: 0 | AA57: 0 | AB57: 0 | AC57: 0 | AD57: 0 | AE57: 0 | AF57: 0 | AG57: 0 | AH57: 0 | AI57: 0 | AJ57: 0 | AK57: 0 | AM57: 0 | AN57: 0 | AO57: 0 | AP57: 0 | AQ57: 0 | AR57: 0 | AS57: 0 | AU57: 0 | AV57: 0 | AX57: 0 | AY57: 0 | AZ57: 0 | BA57: =IF(AX57<=0,0, IF(UPPER(ATENDIMENTO!$C$51)="S", IF(MONTH(A57)<> 1, BA56, VLOOKUP(C57,Premios!$G$4:$I$104,2,FALSE)), 0)) -> 0 | BB57: =IF(AX57<=0,0, IF(UPPER(ATENDIMENTO!$C$52)="S", IF(MONTH(A57)<> 1, BB56, VLOOKUP(C57,Premios!$G$4:$I$104,3,FALSE)), 0)) -> 0 | BC57: =IF(AX57=0,0, MIN( 30, IF($G$18="M", ROUND(VLOOKUP(C57,TbSobrVAL!$A$4:$K$134,10,FALSE),0), ROUND(VLOOKUP(C57,TbSobrVAL!$M$4:$W$134,10,FALSE),0))) ) -> 0 | BD57: =IF(AX57=0,0, 1/PMT($G$7,BC57*12,-1,0,0) + (1/PMT($G$6,BC57,-1,0,1)) / (1+$G$7)^(12-MONTH('Anexo I - Parametros'!$K$9)) ) -> 0 | BE57: 0 | BG57: 0 | BH57: 0 | BI57: 0 | BJ57: 0 | BL57: 0 | BM57: 0 | BN57: 0 | BO57: 0 | BP57: 0 | BQ57: 0 | BS57: 0 | BT57: 0 | BU57: 0 | BV57: 0 | BW57: 0 | BX57: 0 | BY57: 0 | BZ57: 0 | CA57: 0 | CB57: 0 | CC57: 0
A58: =IF(A57>TbSobrVAL!$H$1,"-",EDATE(A57,1)) -> - | B58: 1 | C58: =IF(A58="-", A58, INT((A58-'Anexo I - Parametros'!$K$9)/365.25)) -> - | D58: 0 | F58: 0 | G58: 0 | H58: 0 | I58: 0 | J58: 0 | K58: 0 | L58: 0 | M58: 0 | N58: 0 | O58: 0 | P58: 0 | Q58: 0 | S58: 0 | T58: 0 | U58: 0 | V58: 0 | W58: 0 | X58: 0 | Y58: 0 | Z58: 0 | AA58: 0 | AB58: 0 | AC58: 0 | AD58: 0 | AE58: 0 | AF58: 0 | AG58: 0 | AH58: 0 | AI58: 0 | AJ58: 0 | AK58: 0 | AM58: 0 | AN58: 0 | AO58: 0 | AP58: 0 | AQ58: 0 | AR58: 0 | AS58: 0 | AU58: 0 | AV58: 0 | AX58: 0 | AY58: 0 | AZ58: 0 | BA58: =IF(AX58<=0,0, IF(UPPER(ATENDIMENTO!$C$51)="S", IF(MONTH(A58)<> 1, BA57, VLOOKUP(C58,Premios!$G$4:$I$104,2,FALSE)), 0)) -> 0 | BB58: =IF(AX58<=0,0, IF(UPPER(ATENDIMENTO!$C$52)="S", IF(MONTH(A58)<> 1, BB57, VLOOKUP(C58,Premios!$G$4:$I$104,3,FALSE)), 0)) -> 0 | BC58: =IF(AX58=0,0, MIN( 30, IF($G$18="M", ROUND(VLOOKUP(C58,TbSobrVAL!$A$4:$K$134,10,FALSE),0), ROUND(VLOOKUP(C58,TbSobrVAL!$M$4:$W$134,10,FALSE),0))) ) -> 0 | BD58: =IF(AX58=0,0, 1/PMT($G$7,BC58*12,-1,0,0) + (1/PMT($G$6,BC58,-1,0,1)) / (1+$G$7)^(12-MONTH('Anexo I - Parametros'!$K$9)) ) -> 0 | BE58: 0 | BG58: 0 | BH58: 0 | BI58: 0 | BJ58: 0 | BL58: 0 | BM58: 0 | BN58: 0 | BO58: 0 | BP58: 0 | BQ58: 0 | BS58: 0 | BT58: 0 | BU58: 0 | BV58: 0 | BW58: 0 | BX58: 0 | BY58: 0 | BZ58: 0 | CA58: 0 | CB58: 0 | CC58: 0
A59: =IF(A58>TbSobrVAL!$H$1,"-",EDATE(A58,1)) -> - | B59: 1 | C59: =IF(A59="-", A59, INT((A59-'Anexo I - Parametros'!$K$9)/365.25)) -> - | D59: 0 | F59: 0 | G59: 0 | H59: 0 | I59: 0 | J59: 0 | K59: 0 | L59: 0 | M59: 0 | N59: 0 | O59: 0 | P59: 0 | Q59: 0 | S59: 0 | T59: 0 | U59: 0 | V59: 0 | W59: 0 | X59: 0 | Y59: 0 | Z59: 0 | AA59: 0 | AB59: 0 | AC59: 0 | AD59: 0 | AE59: 0 | AF59: 0 | AG59: 0 | AH59: 0 | AI59: 0 | AJ59: 0 | AK59: 0 | AM59: 0 | AN59: 0 | AO59: 0 | AP59: 0 | AQ59: 0 | AR59: 0 | AS59: 0 | AU59: 0 | AV59: 0 | AX59: 0 | AY59: 0 | AZ59: 0 | BA59: =IF(AX59<=0,0, IF(UPPER(ATENDIMENTO!$C$51)="S", IF(MONTH(A59)<> 1, BA58, VLOOKUP(C59,Premios!$G$4:$I$104,2,FALSE)), 0)) -> 0 | BB59: =IF(AX59<=0,0, IF(UPPER(ATENDIMENTO!$C$52)="S", IF(MONTH(A59)<> 1, BB58, VLOOKUP(C59,Premios!$G$4:$I$104,3,FALSE)), 0)) -> 0 | BC59: =IF(AX59=0,0, MIN( 30, IF($G$18="M", ROUND(VLOOKUP(C59,TbSobrVAL!$A$4:$K$134,10,FALSE),0), ROUND(VLOOKUP(C59,TbSobrVAL!$M$4:$W$134,10,FALSE),0))) ) -> 0 | BD59: =IF(AX59=0,0, 1/PMT($G$7,BC59*12,-1,0,0) + (1/PMT($G$6,BC59,-1,0,1)) / (1+$G$7)^(12-MONTH('Anexo I - Parametros'!$K$9)) ) -> 0 | BE59: 0 | BG59: 0 | BH59: 0 | BI59: 0 | BJ59: 0 | BL59: 0 | BM59: 0 | BN59: 0 | BO59: 0 | BP59: 0 | BQ59: 0 | BS59: 0 | BT59: 0 | BU59: 0 | BV59: 0 | BW59: 0 | BX59: 0 | BY59: 0 | BZ59: 0 | CA59: 0 | CB59: 0 | CC59: 0
A60: =IF(A59>TbSobrVAL!$H$1,"-",EDATE(A59,1)) -> - | B60: 1 | C60: =IF(A60="-", A60, INT((A60-'Anexo I - Parametros'!$K$9)/365.25)) -> - | D60: 0 | F60: 0 | G60: 0 | H60: 0 | I60: 0 | J60: 0 | K60: 0 | L60: 0 | M60: 0 | N60: 0 | O60: 0 | P60: 0 | Q60: 0 | S60: 0 | T60: 0 | U60: 0 | V60: 0 | W60: 0 | X60: 0 | Y60: 0 | Z60: 0 | AA60: 0 | AB60: 0 | AC60: 0 | AD60: 0 | AE60: 0 | AF60: 0 | AG60: 0 | AH60: 0 | AI60: 0 | AJ60: 0 | AK60: 0 | AM60: 0 | AN60: 0 | AO60: 0 | AP60: 0 | AQ60: 0 | AR60: 0 | AS60: 0 | AU60: 0 | AV60: 0 | AX60: 0 | AY60: 0 | AZ60: 0 | BA60: =IF(AX60<=0,0, IF(UPPER(ATENDIMENTO!$C$51)="S", IF(MONTH(A60)<> 1, BA59, VLOOKUP(C60,Premios!$G$4:$I$104,2,FALSE)), 0)) -> 0 | BB60: =IF(AX60<=0,0, IF(UPPER(ATENDIMENTO!$C$52)="S", IF(MONTH(A60)<> 1, BB59, VLOOKUP(C60,Premios!$G$4:$I$104,3,FALSE)), 0)) -> 0 | BC60: =IF(AX60=0,0, MIN( 30, IF($G$18="M", ROUND(VLOOKUP(C60,TbSobrVAL!$A$4:$K$134,10,FALSE),0), ROUND(VLOOKUP(C60,TbSobrVAL!$M$4:$W$134,10,FALSE),0))) ) -> 0 | BD60: =IF(AX60=0,0, 1/PMT($G$7,BC60*12,-1,0,0) + (1/PMT($G$6,BC60,-1,0,1)) / (1+$G$7)^(12-MONTH('Anexo I - Parametros'!$K$9)) ) -> 0 | BE60: 0 | BG60: 0 | BH60: 0 | BI60: 0 | BJ60: 0 | BL60: 0 | BM60: 0 | BN60: 0 | BO60: 0 | BP60: 0 | BQ60: 0 | BS60: 0 | BT60: 0 | BU60: 0 | BV60: 0 | BW60: 0 | BX60: 0 | BY60: 0 | BZ60: 0 | CA60: 0 | CB60: 0 | CC60: 0
A61: =IF(A60>TbSobrVAL!$H$1,"-",EDATE(A60,1)) -> - | B61: 1 | C61: =IF(A61="-", A61, INT((A61-'Anexo I - Parametros'!$K$9)/365.25)) -> - | D61: 0 | F61: 0 | G61: 0 | H61: 0 | I61: 0 | J61: 0 | K61: 0 | L61: 0 | M61: 0 | N61: 0 | O61: 0 | P61: 0 | Q61: 0 | S61: 0 | T61: 0 | U61: 0 | V61: 0 | W61: 0 | X61: 0 | Y61: 0 | Z61: 0 | AA61: 0 | AB61: 0 | AC61: 0 | AD61: 0 | AE61: 0 | AF61: 0 | AG61: 0 | AH61: 0 | AI61: 0 | AJ61: 0 | AK61: 0 | AM61: 0 | AN61: 0 | AO61: 0 | AP61: 0 | AQ61: 0 | AR61: 0 | AS61: 0 | AU61: 0 | AV61: 0 | AX61: 0 | AY61: 0 | AZ61: 0 | BA61: =IF(AX61<=0,0, IF(UPPER(ATENDIMENTO!$C$51)="S", IF(MONTH(A61)<> 1, BA60, VLOOKUP(C61,Premios!$G$4:$I$104,2,FALSE)), 0)) -> 0 | BB61: =IF(AX61<=0,0, IF(UPPER(ATENDIMENTO!$C$52)="S", IF(MONTH(A61)<> 1, BB60, VLOOKUP(C61,Premios!$G$4:$I$104,3,FALSE)), 0)) -> 0 | BC61: =IF(AX61=0,0, MIN( 30, IF($G$18="M", ROUND(VLOOKUP(C61,TbSobrVAL!$A$4:$K$134,10,FALSE),0), ROUND(VLOOKUP(C61,TbSobrVAL!$M$4:$W$134,10,FALSE),0))) ) -> 0 | BD61: =IF(AX61=0,0, 1/PMT($G$7,BC61*12,-1,0,0) + (1/PMT($G$6,BC61,-1,0,1)) / (1+$G$7)^(12-MONTH('Anexo I - Parametros'!$K$9)) ) -> 0 | BE61: 0 | BG61: 0 | BH61: 0 | BI61: 0 | BJ61: 0 | BL61: 0 | BM61: 0 | BN61: 0 | BO61: 0 | BP61: 0 | BQ61: 0 | BS61: 0 | BT61: 0 | BU61: 0 | BV61: 0 | BW61: 0 | BX61: 0 | BY61: 0 | BZ61: 0 | CA61: 0 | CB61: 0 | CC61: 0
A62: =IF(A61>TbSobrVAL!$H$1,"-",EDATE(A61,1)) -> - | B62: 1 | C62: =IF(A62="-", A62, INT((A62-'Anexo I - Parametros'!$K$9)/365.25)) -> - | D62: 0 | F62: 0 | G62: 0 | H62: 0 | I62: 0 | J62: 0 | K62: 0 | L62: 0 | M62: 0 | N62: 0 | O62: 0 | P62: 0 | Q62: 0 | S62: 0 | T62: 0 | U62: 0 | V62: 0 | W62: 0 | X62: 0 | Y62: 0 | Z62: 0 | AA62: 0 | AB62: 0 | AC62: 0 | AD62: 0 | AE62: 0 | AF62: 0 | AG62: 0 | AH62: 0 | AI62: 0 | AJ62: 0 | AK62: 0 | AM62: 0 | AN62: 0 | AO62: 0 | AP62: 0 | AQ62: 0 | AR62: 0 | AS62: 0 | AU62: 0 | AV62: 0 | AX62: 0 | AY62: 0 | AZ62: 0 | BA62: =IF(AX62<=0,0, IF(UPPER(ATENDIMENTO!$C$51)="S", IF(MONTH(A62)<> 1, BA61, VLOOKUP(C62,Premios!$G$4:$I$104,2,FALSE)), 0)) -> 0 | BB62: =IF(AX62<=0,0, IF(UPPER(ATENDIMENTO!$C$52)="S", IF(MONTH(A62)<> 1, BB61, VLOOKUP(C62,Premios!$G$4:$I$104,3,FALSE)), 0)) -> 0 | BC62: =IF(AX62=0,0, MIN( 30, IF($G$18="M", ROUND(VLOOKUP(C62,TbSobrVAL!$A$4:$K$134,10,FALSE),0), ROUND(VLOOKUP(C62,TbSobrVAL!$M$4:$W$134,10,FALSE),0))) ) -> 0 | BD62: =IF(AX62=0,0, 1/PMT($G$7,BC62*12,-1,0,0) + (1/PMT($G$6,BC62,-1,0,1)) / (1+$G$7)^(12-MONTH('Anexo I - Parametros'!$K$9)) ) -> 0 | BE62: 0 | BG62: 0 | BH62: 0 | BI62: 0 | BJ62: 0 | BL62: 0 | BM62: 0 | BN62: 0 | BO62: 0 | BP62: 0 | BQ62: 0 | BS62: 0 | BT62: 0 | BU62: 0 | BV62: 0 | BW62: 0 | BX62: 0 | BY62: 0 | BZ62: 0 | CA62: 0 | CB62: 0 | CC62: 0
A63: =IF(A62>TbSobrVAL!$H$1,"-",EDATE(A62,1)) -> - | B63: 1 | C63: =IF(A63="-", A63, INT((A63-'Anexo I - Parametros'!$K$9)/365.25)) -> - | D63: 0 | F63: 0 | G63: 0 | H63: 0 | I63: 0 | J63: 0 | K63: 0 | L63: 0 | M63: 0 | N63: 0 | O63: 0 | P63: 0 | Q63: 0 | S63: 0 | T63: 0 | U63: 0 | V63: 0 | W63: 0 | X63: 0 | Y63: 0 | Z63: 0 | AA63: 0 | AB63: 0 | AC63: 0 | AD63: 0 | AE63: 0 | AF63: 0 | AG63: 0 | AH63: 0 | AI63: 0 | AJ63: 0 | AK63: 0 | AM63: 0 | AN63: 0 | AO63: 0 | AP63: 0 | AQ63: 0 | AR63: 0 | AS63: 0 | AU63: 0 | AV63: 0 | AX63: 0 | AY63: 0 | AZ63: 0 | BA63: =IF(AX63<=0,0, IF(UPPER(ATENDIMENTO!$C$51)="S", IF(MONTH(A63)<> 1, BA62, VLOOKUP(C63,Premios!$G$4:$I$104,2,FALSE)), 0)) -> 0 | BB63: =IF(AX63<=0,0, IF(UPPER(ATENDIMENTO!$C$52)="S", IF(MONTH(A63)<> 1, BB62, VLOOKUP(C63,Premios!$G$4:$I$104,3,FALSE)), 0)) -> 0 | BC63: =IF(AX63=0,0, MIN( 30, IF($G$18="M", ROUND(VLOOKUP(C63,TbSobrVAL!$A$4:$K$134,10,FALSE),0), ROUND(VLOOKUP(C63,TbSobrVAL!$M$4:$W$134,10,FALSE),0))) ) -> 0 | BD63: =IF(AX63=0,0, 1/PMT($G$7,BC63*12,-1,0,0) + (1/PMT($G$6,BC63,-1,0,1)) / (1+$G$7)^(12-MONTH('Anexo I - Parametros'!$K$9)) ) -> 0 | BE63: 0 | BG63: 0 | BH63: 0 | BI63: 0 | BJ63: 0 | BL63: 0 | BM63: 0 | BN63: 0 | BO63: 0 | BP63: 0 | BQ63: 0 | BS63: 0 | BT63: 0 | BU63: 0 | BV63: 0 | BW63: 0 | BX63: 0 | BY63: 0 | BZ63: 0 | CA63: 0 | CB63: 0 | CC63: 0
A64: =IF(A63>TbSobrVAL!$H$1,"-",EDATE(A63,1)) -> - | B64: 1 | C64: =IF(A64="-", A64, INT((A64-'Anexo I - Parametros'!$K$9)/365.25)) -> - | D64: 0 | F64: 0 | G64: 0 | H64: 0 | I64: 0 | J64: 0 | K64: 0 | L64: 0 | M64: 0 | N64: 0 | O64: 0 | P64: 0 | Q64: 0 | S64: 0 | T64: 0 | U64: 0 | V64: 0 | W64: 0 | X64: 0 | Y64: 0 | Z64: 0 | AA64: 0 | AB64: 0 | AC64: 0 | AD64: 0 | AE64: 0 | AF64: 0 | AG64: 0 | AH64: 0 | AI64: 0 | AJ64: 0 | AK64: 0 | AM64: 0 | AN64: 0 | AO64: 0 | AP64: 0 | AQ64: 0 | AR64: 0 | AS64: 0 | AU64: 0 | AV64: 0 | AX64: 0 | AY64: 0 | AZ64: 0 | BA64: =IF(AX64<=0,0, IF(UPPER(ATENDIMENTO!$C$51)="S", IF(MONTH(A64)<> 1, BA63, VLOOKUP(C64,Premios!$G$4:$I$104,2,FALSE)), 0)) -> 0 | BB64: =IF(AX64<=0,0, IF(UPPER(ATENDIMENTO!$C$52)="S", IF(MONTH(A64)<> 1, BB63, VLOOKUP(C64,Premios!$G$4:$I$104,3,FALSE)), 0)) -> 0 | BC64: =IF(AX64=0,0, MIN( 30, IF($G$18="M", ROUND(VLOOKUP(C64,TbSobrVAL!$A$4:$K$134,10,FALSE),0), ROUND(VLOOKUP(C64,TbSobrVAL!$M$4:$W$134,10,FALSE),0))) ) -> 0 | BD64: =IF(AX64=0,0, 1/PMT($G$7,BC64*12,-1,0,0) + (1/PMT($G$6,BC64,-1,0,1)) / (1+$G$7)^(12-MONTH('Anexo I - Parametros'!$K$9)) ) -> 0 | BE64: 0 | BG64: 0 | BH64: 0 | BI64: 0 | BJ64: 0 | BL64: 0 | BM64: 0 | BN64: 0 | BO64: 0 | BP64: 0 | BQ64: 0 | BS64: 0 | BT64: 0 | BU64: 0 | BV64: 0 | BW64: 0 | BX64: 0 | BY64: 0 | BZ64: 0 | CA64: 0 | CB64: 0 | CC64: 0
A65: =IF(A64>TbSobrVAL!$H$1,"-",EDATE(A64,1)) -> - | B65: 1 | C65: =IF(A65="-", A65, INT((A65-'Anexo I - Parametros'!$K$9)/365.25)) -> - | D65: 0 | F65: 0 | G65: 0 | H65: 0 | I65: 0 | J65: 0 | K65: 0 | L65: 0 | M65: 0 | N65: 0 | O65: 0 | P65: 0 | Q65: 0 | S65: 0 | T65: 0 | U65: 0 | V65: 0 | W65: 0 | X65: 0 | Y65: 0 | Z65: 0 | AA65: 0 | AB65: 0 | AC65: 0 | AD65: 0 | AE65: 0 | AF65: 0 | AG65: 0 | AH65: 0 | AI65: 0 | AJ65: 0 | AK65: 0 | AM65: 0 | AN65: 0 | AO65: 0 | AP65: 0 | AQ65: 0 | AR65: 0 | AS65: 0 | AU65: 0 | AV65: 0 | AX65: 0 | AY65: 0 | AZ65: 0 | BA65: =IF(AX65<=0,0, IF(UPPER(ATENDIMENTO!$C$51)="S", IF(MONTH(A65)<> 1, BA64, VLOOKUP(C65,Premios!$G$4:$I$104,2,FALSE)), 0)) -> 0 | BB65: =IF(AX65<=0,0, IF(UPPER(ATENDIMENTO!$C$52)="S", IF(MONTH(A65)<> 1, BB64, VLOOKUP(C65,Premios!$G$4:$I$104,3,FALSE)), 0)) -> 0 | BC65: =IF(AX65=0,0, MIN( 30, IF($G$18="M", ROUND(VLOOKUP(C65,TbSobrVAL!$A$4:$K$134,10,FALSE),0), ROUND(VLOOKUP(C65,TbSobrVAL!$M$4:$W$134,10,FALSE),0))) ) -> 0 | BD65: =IF(AX65=0,0, 1/PMT($G$7,BC65*12,-1,0,0) + (1/PMT($G$6,BC65,-1,0,1)) / (1+$G$7)^(12-MONTH('Anexo I - Parametros'!$K$9)) ) -> 0 | BE65: 0 | BG65: 0 | BH65: 0 | BI65: 0 | BJ65: 0 | BL65: 0 | BM65: 0 | BN65: 0 | BO65: 0 | BP65: 0 | BQ65: 0 | BS65: 0 | BT65: 0 | BU65: 0 | BV65: 0 | BW65: 0 | BX65: 0 | BY65: 0 | BZ65: 0 | CA65: 0 | CB65: 0 | CC65: 0
A66: =IF(A65>TbSobrVAL!$H$1,"-",EDATE(A65,1)) -> - | B66: 1 | C66: =IF(A66="-", A66, INT((A66-'Anexo I - Parametros'!$K$9)/365.25)) -> - | D66: 0 | F66: 0 | G66: 0 | H66: 0 | I66: 0 | J66: 0 | K66: 0 | L66: 0 | M66: 0 | N66: 0 | O66: 0 | P66: 0 | Q66: 0 | S66: 0 | T66: 0 | U66: 0 | V66: 0 | W66: 0 | X66: 0 | Y66: 0 | Z66: 0 | AA66: 0 | AB66: 0 | AC66: 0 | AD66: 0 | AE66: 0 | AF66: 0 | AG66: 0 | AH66: 0 | AI66: 0 | AJ66: 0 | AK66: 0 | AM66: 0 | AN66: 0 | AO66: 0 | AP66: 0 | AQ66: 0 | AR66: 0 | AS66: 0 | AU66: 0 | AV66: 0 | AX66: 0 | AY66: 0 | AZ66: 0 | BA66: =IF(AX66<=0,0, IF(UPPER(ATENDIMENTO!$C$51)="S", IF(MONTH(A66)<> 1, BA65, VLOOKUP(C66,Premios!$G$4:$I$104,2,FALSE)), 0)) -> 0 | BB66: =IF(AX66<=0,0, IF(UPPER(ATENDIMENTO!$C$52)="S", IF(MONTH(A66)<> 1, BB65, VLOOKUP(C66,Premios!$G$4:$I$104,3,FALSE)), 0)) -> 0 | BC66: =IF(AX66=0,0, MIN( 30, IF($G$18="M", ROUND(VLOOKUP(C66,TbSobrVAL!$A$4:$K$134,10,FALSE),0), ROUND(VLOOKUP(C66,TbSobrVAL!$M$4:$W$134,10,FALSE),0))) ) -> 0 | BD66: =IF(AX66=0,0, 1/PMT($G$7,BC66*12,-1,0,0) + (1/PMT($G$6,BC66,-1,0,1)) / (1+$G$7)^(12-MONTH('Anexo I - Parametros'!$K$9)) ) -> 0 | BE66: 0 | BG66: 0 | BH66: 0 | BI66: 0 | BJ66: 0 | BL66: 0 | BM66: 0 | BN66: 0 | BO66: 0 | BP66: 0 | BQ66: 0 | BS66: 0 | BT66: 0 | BU66: 0 | BV66: 0 | BW66: 0 | BX66: 0 | BY66: 0 | BZ66: 0 | CA66: 0 | CB66: 0 | CC66: 0
A67: =IF(A66>TbSobrVAL!$H$1,"-",EDATE(A66,1)) -> - | B67: 1 | C67: =IF(A67="-", A67, INT((A67-'Anexo I - Parametros'!$K$9)/365.25)) -> - | D67: 0 | F67: 0 | G67: 0 | H67: 0 | I67: 0 | J67: 0 | K67: 0 | L67: 0 | M67: 0 | N67: 0 | O67: 0 | P67: 0 | Q67: 0 | S67: 0 | T67: 0 | U67: 0 | V67: 0 | W67: 0 | X67: 0 | Y67: 0 | Z67: 0 | AA67: 0 | AB67: 0 | AC67: 0 | AD67: 0 | AE67: 0 | AF67: 0 | AG67: 0 | AH67: 0 | AI67: 0 | AJ67: 0 | AK67: 0 | AM67: 0 | AN67: 0 | AO67: 0 | AP67: 0 | AQ67: 0 | AR67: 0 | AS67: 0 | AU67: 0 | AV67: 0 | AX67: 0 | AY67: 0 | AZ67: 0 | BA67: =IF(AX67<=0,0, IF(UPPER(ATENDIMENTO!$C$51)="S", IF(MONTH(A67)<> 1, BA66, VLOOKUP(C67,Premios!$G$4:$I$104,2,FALSE)), 0)) -> 0 | BB67: =IF(AX67<=0,0, IF(UPPER(ATENDIMENTO!$C$52)="S", IF(MONTH(A67)<> 1, BB66, VLOOKUP(C67,Premios!$G$4:$I$104,3,FALSE)), 0)) -> 0 | BC67: =IF(AX67=0,0, MIN( 30, IF($G$18="M", ROUND(VLOOKUP(C67,TbSobrVAL!$A$4:$K$134,10,FALSE),0), ROUND(VLOOKUP(C67,TbSobrVAL!$M$4:$W$134,10,FALSE),0))) ) -> 0 | BD67: =IF(AX67=0,0, 1/PMT($G$7,BC67*12,-1,0,0) + (1/PMT($G$6,BC67,-1,0,1)) / (1+$G$7)^(12-MONTH('Anexo I - Parametros'!$K$9)) ) -> 0 | BE67: 0 | BG67: 0 | BH67: 0 | BI67: 0 | BJ67: 0 | BL67: 0 | BM67: 0 | BN67: 0 | BO67: 0 | BP67: 0 | BQ67: 0 | BS67: 0 | BT67: 0 | BU67: 0 | BV67: 0 | BW67: 0 | BX67: 0 | BY67: 0 | BZ67: 0 | CA67: 0 | CB67: 0 | CC67: 0
A68: =IF(A67>TbSobrVAL!$H$1,"-",EDATE(A67,1)) -> - | B68: 1 | C68: =IF(A68="-", A68, INT((A68-'Anexo I - Parametros'!$K$9)/365.25)) -> - | D68: 0 | F68: 0 | G68: 0 | H68: 0 | I68: 0 | J68: 0 | K68: 0 | L68: 0 | M68: 0 | N68: 0 | O68: 0 | P68: 0 | Q68: 0 | S68: 0 | T68: 0 | U68: 0 | V68: 0 | W68: 0 | X68: 0 | Y68: 0 | Z68: 0 | AA68: 0 | AB68: 0 | AC68: 0 | AD68: 0 | AE68: 0 | AF68: 0 | AG68: 0 | AH68: 0 | AI68: 0 | AJ68: 0 | AK68: 0 | AM68: 0 | AN68: 0 | AO68: 0 | AP68: 0 | AQ68: 0 | AR68: 0 | AS68: 0 | AU68: 0 | AV68: 0 | AX68: 0 | AY68: 0 | AZ68: 0 | BA68: =IF(AX68<=0,0, IF(UPPER(ATENDIMENTO!$C$51)="S", IF(MONTH(A68)<> 1, BA67, VLOOKUP(C68,Premios!$G$4:$I$104,2,FALSE)), 0)) -> 0 | BB68: =IF(AX68<=0,0, IF(UPPER(ATENDIMENTO!$C$52)="S", IF(MONTH(A68)<> 1, BB67, VLOOKUP(C68,Premios!$G$4:$I$104,3,FALSE)), 0)) -> 0 | BC68: =IF(AX68=0,0, MIN( 30, IF($G$18="M", ROUND(VLOOKUP(C68,TbSobrVAL!$A$4:$K$134,10,FALSE),0), ROUND(VLOOKUP(C68,TbSobrVAL!$M$4:$W$134,10,FALSE),0))) ) -> 0 | BD68: =IF(AX68=0,0, 1/PMT($G$7,BC68*12,-1,0,0) + (1/PMT($G$6,BC68,-1,0,1)) / (1+$G$7)^(12-MONTH('Anexo I - Parametros'!$K$9)) ) -> 0 | BE68: 0 | BG68: 0 | BH68: 0 | BI68: 0 | BJ68: 0 | BL68: 0 | BM68: 0 | BN68: 0 | BO68: 0 | BP68: 0 | BQ68: 0 | BS68: 0 | BT68: 0 | BU68: 0 | BV68: 0 | BW68: 0 | BX68: 0 | BY68: 0 | BZ68: 0 | CA68: 0 | CB68: 0 | CC68: 0
A69: =IF(A68>TbSobrVAL!$H$1,"-",EDATE(A68,1)) -> - | B69: 1 | C69: =IF(A69="-", A69, INT((A69-'Anexo I - Parametros'!$K$9)/365.25)) -> - | D69: 0 | F69: 0 | G69: 0 | H69: 0 | I69: 0 | J69: 0 | K69: 0 | L69: 0 | M69: 0 | N69: 0 | O69: 0 | P69: 0 | Q69: 0 | S69: 0 | T69: 0 | U69: 0 | V69: 0 | W69: 0 | X69: 0 | Y69: 0 | Z69: 0 | AA69: 0 | AB69: 0 | AC69: 0 | AD69: 0 | AE69: 0 | AF69: 0 | AG69: 0 | AH69: 0 | AI69: 0 | AJ69: 0 | AK69: 0 | AM69: 0 | AN69: 0 | AO69: 0 | AP69: 0 | AQ69: 0 | AR69: 0 | AS69: 0 | AU69: 0 | AV69: 0 | AX69: 0 | AY69: 0 | AZ69: 0 | BA69: =IF(AX69<=0,0, IF(UPPER(ATENDIMENTO!$C$51)="S", IF(MONTH(A69)<> 1, BA68, VLOOKUP(C69,Premios!$G$4:$I$104,2,FALSE)), 0)) -> 0 | BB69: =IF(AX69<=0,0, IF(UPPER(ATENDIMENTO!$C$52)="S", IF(MONTH(A69)<> 1, BB68, VLOOKUP(C69,Premios!$G$4:$I$104,3,FALSE)), 0)) -> 0 | BC69: =IF(AX69=0,0, MIN( 30, IF($G$18="M", ROUND(VLOOKUP(C69,TbSobrVAL!$A$4:$K$134,10,FALSE),0), ROUND(VLOOKUP(C69,TbSobrVAL!$M$4:$W$134,10,FALSE),0))) ) -> 0 | BD69: =IF(AX69=0,0, 1/PMT($G$7,BC69*12,-1,0,0) + (1/PMT($G$6,BC69,-1,0,1)) / (1+$G$7)^(12-MONTH('Anexo I - Parametros'!$K$9)) ) -> 0 | BE69: 0 | BG69: 0 | BH69: 0 | BI69: 0 | BJ69: 0 | BL69: 0 | BM69: 0 | BN69: 0 | BO69: 0 | BP69: 0 | BQ69: 0 | BS69: 0 | BT69: 0 | BU69: 0 | BV69: 0 | BW69: 0 | BX69: 0 | BY69: 0 | BZ69: 0 | CA69: 0 | CB69: 0 | CC69: 0
A70: =IF(A69>TbSobrVAL!$H$1,"-",EDATE(A69,1)) -> - | B70: 1 | C70: =IF(A70="-", A70, INT((A70-'Anexo I - Parametros'!$K$9)/365.25)) -> - | D70: 0 | F70: 0 | G70: 0 | H70: 0 | I70: 0 | J70: 0 | K70: 0 | L70: 0 | M70: 0 | N70: 0 | O70: 0 | P70: 0 | Q70: 0 | S70: 0 | T70: 0 | U70: 0 | V70: 0 | W70: 0 | X70: 0 | Y70: 0 | Z70: 0 | AA70: 0 | AB70: 0 | AC70: 0 | AD70: 0 | AE70: 0 | AF70: 0 | AG70: 0 | AH70: 0 | AI70: 0 | AJ70: 0 | AK70: 0 | AM70: 0 | AN70: 0 | AO70: 0 | AP70: 0 | AQ70: 0 | AR70: 0 | AS70: 0 | AU70: 0 | AV70: 0 | AX70: 0 | AY70: 0 | AZ70: 0 | BA70: =IF(AX70<=0,0, IF(UPPER(ATENDIMENTO!$C$51)="S", IF(MONTH(A70)<> 1, BA69, VLOOKUP(C70,Premios!$G$4:$I$104,2,FALSE)), 0)) -> 0 | BB70: =IF(AX70<=0,0, IF(UPPER(ATENDIMENTO!$C$52)="S", IF(MONTH(A70)<> 1, BB69, VLOOKUP(C70,Premios!$G$4:$I$104,3,FALSE)), 0)) -> 0 | BC70: =IF(AX70=0,0, MIN( 30, IF($G$18="M", ROUND(VLOOKUP(C70,TbSobrVAL!$A$4:$K$134,10,FALSE),0), ROUND(VLOOKUP(C70,TbSobrVAL!$M$4:$W$134,10,FALSE),0))) ) -> 0 | BD70: =IF(AX70=0,0, 1/PMT($G$7,BC70*12,-1,0,0) + (1/PMT($G$6,BC70,-1,0,1)) / (1+$G$7)^(12-MONTH('Anexo I - Parametros'!$K$9)) ) -> 0 | BE70: 0 | BG70: 0 | BH70: 0 | BI70: 0 | BJ70: 0 | BL70: 0 | BM70: 0 | BN70: 0 | BO70: 0 | BP70: 0 | BQ70: 0 | BS70: 0 | BT70: 0 | BU70: 0 | BV70: 0 | BW70: 0 | BX70: 0 | BY70: 0 | BZ70: 0 | CA70: 0 | CB70: 0 | CC70: 0
A71: =IF(A70>TbSobrVAL!$H$1,"-",EDATE(A70,1)) -> - | B71: 1 | C71: =IF(A71="-", A71, INT((A71-'Anexo I - Parametros'!$K$9)/365.25)) -> - | D71: 0 | F71: 0 | G71: 0 | H71: 0 | I71: 0 | J71: 0 | K71: 0 | L71: 0 | M71: 0 | N71: 0 | O71: 0 | P71: 0 | Q71: 0 | S71: 0 | T71: 0 | U71: 0 | V71: 0 | W71: 0 | X71: 0 | Y71: 0 | Z71: 0 | AA71: 0 | AB71: 0 | AC71: 0 | AD71: 0 | AE71: 0 | AF71: 0 | AG71: 0 | AH71: 0 | AI71: 0 | AJ71: 0 | AK71: 0 | AM71: 0 | AN71: 0 | AO71: 0 | AP71: 0 | AQ71: 0 | AR71: 0 | AS71: 0 | AU71: 0 | AV71: 0 | AX71: 0 | AY71: 0 | AZ71: 0 | BA71: =IF(AX71<=0,0, IF(UPPER(ATENDIMENTO!$C$51)="S", IF(MONTH(A71)<> 1, BA70, VLOOKUP(C71,Premios!$G$4:$I$104,2,FALSE)), 0)) -> 0 | BB71: =IF(AX71<=0,0, IF(UPPER(ATENDIMENTO!$C$52)="S", IF(MONTH(A71)<> 1, BB70, VLOOKUP(C71,Premios!$G$4:$I$104,3,FALSE)), 0)) -> 0 | BC71: =IF(AX71=0,0, MIN( 30, IF($G$18="M", ROUND(VLOOKUP(C71,TbSobrVAL!$A$4:$K$134,10,FALSE),0), ROUND(VLOOKUP(C71,TbSobrVAL!$M$4:$W$134,10,FALSE),0))) ) -> 0 | BD71: =IF(AX71=0,0, 1/PMT($G$7,BC71*12,-1,0,0) + (1/PMT($G$6,BC71,-1,0,1)) / (1+$G$7)^(12-MONTH('Anexo I - Parametros'!$K$9)) ) -> 0 | BE71: 0 | BG71: 0 | BH71: 0 | BI71: 0 | BJ71: 0 | BL71: 0 | BM71: 0 | BN71: 0 | BO71: 0 | BP71: 0 | BQ71: 0 | BS71: 0 | BT71: 0 | BU71: 0 | BV71: 0 | BW71: 0 | BX71: 0 | BY71: 0 | BZ71: 0 | CA71: 0 | CB71: 0 | CC71: 0
A72: =IF(A71>TbSobrVAL!$H$1,"-",EDATE(A71,1)) -> - | B72: 1 | C72: =IF(A72="-", A72, INT((A72-'Anexo I - Parametros'!$K$9)/365.25)) -> - | D72: 0 | F72: 0 | G72: 0 | H72: 0 | I72: 0 | J72: 0 | K72: 0 | L72: 0 | M72: 0 | N72: 0 | O72: 0 | P72: 0 | Q72: 0 | S72: 0 | T72: 0 | U72: 0 | V72: 0 | W72: 0 | X72: 0 | Y72: 0 | Z72: 0 | AA72: 0 | AB72: 0 | AC72: 0 | AD72: 0 | AE72: 0 | AF72: 0 | AG72: 0 | AH72: 0 | AI72: 0 | AJ72: 0 | AK72: 0 | AM72: 0 | AN72: 0 | AO72: 0 | AP72: 0 | AQ72: 0 | AR72: 0 | AS72: 0 | AU72: 0 | AV72: 0 | AX72: 0 | AY72: 0 | AZ72: 0 | BA72: =IF(AX72<=0,0, IF(UPPER(ATENDIMENTO!$C$51)="S", IF(MONTH(A72)<> 1, BA71, VLOOKUP(C72,Premios!$G$4:$I$104,2,FALSE)), 0)) -> 0 | BB72: =IF(AX72<=0,0, IF(UPPER(ATENDIMENTO!$C$52)="S", IF(MONTH(A72)<> 1, BB71, VLOOKUP(C72,Premios!$G$4:$I$104,3,FALSE)), 0)) -> 0 | BC72: =IF(AX72=0,0, MIN( 30, IF($G$18="M", ROUND(VLOOKUP(C72,TbSobrVAL!$A$4:$K$134,10,FALSE),0), ROUND(VLOOKUP(C72,TbSobrVAL!$M$4:$W$134,10,FALSE),0))) ) -> 0 | BD72: =IF(AX72=0,0, 1/PMT($G$7,BC72*12,-1,0,0) + (1/PMT($G$6,BC72,-1,0,1)) / (1+$G$7)^(12-MONTH('Anexo I - Parametros'!$K$9)) ) -> 0 | BE72: 0 | BG72: 0 | BH72: 0 | BI72: 0 | BJ72: 0 | BL72: 0 | BM72: 0 | BN72: 0 | BO72: 0 | BP72: 0 | BQ72: 0 | BS72: 0 | BT72: 0 | BU72: 0 | BV72: 0 | BW72: 0 | BX72: 0 | BY72: 0 | BZ72: 0 | CA72: 0 | CB72: 0 | CC72: 0
A73: =IF(A72>TbSobrVAL!$H$1,"-",EDATE(A72,1)) -> - | B73: 1 | C73: =IF(A73="-", A73, INT((A73-'Anexo I - Parametros'!$K$9)/365.25)) -> - | D73: 0 | F73: 0 | G73: 0 | H73: 0 | I73: 0 | J73: 0 | K73: 0 | L73: 0 | M73: 0 | N73: 0 | O73: 0 | P73: 0 | Q73: 0 | S73: 0 | T73: 0 | U73: 0 | V73: 0 | W73: 0 | X73: 0 | Y73: 0 | Z73: 0 | AA73: 0 | AB73: 0 | AC73: 0 | AD73: 0 | AE73: 0 | AF73: 0 | AG73: 0 | AH73: 0 | AI73: 0 | AJ73: 0 | AK73: 0 | AM73: 0 | AN73: 0 | AO73: 0 | AP73: 0 | AQ73: 0 | AR73: 0 | AS73: 0 | AU73: 0 | AV73: 0 | AX73: 0 | AY73: 0 | AZ73: 0 | BA73: =IF(AX73<=0,0, IF(UPPER(ATENDIMENTO!$C$51)="S", IF(MONTH(A73)<> 1, BA72, VLOOKUP(C73,Premios!$G$4:$I$104,2,FALSE)), 0)) -> 0 | BB73: =IF(AX73<=0,0, IF(UPPER(ATENDIMENTO!$C$52)="S", IF(MONTH(A73)<> 1, BB72, VLOOKUP(C73,Premios!$G$4:$I$104,3,FALSE)), 0)) -> 0 | BC73: =IF(AX73=0,0, MIN( 30, IF($G$18="M", ROUND(VLOOKUP(C73,TbSobrVAL!$A$4:$K$134,10,FALSE),0), ROUND(VLOOKUP(C73,TbSobrVAL!$M$4:$W$134,10,FALSE),0))) ) -> 0 | BD73: =IF(AX73=0,0, 1/PMT($G$7,BC73*12,-1,0,0) + (1/PMT($G$6,BC73,-1,0,1)) / (1+$G$7)^(12-MONTH('Anexo I - Parametros'!$K$9)) ) -> 0 | BE73: 0 | BG73: 0 | BH73: 0 | BI73: 0 | BJ73: 0 | BL73: 0 | BM73: 0 | BN73: 0 | BO73: 0 | BP73: 0 | BQ73: 0 | BS73: 0 | BT73: 0 | BU73: 0 | BV73: 0 | BW73: 0 | BX73: 0 | BY73: 0 | BZ73: 0 | CA73: 0 | CB73: 0 | CC73: 0
A74: =IF(A73>TbSobrVAL!$H$1,"-",EDATE(A73,1)) -> - | B74: 1 | C74: =IF(A74="-", A74, INT((A74-'Anexo I - Parametros'!$K$9)/365.25)) -> - | D74: 0 | F74: 0 | G74: 0 | H74: 0 | I74: 0 | J74: 0 | K74: 0 | L74: 0 | M74: 0 | N74: 0 | O74: 0 | P74: 0 | Q74: 0 | S74: 0 | T74: 0 | U74: 0 | V74: 0 | W74: 0 | X74: 0 | Y74: 0 | Z74: 0 | AA74: 0 | AB74: 0 | AC74: 0 | AD74: 0 | AE74: 0 | AF74: 0 | AG74: 0 | AH74: 0 | AI74: 0 | AJ74: 0 | AK74: 0 | AM74: 0 | AN74: 0 | AO74: 0 | AP74: 0 | AQ74: 0 | AR74: 0 | AS74: 0 | AU74: 0 | AV74: 0 | AX74: 0 | AY74: 0 | AZ74: 0 | BA74: =IF(AX74<=0,0, IF(UPPER(ATENDIMENTO!$C$51)="S", IF(MONTH(A74)<> 1, BA73, VLOOKUP(C74,Premios!$G$4:$I$104,2,FALSE)), 0)) -> 0 | BB74: =IF(AX74<=0,0, IF(UPPER(ATENDIMENTO!$C$52)="S", IF(MONTH(A74)<> 1, BB73, VLOOKUP(C74,Premios!$G$4:$I$104,3,FALSE)), 0)) -> 0 | BC74: =IF(AX74=0,0, MIN( 30, IF($G$18="M", ROUND(VLOOKUP(C74,TbSobrVAL!$A$4:$K$134,10,FALSE),0), ROUND(VLOOKUP(C74,TbSobrVAL!$M$4:$W$134,10,FALSE),0))) ) -> 0 | BD74: =IF(AX74=0,0, 1/PMT($G$7,BC74*12,-1,0,0) + (1/PMT($G$6,BC74,-1,0,1)) / (1+$G$7)^(12-MONTH('Anexo I - Parametros'!$K$9)) ) -> 0 | BE74: 0 | BG74: 0 | BH74: 0 | BI74: 0 | BJ74: 0 | BL74: 0 | BM74: 0 | BN74: 0 | BO74: 0 | BP74: 0 | BQ74: 0 | BS74: 0 | BT74: 0 | BU74: 0 | BV74: 0 | BW74: 0 | BX74: 0 | BY74: 0 | BZ74: 0 | CA74: 0 | CB74: 0 | CC74: 0
A75: =IF(A74>TbSobrVAL!$H$1,"-",EDATE(A74,1)) -> - | B75: 1 | C75: =IF(A75="-", A75, INT((A75-'Anexo I - Parametros'!$K$9)/365.25)) -> - | D75: 0 | F75: 0 | G75: 0 | H75: 0 | I75: 0 | J75: 0 | K75: 0 | L75: 0 | M75: 0 | N75: 0 | O75: 0 | P75: 0 | Q75: 0 | S75: 0 | T75: 0 | U75: 0 | V75: 0 | W75: 0 | X75: 0 | Y75: 0 | Z75: 0 | AA75: 0 | AB75: 0 | AC75: 0 | AD75: 0 | AE75: 0 | AF75: 0 | AG75: 0 | AH75: 0 | AI75: 0 | AJ75: 0 | AK75: 0 | AM75: 0 | AN75: 0 | AO75: 0 | AP75: 0 | AQ75: 0 | AR75: 0 | AS75: 0 | AU75: 0 | AV75: 0 | AX75: 0 | AY75: 0 | AZ75: 0 | BA75: =IF(AX75<=0,0, IF(UPPER(ATENDIMENTO!$C$51)="S", IF(MONTH(A75)<> 1, BA74, VLOOKUP(C75,Premios!$G$4:$I$104,2,FALSE)), 0)) -> 0 | BB75: =IF(AX75<=0,0, IF(UPPER(ATENDIMENTO!$C$52)="S", IF(MONTH(A75)<> 1, BB74, VLOOKUP(C75,Premios!$G$4:$I$104,3,FALSE)), 0)) -> 0 | BC75: =IF(AX75=0,0, MIN( 30, IF($G$18="M", ROUND(VLOOKUP(C75,TbSobrVAL!$A$4:$K$134,10,FALSE),0), ROUND(VLOOKUP(C75,TbSobrVAL!$M$4:$W$134,10,FALSE),0))) ) -> 0 | BD75: =IF(AX75=0,0, 1/PMT($G$7,BC75*12,-1,0,0) + (1/PMT($G$6,BC75,-1,0,1)) / (1+$G$7)^(12-MONTH('Anexo I - Parametros'!$K$9)) ) -> 0 | BE75: 0 | BG75: 0 | BH75: 0 | BI75: 0 | BJ75: 0 | BL75: 0 | BM75: 0 | BN75: 0 | BO75: 0 | BP75: 0 | BQ75: 0 | BS75: 0 | BT75: 0 | BU75: 0 | BV75: 0 | BW75: 0 | BX75: 0 | BY75: 0 | BZ75: 0 | CA75: 0 | CB75: 0 | CC75: 0
A76: =IF(A75>TbSobrVAL!$H$1,"-",EDATE(A75,1)) -> - | B76: 1 | C76: =IF(A76="-", A76, INT((A76-'Anexo I - Parametros'!$K$9)/365.25)) -> - | D76: 0 | F76: 0 | G76: 0 | H76: 0 | I76: 0 | J76: 0 | K76: 0 | L76: 0 | M76: 0 | N76: 0 | O76: 0 | P76: 0 | Q76: 0 | S76: 0 | T76: 0 | U76: 0 | V76: 0 | W76: 0 | X76: 0 | Y76: 0 | Z76: 0 | AA76: 0 | AB76: 0 | AC76: 0 | AD76: 0 | AE76: 0 | AF76: 0 | AG76: 0 | AH76: 0 | AI76: 0 | AJ76: 0 | AK76: 0 | AM76: 0 | AN76: 0 | AO76: 0 | AP76: 0 | AQ76: 0 | AR76: 0 | AS76: 0 | AU76: 0 | AV76: 0 | AX76: 0 | AY76: 0 | AZ76: 0 | BA76: =IF(AX76<=0,0, IF(UPPER(ATENDIMENTO!$C$51)="S", IF(MONTH(A76)<> 1, BA75, VLOOKUP(C76,Premios!$G$4:$I$104,2,FALSE)), 0)) -> 0 | BB76: =IF(AX76<=0,0, IF(UPPER(ATENDIMENTO!$C$52)="S", IF(MONTH(A76)<> 1, BB75, VLOOKUP(C76,Premios!$G$4:$I$104,3,FALSE)), 0)) -> 0 | BC76: =IF(AX76=0,0, MIN( 30, IF($G$18="M", ROUND(VLOOKUP(C76,TbSobrVAL!$A$4:$K$134,10,FALSE),0), ROUND(VLOOKUP(C76,TbSobrVAL!$M$4:$W$134,10,FALSE),0))) ) -> 0 | BD76: =IF(AX76=0,0, 1/PMT($G$7,BC76*12,-1,0,0) + (1/PMT($G$6,BC76,-1,0,1)) / (1+$G$7)^(12-MONTH('Anexo I - Parametros'!$K$9)) ) -> 0 | BE76: 0 | BG76: 0 | BH76: 0 | BI76: 0 | BJ76: 0 | BL76: 0 | BM76: 0 | BN76: 0 | BO76: 0 | BP76: 0 | BQ76: 0 | BS76: 0 | BT76: 0 | BU76: 0 | BV76: 0 | BW76: 0 | BX76: 0 | BY76: 0 | BZ76: 0 | CA76: 0 | CB76: 0 | CC76: 0
A77: =IF(A76>TbSobrVAL!$H$1,"-",EDATE(A76,1)) -> - | B77: 1 | C77: =IF(A77="-", A77, INT((A77-'Anexo I - Parametros'!$K$9)/365.25)) -> - | D77: 0 | F77: 0 | G77: 0 | H77: 0 | I77: 0 | J77: 0 | K77: 0 | L77: 0 | M77: 0 | N77: 0 | O77: 0 | P77: 0 | Q77: 0 | S77: 0 | T77: 0 | U77: 0 | V77: 0 | W77: 0 | X77: 0 | Y77: 0 | Z77: 0 | AA77: 0 | AB77: 0 | AC77: 0 | AD77: 0 | AE77: 0 | AF77: 0 | AG77: 0 | AH77: 0 | AI77: 0 | AJ77: 0 | AK77: 0 | AM77: 0 | AN77: 0 | AO77: 0 | AP77: 0 | AQ77: 0 | AR77: 0 | AS77: 0 | AU77: 0 | AV77: 0 | AX77: 0 | AY77: 0 | AZ77: 0 | BA77: =IF(AX77<=0,0, IF(UPPER(ATENDIMENTO!$C$51)="S", IF(MONTH(A77)<> 1, BA76, VLOOKUP(C77,Premios!$G$4:$I$104,2,FALSE)), 0)) -> 0 | BB77: =IF(AX77<=0,0, IF(UPPER(ATENDIMENTO!$C$52)="S", IF(MONTH(A77)<> 1, BB76, VLOOKUP(C77,Premios!$G$4:$I$104,3,FALSE)), 0)) -> 0 | BC77: =IF(AX77=0,0, MIN( 30, IF($G$18="M", ROUND(VLOOKUP(C77,TbSobrVAL!$A$4:$K$134,10,FALSE),0), ROUND(VLOOKUP(C77,TbSobrVAL!$M$4:$W$134,10,FALSE),0))) ) -> 0 | BD77: =IF(AX77=0,0, 1/PMT($G$7,BC77*12,-1,0,0) + (1/PMT($G$6,BC77,-1,0,1)) / (1+$G$7)^(12-MONTH('Anexo I - Parametros'!$K$9)) ) -> 0 | BE77: 0 | BG77: 0 | BH77: 0 | BI77: 0 | BJ77: 0 | BL77: 0 | BM77: 0 | BN77: 0 | BO77: 0 | BP77: 0 | BQ77: 0 | BS77: 0 | BT77: 0 | BU77: 0 | BV77: 0 | BW77: 0 | BX77: 0 | BY77: 0 | BZ77: 0 | CA77: 0 | CB77: 0 | CC77: 0
A78: =IF(A77>TbSobrVAL!$H$1,"-",EDATE(A77,1)) -> - | B78: 1 | C78: =IF(A78="-", A78, INT((A78-'Anexo I - Parametros'!$K$9)/365.25)) -> - | D78: 0 | F78: 0 | G78: 0 | H78: 0 | I78: 0 | J78: 0 | K78: 0 | L78: 0 | M78: 0 | N78: 0 | O78: 0 | P78: 0 | Q78: 0 | S78: 0 | T78: 0 | U78: 0 | V78: 0 | W78: 0 | X78: 0 | Y78: 0 | Z78: 0 | AA78: 0 | AB78: 0 | AC78: 0 | AD78: 0 | AE78: 0 | AF78: 0 | AG78: 0 | AH78: 0 | AI78: 0 | AJ78: 0 | AK78: 0 | AM78: 0 | AN78: 0 | AO78: 0 | AP78: 0 | AQ78: 0 | AR78: 0 | AS78: 0 | AU78: 0 | AV78: 0 | AX78: 0 | AY78: 0 | AZ78: 0 | BA78: =IF(AX78<=0,0, IF(UPPER(ATENDIMENTO!$C$51)="S", IF(MONTH(A78)<> 1, BA77, VLOOKUP(C78,Premios!$G$4:$I$104,2,FALSE)), 0)) -> 0 | BB78: =IF(AX78<=0,0, IF(UPPER(ATENDIMENTO!$C$52)="S", IF(MONTH(A78)<> 1, BB77, VLOOKUP(C78,Premios!$G$4:$I$104,3,FALSE)), 0)) -> 0 | BC78: =IF(AX78=0,0, MIN( 30, IF($G$18="M", ROUND(VLOOKUP(C78,TbSobrVAL!$A$4:$K$134,10,FALSE),0), ROUND(VLOOKUP(C78,TbSobrVAL!$M$4:$W$134,10,FALSE),0))) ) -> 0 | BD78: =IF(AX78=0,0, 1/PMT($G$7,BC78*12,-1,0,0) + (1/PMT($G$6,BC78,-1,0,1)) / (1+$G$7)^(12-MONTH('Anexo I - Parametros'!$K$9)) ) -> 0 | BE78: 0 | BG78: 0 | BH78: 0 | BI78: 0 | BJ78: 0 | BL78: 0 | BM78: 0 | BN78: 0 | BO78: 0 | BP78: 0 | BQ78: 0 | BS78: 0 | BT78: 0 | BU78: 0 | BV78: 0 | BW78: 0 | BX78: 0 | BY78: 0 | BZ78: 0 | CA78: 0 | CB78: 0 | CC78: 0
A79: =IF(A78>TbSobrVAL!$H$1,"-",EDATE(A78,1)) -> - | B79: 1 | C79: =IF(A79="-", A79, INT((A79-'Anexo I - Parametros'!$K$9)/365.25)) -> - | D79: 0 | F79: 0 | G79: 0 | H79: 0 | I79: 0 | J79: 0 | K79: 0 | L79: 0 | M79: 0 | N79: 0 | O79: 0 | P79: 0 | Q79: 0 | S79: 0 | T79: 0 | U79: 0 | V79: 0 | W79: 0 | X79: 0 | Y79: 0 | Z79: 0 | AA79: 0 | AB79: 0 | AC79: 0 | AD79: 0 | AE79: 0 | AF79: 0 | AG79: 0 | AH79: 0 | AI79: 0 | AJ79: 0 | AK79: 0 | AM79: 0 | AN79: 0 | AO79: 0 | AP79: 0 | AQ79: 0 | AR79: 0 | AS79: 0 | AU79: 0 | AV79: 0 | AX79: 0 | AY79: 0 | AZ79: 0 | BA79: =IF(AX79<=0,0, IF(UPPER(ATENDIMENTO!$C$51)="S", IF(MONTH(A79)<> 1, BA78, VLOOKUP(C79,Premios!$G$4:$I$104,2,FALSE)), 0)) -> 0 | BB79: =IF(AX79<=0,0, IF(UPPER(ATENDIMENTO!$C$52)="S", IF(MONTH(A79)<> 1, BB78, VLOOKUP(C79,Premios!$G$4:$I$104,3,FALSE)), 0)) -> 0 | BC79: =IF(AX79=0,0, MIN( 30, IF($G$18="M", ROUND(VLOOKUP(C79,TbSobrVAL!$A$4:$K$134,10,FALSE),0), ROUND(VLOOKUP(C79,TbSobrVAL!$M$4:$W$134,10,FALSE),0))) ) -> 0 | BD79: =IF(AX79=0,0, 1/PMT($G$7,BC79*12,-1,0,0) + (1/PMT($G$6,BC79,-1,0,1)) / (1+$G$7)^(12-MONTH('Anexo I - Parametros'!$K$9)) ) -> 0 | BE79: 0 | BG79: 0 | BH79: 0 | BI79: 0 | BJ79: 0 | BL79: 0 | BM79: 0 | BN79: 0 | BO79: 0 | BP79: 0 | BQ79: 0 | BS79: 0 | BT79: 0 | BU79: 0 | BV79: 0 | BW79: 0 | BX79: 0 | BY79: 0 | BZ79: 0 | CA79: 0 | CB79: 0 | CC79: 0
A80: =IF(A79>TbSobrVAL!$H$1,"-",EDATE(A79,1)) -> - | B80: 1 | C80: =IF(A80="-", A80, INT((A80-'Anexo I - Parametros'!$K$9)/365.25)) -> - | D80: 0 | F80: 0 | G80: 0 | H80: 0 | I80: 0 | J80: 0 | K80: 0 | L80: 0 | M80: 0 | N80: 0 | O80: 0 | P80: 0 | Q80: 0 | S80: 0 | T80: 0 | U80: 0 | V80: 0 | W80: 0 | X80: 0 | Y80: 0 | Z80: 0 | AA80: 0 | AB80: 0 | AC80: 0 | AD80: 0 | AE80: 0 | AF80: 0 | AG80: 0 | AH80: 0 | AI80: 0 | AJ80: 0 | AK80: 0 | AM80: 0 | AN80: 0 | AO80: 0 | AP80: 0 | AQ80: 0 | AR80: 0 | AS80: 0 | AU80: 0 | AV80: 0 | AX80: 0 | AY80: 0 | AZ80: 0 | BA80: =IF(AX80<=0,0, IF(UPPER(ATENDIMENTO!$C$51)="S", IF(MONTH(A80)<> 1, BA79, VLOOKUP(C80,Premios!$G$4:$I$104,2,FALSE)), 0)) -> 0 | BB80: =IF(AX80<=0,0, IF(UPPER(ATENDIMENTO!$C$52)="S", IF(MONTH(A80)<> 1, BB79, VLOOKUP(C80,Premios!$G$4:$I$104,3,FALSE)), 0)) -> 0 | BC80: =IF(AX80=0,0, MIN( 30, IF($G$18="M", ROUND(VLOOKUP(C80,TbSobrVAL!$A$4:$K$134,10,FALSE),0), ROUND(VLOOKUP(C80,TbSobrVAL!$M$4:$W$134,10,FALSE),0))) ) -> 0 | BD80: =IF(AX80=0,0, 1/PMT($G$7,BC80*12,-1,0,0) + (1/PMT($G$6,BC80,-1,0,1)) / (1+$G$7)^(12-MONTH('Anexo I - Parametros'!$K$9)) ) -> 0 | BE80: 0 | BG80: 0 | BH80: 0 | BI80: 0 | BJ80: 0 | BL80: 0 | BM80: 0 | BN80: 0 | BO80: 0 | BP80: 0 | BQ80: 0 | BS80: 0 | BT80: 0 | BU80: 0 | BV80: 0 | BW80: 0 | BX80: 0 | BY80: 0 | BZ80: 0 | CA80: 0 | CB80: 0 | CC80: 0
A81: =IF(A80>TbSobrVAL!$H$1,"-",EDATE(A80,1)) -> - | B81: 1 | C81: =IF(A81="-", A81, INT((A81-'Anexo I - Parametros'!$K$9)/365.25)) -> - | D81: 0 | F81: 0 | G81: 0 | H81: 0 | I81: 0 | J81: 0 | K81: 0 | L81: 0 | M81: 0 | N81: 0 | O81: 0 | P81: 0 | Q81: 0 | S81: 0 | T81: 0 | U81: 0 | V81: 0 | W81: 0 | X81: 0 | Y81: 0 | Z81: 0 | AA81: 0 | AB81: 0 | AC81: 0 | AD81: 0 | AE81: 0 | AF81: 0 | AG81: 0 | AH81: 0 | AI81: 0 | AJ81: 0 | AK81: 0 | AM81: 0 | AN81: 0 | AO81: 0 | AP81: 0 | AQ81: 0 | AR81: 0 | AS81: 0 | AU81: 0 | AV81: 0 | AX81: 0 | AY81: 0 | AZ81: 0 | BA81: =IF(AX81<=0,0, IF(UPPER(ATENDIMENTO!$C$51)="S", IF(MONTH(A81)<> 1, BA80, VLOOKUP(C81,Premios!$G$4:$I$104,2,FALSE)), 0)) -> 0 | BB81: =IF(AX81<=0,0, IF(UPPER(ATENDIMENTO!$C$52)="S", IF(MONTH(A81)<> 1, BB80, VLOOKUP(C81,Premios!$G$4:$I$104,3,FALSE)), 0)) -> 0 | BC81: =IF(AX81=0,0, MIN( 30, IF($G$18="M", ROUND(VLOOKUP(C81,TbSobrVAL!$A$4:$K$134,10,FALSE),0), ROUND(VLOOKUP(C81,TbSobrVAL!$M$4:$W$134,10,FALSE),0))) ) -> 0 | BD81: =IF(AX81=0,0, 1/PMT($G$7,BC81*12,-1,0,0) + (1/PMT($G$6,BC81,-1,0,1)) / (1+$G$7)^(12-MONTH('Anexo I - Parametros'!$K$9)) ) -> 0 | BE81: 0 | BG81: 0 | BH81: 0 | BI81: 0 | BJ81: 0 | BL81: 0 | BM81: 0 | BN81: 0 | BO81: 0 | BP81: 0 | BQ81: 0 | BS81: 0 | BT81: 0 | BU81: 0 | BV81: 0 | BW81: 0 | BX81: 0 | BY81: 0 | BZ81: 0 | CA81: 0 | CB81: 0 | CC81: 0
A82: =IF(A81>TbSobrVAL!$H$1,"-",EDATE(A81,1)) -> - | B82: 1 | C82: =IF(A82="-", A82, INT((A82-'Anexo I - Parametros'!$K$9)/365.25)) -> - | D82: 0 | F82: 0 | G82: 0 | H82: 0 | I82: 0 | J82: 0 | K82: 0 | L82: 0 | M82: 0 | N82: 0 | O82: 0 | P82: 0 | Q82: 0 | S82: 0 | T82: 0 | U82: 0 | V82: 0 | W82: 0 | X82: 0 | Y82: 0 | Z82: 0 | AA82: 0 | AB82: 0 | AC82: 0 | AD82: 0 | AE82: 0 | AF82: 0 | AG82: 0 | AH82: 0 | AI82: 0 | AJ82: 0 | AK82: 0 | AM82: 0 | AN82: 0 | AO82: 0 | AP82: 0 | AQ82: 0 | AR82: 0 | AS82: 0 | AU82: 0 | AV82: 0 | AX82: 0 | AY82: 0 | AZ82: 0 | BA82: =IF(AX82<=0,0, IF(UPPER(ATENDIMENTO!$C$51)="S", IF(MONTH(A82)<> 1, BA81, VLOOKUP(C82,Premios!$G$4:$I$104,2,FALSE)), 0)) -> 0 | BB82: =IF(AX82<=0,0, IF(UPPER(ATENDIMENTO!$C$52)="S", IF(MONTH(A82)<> 1, BB81, VLOOKUP(C82,Premios!$G$4:$I$104,3,FALSE)), 0)) -> 0 | BC82: =IF(AX82=0,0, MIN( 30, IF($G$18="M", ROUND(VLOOKUP(C82,TbSobrVAL!$A$4:$K$134,10,FALSE),0), ROUND(VLOOKUP(C82,TbSobrVAL!$M$4:$W$134,10,FALSE),0))) ) -> 0 | BD82: =IF(AX82=0,0, 1/PMT($G$7,BC82*12,-1,0,0) + (1/PMT($G$6,BC82,-1,0,1)) / (1+$G$7)^(12-MONTH('Anexo I - Parametros'!$K$9)) ) -> 0 | BE82: 0 | BG82: 0 | BH82: 0 | BI82: 0 | BJ82: 0 | BL82: 0 | BM82: 0 | BN82: 0 | BO82: 0 | BP82: 0 | BQ82: 0 | BS82: 0 | BT82: 0 | BU82: 0 | BV82: 0 | BW82: 0 | BX82: 0 | BY82: 0 | BZ82: 0 | CA82: 0 | CB82: 0 | CC82: 0
A83: =IF(A82>TbSobrVAL!$H$1,"-",EDATE(A82,1)) -> - | B83: 1 | C83: =IF(A83="-", A83, INT((A83-'Anexo I - Parametros'!$K$9)/365.25)) -> - | D83: 0 | F83: 0 | G83: 0 | H83: 0 | I83: 0 | J83: 0 | K83: 0 | L83: 0 | M83: 0 | N83: 0 | O83: 0 | P83: 0 | Q83: 0 | S83: 0 | T83: 0 | U83: 0 | V83: 0 | W83: 0 | X83: 0 | Y83: 0 | Z83: 0 | AA83: 0 | AB83: 0 | AC83: 0 | AD83: 0 | AE83: 0 | AF83: 0 | AG83: 0 | AH83: 0 | AI83: 0 | AJ83: 0 | AK83: 0 | AM83: 0 | AN83: 0 | AO83: 0 | AP83: 0 | AQ83: 0 | AR83: 0 | AS83: 0 | AU83: 0 | AV83: 0 | AX83: 0 | AY83: 0 | AZ83: 0 | BA83: =IF(AX83<=0,0, IF(UPPER(ATENDIMENTO!$C$51)="S", IF(MONTH(A83)<> 1, BA82, VLOOKUP(C83,Premios!$G$4:$I$104,2,FALSE)), 0)) -> 0 | BB83: =IF(AX83<=0,0, IF(UPPER(ATENDIMENTO!$C$52)="S", IF(MONTH(A83)<> 1, BB82, VLOOKUP(C83,Premios!$G$4:$I$104,3,FALSE)), 0)) -> 0 | BC83: =IF(AX83=0,0, MIN( 30, IF($G$18="M", ROUND(VLOOKUP(C83,TbSobrVAL!$A$4:$K$134,10,FALSE),0), ROUND(VLOOKUP(C83,TbSobrVAL!$M$4:$W$134,10,FALSE),0))) ) -> 0 | BD83: =IF(AX83=0,0, 1/PMT($G$7,BC83*12,-1,0,0) + (1/PMT($G$6,BC83,-1,0,1)) / (1+$G$7)^(12-MONTH('Anexo I - Parametros'!$K$9)) ) -> 0 | BE83: 0 | BG83: 0 | BH83: 0 | BI83: 0 | BJ83: 0 | BL83: 0 | BM83: 0 | BN83: 0 | BO83: 0 | BP83: 0 | BQ83: 0 | BS83: 0 | BT83: 0 | BU83: 0 | BV83: 0 | BW83: 0 | BX83: 0 | BY83: 0 | BZ83: 0 | CA83: 0 | CB83: 0 | CC83: 0
A84: =IF(A83>TbSobrVAL!$H$1,"-",EDATE(A83,1)) -> - | B84: 1 | C84: =IF(A84="-", A84, INT((A84-'Anexo I - Parametros'!$K$9)/365.25)) -> - | D84: 0 | F84: 0 | G84: 0 | H84: 0 | I84: 0 | J84: 0 | K84: 0 | L84: 0 | M84: 0 | N84: 0 | O84: 0 | P84: 0 | Q84: 0 | S84: 0 | T84: 0 | U84: 0 | V84: 0 | W84: 0 | X84: 0 | Y84: 0 | Z84: 0 | AA84: 0 | AB84: 0 | AC84: 0 | AD84: 0 | AE84: 0 | AF84: 0 | AG84: 0 | AH84: 0 | AI84: 0 | AJ84: 0 | AK84: 0 | AM84: 0 | AN84: 0 | AO84: 0 | AP84: 0 | AQ84: 0 | AR84: 0 | AS84: 0 | AU84: 0 | AV84: 0 | AX84: 0 | AY84: 0 | AZ84: 0 | BA84: =IF(AX84<=0,0, IF(UPPER(ATENDIMENTO!$C$51)="S", IF(MONTH(A84)<> 1, BA83, VLOOKUP(C84,Premios!$G$4:$I$104,2,FALSE)), 0)) -> 0 | BB84: =IF(AX84<=0,0, IF(UPPER(ATENDIMENTO!$C$52)="S", IF(MONTH(A84)<> 1, BB83, VLOOKUP(C84,Premios!$G$4:$I$104,3,FALSE)), 0)) -> 0 | BC84: =IF(AX84=0,0, MIN( 30, IF($G$18="M", ROUND(VLOOKUP(C84,TbSobrVAL!$A$4:$K$134,10,FALSE),0), ROUND(VLOOKUP(C84,TbSobrVAL!$M$4:$W$134,10,FALSE),0))) ) -> 0 | BD84: =IF(AX84=0,0, 1/PMT($G$7,BC84*12,-1,0,0) + (1/PMT($G$6,BC84,-1,0,1)) / (1+$G$7)^(12-MONTH('Anexo I - Parametros'!$K$9)) ) -> 0 | BE84: 0 | BG84: 0 | BH84: 0 | BI84: 0 | BJ84: 0 | BL84: 0 | BM84: 0 | BN84: 0 | BO84: 0 | BP84: 0 | BQ84: 0 | BS84: 0 | BT84: 0 | BU84: 0 | BV84: 0 | BW84: 0 | BX84: 0 | BY84: 0 | BZ84: 0 | CA84: 0 | CB84: 0 | CC84: 0
A85: =IF(A84>TbSobrVAL!$H$1,"-",EDATE(A84,1)) -> - | B85: 1 | C85: =IF(A85="-", A85, INT((A85-'Anexo I - Parametros'!$K$9)/365.25)) -> - | D85: 0 | F85: 0 | G85: 0 | H85: 0 | I85: 0 | J85: 0 | K85: 0 | L85: 0 | M85: 0 | N85: 0 | O85: 0 | P85: 0 | Q85: 0 | S85: 0 | T85: 0 | U85: 0 | V85: 0 | W85: 0 | X85: 0 | Y85: 0 | Z85: 0 | AA85: 0 | AB85: 0 | AC85: 0 | AD85: 0 | AE85: 0 | AF85: 0 | AG85: 0 | AH85: 0 | AI85: 0 | AJ85: 0 | AK85: 0 | AM85: 0 | AN85: 0 | AO85: 0 | AP85: 0 | AQ85: 0 | AR85: 0 | AS85: 0 | AU85: 0 | AV85: 0 | AX85: 0 | AY85: 0 | AZ85: 0 | BA85: =IF(AX85<=0,0, IF(UPPER(ATENDIMENTO!$C$51)="S", IF(MONTH(A85)<> 1, BA84, VLOOKUP(C85,Premios!$G$4:$I$104,2,FALSE)), 0)) -> 0 | BB85: =IF(AX85<=0,0, IF(UPPER(ATENDIMENTO!$C$52)="S", IF(MONTH(A85)<> 1, BB84, VLOOKUP(C85,Premios!$G$4:$I$104,3,FALSE)), 0)) -> 0 | BC85: =IF(AX85=0,0, MIN( 30, IF($G$18="M", ROUND(VLOOKUP(C85,TbSobrVAL!$A$4:$K$134,10,FALSE),0), ROUND(VLOOKUP(C85,TbSobrVAL!$M$4:$W$134,10,FALSE),0))) ) -> 0 | BD85: =IF(AX85=0,0, 1/PMT($G$7,BC85*12,-1,0,0) + (1/PMT($G$6,BC85,-1,0,1)) / (1+$G$7)^(12-MONTH('Anexo I - Parametros'!$K$9)) ) -> 0 | BE85: 0 | BG85: 0 | BH85: 0 | BI85: 0 | BJ85: 0 | BL85: 0 | BM85: 0 | BN85: 0 | BO85: 0 | BP85: 0 | BQ85: 0 | BS85: 0 | BT85: 0 | BU85: 0 | BV85: 0 | BW85: 0 | BX85: 0 | BY85: 0 | BZ85: 0 | CA85: 0 | CB85: 0 | CC85: 0
A86: =IF(A85>TbSobrVAL!$H$1,"-",EDATE(A85,1)) -> - | B86: 1 | C86: =IF(A86="-", A86, INT((A86-'Anexo I - Parametros'!$K$9)/365.25)) -> - | D86: 0 | F86: 0 | G86: 0 | H86: 0 | I86: 0 | J86: 0 | K86: 0 | L86: 0 | M86: 0 | N86: 0 | O86: 0 | P86: 0 | Q86: 0 | S86: 0 | T86: 0 | U86: 0 | V86: 0 | W86: 0 | X86: 0 | Y86: 0 | Z86: 0 | AA86: 0 | AB86: 0 | AC86: 0 | AD86: 0 | AE86: 0 | AF86: 0 | AG86: 0 | AH86: 0 | AI86: 0 | AJ86: 0 | AK86: 0 | AM86: 0 | AN86: 0 | AO86: 0 | AP86: 0 | AQ86: 0 | AR86: 0 | AS86: 0 | AU86: 0 | AV86: 0 | AX86: 0 | AY86: 0 | AZ86: 0 | BA86: =IF(AX86<=0,0, IF(UPPER(ATENDIMENTO!$C$51)="S", IF(MONTH(A86)<> 1, BA85, VLOOKUP(C86,Premios!$G$4:$I$104,2,FALSE)), 0)) -> 0 | BB86: =IF(AX86<=0,0, IF(UPPER(ATENDIMENTO!$C$52)="S", IF(MONTH(A86)<> 1, BB85, VLOOKUP(C86,Premios!$G$4:$I$104,3,FALSE)), 0)) -> 0 | BC86: =IF(AX86=0,0, MIN( 30, IF($G$18="M", ROUND(VLOOKUP(C86,TbSobrVAL!$A$4:$K$134,10,FALSE),0), ROUND(VLOOKUP(C86,TbSobrVAL!$M$4:$W$134,10,FALSE),0))) ) -> 0 | BD86: =IF(AX86=0,0, 1/PMT($G$7,BC86*12,-1,0,0) + (1/PMT($G$6,BC86,-1,0,1)) / (1+$G$7)^(12-MONTH('Anexo I - Parametros'!$K$9)) ) -> 0 | BE86: 0 | BG86: 0 | BH86: 0 | BI86: 0 | BJ86: 0 | BL86: 0 | BM86: 0 | BN86: 0 | BO86: 0 | BP86: 0 | BQ86: 0 | BS86: 0 | BT86: 0 | BU86: 0 | BV86: 0 | BW86: 0 | BX86: 0 | BY86: 0 | BZ86: 0 | CA86: 0 | CB86: 0 | CC86: 0
A87: =IF(A86>TbSobrVAL!$H$1,"-",EDATE(A86,1)) -> - | B87: 1 | C87: =IF(A87="-", A87, INT((A87-'Anexo I - Parametros'!$K$9)/365.25)) -> - | D87: 0 | F87: 0 | G87: 0 | H87: 0 | I87: 0 | J87: 0 | K87: 0 | L87: 0 | M87: 0 | N87: 0 | O87: 0 | P87: 0 | Q87: 0 | S87: 0 | T87: 0 | U87: 0 | V87: 0 | W87: 0 | X87: 0 | Y87: 0 | Z87: 0 | AA87: 0 | AB87: 0 | AC87: 0 | AD87: 0 | AE87: 0 | AF87: 0 | AG87: 0 | AH87: 0 | AI87: 0 | AJ87: 0 | AK87: 0 | AM87: 0 | AN87: 0 | AO87: 0 | AP87: 0 | AQ87: 0 | AR87: 0 | AS87: 0 | AU87: 0 | AV87: 0 | AX87: 0 | AY87: 0 | AZ87: 0 | BA87: =IF(AX87<=0,0, IF(UPPER(ATENDIMENTO!$C$51)="S", IF(MONTH(A87)<> 1, BA86, VLOOKUP(C87,Premios!$G$4:$I$104,2,FALSE)), 0)) -> 0 | BB87: =IF(AX87<=0,0, IF(UPPER(ATENDIMENTO!$C$52)="S", IF(MONTH(A87)<> 1, BB86, VLOOKUP(C87,Premios!$G$4:$I$104,3,FALSE)), 0)) -> 0 | BC87: =IF(AX87=0,0, MIN( 30, IF($G$18="M", ROUND(VLOOKUP(C87,TbSobrVAL!$A$4:$K$134,10,FALSE),0), ROUND(VLOOKUP(C87,TbSobrVAL!$M$4:$W$134,10,FALSE),0))) ) -> 0 | BD87: =IF(AX87=0,0, 1/PMT($G$7,BC87*12,-1,0,0) + (1/PMT($G$6,BC87,-1,0,1)) / (1+$G$7)^(12-MONTH('Anexo I - Parametros'!$K$9)) ) -> 0 | BE87: 0 | BG87: 0 | BH87: 0 | BI87: 0 | BJ87: 0 | BL87: 0 | BM87: 0 | BN87: 0 | BO87: 0 | BP87: 0 | BQ87: 0 | BS87: 0 | BT87: 0 | BU87: 0 | BV87: 0 | BW87: 0 | BX87: 0 | BY87: 0 | BZ87: 0 | CA87: 0 | CB87: 0 | CC87: 0
A88: =IF(A87>TbSobrVAL!$H$1,"-",EDATE(A87,1)) -> - | B88: 1 | C88: =IF(A88="-", A88, INT((A88-'Anexo I - Parametros'!$K$9)/365.25)) -> - | D88: 0 | F88: 0 | G88: 0 | H88: 0 | I88: 0 | J88: 0 | K88: 0 | L88: 0 | M88: 0 | N88: 0 | O88: 0 | P88: 0 | Q88: 0 | S88: 0 | T88: 0 | U88: 0 | V88: 0 | W88: 0 | X88: 0 | Y88: 0 | Z88: 0 | AA88: 0 | AB88: 0 | AC88: 0 | AD88: 0 | AE88: 0 | AF88: 0 | AG88: 0 | AH88: 0 | AI88: 0 | AJ88: 0 | AK88: 0 | AM88: 0 | AN88: 0 | AO88: 0 | AP88: 0 | AQ88: 0 | AR88: 0 | AS88: 0 | AU88: 0 | AV88: 0 | AX88: 0 | AY88: 0 | AZ88: 0 | BA88: =IF(AX88<=0,0, IF(UPPER(ATENDIMENTO!$C$51)="S", IF(MONTH(A88)<> 1, BA87, VLOOKUP(C88,Premios!$G$4:$I$104,2,FALSE)), 0)) -> 0 | BB88: =IF(AX88<=0,0, IF(UPPER(ATENDIMENTO!$C$52)="S", IF(MONTH(A88)<> 1, BB87, VLOOKUP(C88,Premios!$G$4:$I$104,3,FALSE)), 0)) -> 0 | BC88: =IF(AX88=0,0, MIN( 30, IF($G$18="M", ROUND(VLOOKUP(C88,TbSobrVAL!$A$4:$K$134,10,FALSE),0), ROUND(VLOOKUP(C88,TbSobrVAL!$M$4:$W$134,10,FALSE),0))) ) -> 0 | BD88: =IF(AX88=0,0, 1/PMT($G$7,BC88*12,-1,0,0) + (1/PMT($G$6,BC88,-1,0,1)) / (1+$G$7)^(12-MONTH('Anexo I - Parametros'!$K$9)) ) -> 0 | BE88: 0 | BG88: 0 | BH88: 0 | BI88: 0 | BJ88: 0 | BL88: 0 | BM88: 0 | BN88: 0 | BO88: 0 | BP88: 0 | BQ88: 0 | BS88: 0 | BT88: 0 | BU88: 0 | BV88: 0 | BW88: 0 | BX88: 0 | BY88: 0 | BZ88: 0 | CA88: 0 | CB88: 0 | CC88: 0
A89: =IF(A88>TbSobrVAL!$H$1,"-",EDATE(A88,1)) -> - | B89: 1 | C89: =IF(A89="-", A89, INT((A89-'Anexo I - Parametros'!$K$9)/365.25)) -> - | D89: 0 | F89: 0 | G89: 0 | H89: 0 | I89: 0 | J89: 0 | K89: 0 | L89: 0 | M89: 0 | N89: 0 | O89: 0 | P89: 0 | Q89: 0 | S89: 0 | T89: 0 | U89: 0 | V89: 0 | W89: 0 | X89: 0 | Y89: 0 | Z89: 0 | AA89: 0 | AB89: 0 | AC89: 0 | AD89: 0 | AE89: 0 | AF89: 0 | AG89: 0 | AH89: 0 | AI89: 0 | AJ89: 0 | AK89: 0 | AM89: 0 | AN89: 0 | AO89: 0 | AP89: 0 | AQ89: 0 | AR89: 0 | AS89: 0 | AU89: 0 | AV89: 0 | AX89: 0 | AY89: 0 | AZ89: 0 | BA89: =IF(AX89<=0,0, IF(UPPER(ATENDIMENTO!$C$51)="S", IF(MONTH(A89)<> 1, BA88, VLOOKUP(C89,Premios!$G$4:$I$104,2,FALSE)), 0)) -> 0 | BB89: =IF(AX89<=0,0, IF(UPPER(ATENDIMENTO!$C$52)="S", IF(MONTH(A89)<> 1, BB88, VLOOKUP(C89,Premios!$G$4:$I$104,3,FALSE)), 0)) -> 0 | BC89: =IF(AX89=0,0, MIN( 30, IF($G$18="M", ROUND(VLOOKUP(C89,TbSobrVAL!$A$4:$K$134,10,FALSE),0), ROUND(VLOOKUP(C89,TbSobrVAL!$M$4:$W$134,10,FALSE),0))) ) -> 0 | BD89: =IF(AX89=0,0, 1/PMT($G$7,BC89*12,-1,0,0) + (1/PMT($G$6,BC89,-1,0,1)) / (1+$G$7)^(12-MONTH('Anexo I - Parametros'!$K$9)) ) -> 0 | BE89: 0 | BG89: 0 | BH89: 0 | BI89: 0 | BJ89: 0 | BL89: 0 | BM89: 0 | BN89: 0 | BO89: 0 | BP89: 0 | BQ89: 0 | BS89: 0 | BT89: 0 | BU89: 0 | BV89: 0 | BW89: 0 | BX89: 0 | BY89: 0 | BZ89: 0 | CA89: 0 | CB89: 0 | CC89: 0
A90: =IF(A89>TbSobrVAL!$H$1,"-",EDATE(A89,1)) -> - | B90: 1 | C90: =IF(A90="-", A90, INT((A90-'Anexo I - Parametros'!$K$9)/365.25)) -> - | D90: 0 | F90: 0 | G90: 0 | H90: 0 | I90: 0 | J90: 0 | K90: 0 | L90: 0 | M90: 0 | N90: 0 | O90: 0 | P90: 0 | Q90: 0 | S90: 0 | T90: 0 | U90: 0 | V90: 0 | W90: 0 | X90: 0 | Y90: 0 | Z90: 0 | AA90: 0 | AB90: 0 | AC90: 0 | AD90: 0 | AE90: 0 | AF90: 0 | AG90: 0 | AH90: 0 | AI90: 0 | AJ90: 0 | AK90: 0 | AM90: 0 | AN90: 0 | AO90: 0 | AP90: 0 | AQ90: 0 | AR90: 0 | AS90: 0 | AU90: 0 | AV90: 0 | AX90: 0 | AY90: 0 | AZ90: 0 | BA90: =IF(AX90<=0,0, IF(UPPER(ATENDIMENTO!$C$51)="S", IF(MONTH(A90)<> 1, BA89, VLOOKUP(C90,Premios!$G$4:$I$104,2,FALSE)), 0)) -> 0 | BB90: =IF(AX90<=0,0, IF(UPPER(ATENDIMENTO!$C$52)="S", IF(MONTH(A90)<> 1, BB89, VLOOKUP(C90,Premios!$G$4:$I$104,3,FALSE)), 0)) -> 0 | BC90: =IF(AX90=0,0, MIN( 30, IF($G$18="M", ROUND(VLOOKUP(C90,TbSobrVAL!$A$4:$K$134,10,FALSE),0), ROUND(VLOOKUP(C90,TbSobrVAL!$M$4:$W$134,10,FALSE),0))) ) -> 0 | BD90: =IF(AX90=0,0, 1/PMT($G$7,BC90*12,-1,0,0) + (1/PMT($G$6,BC90,-1,0,1)) / (1+$G$7)^(12-MONTH('Anexo I - Parametros'!$K$9)) ) -> 0 | BE90: 0 | BG90: 0 | BH90: 0 | BI90: 0 | BJ90: 0 | BL90: 0 | BM90: 0 | BN90: 0 | BO90: 0 | BP90: 0 | BQ90: 0 | BS90: 0 | BT90: 0 | BU90: 0 | BV90: 0 | BW90: 0 | BX90: 0 | BY90: 0 | BZ90: 0 | CA90: 0 | CB90: 0 | CC90: 0
A91: =IF(A90>TbSobrVAL!$H$1,"-",EDATE(A90,1)) -> - | B91: 1 | C91: =IF(A91="-", A91, INT((A91-'Anexo I - Parametros'!$K$9)/365.25)) -> - | D91: 0 | F91: 0 | G91: 0 | H91: 0 | I91: 0 | J91: 0 | K91: 0 | L91: 0 | M91: 0 | N91: 0 | O91: 0 | P91: 0 | Q91: 0 | S91: 0 | T91: 0 | U91: 0 | V91: 0 | W91: 0 | X91: 0 | Y91: 0 | Z91: 0 | AA91: 0 | AB91: 0 | AC91: 0 | AD91: 0 | AE91: 0 | AF91: 0 | AG91: 0 | AH91: 0 | AI91: 0 | AJ91: 0 | AK91: 0 | AM91: 0 | AN91: 0 | AO91: 0 | AP91: 0 | AQ91: 0 | AR91: 0 | AS91: 0 | AU91: 0 | AV91: 0 | AX91: 0 | AY91: 0 | AZ91: 0 | BA91: =IF(AX91<=0,0, IF(UPPER(ATENDIMENTO!$C$51)="S", IF(MONTH(A91)<> 1, BA90, VLOOKUP(C91,Premios!$G$4:$I$104,2,FALSE)), 0)) -> 0 | BB91: =IF(AX91<=0,0, IF(UPPER(ATENDIMENTO!$C$52)="S", IF(MONTH(A91)<> 1, BB90, VLOOKUP(C91,Premios!$G$4:$I$104,3,FALSE)), 0)) -> 0 | BC91: =IF(AX91=0,0, MIN( 30, IF($G$18="M", ROUND(VLOOKUP(C91,TbSobrVAL!$A$4:$K$134,10,FALSE),0), ROUND(VLOOKUP(C91,TbSobrVAL!$M$4:$W$134,10,FALSE),0))) ) -> 0 | BD91: =IF(AX91=0,0, 1/PMT($G$7,BC91*12,-1,0,0) + (1/PMT($G$6,BC91,-1,0,1)) / (1+$G$7)^(12-MONTH('Anexo I - Parametros'!$K$9)) ) -> 0 | BE91: 0 | BG91: 0 | BH91: 0 | BI91: 0 | BJ91: 0 | BL91: 0 | BM91: 0 | BN91: 0 | BO91: 0 | BP91: 0 | BQ91: 0 | BS91: 0 | BT91: 0 | BU91: 0 | BV91: 0 | BW91: 0 | BX91: 0 | BY91: 0 | BZ91: 0 | CA91: 0 | CB91: 0 | CC91: 0
A92: =IF(A91>TbSobrVAL!$H$1,"-",EDATE(A91,1)) -> - | B92: 1 | C92: =IF(A92="-", A92, INT((A92-'Anexo I - Parametros'!$K$9)/365.25)) -> - | D92: 0 | F92: 0 | G92: 0 | H92: 0 | I92: 0 | J92: 0 | K92: 0 | L92: 0 | M92: 0 | N92: 0 | O92: 0 | P92: 0 | Q92: 0 | S92: 0 | T92: 0 | U92: 0 | V92: 0 | W92: 0 | X92: 0 | Y92: 0 | Z92: 0 | AA92: 0 | AB92: 0 | AC92: 0 | AD92: 0 | AE92: 0 | AF92: 0 | AG92: 0 | AH92: 0 | AI92: 0 | AJ92: 0 | AK92: 0 | AM92: 0 | AN92: 0 | AO92: 0 | AP92: 0 | AQ92: 0 | AR92: 0 | AS92: 0 | AU92: 0 | AV92: 0 | AX92: 0 | AY92: 0 | AZ92: 0 | BA92: =IF(AX92<=0,0, IF(UPPER(ATENDIMENTO!$C$51)="S", IF(MONTH(A92)<> 1, BA91, VLOOKUP(C92,Premios!$G$4:$I$104,2,FALSE)), 0)) -> 0 | BB92: =IF(AX92<=0,0, IF(UPPER(ATENDIMENTO!$C$52)="S", IF(MONTH(A92)<> 1, BB91, VLOOKUP(C92,Premios!$G$4:$I$104,3,FALSE)), 0)) -> 0 | BC92: =IF(AX92=0,0, MIN( 30, IF($G$18="M", ROUND(VLOOKUP(C92,TbSobrVAL!$A$4:$K$134,10,FALSE),0), ROUND(VLOOKUP(C92,TbSobrVAL!$M$4:$W$134,10,FALSE),0))) ) -> 0 | BD92: =IF(AX92=0,0, 1/PMT($G$7,BC92*12,-1,0,0) + (1/PMT($G$6,BC92,-1,0,1)) / (1+$G$7)^(12-MONTH('Anexo I - Parametros'!$K$9)) ) -> 0 | BE92: 0 | BG92: 0 | BH92: 0 | BI92: 0 | BJ92: 0 | BL92: 0 | BM92: 0 | BN92: 0 | BO92: 0 | BP92: 0 | BQ92: 0 | BS92: 0 | BT92: 0 | BU92: 0 | BV92: 0 | BW92: 0 | BX92: 0 | BY92: 0 | BZ92: 0 | CA92: 0 | CB92: 0 | CC92: 0
A93: =IF(A92>TbSobrVAL!$H$1,"-",EDATE(A92,1)) -> - | B93: 1 | C93: =IF(A93="-", A93, INT((A93-'Anexo I - Parametros'!$K$9)/365.25)) -> - | D93: 0 | F93: 0 | G93: 0 | H93: 0 | I93: 0 | J93: 0 | K93: 0 | L93: 0 | M93: 0 | N93: 0 | O93: 0 | P93: 0 | Q93: 0 | S93: 0 | T93: 0 | U93: 0 | V93: 0 | W93: 0 | X93: 0 | Y93: 0 | Z93: 0 | AA93: 0 | AB93: 0 | AC93: 0 | AD93: 0 | AE93: 0 | AF93: 0 | AG93: 0 | AH93: 0 | AI93: 0 | AJ93: 0 | AK93: 0 | AM93: 0 | AN93: 0 | AO93: 0 | AP93: 0 | AQ93: 0 | AR93: 0 | AS93: 0 | AU93: 0 | AV93: 0 | AX93: 0 | AY93: 0 | AZ93: 0 | BA93: =IF(AX93<=0,0, IF(UPPER(ATENDIMENTO!$C$51)="S", IF(MONTH(A93)<> 1, BA92, VLOOKUP(C93,Premios!$G$4:$I$104,2,FALSE)), 0)) -> 0 | BB93: =IF(AX93<=0,0, IF(UPPER(ATENDIMENTO!$C$52)="S", IF(MONTH(A93)<> 1, BB92, VLOOKUP(C93,Premios!$G$4:$I$104,3,FALSE)), 0)) -> 0 | BC93: =IF(AX93=0,0, MIN( 30, IF($G$18="M", ROUND(VLOOKUP(C93,TbSobrVAL!$A$4:$K$134,10,FALSE),0), ROUND(VLOOKUP(C93,TbSobrVAL!$M$4:$W$134,10,FALSE),0))) ) -> 0 | BD93: =IF(AX93=0,0, 1/PMT($G$7,BC93*12,-1,0,0) + (1/PMT($G$6,BC93,-1,0,1)) / (1+$G$7)^(12-MONTH('Anexo I - Parametros'!$K$9)) ) -> 0 | BE93: 0 | BG93: 0 | BH93: 0 | BI93: 0 | BJ93: 0 | BL93: 0 | BM93: 0 | BN93: 0 | BO93: 0 | BP93: 0 | BQ93: 0 | BS93: 0 | BT93: 0 | BU93: 0 | BV93: 0 | BW93: 0 | BX93: 0 | BY93: 0 | BZ93: 0 | CA93: 0 | CB93: 0 | CC93: 0
A94: =IF(A93>TbSobrVAL!$H$1,"-",EDATE(A93,1)) -> - | B94: 1 | C94: =IF(A94="-", A94, INT((A94-'Anexo I - Parametros'!$K$9)/365.25)) -> - | D94: 0 | F94: 0 | G94: 0 | H94: 0 | I94: 0 | J94: 0 | K94: 0 | L94: 0 | M94: 0 | N94: 0 | O94: 0 | P94: 0 | Q94: 0 | S94: 0 | T94: 0 | U94: 0 | V94: 0 | W94: 0 | X94: 0 | Y94: 0 | Z94: 0 | AA94: 0 | AB94: 0 | AC94: 0 | AD94: 0 | AE94: 0 | AF94: 0 | AG94: 0 | AH94: 0 | AI94: 0 | AJ94: 0 | AK94: 0 | AM94: 0 | AN94: 0 | AO94: 0 | AP94: 0 | AQ94: 0 | AR94: 0 | AS94: 0 | AU94: 0 | AV94: 0 | AX94: 0 | AY94: 0 | AZ94: 0 | BA94: =IF(AX94<=0,0, IF(UPPER(ATENDIMENTO!$C$51)="S", IF(MONTH(A94)<> 1, BA93, VLOOKUP(C94,Premios!$G$4:$I$104,2,FALSE)), 0)) -> 0 | BB94: =IF(AX94<=0,0, IF(UPPER(ATENDIMENTO!$C$52)="S", IF(MONTH(A94)<> 1, BB93, VLOOKUP(C94,Premios!$G$4:$I$104,3,FALSE)), 0)) -> 0 | BC94: =IF(AX94=0,0, MIN( 30, IF($G$18="M", ROUND(VLOOKUP(C94,TbSobrVAL!$A$4:$K$134,10,FALSE),0), ROUND(VLOOKUP(C94,TbSobrVAL!$M$4:$W$134,10,FALSE),0))) ) -> 0 | BD94: =IF(AX94=0,0, 1/PMT($G$7,BC94*12,-1,0,0) + (1/PMT($G$6,BC94,-1,0,1)) / (1+$G$7)^(12-MONTH('Anexo I - Parametros'!$K$9)) ) -> 0 | BE94: 0 | BG94: 0 | BH94: 0 | BI94: 0 | BJ94: 0 | BL94: 0 | BM94: 0 | BN94: 0 | BO94: 0 | BP94: 0 | BQ94: 0 | BS94: 0 | BT94: 0 | BU94: 0 | BV94: 0 | BW94: 0 | BX94: 0 | BY94: 0 | BZ94: 0 | CA94: 0 | CB94: 0 | CC94: 0
A95: =IF(A94>TbSobrVAL!$H$1,"-",EDATE(A94,1)) -> - | B95: 1 | C95: =IF(A95="-", A95, INT((A95-'Anexo I - Parametros'!$K$9)/365.25)) -> - | D95: 0 | F95: 0 | G95: 0 | H95: 0 | I95: 0 | J95: 0 | K95: 0 | L95: 0 | M95: 0 | N95: 0 | O95: 0 | P95: 0 | Q95: 0 | S95: 0 | T95: 0 | U95: 0 | V95: 0 | W95: 0 | X95: 0 | Y95: 0 | Z95: 0 | AA95: 0 | AB95: 0 | AC95: 0 | AD95: 0 | AE95: 0 | AF95: 0 | AG95: 0 | AH95: 0 | AI95: 0 | AJ95: 0 | AK95: 0 | AM95: 0 | AN95: 0 | AO95: 0 | AP95: 0 | AQ95: 0 | AR95: 0 | AS95: 0 | AU95: 0 | AV95: 0 | AX95: 0 | AY95: 0 | AZ95: 0 | BA95: =IF(AX95<=0,0, IF(UPPER(ATENDIMENTO!$C$51)="S", IF(MONTH(A95)<> 1, BA94, VLOOKUP(C95,Premios!$G$4:$I$104,2,FALSE)), 0)) -> 0 | BB95: =IF(AX95<=0,0, IF(UPPER(ATENDIMENTO!$C$52)="S", IF(MONTH(A95)<> 1, BB94, VLOOKUP(C95,Premios!$G$4:$I$104,3,FALSE)), 0)) -> 0 | BC95: =IF(AX95=0,0, MIN( 30, IF($G$18="M", ROUND(VLOOKUP(C95,TbSobrVAL!$A$4:$K$134,10,FALSE),0), ROUND(VLOOKUP(C95,TbSobrVAL!$M$4:$W$134,10,FALSE),0))) ) -> 0 | BD95: =IF(AX95=0,0, 1/PMT($G$7,BC95*12,-1,0,0) + (1/PMT($G$6,BC95,-1,0,1)) / (1+$G$7)^(12-MONTH('Anexo I - Parametros'!$K$9)) ) -> 0 | BE95: 0 | BG95: 0 | BH95: 0 | BI95: 0 | BJ95: 0 | BL95: 0 | BM95: 0 | BN95: 0 | BO95: 0 | BP95: 0 | BQ95: 0 | BS95: 0 | BT95: 0 | BU95: 0 | BV95: 0 | BW95: 0 | BX95: 0 | BY95: 0 | BZ95: 0 | CA95: 0 | CB95: 0 | CC95: 0
A96: =IF(A95>TbSobrVAL!$H$1,"-",EDATE(A95,1)) -> - | B96: 1 | C96: =IF(A96="-", A96, INT((A96-'Anexo I - Parametros'!$K$9)/365.25)) -> - | D96: 0 | F96: 0 | G96: 0 | H96: 0 | I96: 0 | J96: 0 | K96: 0 | L96: 0 | M96: 0 | N96: 0 | O96: 0 | P96: 0 | Q96: 0 | S96: 0 | T96: 0 | U96: 0 | V96: 0 | W96: 0 | X96: 0 | Y96: 0 | Z96: 0 | AA96: 0 | AB96: 0 | AC96: 0 | AD96: 0 | AE96: 0 | AF96: 0 | AG96: 0 | AH96: 0 | AI96: 0 | AJ96: 0 | AK96: 0 | AM96: 0 | AN96: 0 | AO96: 0 | AP96: 0 | AQ96: 0 | AR96: 0 | AS96: 0 | AU96: 0 | AV96: 0 | AX96: 0 | AY96: 0 | AZ96: 0 | BA96: =IF(AX96<=0,0, IF(UPPER(ATENDIMENTO!$C$51)="S", IF(MONTH(A96)<> 1, BA95, VLOOKUP(C96,Premios!$G$4:$I$104,2,FALSE)), 0)) -> 0 | BB96: =IF(AX96<=0,0, IF(UPPER(ATENDIMENTO!$C$52)="S", IF(MONTH(A96)<> 1, BB95, VLOOKUP(C96,Premios!$G$4:$I$104,3,FALSE)), 0)) -> 0 | BC96: =IF(AX96=0,0, MIN( 30, IF($G$18="M", ROUND(VLOOKUP(C96,TbSobrVAL!$A$4:$K$134,10,FALSE),0), ROUND(VLOOKUP(C96,TbSobrVAL!$M$4:$W$134,10,FALSE),0))) ) -> 0 | BD96: =IF(AX96=0,0, 1/PMT($G$7,BC96*12,-1,0,0) + (1/PMT($G$6,BC96,-1,0,1)) / (1+$G$7)^(12-MONTH('Anexo I - Parametros'!$K$9)) ) -> 0 | BE96: 0 | BG96: 0 | BH96: 0 | BI96: 0 | BJ96: 0 | BL96: 0 | BM96: 0 | BN96: 0 | BO96: 0 | BP96: 0 | BQ96: 0 | BS96: 0 | BT96: 0 | BU96: 0 | BV96: 0 | BW96: 0 | BX96: 0 | BY96: 0 | BZ96: 0 | CA96: 0 | CB96: 0 | CC96: 0
A97: =IF(A96>TbSobrVAL!$H$1,"-",EDATE(A96,1)) -> - | B97: 1 | C97: =IF(A97="-", A97, INT((A97-'Anexo I - Parametros'!$K$9)/365.25)) -> - | D97: 0 | F97: 0 | G97: 0 | H97: 0 | I97: 0 | J97: 0 | K97: 0 | L97: 0 | M97: 0 | N97: 0 | O97: 0 | P97: 0 | Q97: 0 | S97: 0 | T97: 0 | U97: 0 | V97: 0 | W97: 0 | X97: 0 | Y97: 0 | Z97: 0 | AA97: 0 | AB97: 0 | AC97: 0 | AD97: 0 | AE97: 0 | AF97: 0 | AG97: 0 | AH97: 0 | AI97: 0 | AJ97: 0 | AK97: 0 | AM97: 0 | AN97: 0 | AO97: 0 | AP97: 0 | AQ97: 0 | AR97: 0 | AS97: 0 | AU97: 0 | AV97: 0 | AX97: 0 | AY97: 0 | AZ97: 0 | BA97: =IF(AX97<=0,0, IF(UPPER(ATENDIMENTO!$C$51)="S", IF(MONTH(A97)<> 1, BA96, VLOOKUP(C97,Premios!$G$4:$I$104,2,FALSE)), 0)) -> 0 | BB97: =IF(AX97<=0,0, IF(UPPER(ATENDIMENTO!$C$52)="S", IF(MONTH(A97)<> 1, BB96, VLOOKUP(C97,Premios!$G$4:$I$104,3,FALSE)), 0)) -> 0 | BC97: =IF(AX97=0,0, MIN( 30, IF($G$18="M", ROUND(VLOOKUP(C97,TbSobrVAL!$A$4:$K$134,10,FALSE),0), ROUND(VLOOKUP(C97,TbSobrVAL!$M$4:$W$134,10,FALSE),0))) ) -> 0 | BD97: =IF(AX97=0,0, 1/PMT($G$7,BC97*12,-1,0,0) + (1/PMT($G$6,BC97,-1,0,1)) / (1+$G$7)^(12-MONTH('Anexo I - Parametros'!$K$9)) ) -> 0 | BE97: 0 | BG97: 0 | BH97: 0 | BI97: 0 | BJ97: 0 | BL97: 0 | BM97: 0 | BN97: 0 | BO97: 0 | BP97: 0 | BQ97: 0 | BS97: 0 | BT97: 0 | BU97: 0 | BV97: 0 | BW97: 0 | BX97: 0 | BY97: 0 | BZ97: 0 | CA97: 0 | CB97: 0 | CC97: 0
A98: =IF(A97>TbSobrVAL!$H$1,"-",EDATE(A97,1)) -> - | B98: 1 | C98: =IF(A98="-", A98, INT((A98-'Anexo I - Parametros'!$K$9)/365.25)) -> - | D98: 0 | F98: 0 | G98: 0 | H98: 0 | I98: 0 | J98: 0 | K98: 0 | L98: 0 | M98: 0 | N98: 0 | O98: 0 | P98: 0 | Q98: 0 | S98: 0 | T98: 0 | U98: 0 | V98: 0 | W98: 0 | X98: 0 | Y98: 0 | Z98: 0 | AA98: 0 | AB98: 0 | AC98: 0 | AD98: 0 | AE98: 0 | AF98: 0 | AG98: 0 | AH98: 0 | AI98: 0 | AJ98: 0 | AK98: 0 | AM98: 0 | AN98: 0 | AO98: 0 | AP98: 0 | AQ98: 0 | AR98: 0 | AS98: 0 | AU98: 0 | AV98: 0 | AX98: 0 | AY98: 0 | AZ98: 0 | BA98: =IF(AX98<=0,0, IF(UPPER(ATENDIMENTO!$C$51)="S", IF(MONTH(A98)<> 1, BA97, VLOOKUP(C98,Premios!$G$4:$I$104,2,FALSE)), 0)) -> 0 | BB98: =IF(AX98<=0,0, IF(UPPER(ATENDIMENTO!$C$52)="S", IF(MONTH(A98)<> 1, BB97, VLOOKUP(C98,Premios!$G$4:$I$104,3,FALSE)), 0)) -> 0 | BC98: =IF(AX98=0,0, MIN( 30, IF($G$18="M", ROUND(VLOOKUP(C98,TbSobrVAL!$A$4:$K$134,10,FALSE),0), ROUND(VLOOKUP(C98,TbSobrVAL!$M$4:$W$134,10,FALSE),0))) ) -> 0 | BD98: =IF(AX98=0,0, 1/PMT($G$7,BC98*12,-1,0,0) + (1/PMT($G$6,BC98,-1,0,1)) / (1+$G$7)^(12-MONTH('Anexo I - Parametros'!$K$9)) ) -> 0 | BE98: 0 | BG98: 0 | BH98: 0 | BI98: 0 | BJ98: 0 | BL98: 0 | BM98: 0 | BN98: 0 | BO98: 0 | BP98: 0 | BQ98: 0 | BS98: 0 | BT98: 0 | BU98: 0 | BV98: 0 | BW98: 0 | BX98: 0 | BY98: 0 | BZ98: 0 | CA98: 0 | CB98: 0 | CC98: 0
A99: =IF(A98>TbSobrVAL!$H$1,"-",EDATE(A98,1)) -> - | B99: 1 | C99: =IF(A99="-", A99, INT((A99-'Anexo I - Parametros'!$K$9)/365.25)) -> - | D99: 0 | F99: 0 | G99: 0 | H99: 0 | I99: 0 | J99: 0 | K99: 0 | L99: 0 | M99: 0 | N99: 0 | O99: 0 | P99: 0 | Q99: 0 | S99: 0 | T99: 0 | U99: 0 | V99: 0 | W99: 0 | X99: 0 | Y99: 0 | Z99: 0 | AA99: 0 | AB99: 0 | AC99: 0 | AD99: 0 | AE99: 0 | AF99: 0 | AG99: 0 | AH99: 0 | AI99: 0 | AJ99: 0 | AK99: 0 | AM99: 0 | AN99: 0 | AO99: 0 | AP99: 0 | AQ99: 0 | AR99: 0 | AS99: 0 | AU99: 0 | AV99: 0 | AX99: 0 | AY99: 0 | AZ99: 0 | BA99: =IF(AX99<=0,0, IF(UPPER(ATENDIMENTO!$C$51)="S", IF(MONTH(A99)<> 1, BA98, VLOOKUP(C99,Premios!$G$4:$I$104,2,FALSE)), 0)) -> 0 | BB99: =IF(AX99<=0,0, IF(UPPER(ATENDIMENTO!$C$52)="S", IF(MONTH(A99)<> 1, BB98, VLOOKUP(C99,Premios!$G$4:$I$104,3,FALSE)), 0)) -> 0 | BC99: =IF(AX99=0,0, MIN( 30, IF($G$18="M", ROUND(VLOOKUP(C99,TbSobrVAL!$A$4:$K$134,10,FALSE),0), ROUND(VLOOKUP(C99,TbSobrVAL!$M$4:$W$134,10,FALSE),0))) ) -> 0 | BD99: =IF(AX99=0,0, 1/PMT($G$7,BC99*12,-1,0,0) + (1/PMT($G$6,BC99,-1,0,1)) / (1+$G$7)^(12-MONTH('Anexo I - Parametros'!$K$9)) ) -> 0 | BE99: 0 | BG99: 0 | BH99: 0 | BI99: 0 | BJ99: 0 | BL99: 0 | BM99: 0 | BN99: 0 | BO99: 0 | BP99: 0 | BQ99: 0 | BS99: 0 | BT99: 0 | BU99: 0 | BV99: 0 | BW99: 0 | BX99: 0 | BY99: 0 | BZ99: 0 | CA99: 0 | CB99: 0 | CC99: 0
A100: =IF(A99>TbSobrVAL!$H$1,"-",EDATE(A99,1)) -> - | B100: 1 | C100: =IF(A100="-", A100, INT((A100-'Anexo I - Parametros'!$K$9)/365.25)) -> - | D100: 0 | F100: 0 | G100: 0 | H100: 0 | I100: 0 | J100: 0 | K100: 0 | L100: 0 | M100: 0 | N100: 0 | O100: 0 | P100: 0 | Q100: 0 | S100: 0 | T100: 0 | U100: 0 | V100: 0 | W100: 0 | X100: 0 | Y100: 0 | Z100: 0 | AA100: 0 | AB100: 0 | AC100: 0 | AD100: 0 | AE100: 0 | AF100: 0 | AG100: 0 | AH100: 0 | AI100: 0 | AJ100: 0 | AK100: 0 | AM100: 0 | AN100: 0 | AO100: 0 | AP100: 0 | AQ100: 0 | AR100: 0 | AS100: 0 | AU100: 0 | AV100: 0 | AX100: 0 | AY100: 0 | AZ100: 0 | BA100: =IF(AX100<=0,0, IF(UPPER(ATENDIMENTO!$C$51)="S", IF(MONTH(A100)<> 1, BA99, VLOOKUP(C100,Premios!$G$4:$I$104,2,FALSE)), 0)) -> 0 | BB100: =IF(AX100<=0,0, IF(UPPER(ATENDIMENTO!$C$52)="S", IF(MONTH(A100)<> 1, BB99, VLOOKUP(C100,Premios!$G$4:$I$104,3,FALSE)), 0)) -> 0 | BC100: =IF(AX100=0,0, MIN( 30, IF($G$18="M", ROUND(VLOOKUP(C100,TbSobrVAL!$A$4:$K$134,10,FALSE),0), ROUND(VLOOKUP(C100,TbSobrVAL!$M$4:$W$134,10,FALSE),0))) ) -> 0 | BD100: =IF(AX100=0,0, 1/PMT($G$7,BC100*12,-1,0,0) + (1/PMT($G$6,BC100,-1,0,1)) / (1+$G$7)^(12-MONTH('Anexo I - Parametros'!$K$9)) ) -> 0 | BE100: 0 | BG100: 0 | BH100: 0 | BI100: 0 | BJ100: 0 | BL100: 0 | BM100: 0 | BN100: 0 | BO100: 0 | BP100: 0 | BQ100: 0 | BS100: 0 | BT100: 0 | BU100: 0 | BV100: 0 | BW100: 0 | BX100: 0 | BY100: 0 | BZ100: 0 | CA100: 0 | CB100: 0 | CC100: 0
A101: =IF(A100>TbSobrVAL!$H$1,"-",EDATE(A100,1)) -> - | B101: 1 | C101: =IF(A101="-", A101, INT((A101-'Anexo I - Parametros'!$K$9)/365.25)) -> - | D101: 0 | F101: 0 | G101: 0 | H101: 0 | I101: 0 | J101: 0 | K101: 0 | L101: 0 | M101: 0 | N101: 0 | O101: 0 | P101: 0 | Q101: 0 | S101: 0 | T101: 0 | U101: 0 | V101: 0 | W101: 0 | X101: 0 | Y101: 0 | Z101: 0 | AA101: 0 | AB101: 0 | AC101: 0 | AD101: 0 | AE101: 0 | AF101: 0 | AG101: 0 | AH101: 0 | AI101: 0 | AJ101: 0 | AK101: 0 | AM101: 0 | AN101: 0 | AO101: 0 | AP101: 0 | AQ101: 0 | AR101: 0 | AS101: 0 | AU101: 0 | AV101: 0 | AX101: 0 | AY101: 0 | AZ101: 0 | BA101: =IF(AX101<=0,0, IF(UPPER(ATENDIMENTO!$C$51)="S", IF(MONTH(A101)<> 1, BA100, VLOOKUP(C101,Premios!$G$4:$I$104,2,FALSE)), 0)) -> 0 | BB101: =IF(AX101<=0,0, IF(UPPER(ATENDIMENTO!$C$52)="S", IF(MONTH(A101)<> 1, BB100, VLOOKUP(C101,Premios!$G$4:$I$104,3,FALSE)), 0)) -> 0 | BC101: =IF(AX101=0,0, MIN( 30, IF($G$18="M", ROUND(VLOOKUP(C101,TbSobrVAL!$A$4:$K$134,10,FALSE),0), ROUND(VLOOKUP(C101,TbSobrVAL!$M$4:$W$134,10,FALSE),0))) ) -> 0 | BD101: =IF(AX101=0,0, 1/PMT($G$7,BC101*12,-1,0,0) + (1/PMT($G$6,BC101,-1,0,1)) / (1+$G$7)^(12-MONTH('Anexo I - Parametros'!$K$9)) ) -> 0 | BE101: 0 | BG101: 0 | BH101: 0 | BI101: 0 | BJ101: 0 | BL101: 0 | BM101: 0 | BN101: 0 | BO101: 0 | BP101: 0 | BQ101: 0 | BS101: 0 | BT101: 0 | BU101: 0 | BV101: 0 | BW101: 0 | BX101: 0 | BY101: 0 | BZ101: 0 | CA101: 0 | CB101: 0 | CC101: 0
A102: =IF(A101>TbSobrVAL!$H$1,"-",EDATE(A101,1)) -> - | B102: 1 | C102: =IF(A102="-", A102, INT((A102-'Anexo I - Parametros'!$K$9)/365.25)) -> - | D102: 0 | F102: 0 | G102: 0 | H102: 0 | I102: 0 | J102: 0 | K102: 0 | L102: 0 | M102: 0 | N102: 0 | O102: 0 | P102: 0 | Q102: 0 | S102: 0 | T102: 0 | U102: 0 | V102: 0 | W102: 0 | X102: 0 | Y102: 0 | Z102: 0 | AA102: 0 | AB102: 0 | AC102: 0 | AD102: 0 | AE102: 0 | AF102: 0 | AG102: 0 | AH102: 0 | AI102: 0 | AJ102: 0 | AK102: 0 | AM102: 0 | AN102: 0 | AO102: 0 | AP102: 0 | AQ102: 0 | AR102: 0 | AS102: 0 | AU102: 0 | AV102: 0 | AX102: 0 | AY102: 0 | AZ102: 0 | BA102: =IF(AX102<=0,0, IF(UPPER(ATENDIMENTO!$C$51)="S", IF(MONTH(A102)<> 1, BA101, VLOOKUP(C102,Premios!$G$4:$I$104,2,FALSE)), 0)) -> 0 | BB102: =IF(AX102<=0,0, IF(UPPER(ATENDIMENTO!$C$52)="S", IF(MONTH(A102)<> 1, BB101, VLOOKUP(C102,Premios!$G$4:$I$104,3,FALSE)), 0)) -> 0 | BC102: =IF(AX102=0,0, MIN( 30, IF($G$18="M", ROUND(VLOOKUP(C102,TbSobrVAL!$A$4:$K$134,10,FALSE),0), ROUND(VLOOKUP(C102,TbSobrVAL!$M$4:$W$134,10,FALSE),0))) ) -> 0 | BD102: =IF(AX102=0,0, 1/PMT($G$7,BC102*12,-1,0,0) + (1/PMT($G$6,BC102,-1,0,1)) / (1+$G$7)^(12-MONTH('Anexo I - Parametros'!$K$9)) ) -> 0 | BE102: 0 | BG102: 0 | BH102: 0 | BI102: 0 | BJ102: 0 | BL102: 0 | BM102: 0 | BN102: 0 | BO102: 0 | BP102: 0 | BQ102: 0 | BS102: 0 | BT102: 0 | BU102: 0 | BV102: 0 | BW102: 0 | BX102: 0 | BY102: 0 | BZ102: 0 | CA102: 0 | CB102: 0 | CC102: 0
A103: =IF(A102>TbSobrVAL!$H$1,"-",EDATE(A102,1)) -> - | B103: 1 | C103: =IF(A103="-", A103, INT((A103-'Anexo I - Parametros'!$K$9)/365.25)) -> - | D103: 0 | F103: 0 | G103: 0 | H103: 0 | I103: 0 | J103: 0 | K103: 0 | L103: 0 | M103: 0 | N103: 0 | O103: 0 | P103: 0 | Q103: 0 | S103: 0 | T103: 0 | U103: 0 | V103: 0 | W103: 0 | X103: 0 | Y103: 0 | Z103: 0 | AA103: 0 | AB103: 0 | AC103: 0 | AD103: 0 | AE103: 0 | AF103: 0 | AG103: 0 | AH103: 0 | AI103: 0 | AJ103: 0 | AK103: 0 | AM103: 0 | AN103: 0 | AO103: 0 | AP103: 0 | AQ103: 0 | AR103: 0 | AS103: 0 | AU103: 0 | AV103: 0 | AX103: 0 | AY103: 0 | AZ103: 0 | BA103: =IF(AX103<=0,0, IF(UPPER(ATENDIMENTO!$C$51)="S", IF(MONTH(A103)<> 1, BA102, VLOOKUP(C103,Premios!$G$4:$I$104,2,FALSE)), 0)) -> 0 | BB103: =IF(AX103<=0,0, IF(UPPER(ATENDIMENTO!$C$52)="S", IF(MONTH(A103)<> 1, BB102, VLOOKUP(C103,Premios!$G$4:$I$104,3,FALSE)), 0)) -> 0 | BC103: =IF(AX103=0,0, MIN( 30, IF($G$18="M", ROUND(VLOOKUP(C103,TbSobrVAL!$A$4:$K$134,10,FALSE),0), ROUND(VLOOKUP(C103,TbSobrVAL!$M$4:$W$134,10,FALSE),0))) ) -> 0 | BD103: =IF(AX103=0,0, 1/PMT($G$7,BC103*12,-1,0,0) + (1/PMT($G$6,BC103,-1,0,1)) / (1+$G$7)^(12-MONTH('Anexo I - Parametros'!$K$9)) ) -> 0 | BE103: 0 | BG103: 0 | BH103: 0 | BI103: 0 | BJ103: 0 | BL103: 0 | BM103: 0 | BN103: 0 | BO103: 0 | BP103: 0 | BQ103: 0 | BS103: 0 | BT103: 0 | BU103: 0 | BV103: 0 | BW103: 0 | BX103: 0 | BY103: 0 | BZ103: 0 | CA103: 0 | CB103: 0 | CC103: 0
A104: =IF(A103>TbSobrVAL!$H$1,"-",EDATE(A103,1)) -> - | B104: 1 | C104: =IF(A104="-", A104, INT((A104-'Anexo I - Parametros'!$K$9)/365.25)) -> - | D104: 0 | F104: 0 | G104: 0 | H104: 0 | I104: 0 | J104: 0 | K104: 0 | L104: 0 | M104: 0 | N104: 0 | O104: 0 | P104: 0 | Q104: 0 | S104: 0 | T104: 0 | U104: 0 | V104: 0 | W104: 0 | X104: 0 | Y104: 0 | Z104: 0 | AA104: 0 | AB104: 0 | AC104: 0 | AD104: 0 | AE104: 0 | AF104: 0 | AG104: 0 | AH104: 0 | AI104: 0 | AJ104: 0 | AK104: 0 | AM104: 0 | AN104: 0 | AO104: 0 | AP104: 0 | AQ104: 0 | AR104: 0 | AS104: 0 | AU104: 0 | AV104: 0 | AX104: 0 | AY104: 0 | AZ104: 0 | BA104: =IF(AX104<=0,0, IF(UPPER(ATENDIMENTO!$C$51)="S", IF(MONTH(A104)<> 1, BA103, VLOOKUP(C104,Premios!$G$4:$I$104,2,FALSE)), 0)) -> 0 | BB104: =IF(AX104<=0,0, IF(UPPER(ATENDIMENTO!$C$52)="S", IF(MONTH(A104)<> 1, BB103, VLOOKUP(C104,Premios!$G$4:$I$104,3,FALSE)), 0)) -> 0 | BC104: =IF(AX104=0,0, MIN( 30, IF($G$18="M", ROUND(VLOOKUP(C104,TbSobrVAL!$A$4:$K$134,10,FALSE),0), ROUND(VLOOKUP(C104,TbSobrVAL!$M$4:$W$134,10,FALSE),0))) ) -> 0 | BD104: =IF(AX104=0,0, 1/PMT($G$7,BC104*12,-1,0,0) + (1/PMT($G$6,BC104,-1,0,1)) / (1+$G$7)^(12-MONTH('Anexo I - Parametros'!$K$9)) ) -> 0 | BE104: 0 | BG104: 0 | BH104: 0 | BI104: 0 | BJ104: 0 | BL104: 0 | BM104: 0 | BN104: 0 | BO104: 0 | BP104: 0 | BQ104: 0 | BS104: 0 | BT104: 0 | BU104: 0 | BV104: 0 | BW104: 0 | BX104: 0 | BY104: 0 | BZ104: 0 | CA104: 0 | CB104: 0 | CC104: 0
A105: =IF(A104>TbSobrVAL!$H$1,"-",EDATE(A104,1)) -> - | B105: 1 | C105: =IF(A105="-", A105, INT((A105-'Anexo I - Parametros'!$K$9)/365.25)) -> - | D105: 0 | F105: 0 | G105: 0 | H105: 0 | I105: 0 | J105: 0 | K105: 0 | L105: 0 | M105: 0 | N105: 0 | O105: 0 | P105: 0 | Q105: 0 | S105: 0 | T105: 0 | U105: 0 | V105: 0 | W105: 0 | X105: 0 | Y105: 0 | Z105: 0 | AA105: 0 | AB105: 0 | AC105: 0 | AD105: 0 | AE105: 0 | AF105: 0 | AG105: 0 | AH105: 0 | AI105: 0 | AJ105: 0 | AK105: 0 | AM105: 0 | AN105: 0 | AO105: 0 | AP105: 0 | AQ105: 0 | AR105: 0 | AS105: 0 | AU105: 0 | AV105: 0 | AX105: 0 | AY105: 0 | AZ105: 0 | BA105: =IF(AX105<=0,0, IF(UPPER(ATENDIMENTO!$C$51)="S", IF(MONTH(A105)<> 1, BA104, VLOOKUP(C105,Premios!$G$4:$I$104,2,FALSE)), 0)) -> 0 | BB105: =IF(AX105<=0,0, IF(UPPER(ATENDIMENTO!$C$52)="S", IF(MONTH(A105)<> 1, BB104, VLOOKUP(C105,Premios!$G$4:$I$104,3,FALSE)), 0)) -> 0 | BC105: =IF(AX105=0,0, MIN( 30, IF($G$18="M", ROUND(VLOOKUP(C105,TbSobrVAL!$A$4:$K$134,10,FALSE),0), ROUND(VLOOKUP(C105,TbSobrVAL!$M$4:$W$134,10,FALSE),0))) ) -> 0 | BD105: =IF(AX105=0,0, 1/PMT($G$7,BC105*12,-1,0,0) + (1/PMT($G$6,BC105,-1,0,1)) / (1+$G$7)^(12-MONTH('Anexo I - Parametros'!$K$9)) ) -> 0 | BE105: 0 | BG105: 0 | BH105: 0 | BI105: 0 | BJ105: 0 | BL105: 0 | BM105: 0 | BN105: 0 | BO105: 0 | BP105: 0 | BQ105: 0 | BS105: 0 | BT105: 0 | BU105: 0 | BV105: 0 | BW105: 0 | BX105: 0 | BY105: 0 | BZ105: 0 | CA105: 0 | CB105: 0 | CC105: 0
A106: =IF(A105>TbSobrVAL!$H$1,"-",EDATE(A105,1)) -> - | B106: 1 | C106: =IF(A106="-", A106, INT((A106-'Anexo I - Parametros'!$K$9)/365.25)) -> - | D106: 0 | F106: 0 | G106: 0 | H106: 0 | I106: =(F106+H106) / $B106 -> 0 | J106: 0 | K106: =F106+H106+J106 -> 0 | L106: =IF(AND($A106>$G$27,$A106<$G$34), $M$12 * $B106,0) -> 0 | M106: =-MAX(0, L106-$G$24 * $B106 ) * $G$10 -> 0 | N106: =IF(L106=0,0, (L106+M106-IF(C106>=65, $Q$5, 0) * $B106 ) / $B106 ) -> 0 | O106: 0 | P106: =L106+M106+O106 -> 0 | Q106: =K106+P106 -> 0 | S106: =IF($A106>$G$27,0, IF($G$12=1, MIN($G$25*B106,F106), IF($G$11=1, F106, MIN($G$25*B106,F106)))) -> 0 | T106: =IF($G$12=1,F106-S106,F106) -> 0 | U106: =-$S106*$G$8 -> 0 | V106: =-$T106*$G$13 -> 0 | W106: =(F106+U106+V106) / $B106 -> 0 | X106: =-IF(W106<=$Q$5,0,IF(W106<=$Q$6,W106*$R$6-$S$6,IF(W106<=$Q$7,W106*$R$7-$S$7,IF(W106<$Q$8,W106*$R$8-$S$8,W106*$R$9-$S$9)))) * $B106 -> 0 | Y106: =F106+U106+V106+X106 -> 0 | Z106: =IF(AND($A106>$G$27,$A106<$G$34), $N$12 * $B106,0) -> 0 | AA106: =IF(AND($A106>$G$27,$A106<$G$34), $N$13 * $B106,0) -> 0 | AB106: =-MAX(0,(Z106-$G$24 * $B106 ) )*$G$10 -> 0 | AC106: =IF(Z106+AA106=0,0, (Z106+AA106+AB106-IF(C106>=65, $Q$5, 0) * $B106 ) / $B106 ) -> 0 | AD106: 0 | AE106: 0 | AF106: =IF(AND($A106>$G$27,$A106<$G$31), $M$8 * $B106,0) -> 0 | AG106: =IF(A106="-",0,(A106-$G$26)/365.25) -> 0 | AH106: 0 | AI106: =-AF106*$G$17 -> 0 | AJ106: 0 | AK106: 0 | AM106: =-V106 -> 0 | AN106: =$T106*$G$14 -> 0 | AO106: =-(($T106*(MIN($G$13, 8.5%) + $G$14) + AP106)*$G$15 + $T106*MAX($G$13- 8.5%,0)*$G$16) -> 0 | AP106: =-AZ106/100000 * (BA106+BB106) -> 0 | AQ106: 0 | AR106: 0 | AS106: 0 | AU106: 0 | AV106: =IF(AU106=0,0, AV105*(1+$G$5)+AU106) -> 0 | AX106: 0 | AY106: =IF(AX106<=0,0, $T106*(MIN($G$13, 8.5%)+$G$14) / IF(MONTH(A106)=12,2,1)) -> 0 | AZ106: 0 | BA106: =IF(AX106<=0,0, IF(UPPER(ATENDIMENTO!$C$51)="S", IF(MONTH(A106)<> 1, BA105, VLOOKUP(C106,Premios!$G$4:$I$104,2,FALSE)), 0)) -> 0 | BB106: =IF(AX106<=0,0, IF(UPPER(ATENDIMENTO!$C$52)="S", IF(MONTH(A106)<> 1, BB105, VLOOKUP(C106,Premios!$G$4:$I$104,3,FALSE)), 0)) -> 0 | BC106: =IF(AX106=0,0, MIN( 30, IF($G$18="M", ROUND(VLOOKUP(C106,TbSobrVAL!$A$4:$K$134,10,FALSE),0), ROUND(VLOOKUP(C106,TbSobrVAL!$M$4:$W$134,10,FALSE),0))) ) -> 0 | BD106: =IF(AX106=0,0, 1/PMT($G$7,BC106*12,-1,0,0) + (1/PMT($G$6,BC106,-1,0,1)) / (1+$G$7)^(12-MONTH('Anexo I - Parametros'!$K$9)) ) -> 0 | BE106: 0 | BG106: =Q106 / $B106 -> 0 | BH106: =IF(A106<$G$34, AK106 / $B106, 0) -> 0 | BI106: 0 | BJ106: =IF(A106<$G$34, (AJ106+AE106-P106) / $B106, 0) -> 0 | BL106: =-V106 -> 0 | BM106: =-(($T106*MIN($G$13, 8.5%) + BN106)*$G$15 + $T106*MAX($G$13- 8.5%,0)*$G$16) -> 0 | BN106: 0 | BO106: 0 | BP106: 0 | BQ106: 0 | BS106: =$T106*$G$14 -> 0 | BT106: =-(BS106 + BU106)*$G$15 -> 0 | BU106: 0 | BV106: 0 | BW106: 0 | BX106: 0 | BY106: =IF($A106>$G$27, 0, AS106-BP106-BW106) -> 0 | BZ106: 0 | CA106: 0 | CB106: =IF($A106>$G$27, 0, AS106-BQ106-BX106-BZ106) -> 0 | CC106: 0
A107: =IF(A106>TbSobrVAL!$H$1,"-",EDATE(A106,1)) -> - | B107: =IF(A107="-", 1, IF(MONTH($A107)=12,2,1)) -> 1 | C107: =IF(A107="-", A107, INT((A107-'Anexo I - Parametros'!$K$9)/365.25)) -> - | D107: =IF($A107>$G$27,0, IF(MONTH(A107)<> 1, D106, MIN(D106*(1+$G$23),$G$22))) -> 0 | F107: =IF(A107="-", 0, D107*$B107) -> 0 | G107: =IF($G$11=1, F107, MIN(F107, $G$25*B107)) -> 0 | H107: =-G107*$G$8 -> 0 | I107: 0 | J107: =-IF(I107<=$Q$5,0,IF(I107<=$Q$6,I107*$R$6-$S$6,IF(I107<=$Q$7,I107*$R$7-$S$7,IF(I107<$Q$8,I107*$R$8-$S$8,I107*$R$9-$S$9)))) * $B107 -> 0 | K107: 0 | L107: 0 | M107: 0 | N107: 0 | O107: =-IF(N107<=$Q$5,0,IF(N107<=$Q$6,N107*$R$6-$S$6,IF(N107<=$Q$7,N107*$R$7-$S$7,IF(N107<$Q$8,N107*$R$8-$S$8,N107*$R$9-$S$9)))) * $B107 -> 0 | P107: 0 | Q107: 0 | S107: 0 | T107: 0 | U107: 0 | V107: 0 | W107: 0 | X107: 0 | Y107: 0 | Z107: 0 | AA107: 0 | AB107: 0 | AC107: 0 | AD107: =-IF(AC107<=$Q$5,0,IF(AC107<=$Q$6,AC107*$R$6-$S$6,IF(AC107<=$Q$7,AC107*$R$7-$S$7,IF(AC107<$Q$8,AC107*$R$8-$S$8,AC107*$R$9-$S$9)))) * $B107 -> 0 | AE107: =Z107+AA107+AB107+AD107 -> 0 | AF107: 0 | AG107: 0 | AH107: =-AF107*IF(AG107<=$U$4,$V$4,IF(AG107<=$U$5,$V$5,IF(AG107<=$U$6,$V$6,IF(AG107<=$U$7,$V$7,IF(AG107<=$U$8,$V$8,$V$9))))) -> 0 | AI107: 0 | AJ107: =AF107+AH107+AI107 -> 0 | AK107: =Y107+AE107+AJ107 -> 0 | AM107: 0 | AN107: 0 | AO107: 0 | AP107: 0 | AQ107: =-AF107 -> 0 | AR107: =IF(A107<=$G$27, $G$5, $G$7)*AS106 -> 0 | AS107: =IF(A107>=$G$31,0, AS106+SUM(AM107:AR107)) -> 0 | AU107: =IF($A107="-",0, MAX(Y107-K107, 0)) -> 0 | AV107: 0 | AX107: =IF($G$12=2, 0, IF(A107>$G$36,0, ROUND(($G$36-A107)/365.25*12,0))) -> 0 | AY107: 0 | AZ107: 0 | BA107: =IF(AX107<=0,0, IF(UPPER(ATENDIMENTO!$C$51)="S", IF(MONTH(A107)<> 1, BA106, VLOOKUP(C107,Premios!$G$4:$I$104,2,FALSE)), 0)) -> 0 | BB107: =IF(AX107<=0,0, IF(UPPER(ATENDIMENTO!$C$52)="S", IF(MONTH(A107)<> 1, BB106, VLOOKUP(C107,Premios!$G$4:$I$104,3,FALSE)), 0)) -> 0 | BC107: =IF(AX107=0,0, MIN( 30, IF($G$18="M", ROUND(VLOOKUP(C107,TbSobrVAL!$A$4:$K$134,10,FALSE),0), ROUND(VLOOKUP(C107,TbSobrVAL!$M$4:$W$134,10,FALSE),0))) ) -> 0 | BD107: =IF(AX107=0,0, 1/PMT($G$7,BC107*12,-1,0,0) + (1/PMT($G$6,BC107,-1,0,1)) / (1+$G$7)^(12-MONTH('Anexo I - Parametros'!$K$9)) ) -> 0 | BE107: =IF(BD107=0,0,(AS107+AZ107)/BD107) -> 0 | BG107: 0 | BH107: 0 | BI107: =(Y107-K107) / $B107 -> 0 | BJ107: 0 | BL107: 0 | BM107: 0 | BN107: =IF(AX107<=0,0, IF(MONTH(A107)<> 1, BN106, -($T107*MIN($G$13, 8.5%) / IF(MONTH(A107)=12,2,1) * AX107)/100000 * (BA107+BB107))) -> 0 | BO107: =IF($A107>$G$27, 0, IF($A107<=$G$27, $G$5, $G$7)*BP106) -> 0 | BP107: =IF($A107>$G$27, 0, IF($A107>=$G$31,0, BP106+SUM(BL107:BO107))) -> 0 | BQ107: =IF($A107>$G$27,0,BQ106+SUM(BL107:BN107)) -> 0 | BS107: 0 | BT107: 0 | BU107: =IF(AX107<=0,0, IF(MONTH(A107)<> 1, BU106, -($T107*$G$14 / IF(MONTH(A107)=12,2,1) * AX107)/100000 * (BA107+BB107))) -> 0 | BV107: =IF($A107>$G$27, 0, IF($A107<=$G$27, $G$5, $G$7)*BW106) -> 0 | BW107: =IF($A107>$G$27, 0, IF($A107>=$G$31,0, BW106+SUM(BS107:BV107))) -> 0 | BX107: =IF($A107>$G$27,0,BX106+SUM(BS107:BU107)) -> 0 | BY107: 0 | BZ107: =IF($A107>$G$27,0, BZ106+BO107+BV107) -> 0 | CA107: =IF($A107>$G$27,0, CA106+BO107) -> 0 | CB107: 0 | CC107: 0
A108: =IF(A107>TbSobrVAL!$H$1,"-",EDATE(A107,1)) -> - | B108: 1 | C108: =IF(A108="-", A108, INT((A108-'Anexo I - Parametros'!$K$9)/365.25)) -> - | D108: 0 | F108: 0 | G108: 0 | H108: 0 | I108: 0 | J108: 0 | K108: 0 | L108: 0 | M108: 0 | N108: 0 | O108: 0 | P108: 0 | Q108: 0 | S108: 0 | T108: 0 | U108: 0 | V108: 0 | W108: 0 | X108: 0 | Y108: 0 | Z108: 0 | AA108: 0 | AB108: 0 | AC108: 0 | AD108: 0 | AE108: 0 | AF108: 0 | AG108: 0 | AH108: 0 | AI108: 0 | AJ108: 0 | AK108: 0 | AM108: 0 | AN108: 0 | AO108: 0 | AP108: 0 | AQ108: 0 | AR108: 0 | AS108: 0 | AU108: 0 | AV108: 0 | AX108: 0 | AY108: 0 | AZ108: =IF(AX108<=0,0, IF(MONTH(A108)<> 1, AZ107, AY108*AX108)) -> 0 | BA108: =IF(AX108<=0,0, IF(UPPER(ATENDIMENTO!$C$51)="S", IF(MONTH(A108)<> 1, BA107, VLOOKUP(C108,Premios!$G$4:$I$104,2,FALSE)), 0)) -> 0 | BB108: =IF(AX108<=0,0, IF(UPPER(ATENDIMENTO!$C$52)="S", IF(MONTH(A108)<> 1, BB107, VLOOKUP(C108,Premios!$G$4:$I$104,3,FALSE)), 0)) -> 0 | BC108: =IF(AX108=0,0, MIN( 30, IF($G$18="M", ROUND(VLOOKUP(C108,TbSobrVAL!$A$4:$K$134,10,FALSE),0), ROUND(VLOOKUP(C108,TbSobrVAL!$M$4:$W$134,10,FALSE),0))) ) -> 0 | BD108: =IF(AX108=0,0, 1/PMT($G$7,BC108*12,-1,0,0) + (1/PMT($G$6,BC108,-1,0,1)) / (1+$G$7)^(12-MONTH('Anexo I - Parametros'!$K$9)) ) -> 0 | BE108: 0 | BG108: 0 | BH108: 0 | BI108: 0 | BJ108: 0 | BL108: 0 | BM108: 0 | BN108: 0 | BO108: 0 | BP108: 0 | BQ108: 0 | BS108: 0 | BT108: 0 | BU108: 0 | BV108: 0 | BW108: 0 | BX108: 0 | BY108: 0 | BZ108: 0 | CA108: 0 | CB108: 0 | CC108: =BP108-BQ108-CA108 -> 0
A109: =IF(A108>TbSobrVAL!$H$1,"-",EDATE(A108,1)) -> - | B109: 1 | C109: =IF(A109="-", A109, INT((A109-'Anexo I - Parametros'!$K$9)/365.25)) -> - | D109: 0 | F109: 0 | G109: 0 | H109: 0 | I109: 0 | J109: 0 | K109: 0 | L109: 0 | M109: 0 | N109: 0 | O109: 0 | P109: 0 | Q109: 0 | S109: 0 | T109: 0 | U109: 0 | V109: 0 | W109: 0 | X109: 0 | Y109: 0 | Z109: 0 | AA109: 0 | AB109: 0 | AC109: 0 | AD109: 0 | AE109: 0 | AF109: 0 | AG109: 0 | AH109: 0 | AI109: 0 | AJ109: 0 | AK109: 0 | AM109: 0 | AN109: 0 | AO109: 0 | AP109: 0 | AQ109: 0 | AR109: 0 | AS109: 0 | AU109: 0 | AV109: 0 | AX109: 0 | AY109: 0 | AZ109: 0 | BA109: =IF(AX109<=0,0, IF(UPPER(ATENDIMENTO!$C$51)="S", IF(MONTH(A109)<> 1, BA108, VLOOKUP(C109,Premios!$G$4:$I$104,2,FALSE)), 0)) -> 0 | BB109: =IF(AX109<=0,0, IF(UPPER(ATENDIMENTO!$C$52)="S", IF(MONTH(A109)<> 1, BB108, VLOOKUP(C109,Premios!$G$4:$I$104,3,FALSE)), 0)) -> 0 | BC109: =IF(AX109=0,0, MIN( 30, IF($G$18="M", ROUND(VLOOKUP(C109,TbSobrVAL!$A$4:$K$134,10,FALSE),0), ROUND(VLOOKUP(C109,TbSobrVAL!$M$4:$W$134,10,FALSE),0))) ) -> 0 | BD109: =IF(AX109=0,0, 1/PMT($G$7,BC109*12,-1,0,0) + (1/PMT($G$6,BC109,-1,0,1)) / (1+$G$7)^(12-MONTH('Anexo I - Parametros'!$K$9)) ) -> 0 | BE109: 0 | BG109: 0 | BH109: 0 | BI109: 0 | BJ109: 0 | BL109: 0 | BM109: 0 | BN109: 0 | BO109: 0 | BP109: 0 | BQ109: 0 | BS109: 0 | BT109: 0 | BU109: 0 | BV109: 0 | BW109: 0 | BX109: 0 | BY109: 0 | BZ109: 0 | CA109: 0 | CB109: 0 | CC109: 0
A110: =IF(A109>TbSobrVAL!$H$1,"-",EDATE(A109,1)) -> - | B110: 1 | C110: =IF(A110="-", A110, INT((A110-'Anexo I - Parametros'!$K$9)/365.25)) -> - | D110: 0 | F110: 0 | G110: 0 | H110: 0 | I110: 0 | J110: 0 | K110: 0 | L110: 0 | M110: 0 | N110: 0 | O110: 0 | P110: 0 | Q110: 0 | S110: 0 | T110: 0 | U110: 0 | V110: 0 | W110: 0 | X110: 0 | Y110: 0 | Z110: 0 | AA110: 0 | AB110: 0 | AC110: 0 | AD110: 0 | AE110: 0 | AF110: 0 | AG110: 0 | AH110: 0 | AI110: 0 | AJ110: 0 | AK110: 0 | AM110: 0 | AN110: 0 | AO110: 0 | AP110: 0 | AQ110: 0 | AR110: 0 | AS110: 0 | AU110: 0 | AV110: 0 | AX110: 0 | AY110: 0 | AZ110: 0 | BA110: =IF(AX110<=0,0, IF(UPPER(ATENDIMENTO!$C$51)="S", IF(MONTH(A110)<> 1, BA109, VLOOKUP(C110,Premios!$G$4:$I$104,2,FALSE)), 0)) -> 0 | BB110: =IF(AX110<=0,0, IF(UPPER(ATENDIMENTO!$C$52)="S", IF(MONTH(A110)<> 1, BB109, VLOOKUP(C110,Premios!$G$4:$I$104,3,FALSE)), 0)) -> 0 | BC110: =IF(AX110=0,0, MIN( 30, IF($G$18="M", ROUND(VLOOKUP(C110,TbSobrVAL!$A$4:$K$134,10,FALSE),0), ROUND(VLOOKUP(C110,TbSobrVAL!$M$4:$W$134,10,FALSE),0))) ) -> 0 | BD110: =IF(AX110=0,0, 1/PMT($G$7,BC110*12,-1,0,0) + (1/PMT($G$6,BC110,-1,0,1)) / (1+$G$7)^(12-MONTH('Anexo I - Parametros'!$K$9)) ) -> 0 | BE110: 0 | BG110: 0 | BH110: 0 | BI110: 0 | BJ110: 0 | BL110: 0 | BM110: 0 | BN110: 0 | BO110: 0 | BP110: 0 | BQ110: 0 | BS110: 0 | BT110: 0 | BU110: 0 | BV110: 0 | BW110: 0 | BX110: 0 | BY110: 0 | BZ110: 0 | CA110: 0 | CB110: 0 | CC110: 0
A111: =IF(A110>TbSobrVAL!$H$1,"-",EDATE(A110,1)) -> - | B111: 1 | C111: =IF(A111="-", A111, INT((A111-'Anexo I - Parametros'!$K$9)/365.25)) -> - | D111: 0 | F111: 0 | G111: 0 | H111: 0 | I111: 0 | J111: 0 | K111: 0 | L111: 0 | M111: 0 | N111: 0 | O111: 0 | P111: 0 | Q111: 0 | S111: 0 | T111: 0 | U111: 0 | V111: 0 | W111: 0 | X111: 0 | Y111: 0 | Z111: 0 | AA111: 0 | AB111: 0 | AC111: 0 | AD111: 0 | AE111: 0 | AF111: 0 | AG111: 0 | AH111: 0 | AI111: 0 | AJ111: 0 | AK111: 0 | AM111: 0 | AN111: 0 | AO111: 0 | AP111: 0 | AQ111: 0 | AR111: 0 | AS111: 0 | AU111: 0 | AV111: 0 | AX111: 0 | AY111: 0 | AZ111: 0 | BA111: =IF(AX111<=0,0, IF(UPPER(ATENDIMENTO!$C$51)="S", IF(MONTH(A111)<> 1, BA110, VLOOKUP(C111,Premios!$G$4:$I$104,2,FALSE)), 0)) -> 0 | BB111: =IF(AX111<=0,0, IF(UPPER(ATENDIMENTO!$C$52)="S", IF(MONTH(A111)<> 1, BB110, VLOOKUP(C111,Premios!$G$4:$I$104,3,FALSE)), 0)) -> 0 | BC111: =IF(AX111=0,0, MIN( 30, IF($G$18="M", ROUND(VLOOKUP(C111,TbSobrVAL!$A$4:$K$134,10,FALSE),0), ROUND(VLOOKUP(C111,TbSobrVAL!$M$4:$W$134,10,FALSE),0))) ) -> 0 | BD111: =IF(AX111=0,0, 1/PMT($G$7,BC111*12,-1,0,0) + (1/PMT($G$6,BC111,-1,0,1)) / (1+$G$7)^(12-MONTH('Anexo I - Parametros'!$K$9)) ) -> 0 | BE111: 0 | BG111: 0 | BH111: 0 | BI111: 0 | BJ111: 0 | BL111: 0 | BM111: 0 | BN111: 0 | BO111: 0 | BP111: 0 | BQ111: 0 | BS111: 0 | BT111: 0 | BU111: 0 | BV111: 0 | BW111: 0 | BX111: 0 | BY111: 0 | BZ111: 0 | CA111: 0 | CB111: 0 | CC111: 0
A112: =IF(A111>TbSobrVAL!$H$1,"-",EDATE(A111,1)) -> - | B112: 1 | C112: =IF(A112="-", A112, INT((A112-'Anexo I - Parametros'!$K$9)/365.25)) -> - | D112: 0 | F112: 0 | G112: 0 | H112: 0 | I112: 0 | J112: 0 | K112: 0 | L112: 0 | M112: 0 | N112: 0 | O112: 0 | P112: 0 | Q112: 0 | S112: 0 | T112: 0 | U112: 0 | V112: 0 | W112: 0 | X112: 0 | Y112: 0 | Z112: 0 | AA112: 0 | AB112: 0 | AC112: 0 | AD112: 0 | AE112: 0 | AF112: 0 | AG112: 0 | AH112: 0 | AI112: 0 | AJ112: 0 | AK112: 0 | AM112: 0 | AN112: 0 | AO112: 0 | AP112: 0 | AQ112: 0 | AR112: 0 | AS112: 0 | AU112: 0 | AV112: 0 | AX112: 0 | AY112: 0 | AZ112: 0 | BA112: =IF(AX112<=0,0, IF(UPPER(ATENDIMENTO!$C$51)="S", IF(MONTH(A112)<> 1, BA111, VLOOKUP(C112,Premios!$G$4:$I$104,2,FALSE)), 0)) -> 0 | BB112: =IF(AX112<=0,0, IF(UPPER(ATENDIMENTO!$C$52)="S", IF(MONTH(A112)<> 1, BB111, VLOOKUP(C112,Premios!$G$4:$I$104,3,FALSE)), 0)) -> 0 | BC112: =IF(AX112=0,0, MIN( 30, IF($G$18="M", ROUND(VLOOKUP(C112,TbSobrVAL!$A$4:$K$134,10,FALSE),0), ROUND(VLOOKUP(C112,TbSobrVAL!$M$4:$W$134,10,FALSE),0))) ) -> 0 | BD112: =IF(AX112=0,0, 1/PMT($G$7,BC112*12,-1,0,0) + (1/PMT($G$6,BC112,-1,0,1)) / (1+$G$7)^(12-MONTH('Anexo I - Parametros'!$K$9)) ) -> 0 | BE112: 0 | BG112: 0 | BH112: 0 | BI112: 0 | BJ112: 0 | BL112: 0 | BM112: 0 | BN112: 0 | BO112: 0 | BP112: 0 | BQ112: 0 | BS112: 0 | BT112: 0 | BU112: 0 | BV112: 0 | BW112: 0 | BX112: 0 | BY112: 0 | BZ112: 0 | CA112: 0 | CB112: 0 | CC112: 0
A113: =IF(A112>TbSobrVAL!$H$1,"-",EDATE(A112,1)) -> - | B113: 1 | C113: =IF(A113="-", A113, INT((A113-'Anexo I - Parametros'!$K$9)/365.25)) -> - | D113: 0 | F113: 0 | G113: 0 | H113: 0 | I113: 0 | J113: 0 | K113: 0 | L113: 0 | M113: 0 | N113: 0 | O113: 0 | P113: 0 | Q113: 0 | S113: 0 | T113: 0 | U113: 0 | V113: 0 | W113: 0 | X113: 0 | Y113: 0 | Z113: 0 | AA113: 0 | AB113: 0 | AC113: 0 | AD113: 0 | AE113: 0 | AF113: 0 | AG113: 0 | AH113: 0 | AI113: 0 | AJ113: 0 | AK113: 0 | AM113: 0 | AN113: 0 | AO113: 0 | AP113: 0 | AQ113: 0 | AR113: 0 | AS113: 0 | AU113: 0 | AV113: 0 | AX113: 0 | AY113: 0 | AZ113: 0 | BA113: =IF(AX113<=0,0, IF(UPPER(ATENDIMENTO!$C$51)="S", IF(MONTH(A113)<> 1, BA112, VLOOKUP(C113,Premios!$G$4:$I$104,2,FALSE)), 0)) -> 0 | BB113: =IF(AX113<=0,0, IF(UPPER(ATENDIMENTO!$C$52)="S", IF(MONTH(A113)<> 1, BB112, VLOOKUP(C113,Premios!$G$4:$I$104,3,FALSE)), 0)) -> 0 | BC113: =IF(AX113=0,0, MIN( 30, IF($G$18="M", ROUND(VLOOKUP(C113,TbSobrVAL!$A$4:$K$134,10,FALSE),0), ROUND(VLOOKUP(C113,TbSobrVAL!$M$4:$W$134,10,FALSE),0))) ) -> 0 | BD113: =IF(AX113=0,0, 1/PMT($G$7,BC113*12,-1,0,0) + (1/PMT($G$6,BC113,-1,0,1)) / (1+$G$7)^(12-MONTH('Anexo I - Parametros'!$K$9)) ) -> 0 | BE113: 0 | BG113: 0 | BH113: 0 | BI113: 0 | BJ113: 0 | BL113: 0 | BM113: 0 | BN113: 0 | BO113: 0 | BP113: 0 | BQ113: 0 | BS113: 0 | BT113: 0 | BU113: 0 | BV113: 0 | BW113: 0 | BX113: 0 | BY113: 0 | BZ113: 0 | CA113: 0 | CB113: 0 | CC113: 0
A114: =IF(A113>TbSobrVAL!$H$1,"-",EDATE(A113,1)) -> - | B114: 1 | C114: =IF(A114="-", A114, INT((A114-'Anexo I - Parametros'!$K$9)/365.25)) -> - | D114: 0 | F114: 0 | G114: 0 | H114: 0 | I114: 0 | J114: 0 | K114: 0 | L114: 0 | M114: 0 | N114: 0 | O114: 0 | P114: 0 | Q114: 0 | S114: 0 | T114: 0 | U114: 0 | V114: 0 | W114: 0 | X114: 0 | Y114: 0 | Z114: 0 | AA114: 0 | AB114: 0 | AC114: 0 | AD114: 0 | AE114: 0 | AF114: 0 | AG114: 0 | AH114: 0 | AI114: 0 | AJ114: 0 | AK114: 0 | AM114: 0 | AN114: 0 | AO114: 0 | AP114: 0 | AQ114: 0 | AR114: 0 | AS114: 0 | AU114: 0 | AV114: 0 | AX114: 0 | AY114: 0 | AZ114: 0 | BA114: =IF(AX114<=0,0, IF(UPPER(ATENDIMENTO!$C$51)="S", IF(MONTH(A114)<> 1, BA113, VLOOKUP(C114,Premios!$G$4:$I$104,2,FALSE)), 0)) -> 0 | BB114: =IF(AX114<=0,0, IF(UPPER(ATENDIMENTO!$C$52)="S", IF(MONTH(A114)<> 1, BB113, VLOOKUP(C114,Premios!$G$4:$I$104,3,FALSE)), 0)) -> 0 | BC114: =IF(AX114=0,0, MIN( 30, IF($G$18="M", ROUND(VLOOKUP(C114,TbSobrVAL!$A$4:$K$134,10,FALSE),0), ROUND(VLOOKUP(C114,TbSobrVAL!$M$4:$W$134,10,FALSE),0))) ) -> 0 | BD114: =IF(AX114=0,0, 1/PMT($G$7,BC114*12,-1,0,0) + (1/PMT($G$6,BC114,-1,0,1)) / (1+$G$7)^(12-MONTH('Anexo I - Parametros'!$K$9)) ) -> 0 | BE114: 0 | BG114: 0 | BH114: 0 | BI114: 0 | BJ114: 0 | BL114: 0 | BM114: 0 | BN114: 0 | BO114: 0 | BP114: 0 | BQ114: 0 | BS114: 0 | BT114: 0 | BU114: 0 | BV114: 0 | BW114: 0 | BX114: 0 | BY114: 0 | BZ114: 0 | CA114: 0 | CB114: 0 | CC114: 0
A115: =IF(A114>TbSobrVAL!$H$1,"-",EDATE(A114,1)) -> - | B115: 1 | C115: =IF(A115="-", A115, INT((A115-'Anexo I - Parametros'!$K$9)/365.25)) -> - | D115: 0 | F115: 0 | G115: 0 | H115: 0 | I115: 0 | J115: 0 | K115: 0 | L115: 0 | M115: 0 | N115: 0 | O115: 0 | P115: 0 | Q115: 0 | S115: 0 | T115: 0 | U115: 0 | V115: 0 | W115: 0 | X115: 0 | Y115: 0 | Z115: 0 | AA115: 0 | AB115: 0 | AC115: 0 | AD115: 0 | AE115: 0 | AF115: 0 | AG115: 0 | AH115: 0 | AI115: 0 | AJ115: 0 | AK115: 0 | AM115: 0 | AN115: 0 | AO115: 0 | AP115: 0 | AQ115: 0 | AR115: 0 | AS115: 0 | AU115: 0 | AV115: 0 | AX115: 0 | AY115: 0 | AZ115: 0 | BA115: =IF(AX115<=0,0, IF(UPPER(ATENDIMENTO!$C$51)="S", IF(MONTH(A115)<> 1, BA114, VLOOKUP(C115,Premios!$G$4:$I$104,2,FALSE)), 0)) -> 0 | BB115: =IF(AX115<=0,0, IF(UPPER(ATENDIMENTO!$C$52)="S", IF(MONTH(A115)<> 1, BB114, VLOOKUP(C115,Premios!$G$4:$I$104,3,FALSE)), 0)) -> 0 | BC115: =IF(AX115=0,0, MIN( 30, IF($G$18="M", ROUND(VLOOKUP(C115,TbSobrVAL!$A$4:$K$134,10,FALSE),0), ROUND(VLOOKUP(C115,TbSobrVAL!$M$4:$W$134,10,FALSE),0))) ) -> 0 | BD115: =IF(AX115=0,0, 1/PMT($G$7,BC115*12,-1,0,0) + (1/PMT($G$6,BC115,-1,0,1)) / (1+$G$7)^(12-MONTH('Anexo I - Parametros'!$K$9)) ) -> 0 | BE115: 0 | BG115: 0 | BH115: 0 | BI115: 0 | BJ115: 0 | BL115: 0 | BM115: 0 | BN115: 0 | BO115: 0 | BP115: 0 | BQ115: 0 | BS115: 0 | BT115: 0 | BU115: 0 | BV115: 0 | BW115: 0 | BX115: 0 | BY115: 0 | BZ115: 0 | CA115: 0 | CB115: 0 | CC115: 0
A116: =IF(A115>TbSobrVAL!$H$1,"-",EDATE(A115,1)) -> - | B116: 1 | C116: =IF(A116="-", A116, INT((A116-'Anexo I - Parametros'!$K$9)/365.25)) -> - | D116: 0 | F116: 0 | G116: 0 | H116: 0 | I116: 0 | J116: 0 | K116: 0 | L116: 0 | M116: 0 | N116: 0 | O116: 0 | P116: 0 | Q116: 0 | S116: 0 | T116: 0 | U116: 0 | V116: 0 | W116: 0 | X116: 0 | Y116: 0 | Z116: 0 | AA116: 0 | AB116: 0 | AC116: 0 | AD116: 0 | AE116: 0 | AF116: 0 | AG116: 0 | AH116: 0 | AI116: 0 | AJ116: 0 | AK116: 0 | AM116: 0 | AN116: 0 | AO116: 0 | AP116: 0 | AQ116: 0 | AR116: 0 | AS116: 0 | AU116: 0 | AV116: 0 | AX116: 0 | AY116: 0 | AZ116: 0 | BA116: =IF(AX116<=0,0, IF(UPPER(ATENDIMENTO!$C$51)="S", IF(MONTH(A116)<> 1, BA115, VLOOKUP(C116,Premios!$G$4:$I$104,2,FALSE)), 0)) -> 0 | BB116: =IF(AX116<=0,0, IF(UPPER(ATENDIMENTO!$C$52)="S", IF(MONTH(A116)<> 1, BB115, VLOOKUP(C116,Premios!$G$4:$I$104,3,FALSE)), 0)) -> 0 | BC116: =IF(AX116=0,0, MIN( 30, IF($G$18="M", ROUND(VLOOKUP(C116,TbSobrVAL!$A$4:$K$134,10,FALSE),0), ROUND(VLOOKUP(C116,TbSobrVAL!$M$4:$W$134,10,FALSE),0))) ) -> 0 | BD116: =IF(AX116=0,0, 1/PMT($G$7,BC116*12,-1,0,0) + (1/PMT($G$6,BC116,-1,0,1)) / (1+$G$7)^(12-MONTH('Anexo I - Parametros'!$K$9)) ) -> 0 | BE116: 0 | BG116: 0 | BH116: 0 | BI116: 0 | BJ116: 0 | BL116: 0 | BM116: 0 | BN116: 0 | BO116: 0 | BP116: 0 | BQ116: 0 | BS116: 0 | BT116: 0 | BU116: 0 | BV116: 0 | BW116: 0 | BX116: 0 | BY116: 0 | BZ116: 0 | CA116: 0 | CB116: 0 | CC116: 0
A117: =IF(A116>TbSobrVAL!$H$1,"-",EDATE(A116,1)) -> - | B117: 1 | C117: =IF(A117="-", A117, INT((A117-'Anexo I - Parametros'!$K$9)/365.25)) -> - | D117: 0 | F117: 0 | G117: 0 | H117: 0 | I117: 0 | J117: 0 | K117: 0 | L117: 0 | M117: 0 | N117: 0 | O117: 0 | P117: 0 | Q117: 0 | S117: 0 | T117: 0 | U117: 0 | V117: 0 | W117: 0 | X117: 0 | Y117: 0 | Z117: 0 | AA117: 0 | AB117: 0 | AC117: 0 | AD117: 0 | AE117: 0 | AF117: 0 | AG117: 0 | AH117: 0 | AI117: 0 | AJ117: 0 | AK117: 0 | AM117: 0 | AN117: 0 | AO117: 0 | AP117: 0 | AQ117: 0 | AR117: 0 | AS117: 0 | AU117: 0 | AV117: 0 | AX117: 0 | AY117: 0 | AZ117: 0 | BA117: =IF(AX117<=0,0, IF(UPPER(ATENDIMENTO!$C$51)="S", IF(MONTH(A117)<> 1, BA116, VLOOKUP(C117,Premios!$G$4:$I$104,2,FALSE)), 0)) -> 0 | BB117: =IF(AX117<=0,0, IF(UPPER(ATENDIMENTO!$C$52)="S", IF(MONTH(A117)<> 1, BB116, VLOOKUP(C117,Premios!$G$4:$I$104,3,FALSE)), 0)) -> 0 | BC117: =IF(AX117=0,0, MIN( 30, IF($G$18="M", ROUND(VLOOKUP(C117,TbSobrVAL!$A$4:$K$134,10,FALSE),0), ROUND(VLOOKUP(C117,TbSobrVAL!$M$4:$W$134,10,FALSE),0))) ) -> 0 | BD117: =IF(AX117=0,0, 1/PMT($G$7,BC117*12,-1,0,0) + (1/PMT($G$6,BC117,-1,0,1)) / (1+$G$7)^(12-MONTH('Anexo I - Parametros'!$K$9)) ) -> 0 | BE117: 0 | BG117: 0 | BH117: 0 | BI117: 0 | BJ117: 0 | BL117: 0 | BM117: 0 | BN117: 0 | BO117: 0 | BP117: 0 | BQ117: 0 | BS117: 0 | BT117: 0 | BU117: 0 | BV117: 0 | BW117: 0 | BX117: 0 | BY117: 0 | BZ117: 0 | CA117: 0 | CB117: 0 | CC117: 0
A118: =IF(A117>TbSobrVAL!$H$1,"-",EDATE(A117,1)) -> - | B118: 1 | C118: =IF(A118="-", A118, INT((A118-'Anexo I - Parametros'!$K$9)/365.25)) -> - | D118: 0 | F118: 0 | G118: 0 | H118: 0 | I118: 0 | J118: 0 | K118: 0 | L118: 0 | M118: 0 | N118: 0 | O118: 0 | P118: 0 | Q118: 0 | S118: 0 | T118: 0 | U118: 0 | V118: 0 | W118: 0 | X118: 0 | Y118: 0 | Z118: 0 | AA118: 0 | AB118: 0 | AC118: 0 | AD118: 0 | AE118: 0 | AF118: 0 | AG118: 0 | AH118: 0 | AI118: 0 | AJ118: 0 | AK118: 0 | AM118: 0 | AN118: 0 | AO118: 0 | AP118: 0 | AQ118: 0 | AR118: 0 | AS118: 0 | AU118: 0 | AV118: 0 | AX118: 0 | AY118: 0 | AZ118: 0 | BA118: =IF(AX118<=0,0, IF(UPPER(ATENDIMENTO!$C$51)="S", IF(MONTH(A118)<> 1, BA117, VLOOKUP(C118,Premios!$G$4:$I$104,2,FALSE)), 0)) -> 0 | BB118: =IF(AX118<=0,0, IF(UPPER(ATENDIMENTO!$C$52)="S", IF(MONTH(A118)<> 1, BB117, VLOOKUP(C118,Premios!$G$4:$I$104,3,FALSE)), 0)) -> 0 | BC118: =IF(AX118=0,0, MIN( 30, IF($G$18="M", ROUND(VLOOKUP(C118,TbSobrVAL!$A$4:$K$134,10,FALSE),0), ROUND(VLOOKUP(C118,TbSobrVAL!$M$4:$W$134,10,FALSE),0))) ) -> 0 | BD118: =IF(AX118=0,0, 1/PMT($G$7,BC118*12,-1,0,0) + (1/PMT($G$6,BC118,-1,0,1)) / (1+$G$7)^(12-MONTH('Anexo I - Parametros'!$K$9)) ) -> 0 | BE118: 0 | BG118: 0 | BH118: 0 | BI118: 0 | BJ118: 0 | BL118: 0 | BM118: 0 | BN118: 0 | BO118: 0 | BP118: 0 | BQ118: 0 | BS118: 0 | BT118: 0 | BU118: 0 | BV118: 0 | BW118: 0 | BX118: 0 | BY118: 0 | BZ118: 0 | CA118: 0 | CB118: 0 | CC118: 0
A119: =IF(A118>TbSobrVAL!$H$1,"-",EDATE(A118,1)) -> - | B119: 1 | C119: =IF(A119="-", A119, INT((A119-'Anexo I - Parametros'!$K$9)/365.25)) -> - | D119: 0 | F119: 0 | G119: 0 | H119: 0 | I119: 0 | J119: 0 | K119: 0 | L119: 0 | M119: 0 | N119: 0 | O119: 0 | P119: 0 | Q119: 0 | S119: 0 | T119: 0 | U119: 0 | V119: 0 | W119: 0 | X119: 0 | Y119: 0 | Z119: 0 | AA119: 0 | AB119: 0 | AC119: 0 | AD119: 0 | AE119: 0 | AF119: 0 | AG119: 0 | AH119: 0 | AI119: 0 | AJ119: 0 | AK119: 0 | AM119: 0 | AN119: 0 | AO119: 0 | AP119: 0 | AQ119: 0 | AR119: 0 | AS119: 0 | AU119: 0 | AV119: 0 | AX119: 0 | AY119: 0 | AZ119: 0 | BA119: =IF(AX119<=0,0, IF(UPPER(ATENDIMENTO!$C$51)="S", IF(MONTH(A119)<> 1, BA118, VLOOKUP(C119,Premios!$G$4:$I$104,2,FALSE)), 0)) -> 0 | BB119: =IF(AX119<=0,0, IF(UPPER(ATENDIMENTO!$C$52)="S", IF(MONTH(A119)<> 1, BB118, VLOOKUP(C119,Premios!$G$4:$I$104,3,FALSE)), 0)) -> 0 | BC119: =IF(AX119=0,0, MIN( 30, IF($G$18="M", ROUND(VLOOKUP(C119,TbSobrVAL!$A$4:$K$134,10,FALSE),0), ROUND(VLOOKUP(C119,TbSobrVAL!$M$4:$W$134,10,FALSE),0))) ) -> 0 | BD119: =IF(AX119=0,0, 1/PMT($G$7,BC119*12,-1,0,0) + (1/PMT($G$6,BC119,-1,0,1)) / (1+$G$7)^(12-MONTH('Anexo I - Parametros'!$K$9)) ) -> 0 | BE119: 0 | BG119: 0 | BH119: 0 | BI119: 0 | BJ119: 0 | BL119: 0 | BM119: 0 | BN119: 0 | BO119: 0 | BP119: 0 | BQ119: 0 | BS119: 0 | BT119: 0 | BU119: 0 | BV119: 0 | BW119: 0 | BX119: 0 | BY119: 0 | BZ119: 0 | CA119: 0 | CB119: 0 | CC119: 0
A120: =IF(A119>TbSobrVAL!$H$1,"-",EDATE(A119,1)) -> - | B120: 1 | C120: =IF(A120="-", A120, INT((A120-'Anexo I - Parametros'!$K$9)/365.25)) -> - | D120: 0 | F120: 0 | G120: 0 | H120: 0 | I120: 0 | J120: 0 | K120: 0 | L120: 0 | M120: 0 | N120: 0 | O120: 0 | P120: 0 | Q120: 0 | S120: 0 | T120: 0 | U120: 0 | V120: 0 | W120: 0 | X120: 0 | Y120: 0 | Z120: 0 | AA120: 0 | AB120: 0 | AC120: 0 | AD120: 0 | AE120: 0 | AF120: 0 | AG120: 0 | AH120: 0 | AI120: 0 | AJ120: 0 | AK120: 0 | AM120: 0 | AN120: 0 | AO120: 0 | AP120: 0 | AQ120: 0 | AR120: 0 | AS120: 0 | AU120: 0 | AV120: 0 | AX120: 0 | AY120: 0 | AZ120: 0 | BA120: =IF(AX120<=0,0, IF(UPPER(ATENDIMENTO!$C$51)="S", IF(MONTH(A120)<> 1, BA119, VLOOKUP(C120,Premios!$G$4:$I$104,2,FALSE)), 0)) -> 0 | BB120: =IF(AX120<=0,0, IF(UPPER(ATENDIMENTO!$C$52)="S", IF(MONTH(A120)<> 1, BB119, VLOOKUP(C120,Premios!$G$4:$I$104,3,FALSE)), 0)) -> 0 | BC120: =IF(AX120=0,0, MIN( 30, IF($G$18="M", ROUND(VLOOKUP(C120,TbSobrVAL!$A$4:$K$134,10,FALSE),0), ROUND(VLOOKUP(C120,TbSobrVAL!$M$4:$W$134,10,FALSE),0))) ) -> 0 | BD120: =IF(AX120=0,0, 1/PMT($G$7,BC120*12,-1,0,0) + (1/PMT($G$6,BC120,-1,0,1)) / (1+$G$7)^(12-MONTH('Anexo I - Parametros'!$K$9)) ) -> 0 | BE120: 0 | BG120: 0 | BH120: 0 | BI120: 0 | BJ120: 0 | BL120: 0 | BM120: 0 | BN120: 0 | BO120: 0 | BP120: 0 | BQ120: 0 | BS120: 0 | BT120: 0 | BU120: 0 | BV120: 0 | BW120: 0 | BX120: 0 | BY120: 0 | BZ120: 0 | CA120: 0 | CB120: 0 | CC120: 0
A121: =IF(A120>TbSobrVAL!$H$1,"-",EDATE(A120,1)) -> - | B121: 1 | C121: =IF(A121="-", A121, INT((A121-'Anexo I - Parametros'!$K$9)/365.25)) -> - | D121: 0 | F121: 0 | G121: 0 | H121: 0 | I121: 0 | J121: 0 | K121: 0 | L121: 0 | M121: 0 | N121: 0 | O121: 0 | P121: 0 | Q121: 0 | S121: 0 | T121: 0 | U121: 0 | V121: 0 | W121: 0 | X121: 0 | Y121: 0 | Z121: 0 | AA121: 0 | AB121: 0 | AC121: 0 | AD121: 0 | AE121: 0 | AF121: 0 | AG121: 0 | AH121: 0 | AI121: 0 | AJ121: 0 | AK121: 0 | AM121: 0 | AN121: 0 | AO121: 0 | AP121: 0 | AQ121: 0 | AR121: 0 | AS121: 0 | AU121: 0 | AV121: 0 | AX121: 0 | AY121: 0 | AZ121: 0 | BA121: =IF(AX121<=0,0, IF(UPPER(ATENDIMENTO!$C$51)="S", IF(MONTH(A121)<> 1, BA120, VLOOKUP(C121,Premios!$G$4:$I$104,2,FALSE)), 0)) -> 0 | BB121: =IF(AX121<=0,0, IF(UPPER(ATENDIMENTO!$C$52)="S", IF(MONTH(A121)<> 1, BB120, VLOOKUP(C121,Premios!$G$4:$I$104,3,FALSE)), 0)) -> 0 | BC121: =IF(AX121=0,0, MIN( 30, IF($G$18="M", ROUND(VLOOKUP(C121,TbSobrVAL!$A$4:$K$134,10,FALSE),0), ROUND(VLOOKUP(C121,TbSobrVAL!$M$4:$W$134,10,FALSE),0))) ) -> 0 | BD121: =IF(AX121=0,0, 1/PMT($G$7,BC121*12,-1,0,0) + (1/PMT($G$6,BC121,-1,0,1)) / (1+$G$7)^(12-MONTH('Anexo I - Parametros'!$K$9)) ) -> 0 | BE121: 0 | BG121: 0 | BH121: 0 | BI121: 0 | BJ121: 0 | BL121: 0 | BM121: 0 | BN121: 0 | BO121: 0 | BP121: 0 | BQ121: 0 | BS121: 0 | BT121: 0 | BU121: 0 | BV121: 0 | BW121: 0 | BX121: 0 | BY121: 0 | BZ121: 0 | CA121: 0 | CB121: 0 | CC121: 0
A122: =IF(A121>TbSobrVAL!$H$1,"-",EDATE(A121,1)) -> - | B122: 1 | C122: =IF(A122="-", A122, INT((A122-'Anexo I - Parametros'!$K$9)/365.25)) -> - | D122: 0 | F122: 0 | G122: 0 | H122: 0 | I122: 0 | J122: 0 | K122: 0 | L122: 0 | M122: 0 | N122: 0 | O122: 0 | P122: 0 | Q122: 0 | S122: 0 | T122: 0 | U122: 0 | V122: 0 | W122: 0 | X122: 0 | Y122: 0 | Z122: 0 | AA122: 0 | AB122: 0 | AC122: 0 | AD122: 0 | AE122: 0 | AF122: 0 | AG122: 0 | AH122: 0 | AI122: 0 | AJ122: 0 | AK122: 0 | AM122: 0 | AN122: 0 | AO122: 0 | AP122: 0 | AQ122: 0 | AR122: 0 | AS122: 0 | AU122: 0 | AV122: 0 | AX122: 0 | AY122: 0 | AZ122: 0 | BA122: =IF(AX122<=0,0, IF(UPPER(ATENDIMENTO!$C$51)="S", IF(MONTH(A122)<> 1, BA121, VLOOKUP(C122,Premios!$G$4:$I$104,2,FALSE)), 0)) -> 0 | BB122: =IF(AX122<=0,0, IF(UPPER(ATENDIMENTO!$C$52)="S", IF(MONTH(A122)<> 1, BB121, VLOOKUP(C122,Premios!$G$4:$I$104,3,FALSE)), 0)) -> 0 | BC122: =IF(AX122=0,0, MIN( 30, IF($G$18="M", ROUND(VLOOKUP(C122,TbSobrVAL!$A$4:$K$134,10,FALSE),0), ROUND(VLOOKUP(C122,TbSobrVAL!$M$4:$W$134,10,FALSE),0))) ) -> 0 | BD122: =IF(AX122=0,0, 1/PMT($G$7,BC122*12,-1,0,0) + (1/PMT($G$6,BC122,-1,0,1)) / (1+$G$7)^(12-MONTH('Anexo I - Parametros'!$K$9)) ) -> 0 | BE122: 0 | BG122: 0 | BH122: 0 | BI122: 0 | BJ122: 0 | BL122: 0 | BM122: 0 | BN122: 0 | BO122: 0 | BP122: 0 | BQ122: 0 | BS122: 0 | BT122: 0 | BU122: 0 | BV122: 0 | BW122: 0 | BX122: 0 | BY122: 0 | BZ122: 0 | CA122: 0 | CB122: 0 | CC122: 0
A123: =IF(A122>TbSobrVAL!$H$1,"-",EDATE(A122,1)) -> - | B123: 1 | C123: =IF(A123="-", A123, INT((A123-'Anexo I - Parametros'!$K$9)/365.25)) -> - | D123: 0 | F123: 0 | G123: 0 | H123: 0 | I123: 0 | J123: 0 | K123: 0 | L123: 0 | M123: 0 | N123: 0 | O123: 0 | P123: 0 | Q123: 0 | S123: 0 | T123: 0 | U123: 0 | V123: 0 | W123: 0 | X123: 0 | Y123: 0 | Z123: 0 | AA123: 0 | AB123: 0 | AC123: 0 | AD123: 0 | AE123: 0 | AF123: 0 | AG123: 0 | AH123: 0 | AI123: 0 | AJ123: 0 | AK123: 0 | AM123: 0 | AN123: 0 | AO123: 0 | AP123: 0 | AQ123: 0 | AR123: 0 | AS123: 0 | AU123: 0 | AV123: 0 | AX123: 0 | AY123: 0 | AZ123: 0 | BA123: =IF(AX123<=0,0, IF(UPPER(ATENDIMENTO!$C$51)="S", IF(MONTH(A123)<> 1, BA122, VLOOKUP(C123,Premios!$G$4:$I$104,2,FALSE)), 0)) -> 0 | BB123: =IF(AX123<=0,0, IF(UPPER(ATENDIMENTO!$C$52)="S", IF(MONTH(A123)<> 1, BB122, VLOOKUP(C123,Premios!$G$4:$I$104,3,FALSE)), 0)) -> 0 | BC123: =IF(AX123=0,0, MIN( 30, IF($G$18="M", ROUND(VLOOKUP(C123,TbSobrVAL!$A$4:$K$134,10,FALSE),0), ROUND(VLOOKUP(C123,TbSobrVAL!$M$4:$W$134,10,FALSE),0))) ) -> 0 | BD123: =IF(AX123=0,0, 1/PMT($G$7,BC123*12,-1,0,0) + (1/PMT($G$6,BC123,-1,0,1)) / (1+$G$7)^(12-MONTH('Anexo I - Parametros'!$K$9)) ) -> 0 | BE123: 0 | BG123: 0 | BH123: 0 | BI123: 0 | BJ123: 0 | BL123: 0 | BM123: 0 | BN123: 0 | BO123: 0 | BP123: 0 | BQ123: 0 | BS123: 0 | BT123: 0 | BU123: 0 | BV123: 0 | BW123: 0 | BX123: 0 | BY123: 0 | BZ123: 0 | CA123: 0 | CB123: 0 | CC123: 0
A124: =IF(A123>TbSobrVAL!$H$1,"-",EDATE(A123,1)) -> - | B124: 1 | C124: =IF(A124="-", A124, INT((A124-'Anexo I - Parametros'!$K$9)/365.25)) -> - | D124: 0 | F124: 0 | G124: 0 | H124: 0 | I124: 0 | J124: 0 | K124: 0 | L124: 0 | M124: 0 | N124: 0 | O124: 0 | P124: 0 | Q124: 0 | S124: 0 | T124: 0 | U124: 0 | V124: 0 | W124: 0 | X124: 0 | Y124: 0 | Z124: 0 | AA124: 0 | AB124: 0 | AC124: 0 | AD124: 0 | AE124: 0 | AF124: 0 | AG124: 0 | AH124: 0 | AI124: 0 | AJ124: 0 | AK124: 0 | AM124: 0 | AN124: 0 | AO124: 0 | AP124: 0 | AQ124: 0 | AR124: 0 | AS124: 0 | AU124: 0 | AV124: 0 | AX124: 0 | AY124: 0 | AZ124: 0 | BA124: =IF(AX124<=0,0, IF(UPPER(ATENDIMENTO!$C$51)="S", IF(MONTH(A124)<> 1, BA123, VLOOKUP(C124,Premios!$G$4:$I$104,2,FALSE)), 0)) -> 0 | BB124: =IF(AX124<=0,0, IF(UPPER(ATENDIMENTO!$C$52)="S", IF(MONTH(A124)<> 1, BB123, VLOOKUP(C124,Premios!$G$4:$I$104,3,FALSE)), 0)) -> 0 | BC124: =IF(AX124=0,0, MIN( 30, IF($G$18="M", ROUND(VLOOKUP(C124,TbSobrVAL!$A$4:$K$134,10,FALSE),0), ROUND(VLOOKUP(C124,TbSobrVAL!$M$4:$W$134,10,FALSE),0))) ) -> 0 | BD124: =IF(AX124=0,0, 1/PMT($G$7,BC124*12,-1,0,0) + (1/PMT($G$6,BC124,-1,0,1)) / (1+$G$7)^(12-MONTH('Anexo I - Parametros'!$K$9)) ) -> 0 | BE124: 0 | BG124: 0 | BH124: 0 | BI124: 0 | BJ124: 0 | BL124: 0 | BM124: 0 | BN124: 0 | BO124: 0 | BP124: 0 | BQ124: 0 | BS124: 0 | BT124: 0 | BU124: 0 | BV124: 0 | BW124: 0 | BX124: 0 | BY124: 0 | BZ124: 0 | CA124: 0 | CB124: 0 | CC124: 0
A125: =IF(A124>TbSobrVAL!$H$1,"-",EDATE(A124,1)) -> - | B125: 1 | C125: =IF(A125="-", A125, INT((A125-'Anexo I - Parametros'!$K$9)/365.25)) -> - | D125: 0 | F125: 0 | G125: 0 | H125: 0 | I125: 0 | J125: 0 | K125: 0 | L125: 0 | M125: 0 | N125: 0 | O125: 0 | P125: 0 | Q125: 0 | S125: 0 | T125: 0 | U125: 0 | V125: 0 | W125: 0 | X125: 0 | Y125: 0 | Z125: 0 | AA125: 0 | AB125: 0 | AC125: 0 | AD125: 0 | AE125: 0 | AF125: 0 | AG125: 0 | AH125: 0 | AI125: 0 | AJ125: 0 | AK125: 0 | AM125: 0 | AN125: 0 | AO125: 0 | AP125: 0 | AQ125: 0 | AR125: 0 | AS125: 0 | AU125: 0 | AV125: 0 | AX125: 0 | AY125: 0 | AZ125: 0 | BA125: =IF(AX125<=0,0, IF(UPPER(ATENDIMENTO!$C$51)="S", IF(MONTH(A125)<> 1, BA124, VLOOKUP(C125,Premios!$G$4:$I$104,2,FALSE)), 0)) -> 0 | BB125: =IF(AX125<=0,0, IF(UPPER(ATENDIMENTO!$C$52)="S", IF(MONTH(A125)<> 1, BB124, VLOOKUP(C125,Premios!$G$4:$I$104,3,FALSE)), 0)) -> 0 | BC125: =IF(AX125=0,0, MIN( 30, IF($G$18="M", ROUND(VLOOKUP(C125,TbSobrVAL!$A$4:$K$134,10,FALSE),0), ROUND(VLOOKUP(C125,TbSobrVAL!$M$4:$W$134,10,FALSE),0))) ) -> 0 | BD125: =IF(AX125=0,0, 1/PMT($G$7,BC125*12,-1,0,0) + (1/PMT($G$6,BC125,-1,0,1)) / (1+$G$7)^(12-MONTH('Anexo I - Parametros'!$K$9)) ) -> 0 | BE125: 0 | BG125: 0 | BH125: 0 | BI125: 0 | BJ125: 0 | BL125: 0 | BM125: 0 | BN125: 0 | BO125: 0 | BP125: 0 | BQ125: 0 | BS125: 0 | BT125: 0 | BU125: 0 | BV125: 0 | BW125: 0 | BX125: 0 | BY125: 0 | BZ125: 0 | CA125: 0 | CB125: 0 | CC125: 0
A126: =IF(A125>TbSobrVAL!$H$1,"-",EDATE(A125,1)) -> - | B126: 1 | C126: =IF(A126="-", A126, INT((A126-'Anexo I - Parametros'!$K$9)/365.25)) -> - | D126: 0 | F126: 0 | G126: 0 | H126: 0 | I126: 0 | J126: 0 | K126: 0 | L126: 0 | M126: 0 | N126: 0 | O126: 0 | P126: 0 | Q126: 0 | S126: 0 | T126: 0 | U126: 0 | V126: 0 | W126: 0 | X126: 0 | Y126: 0 | Z126: 0 | AA126: 0 | AB126: 0 | AC126: 0 | AD126: 0 | AE126: 0 | AF126: 0 | AG126: 0 | AH126: 0 | AI126: 0 | AJ126: 0 | AK126: 0 | AM126: 0 | AN126: 0 | AO126: 0 | AP126: 0 | AQ126: 0 | AR126: 0 | AS126: 0 | AU126: 0 | AV126: 0 | AX126: 0 | AY126: 0 | AZ126: 0 | BA126: =IF(AX126<=0,0, IF(UPPER(ATENDIMENTO!$C$51)="S", IF(MONTH(A126)<> 1, BA125, VLOOKUP(C126,Premios!$G$4:$I$104,2,FALSE)), 0)) -> 0 | BB126: =IF(AX126<=0,0, IF(UPPER(ATENDIMENTO!$C$52)="S", IF(MONTH(A126)<> 1, BB125, VLOOKUP(C126,Premios!$G$4:$I$104,3,FALSE)), 0)) -> 0 | BC126: =IF(AX126=0,0, MIN( 30, IF($G$18="M", ROUND(VLOOKUP(C126,TbSobrVAL!$A$4:$K$134,10,FALSE),0), ROUND(VLOOKUP(C126,TbSobrVAL!$M$4:$W$134,10,FALSE),0))) ) -> 0 | BD126: =IF(AX126=0,0, 1/PMT($G$7,BC126*12,-1,0,0) + (1/PMT($G$6,BC126,-1,0,1)) / (1+$G$7)^(12-MONTH('Anexo I - Parametros'!$K$9)) ) -> 0 | BE126: 0 | BG126: 0 | BH126: 0 | BI126: 0 | BJ126: 0 | BL126: 0 | BM126: 0 | BN126: 0 | BO126: 0 | BP126: 0 | BQ126: 0 | BS126: 0 | BT126: 0 | BU126: 0 | BV126: 0 | BW126: 0 | BX126: 0 | BY126: 0 | BZ126: 0 | CA126: 0 | CB126: 0 | CC126: 0
A127: =IF(A126>TbSobrVAL!$H$1,"-",EDATE(A126,1)) -> - | B127: 1 | C127: =IF(A127="-", A127, INT((A127-'Anexo I - Parametros'!$K$9)/365.25)) -> - | D127: 0 | F127: 0 | G127: 0 | H127: 0 | I127: 0 | J127: 0 | K127: 0 | L127: 0 | M127: 0 | N127: 0 | O127: 0 | P127: 0 | Q127: 0 | S127: 0 | T127: 0 | U127: 0 | V127: 0 | W127: 0 | X127: 0 | Y127: 0 | Z127: 0 | AA127: 0 | AB127: 0 | AC127: 0 | AD127: 0 | AE127: 0 | AF127: 0 | AG127: 0 | AH127: 0 | AI127: 0 | AJ127: 0 | AK127: 0 | AM127: 0 | AN127: 0 | AO127: 0 | AP127: 0 | AQ127: 0 | AR127: 0 | AS127: 0 | AU127: 0 | AV127: 0 | AX127: 0 | AY127: 0 | AZ127: 0 | BA127: =IF(AX127<=0,0, IF(UPPER(ATENDIMENTO!$C$51)="S", IF(MONTH(A127)<> 1, BA126, VLOOKUP(C127,Premios!$G$4:$I$104,2,FALSE)), 0)) -> 0 | BB127: =IF(AX127<=0,0, IF(UPPER(ATENDIMENTO!$C$52)="S", IF(MONTH(A127)<> 1, BB126, VLOOKUP(C127,Premios!$G$4:$I$104,3,FALSE)), 0)) -> 0 | BC127: =IF(AX127=0,0, MIN( 30, IF($G$18="M", ROUND(VLOOKUP(C127,TbSobrVAL!$A$4:$K$134,10,FALSE),0), ROUND(VLOOKUP(C127,TbSobrVAL!$M$4:$W$134,10,FALSE),0))) ) -> 0 | BD127: =IF(AX127=0,0, 1/PMT($G$7,BC127*12,-1,0,0) + (1/PMT($G$6,BC127,-1,0,1)) / (1+$G$7)^(12-MONTH('Anexo I - Parametros'!$K$9)) ) -> 0 | BE127: 0 | BG127: 0 | BH127: 0 | BI127: 0 | BJ127: 0 | BL127: 0 | BM127: 0 | BN127: 0 | BO127: 0 | BP127: 0 | BQ127: 0 | BS127: 0 | BT127: 0 | BU127: 0 | BV127: 0 | BW127: 0 | BX127: 0 | BY127: 0 | BZ127: 0 | CA127: 0 | CB127: 0 | CC127: 0
A128: =IF(A127>TbSobrVAL!$H$1,"-",EDATE(A127,1)) -> - | B128: 1 | C128: =IF(A128="-", A128, INT((A128-'Anexo I - Parametros'!$K$9)/365.25)) -> - | D128: 0 | F128: 0 | G128: 0 | H128: 0 | I128: 0 | J128: 0 | K128: 0 | L128: 0 | M128: 0 | N128: 0 | O128: 0 | P128: 0 | Q128: 0 | S128: 0 | T128: 0 | U128: 0 | V128: 0 | W128: 0 | X128: 0 | Y128: 0 | Z128: 0 | AA128: 0 | AB128: 0 | AC128: 0 | AD128: 0 | AE128: 0 | AF128: 0 | AG128: 0 | AH128: 0 | AI128: 0 | AJ128: 0 | AK128: 0 | AM128: 0 | AN128: 0 | AO128: 0 | AP128: 0 | AQ128: 0 | AR128: 0 | AS128: 0 | AU128: 0 | AV128: 0 | AX128: 0 | AY128: 0 | AZ128: 0 | BA128: =IF(AX128<=0,0, IF(UPPER(ATENDIMENTO!$C$51)="S", IF(MONTH(A128)<> 1, BA127, VLOOKUP(C128,Premios!$G$4:$I$104,2,FALSE)), 0)) -> 0 | BB128: =IF(AX128<=0,0, IF(UPPER(ATENDIMENTO!$C$52)="S", IF(MONTH(A128)<> 1, BB127, VLOOKUP(C128,Premios!$G$4:$I$104,3,FALSE)), 0)) -> 0 | BC128: =IF(AX128=0,0, MIN( 30, IF($G$18="M", ROUND(VLOOKUP(C128,TbSobrVAL!$A$4:$K$134,10,FALSE),0), ROUND(VLOOKUP(C128,TbSobrVAL!$M$4:$W$134,10,FALSE),0))) ) -> 0 | BD128: =IF(AX128=0,0, 1/PMT($G$7,BC128*12,-1,0,0) + (1/PMT($G$6,BC128,-1,0,1)) / (1+$G$7)^(12-MONTH('Anexo I - Parametros'!$K$9)) ) -> 0 | BE128: 0 | BG128: 0 | BH128: 0 | BI128: 0 | BJ128: 0 | BL128: 0 | BM128: 0 | BN128: 0 | BO128: 0 | BP128: 0 | BQ128: 0 | BS128: 0 | BT128: 0 | BU128: 0 | BV128: 0 | BW128: 0 | BX128: 0 | BY128: 0 | BZ128: 0 | CA128: 0 | CB128: 0 | CC128: 0
A129: =IF(A128>TbSobrVAL!$H$1,"-",EDATE(A128,1)) -> - | B129: 1 | C129: =IF(A129="-", A129, INT((A129-'Anexo I - Parametros'!$K$9)/365.25)) -> - | D129: 0 | F129: 0 | G129: 0 | H129: 0 | I129: 0 | J129: 0 | K129: 0 | L129: 0 | M129: 0 | N129: 0 | O129: 0 | P129: 0 | Q129: 0 | S129: 0 | T129: 0 | U129: 0 | V129: 0 | W129: 0 | X129: 0 | Y129: 0 | Z129: 0 | AA129: 0 | AB129: 0 | AC129: 0 | AD129: 0 | AE129: 0 | AF129: 0 | AG129: 0 | AH129: 0 | AI129: 0 | AJ129: 0 | AK129: 0 | AM129: 0 | AN129: 0 | AO129: 0 | AP129: 0 | AQ129: 0 | AR129: 0 | AS129: 0 | AU129: 0 | AV129: 0 | AX129: 0 | AY129: 0 | AZ129: 0 | BA129: =IF(AX129<=0,0, IF(UPPER(ATENDIMENTO!$C$51)="S", IF(MONTH(A129)<> 1, BA128, VLOOKUP(C129,Premios!$G$4:$I$104,2,FALSE)), 0)) -> 0 | BB129: =IF(AX129<=0,0, IF(UPPER(ATENDIMENTO!$C$52)="S", IF(MONTH(A129)<> 1, BB128, VLOOKUP(C129,Premios!$G$4:$I$104,3,FALSE)), 0)) -> 0 | BC129: =IF(AX129=0,0, MIN( 30, IF($G$18="M", ROUND(VLOOKUP(C129,TbSobrVAL!$A$4:$K$134,10,FALSE),0), ROUND(VLOOKUP(C129,TbSobrVAL!$M$4:$W$134,10,FALSE),0))) ) -> 0 | BD129: =IF(AX129=0,0, 1/PMT($G$7,BC129*12,-1,0,0) + (1/PMT($G$6,BC129,-1,0,1)) / (1+$G$7)^(12-MONTH('Anexo I - Parametros'!$K$9)) ) -> 0 | BE129: 0 | BG129: 0 | BH129: 0 | BI129: 0 | BJ129: 0 | BL129: 0 | BM129: 0 | BN129: 0 | BO129: 0 | BP129: 0 | BQ129: 0 | BS129: 0 | BT129: 0 | BU129: 0 | BV129: 0 | BW129: 0 | BX129: 0 | BY129: 0 | BZ129: 0 | CA129: 0 | CB129: 0 | CC129: 0
A130: =IF(A129>TbSobrVAL!$H$1,"-",EDATE(A129,1)) -> - | B130: 1 | C130: =IF(A130="-", A130, INT((A130-'Anexo I - Parametros'!$K$9)/365.25)) -> - | D130: 0 | F130: 0 | G130: 0 | H130: 0 | I130: 0 | J130: 0 | K130: 0 | L130: 0 | M130: 0 | N130: 0 | O130: 0 | P130: 0 | Q130: 0 | S130: 0 | T130: 0 | U130: 0 | V130: 0 | W130: 0 | X130: 0 | Y130: 0 | Z130: 0 | AA130: 0 | AB130: 0 | AC130: 0 | AD130: 0 | AE130: 0 | AF130: 0 | AG130: 0 | AH130: 0 | AI130: 0 | AJ130: 0 | AK130: 0 | AM130: 0 | AN130: 0 | AO130: 0 | AP130: 0 | AQ130: 0 | AR130: 0 | AS130: 0 | AU130: 0 | AV130: 0 | AX130: 0 | AY130: 0 | AZ130: 0 | BA130: =IF(AX130<=0,0, IF(UPPER(ATENDIMENTO!$C$51)="S", IF(MONTH(A130)<> 1, BA129, VLOOKUP(C130,Premios!$G$4:$I$104,2,FALSE)), 0)) -> 0 | BB130: =IF(AX130<=0,0, IF(UPPER(ATENDIMENTO!$C$52)="S", IF(MONTH(A130)<> 1, BB129, VLOOKUP(C130,Premios!$G$4:$I$104,3,FALSE)), 0)) -> 0 | BC130: =IF(AX130=0,0, MIN( 30, IF($G$18="M", ROUND(VLOOKUP(C130,TbSobrVAL!$A$4:$K$134,10,FALSE),0), ROUND(VLOOKUP(C130,TbSobrVAL!$M$4:$W$134,10,FALSE),0))) ) -> 0 | BD130: =IF(AX130=0,0, 1/PMT($G$7,BC130*12,-1,0,0) + (1/PMT($G$6,BC130,-1,0,1)) / (1+$G$7)^(12-MONTH('Anexo I - Parametros'!$K$9)) ) -> 0 | BE130: 0 | BG130: 0 | BH130: 0 | BI130: 0 | BJ130: 0 | BL130: 0 | BM130: 0 | BN130: 0 | BO130: 0 | BP130: 0 | BQ130: 0 | BS130: 0 | BT130: 0 | BU130: 0 | BV130: 0 | BW130: 0 | BX130: 0 | BY130: 0 | BZ130: 0 | CA130: 0 | CB130: 0 | CC130: 0
A131: =IF(A130>TbSobrVAL!$H$1,"-",EDATE(A130,1)) -> - | B131: 1 | C131: =IF(A131="-", A131, INT((A131-'Anexo I - Parametros'!$K$9)/365.25)) -> - | D131: 0 | F131: 0 | G131: 0 | H131: 0 | I131: 0 | J131: 0 | K131: 0 | L131: 0 | M131: 0 | N131: 0 | O131: 0 | P131: 0 | Q131: 0 | S131: 0 | T131: 0 | U131: 0 | V131: 0 | W131: 0 | X131: 0 | Y131: 0 | Z131: 0 | AA131: 0 | AB131: 0 | AC131: 0 | AD131: 0 | AE131: 0 | AF131: 0 | AG131: 0 | AH131: 0 | AI131: 0 | AJ131: 0 | AK131: 0 | AM131: 0 | AN131: 0 | AO131: 0 | AP131: 0 | AQ131: 0 | AR131: 0 | AS131: 0 | AU131: 0 | AV131: 0 | AX131: 0 | AY131: 0 | AZ131: 0 | BA131: =IF(AX131<=0,0, IF(UPPER(ATENDIMENTO!$C$51)="S", IF(MONTH(A131)<> 1, BA130, VLOOKUP(C131,Premios!$G$4:$I$104,2,FALSE)), 0)) -> 0 | BB131: =IF(AX131<=0,0, IF(UPPER(ATENDIMENTO!$C$52)="S", IF(MONTH(A131)<> 1, BB130, VLOOKUP(C131,Premios!$G$4:$I$104,3,FALSE)), 0)) -> 0 | BC131: =IF(AX131=0,0, MIN( 30, IF($G$18="M", ROUND(VLOOKUP(C131,TbSobrVAL!$A$4:$K$134,10,FALSE),0), ROUND(VLOOKUP(C131,TbSobrVAL!$M$4:$W$134,10,FALSE),0))) ) -> 0 | BD131: =IF(AX131=0,0, 1/PMT($G$7,BC131*12,-1,0,0) + (1/PMT($G$6,BC131,-1,0,1)) / (1+$G$7)^(12-MONTH('Anexo I - Parametros'!$K$9)) ) -> 0 | BE131: 0 | BG131: 0 | BH131: 0 | BI131: 0 | BJ131: 0 | BL131: 0 | BM131: 0 | BN131: 0 | BO131: 0 | BP131: 0 | BQ131: 0 | BS131: 0 | BT131: 0 | BU131: 0 | BV131: 0 | BW131: 0 | BX131: 0 | BY131: 0 | BZ131: 0 | CA131: 0 | CB131: 0 | CC131: 0
A132: =IF(A131>TbSobrVAL!$H$1,"-",EDATE(A131,1)) -> - | B132: 1 | C132: =IF(A132="-", A132, INT((A132-'Anexo I - Parametros'!$K$9)/365.25)) -> - | D132: 0 | F132: 0 | G132: 0 | H132: 0 | I132: 0 | J132: 0 | K132: 0 | L132: 0 | M132: 0 | N132: 0 | O132: 0 | P132: 0 | Q132: 0 | S132: 0 | T132: 0 | U132: 0 | V132: 0 | W132: 0 | X132: 0 | Y132: 0 | Z132: 0 | AA132: 0 | AB132: 0 | AC132: 0 | AD132: 0 | AE132: 0 | AF132: 0 | AG132: 0 | AH132: 0 | AI132: 0 | AJ132: 0 | AK132: 0 | AM132: 0 | AN132: 0 | AO132: 0 | AP132: 0 | AQ132: 0 | AR132: 0 | AS132: 0 | AU132: 0 | AV132: 0 | AX132: 0 | AY132: 0 | AZ132: 0 | BA132: =IF(AX132<=0,0, IF(UPPER(ATENDIMENTO!$C$51)="S", IF(MONTH(A132)<> 1, BA131, VLOOKUP(C132,Premios!$G$4:$I$104,2,FALSE)), 0)) -> 0 | BB132: =IF(AX132<=0,0, IF(UPPER(ATENDIMENTO!$C$52)="S", IF(MONTH(A132)<> 1, BB131, VLOOKUP(C132,Premios!$G$4:$I$104,3,FALSE)), 0)) -> 0 | BC132: =IF(AX132=0,0, MIN( 30, IF($G$18="M", ROUND(VLOOKUP(C132,TbSobrVAL!$A$4:$K$134,10,FALSE),0), ROUND(VLOOKUP(C132,TbSobrVAL!$M$4:$W$134,10,FALSE),0))) ) -> 0 | BD132: =IF(AX132=0,0, 1/PMT($G$7,BC132*12,-1,0,0) + (1/PMT($G$6,BC132,-1,0,1)) / (1+$G$7)^(12-MONTH('Anexo I - Parametros'!$K$9)) ) -> 0 | BE132: 0 | BG132: 0 | BH132: 0 | BI132: 0 | BJ132: 0 | BL132: 0 | BM132: 0 | BN132: 0 | BO132: 0 | BP132: 0 | BQ132: 0 | BS132: 0 | BT132: 0 | BU132: 0 | BV132: 0 | BW132: 0 | BX132: 0 | BY132: 0 | BZ132: 0 | CA132: 0 | CB132: 0 | CC132: 0
A133: =IF(A132>TbSobrVAL!$H$1,"-",EDATE(A132,1)) -> - | B133: 1 | C133: =IF(A133="-", A133, INT((A133-'Anexo I - Parametros'!$K$9)/365.25)) -> - | D133: 0 | F133: 0 | G133: 0 | H133: 0 | I133: 0 | J133: 0 | K133: 0 | L133: 0 | M133: 0 | N133: 0 | O133: 0 | P133: 0 | Q133: 0 | S133: 0 | T133: 0 | U133: 0 | V133: 0 | W133: 0 | X133: 0 | Y133: 0 | Z133: 0 | AA133: 0 | AB133: 0 | AC133: 0 | AD133: 0 | AE133: 0 | AF133: 0 | AG133: 0 | AH133: 0 | AI133: 0 | AJ133: 0 | AK133: 0 | AM133: 0 | AN133: 0 | AO133: 0 | AP133: 0 | AQ133: 0 | AR133: 0 | AS133: 0 | AU133: 0 | AV133: 0 | AX133: 0 | AY133: 0 | AZ133: 0 | BA133: =IF(AX133<=0,0, IF(UPPER(ATENDIMENTO!$C$51)="S", IF(MONTH(A133)<> 1, BA132, VLOOKUP(C133,Premios!$G$4:$I$104,2,FALSE)), 0)) -> 0 | BB133: =IF(AX133<=0,0, IF(UPPER(ATENDIMENTO!$C$52)="S", IF(MONTH(A133)<> 1, BB132, VLOOKUP(C133,Premios!$G$4:$I$104,3,FALSE)), 0)) -> 0 | BC133: =IF(AX133=0,0, MIN( 30, IF($G$18="M", ROUND(VLOOKUP(C133,TbSobrVAL!$A$4:$K$134,10,FALSE),0), ROUND(VLOOKUP(C133,TbSobrVAL!$M$4:$W$134,10,FALSE),0))) ) -> 0 | BD133: =IF(AX133=0,0, 1/PMT($G$7,BC133*12,-1,0,0) + (1/PMT($G$6,BC133,-1,0,1)) / (1+$G$7)^(12-MONTH('Anexo I - Parametros'!$K$9)) ) -> 0 | BE133: 0 | BG133: 0 | BH133: 0 | BI133: 0 | BJ133: 0 | BL133: 0 | BM133: 0 | BN133: 0 | BO133: 0 | BP133: 0 | BQ133: 0 | BS133: 0 | BT133: 0 | BU133: 0 | BV133: 0 | BW133: 0 | BX133: 0 | BY133: 0 | BZ133: 0 | CA133: 0 | CB133: 0 | CC133: 0
A134: =IF(A133>TbSobrVAL!$H$1,"-",EDATE(A133,1)) -> - | B134: 1 | C134: =IF(A134="-", A134, INT((A134-'Anexo I - Parametros'!$K$9)/365.25)) -> - | D134: 0 | F134: 0 | G134: 0 | H134: 0 | I134: 0 | J134: 0 | K134: 0 | L134: 0 | M134: 0 | N134: 0 | O134: 0 | P134: 0 | Q134: 0 | S134: 0 | T134: 0 | U134: 0 | V134: 0 | W134: 0 | X134: 0 | Y134: 0 | Z134: 0 | AA134: 0 | AB134: 0 | AC134: 0 | AD134: 0 | AE134: 0 | AF134: 0 | AG134: 0 | AH134: 0 | AI134: 0 | AJ134: 0 | AK134: 0 | AM134: 0 | AN134: 0 | AO134: 0 | AP134: 0 | AQ134: 0 | AR134: 0 | AS134: 0 | AU134: 0 | AV134: 0 | AX134: 0 | AY134: 0 | AZ134: 0 | BA134: =IF(AX134<=0,0, IF(UPPER(ATENDIMENTO!$C$51)="S", IF(MONTH(A134)<> 1, BA133, VLOOKUP(C134,Premios!$G$4:$I$104,2,FALSE)), 0)) -> 0 | BB134: =IF(AX134<=0,0, IF(UPPER(ATENDIMENTO!$C$52)="S", IF(MONTH(A134)<> 1, BB133, VLOOKUP(C134,Premios!$G$4:$I$104,3,FALSE)), 0)) -> 0 | BC134: =IF(AX134=0,0, MIN( 30, IF($G$18="M", ROUND(VLOOKUP(C134,TbSobrVAL!$A$4:$K$134,10,FALSE),0), ROUND(VLOOKUP(C134,TbSobrVAL!$M$4:$W$134,10,FALSE),0))) ) -> 0 | BD134: =IF(AX134=0,0, 1/PMT($G$7,BC134*12,-1,0,0) + (1/PMT($G$6,BC134,-1,0,1)) / (1+$G$7)^(12-MONTH('Anexo I - Parametros'!$K$9)) ) -> 0 | BE134: 0 | BG134: 0 | BH134: 0 | BI134: 0 | BJ134: 0 | BL134: 0 | BM134: 0 | BN134: 0 | BO134: 0 | BP134: 0 | BQ134: 0 | BS134: 0 | BT134: 0 | BU134: 0 | BV134: 0 | BW134: 0 | BX134: 0 | BY134: 0 | BZ134: 0 | CA134: 0 | CB134: 0 | CC134: 0
A135: =IF(A134>TbSobrVAL!$H$1,"-",EDATE(A134,1)) -> - | B135: 1 | C135: =IF(A135="-", A135, INT((A135-'Anexo I - Parametros'!$K$9)/365.25)) -> - | D135: 0 | F135: 0 | G135: 0 | H135: 0 | I135: 0 | J135: 0 | K135: 0 | L135: 0 | M135: 0 | N135: 0 | O135: 0 | P135: 0 | Q135: 0 | S135: 0 | T135: 0 | U135: 0 | V135: 0 | W135: 0 | X135: 0 | Y135: 0 | Z135: 0 | AA135: 0 | AB135: 0 | AC135: 0 | AD135: 0 | AE135: 0 | AF135: 0 | AG135: 0 | AH135: 0 | AI135: 0 | AJ135: 0 | AK135: 0 | AM135: 0 | AN135: 0 | AO135: 0 | AP135: 0 | AQ135: 0 | AR135: 0 | AS135: 0 | AU135: 0 | AV135: 0 | AX135: 0 | AY135: 0 | AZ135: 0 | BA135: =IF(AX135<=0,0, IF(UPPER(ATENDIMENTO!$C$51)="S", IF(MONTH(A135)<> 1, BA134, VLOOKUP(C135,Premios!$G$4:$I$104,2,FALSE)), 0)) -> 0 | BB135: =IF(AX135<=0,0, IF(UPPER(ATENDIMENTO!$C$52)="S", IF(MONTH(A135)<> 1, BB134, VLOOKUP(C135,Premios!$G$4:$I$104,3,FALSE)), 0)) -> 0 | BC135: =IF(AX135=0,0, MIN( 30, IF($G$18="M", ROUND(VLOOKUP(C135,TbSobrVAL!$A$4:$K$134,10,FALSE),0), ROUND(VLOOKUP(C135,TbSobrVAL!$M$4:$W$134,10,FALSE),0))) ) -> 0 | BD135: =IF(AX135=0,0, 1/PMT($G$7,BC135*12,-1,0,0) + (1/PMT($G$6,BC135,-1,0,1)) / (1+$G$7)^(12-MONTH('Anexo I - Parametros'!$K$9)) ) -> 0 | BE135: 0 | BG135: 0 | BH135: 0 | BI135: 0 | BJ135: 0 | BL135: 0 | BM135: 0 | BN135: 0 | BO135: 0 | BP135: 0 | BQ135: 0 | BS135: 0 | BT135: 0 | BU135: 0 | BV135: 0 | BW135: 0 | BX135: 0 | BY135: 0 | BZ135: 0 | CA135: 0 | CB135: 0 | CC135: 0
A136: =IF(A135>TbSobrVAL!$H$1,"-",EDATE(A135,1)) -> - | B136: 1 | C136: =IF(A136="-", A136, INT((A136-'Anexo I - Parametros'!$K$9)/365.25)) -> - | D136: 0 | F136: 0 | G136: 0 | H136: 0 | I136: 0 | J136: 0 | K136: 0 | L136: 0 | M136: 0 | N136: 0 | O136: 0 | P136: 0 | Q136: 0 | S136: 0 | T136: 0 | U136: 0 | V136: 0 | W136: 0 | X136: 0 | Y136: 0 | Z136: 0 | AA136: 0 | AB136: 0 | AC136: 0 | AD136: 0 | AE136: 0 | AF136: 0 | AG136: 0 | AH136: 0 | AI136: 0 | AJ136: 0 | AK136: 0 | AM136: 0 | AN136: 0 | AO136: 0 | AP136: 0 | AQ136: 0 | AR136: 0 | AS136: 0 | AU136: 0 | AV136: 0 | AX136: 0 | AY136: 0 | AZ136: 0 | BA136: =IF(AX136<=0,0, IF(UPPER(ATENDIMENTO!$C$51)="S", IF(MONTH(A136)<> 1, BA135, VLOOKUP(C136,Premios!$G$4:$I$104,2,FALSE)), 0)) -> 0 | BB136: =IF(AX136<=0,0, IF(UPPER(ATENDIMENTO!$C$52)="S", IF(MONTH(A136)<> 1, BB135, VLOOKUP(C136,Premios!$G$4:$I$104,3,FALSE)), 0)) -> 0 | BC136: =IF(AX136=0,0, MIN( 30, IF($G$18="M", ROUND(VLOOKUP(C136,TbSobrVAL!$A$4:$K$134,10,FALSE),0), ROUND(VLOOKUP(C136,TbSobrVAL!$M$4:$W$134,10,FALSE),0))) ) -> 0 | BD136: =IF(AX136=0,0, 1/PMT($G$7,BC136*12,-1,0,0) + (1/PMT($G$6,BC136,-1,0,1)) / (1+$G$7)^(12-MONTH('Anexo I - Parametros'!$K$9)) ) -> 0 | BE136: 0 | BG136: 0 | BH136: 0 | BI136: 0 | BJ136: 0 | BL136: 0 | BM136: 0 | BN136: 0 | BO136: 0 | BP136: 0 | BQ136: 0 | BS136: 0 | BT136: 0 | BU136: 0 | BV136: 0 | BW136: 0 | BX136: 0 | BY136: 0 | BZ136: 0 | CA136: 0 | CB136: 0 | CC136: 0
A137: =IF(A136>TbSobrVAL!$H$1,"-",EDATE(A136,1)) -> - | B137: 1 | C137: =IF(A137="-", A137, INT((A137-'Anexo I - Parametros'!$K$9)/365.25)) -> - | D137: 0 | F137: 0 | G137: 0 | H137: 0 | I137: 0 | J137: 0 | K137: 0 | L137: 0 | M137: 0 | N137: 0 | O137: 0 | P137: 0 | Q137: 0 | S137: 0 | T137: 0 | U137: 0 | V137: 0 | W137: 0 | X137: 0 | Y137: 0 | Z137: 0 | AA137: 0 | AB137: 0 | AC137: 0 | AD137: 0 | AE137: 0 | AF137: 0 | AG137: 0 | AH137: 0 | AI137: 0 | AJ137: 0 | AK137: 0 | AM137: 0 | AN137: 0 | AO137: 0 | AP137: 0 | AQ137: 0 | AR137: 0 | AS137: 0 | AU137: 0 | AV137: 0 | AX137: 0 | AY137: 0 | AZ137: 0 | BA137: =IF(AX137<=0,0, IF(UPPER(ATENDIMENTO!$C$51)="S", IF(MONTH(A137)<> 1, BA136, VLOOKUP(C137,Premios!$G$4:$I$104,2,FALSE)), 0)) -> 0 | BB137: =IF(AX137<=0,0, IF(UPPER(ATENDIMENTO!$C$52)="S", IF(MONTH(A137)<> 1, BB136, VLOOKUP(C137,Premios!$G$4:$I$104,3,FALSE)), 0)) -> 0 | BC137: =IF(AX137=0,0, MIN( 30, IF($G$18="M", ROUND(VLOOKUP(C137,TbSobrVAL!$A$4:$K$134,10,FALSE),0), ROUND(VLOOKUP(C137,TbSobrVAL!$M$4:$W$134,10,FALSE),0))) ) -> 0 | BD137: =IF(AX137=0,0, 1/PMT($G$7,BC137*12,-1,0,0) + (1/PMT($G$6,BC137,-1,0,1)) / (1+$G$7)^(12-MONTH('Anexo I - Parametros'!$K$9)) ) -> 0 | BE137: 0 | BG137: 0 | BH137: 0 | BI137: 0 | BJ137: 0 | BL137: 0 | BM137: 0 | BN137: 0 | BO137: 0 | BP137: 0 | BQ137: 0 | BS137: 0 | BT137: 0 | BU137: 0 | BV137: 0 | BW137: 0 | BX137: 0 | BY137: 0 | BZ137: 0 | CA137: 0 | CB137: 0 | CC137: 0
A138: =IF(A137>TbSobrVAL!$H$1,"-",EDATE(A137,1)) -> - | B138: 1 | C138: =IF(A138="-", A138, INT((A138-'Anexo I - Parametros'!$K$9)/365.25)) -> - | D138: 0 | F138: 0 | G138: 0 | H138: 0 | I138: 0 | J138: 0 | K138: 0 | L138: 0 | M138: 0 | N138: 0 | O138: 0 | P138: 0 | Q138: 0 | S138: 0 | T138: 0 | U138: 0 | V138: 0 | W138: 0 | X138: 0 | Y138: 0 | Z138: 0 | AA138: 0 | AB138: 0 | AC138: 0 | AD138: 0 | AE138: 0 | AF138: 0 | AG138: 0 | AH138: 0 | AI138: 0 | AJ138: 0 | AK138: 0 | AM138: 0 | AN138: 0 | AO138: 0 | AP138: 0 | AQ138: 0 | AR138: 0 | AS138: 0 | AU138: 0 | AV138: 0 | AX138: 0 | AY138: 0 | AZ138: 0 | BA138: =IF(AX138<=0,0, IF(UPPER(ATENDIMENTO!$C$51)="S", IF(MONTH(A138)<> 1, BA137, VLOOKUP(C138,Premios!$G$4:$I$104,2,FALSE)), 0)) -> 0 | BB138: =IF(AX138<=0,0, IF(UPPER(ATENDIMENTO!$C$52)="S", IF(MONTH(A138)<> 1, BB137, VLOOKUP(C138,Premios!$G$4:$I$104,3,FALSE)), 0)) -> 0 | BC138: =IF(AX138=0,0, MIN( 30, IF($G$18="M", ROUND(VLOOKUP(C138,TbSobrVAL!$A$4:$K$134,10,FALSE),0), ROUND(VLOOKUP(C138,TbSobrVAL!$M$4:$W$134,10,FALSE),0))) ) -> 0 | BD138: =IF(AX138=0,0, 1/PMT($G$7,BC138*12,-1,0,0) + (1/PMT($G$6,BC138,-1,0,1)) / (1+$G$7)^(12-MONTH('Anexo I - Parametros'!$K$9)) ) -> 0 | BE138: 0 | BG138: 0 | BH138: 0 | BI138: 0 | BJ138: 0 | BL138: 0 | BM138: 0 | BN138: 0 | BO138: 0 | BP138: 0 | BQ138: 0 | BS138: 0 | BT138: 0 | BU138: 0 | BV138: 0 | BW138: 0 | BX138: 0 | BY138: 0 | BZ138: 0 | CA138: 0 | CB138: 0 | CC138: 0
A139: =IF(A138>TbSobrVAL!$H$1,"-",EDATE(A138,1)) -> - | B139: 1 | C139: =IF(A139="-", A139, INT((A139-'Anexo I - Parametros'!$K$9)/365.25)) -> - | D139: 0 | F139: 0 | G139: 0 | H139: 0 | I139: 0 | J139: 0 | K139: 0 | L139: 0 | M139: 0 | N139: 0 | O139: 0 | P139: 0 | Q139: 0 | S139: 0 | T139: 0 | U139: 0 | V139: 0 | W139: 0 | X139: 0 | Y139: 0 | Z139: 0 | AA139: 0 | AB139: 0 | AC139: 0 | AD139: 0 | AE139: 0 | AF139: 0 | AG139: 0 | AH139: 0 | AI139: 0 | AJ139: 0 | AK139: 0 | AM139: 0 | AN139: 0 | AO139: 0 | AP139: 0 | AQ139: 0 | AR139: 0 | AS139: 0 | AU139: 0 | AV139: 0 | AX139: 0 | AY139: 0 | AZ139: 0 | BA139: =IF(AX139<=0,0, IF(UPPER(ATENDIMENTO!$C$51)="S", IF(MONTH(A139)<> 1, BA138, VLOOKUP(C139,Premios!$G$4:$I$104,2,FALSE)), 0)) -> 0 | BB139: =IF(AX139<=0,0, IF(UPPER(ATENDIMENTO!$C$52)="S", IF(MONTH(A139)<> 1, BB138, VLOOKUP(C139,Premios!$G$4:$I$104,3,FALSE)), 0)) -> 0 | BC139: =IF(AX139=0,0, MIN( 30, IF($G$18="M", ROUND(VLOOKUP(C139,TbSobrVAL!$A$4:$K$134,10,FALSE),0), ROUND(VLOOKUP(C139,TbSobrVAL!$M$4:$W$134,10,FALSE),0))) ) -> 0 | BD139: =IF(AX139=0,0, 1/PMT($G$7,BC139*12,-1,0,0) + (1/PMT($G$6,BC139,-1,0,1)) / (1+$G$7)^(12-MONTH('Anexo I - Parametros'!$K$9)) ) -> 0 | BE139: 0 | BG139: 0 | BH139: 0 | BI139: 0 | BJ139: 0 | BL139: 0 | BM139: 0 | BN139: 0 | BO139: 0 | BP139: 0 | BQ139: 0 | BS139: 0 | BT139: 0 | BU139: 0 | BV139: 0 | BW139: 0 | BX139: 0 | BY139: 0 | BZ139: 0 | CA139: 0 | CB139: 0 | CC139: 0
A140: =IF(A139>TbSobrVAL!$H$1,"-",EDATE(A139,1)) -> - | B140: 1 | C140: =IF(A140="-", A140, INT((A140-'Anexo I - Parametros'!$K$9)/365.25)) -> - | D140: 0 | F140: 0 | G140: 0 | H140: 0 | I140: 0 | J140: 0 | K140: 0 | L140: 0 | M140: 0 | N140: 0 | O140: 0 | P140: 0 | Q140: 0 | S140: 0 | T140: 0 | U140: 0 | V140: 0 | W140: 0 | X140: 0 | Y140: 0 | Z140: 0 | AA140: 0 | AB140: 0 | AC140: 0 | AD140: 0 | AE140: 0 | AF140: 0 | AG140: 0 | AH140: 0 | AI140: 0 | AJ140: 0 | AK140: 0 | AM140: 0 | AN140: 0 | AO140: 0 | AP140: 0 | AQ140: 0 | AR140: 0 | AS140: 0 | AU140: 0 | AV140: 0 | AX140: 0 | AY140: 0 | AZ140: 0 | BA140: =IF(AX140<=0,0, IF(UPPER(ATENDIMENTO!$C$51)="S", IF(MONTH(A140)<> 1, BA139, VLOOKUP(C140,Premios!$G$4:$I$104,2,FALSE)), 0)) -> 0 | BB140: =IF(AX140<=0,0, IF(UPPER(ATENDIMENTO!$C$52)="S", IF(MONTH(A140)<> 1, BB139, VLOOKUP(C140,Premios!$G$4:$I$104,3,FALSE)), 0)) -> 0 | BC140: =IF(AX140=0,0, MIN( 30, IF($G$18="M", ROUND(VLOOKUP(C140,TbSobrVAL!$A$4:$K$134,10,FALSE),0), ROUND(VLOOKUP(C140,TbSobrVAL!$M$4:$W$134,10,FALSE),0))) ) -> 0 | BD140: =IF(AX140=0,0, 1/PMT($G$7,BC140*12,-1,0,0) + (1/PMT($G$6,BC140,-1,0,1)) / (1+$G$7)^(12-MONTH('Anexo I - Parametros'!$K$9)) ) -> 0 | BE140: 0 | BG140: 0 | BH140: 0 | BI140: 0 | BJ140: 0 | BL140: 0 | BM140: 0 | BN140: 0 | BO140: 0 | BP140: 0 | BQ140: 0 | BS140: 0 | BT140: 0 | BU140: 0 | BV140: 0 | BW140: 0 | BX140: 0 | BY140: 0 | BZ140: 0 | CA140: 0 | CB140: 0 | CC140: 0
A141: =IF(A140>TbSobrVAL!$H$1,"-",EDATE(A140,1)) -> - | B141: 1 | C141: =IF(A141="-", A141, INT((A141-'Anexo I - Parametros'!$K$9)/365.25)) -> - | D141: 0 | F141: 0 | G141: 0 | H141: 0 | I141: 0 | J141: 0 | K141: 0 | L141: 0 | M141: 0 | N141: 0 | O141: 0 | P141: 0 | Q141: 0 | S141: 0 | T141: 0 | U141: 0 | V141: 0 | W141: 0 | X141: 0 | Y141: 0 | Z141: 0 | AA141: 0 | AB141: 0 | AC141: 0 | AD141: 0 | AE141: 0 | AF141: 0 | AG141: 0 | AH141: 0 | AI141: 0 | AJ141: 0 | AK141: 0 | AM141: 0 | AN141: 0 | AO141: 0 | AP141: 0 | AQ141: 0 | AR141: 0 | AS141: 0 | AU141: 0 | AV141: 0 | AX141: 0 | AY141: 0 | AZ141: 0 | BA141: =IF(AX141<=0,0, IF(UPPER(ATENDIMENTO!$C$51)="S", IF(MONTH(A141)<> 1, BA140, VLOOKUP(C141,Premios!$G$4:$I$104,2,FALSE)), 0)) -> 0 | BB141: =IF(AX141<=0,0, IF(UPPER(ATENDIMENTO!$C$52)="S", IF(MONTH(A141)<> 1, BB140, VLOOKUP(C141,Premios!$G$4:$I$104,3,FALSE)), 0)) -> 0 | BC141: =IF(AX141=0,0, MIN( 30, IF($G$18="M", ROUND(VLOOKUP(C141,TbSobrVAL!$A$4:$K$134,10,FALSE),0), ROUND(VLOOKUP(C141,TbSobrVAL!$M$4:$W$134,10,FALSE),0))) ) -> 0 | BD141: =IF(AX141=0,0, 1/PMT($G$7,BC141*12,-1,0,0) + (1/PMT($G$6,BC141,-1,0,1)) / (1+$G$7)^(12-MONTH('Anexo I - Parametros'!$K$9)) ) -> 0 | BE141: 0 | BG141: 0 | BH141: 0 | BI141: 0 | BJ141: 0 | BL141: 0 | BM141: 0 | BN141: 0 | BO141: 0 | BP141: 0 | BQ141: 0 | BS141: 0 | BT141: 0 | BU141: 0 | BV141: 0 | BW141: 0 | BX141: 0 | BY141: 0 | BZ141: 0 | CA141: 0 | CB141: 0 | CC141: 0
A142: =IF(A141>TbSobrVAL!$H$1,"-",EDATE(A141,1)) -> - | B142: 1 | C142: =IF(A142="-", A142, INT((A142-'Anexo I - Parametros'!$K$9)/365.25)) -> - | D142: 0 | F142: 0 | G142: 0 | H142: 0 | I142: 0 | J142: 0 | K142: 0 | L142: 0 | M142: 0 | N142: 0 | O142: 0 | P142: 0 | Q142: 0 | S142: 0 | T142: 0 | U142: 0 | V142: 0 | W142: 0 | X142: 0 | Y142: 0 | Z142: 0 | AA142: 0 | AB142: 0 | AC142: 0 | AD142: 0 | AE142: 0 | AF142: 0 | AG142: 0 | AH142: 0 | AI142: 0 | AJ142: 0 | AK142: 0 | AM142: 0 | AN142: 0 | AO142: 0 | AP142: 0 | AQ142: 0 | AR142: 0 | AS142: 0 | AU142: 0 | AV142: 0 | AX142: 0 | AY142: 0 | AZ142: 0 | BA142: =IF(AX142<=0,0, IF(UPPER(ATENDIMENTO!$C$51)="S", IF(MONTH(A142)<> 1, BA141, VLOOKUP(C142,Premios!$G$4:$I$104,2,FALSE)), 0)) -> 0 | BB142: =IF(AX142<=0,0, IF(UPPER(ATENDIMENTO!$C$52)="S", IF(MONTH(A142)<> 1, BB141, VLOOKUP(C142,Premios!$G$4:$I$104,3,FALSE)), 0)) -> 0 | BC142: =IF(AX142=0,0, MIN( 30, IF($G$18="M", ROUND(VLOOKUP(C142,TbSobrVAL!$A$4:$K$134,10,FALSE),0), ROUND(VLOOKUP(C142,TbSobrVAL!$M$4:$W$134,10,FALSE),0))) ) -> 0 | BD142: =IF(AX142=0,0, 1/PMT($G$7,BC142*12,-1,0,0) + (1/PMT($G$6,BC142,-1,0,1)) / (1+$G$7)^(12-MONTH('Anexo I - Parametros'!$K$9)) ) -> 0 | BE142: 0 | BG142: 0 | BH142: 0 | BI142: 0 | BJ142: 0 | BL142: 0 | BM142: 0 | BN142: 0 | BO142: 0 | BP142: 0 | BQ142: 0 | BS142: 0 | BT142: 0 | BU142: 0 | BV142: 0 | BW142: 0 | BX142: 0 | BY142: 0 | BZ142: 0 | CA142: 0 | CB142: 0 | CC142: 0
A143: =IF(A142>TbSobrVAL!$H$1,"-",EDATE(A142,1)) -> - | B143: 1 | C143: =IF(A143="-", A143, INT((A143-'Anexo I - Parametros'!$K$9)/365.25)) -> - | D143: 0 | F143: 0 | G143: 0 | H143: 0 | I143: 0 | J143: 0 | K143: 0 | L143: 0 | M143: 0 | N143: 0 | O143: 0 | P143: 0 | Q143: 0 | S143: 0 | T143: 0 | U143: 0 | V143: 0 | W143: 0 | X143: 0 | Y143: 0 | Z143: 0 | AA143: 0 | AB143: 0 | AC143: 0 | AD143: 0 | AE143: 0 | AF143: 0 | AG143: 0 | AH143: 0 | AI143: 0 | AJ143: 0 | AK143: 0 | AM143: 0 | AN143: 0 | AO143: 0 | AP143: 0 | AQ143: 0 | AR143: 0 | AS143: 0 | AU143: 0 | AV143: 0 | AX143: 0 | AY143: 0 | AZ143: 0 | BA143: =IF(AX143<=0,0, IF(UPPER(ATENDIMENTO!$C$51)="S", IF(MONTH(A143)<> 1, BA142, VLOOKUP(C143,Premios!$G$4:$I$104,2,FALSE)), 0)) -> 0 | BB143: =IF(AX143<=0,0, IF(UPPER(ATENDIMENTO!$C$52)="S", IF(MONTH(A143)<> 1, BB142, VLOOKUP(C143,Premios!$G$4:$I$104,3,FALSE)), 0)) -> 0 | BC143: =IF(AX143=0,0, MIN( 30, IF($G$18="M", ROUND(VLOOKUP(C143,TbSobrVAL!$A$4:$K$134,10,FALSE),0), ROUND(VLOOKUP(C143,TbSobrVAL!$M$4:$W$134,10,FALSE),0))) ) -> 0 | BD143: =IF(AX143=0,0, 1/PMT($G$7,BC143*12,-1,0,0) + (1/PMT($G$6,BC143,-1,0,1)) / (1+$G$7)^(12-MONTH('Anexo I - Parametros'!$K$9)) ) -> 0 | BE143: 0 | BG143: 0 | BH143: 0 | BI143: 0 | BJ143: 0 | BL143: 0 | BM143: 0 | BN143: 0 | BO143: 0 | BP143: 0 | BQ143: 0 | BS143: 0 | BT143: 0 | BU143: 0 | BV143: 0 | BW143: 0 | BX143: 0 | BY143: 0 | BZ143: 0 | CA143: 0 | CB143: 0 | CC143: 0
A144: =IF(A143>TbSobrVAL!$H$1,"-",EDATE(A143,1)) -> - | B144: 1 | C144: =IF(A144="-", A144, INT((A144-'Anexo I - Parametros'!$K$9)/365.25)) -> - | D144: 0 | F144: 0 | G144: 0 | H144: 0 | I144: 0 | J144: 0 | K144: 0 | L144: 0 | M144: 0 | N144: 0 | O144: 0 | P144: 0 | Q144: 0 | S144: 0 | T144: 0 | U144: 0 | V144: 0 | W144: 0 | X144: 0 | Y144: 0 | Z144: 0 | AA144: 0 | AB144: 0 | AC144: 0 | AD144: 0 | AE144: 0 | AF144: 0 | AG144: 0 | AH144: 0 | AI144: 0 | AJ144: 0 | AK144: 0 | AM144: 0 | AN144: 0 | AO144: 0 | AP144: 0 | AQ144: 0 | AR144: 0 | AS144: 0 | AU144: 0 | AV144: 0 | AX144: 0 | AY144: 0 | AZ144: 0 | BA144: =IF(AX144<=0,0, IF(UPPER(ATENDIMENTO!$C$51)="S", IF(MONTH(A144)<> 1, BA143, VLOOKUP(C144,Premios!$G$4:$I$104,2,FALSE)), 0)) -> 0 | BB144: =IF(AX144<=0,0, IF(UPPER(ATENDIMENTO!$C$52)="S", IF(MONTH(A144)<> 1, BB143, VLOOKUP(C144,Premios!$G$4:$I$104,3,FALSE)), 0)) -> 0 | BC144: =IF(AX144=0,0, MIN( 30, IF($G$18="M", ROUND(VLOOKUP(C144,TbSobrVAL!$A$4:$K$134,10,FALSE),0), ROUND(VLOOKUP(C144,TbSobrVAL!$M$4:$W$134,10,FALSE),0))) ) -> 0 | BD144: =IF(AX144=0,0, 1/PMT($G$7,BC144*12,-1,0,0) + (1/PMT($G$6,BC144,-1,0,1)) / (1+$G$7)^(12-MONTH('Anexo I - Parametros'!$K$9)) ) -> 0 | BE144: 0 | BG144: 0 | BH144: 0 | BI144: 0 | BJ144: 0 | BL144: 0 | BM144: 0 | BN144: 0 | BO144: 0 | BP144: 0 | BQ144: 0 | BS144: 0 | BT144: 0 | BU144: 0 | BV144: 0 | BW144: 0 | BX144: 0 | BY144: 0 | BZ144: 0 | CA144: 0 | CB144: 0 | CC144: 0
A145: =IF(A144>TbSobrVAL!$H$1,"-",EDATE(A144,1)) -> - | B145: 1 | C145: =IF(A145="-", A145, INT((A145-'Anexo I - Parametros'!$K$9)/365.25)) -> - | D145: 0 | F145: 0 | G145: 0 | H145: 0 | I145: 0 | J145: 0 | K145: 0 | L145: 0 | M145: 0 | N145: 0 | O145: 0 | P145: 0 | Q145: 0 | S145: 0 | T145: 0 | U145: 0 | V145: 0 | W145: 0 | X145: 0 | Y145: 0 | Z145: 0 | AA145: 0 | AB145: 0 | AC145: 0 | AD145: 0 | AE145: 0 | AF145: 0 | AG145: 0 | AH145: 0 | AI145: 0 | AJ145: 0 | AK145: 0 | AM145: 0 | AN145: 0 | AO145: 0 | AP145: 0 | AQ145: 0 | AR145: 0 | AS145: 0 | AU145: 0 | AV145: 0 | AX145: 0 | AY145: 0 | AZ145: 0 | BA145: =IF(AX145<=0,0, IF(UPPER(ATENDIMENTO!$C$51)="S", IF(MONTH(A145)<> 1, BA144, VLOOKUP(C145,Premios!$G$4:$I$104,2,FALSE)), 0)) -> 0 | BB145: =IF(AX145<=0,0, IF(UPPER(ATENDIMENTO!$C$52)="S", IF(MONTH(A145)<> 1, BB144, VLOOKUP(C145,Premios!$G$4:$I$104,3,FALSE)), 0)) -> 0 | BC145: =IF(AX145=0,0, MIN( 30, IF($G$18="M", ROUND(VLOOKUP(C145,TbSobrVAL!$A$4:$K$134,10,FALSE),0), ROUND(VLOOKUP(C145,TbSobrVAL!$M$4:$W$134,10,FALSE),0))) ) -> 0 | BD145: =IF(AX145=0,0, 1/PMT($G$7,BC145*12,-1,0,0) + (1/PMT($G$6,BC145,-1,0,1)) / (1+$G$7)^(12-MONTH('Anexo I - Parametros'!$K$9)) ) -> 0 | BE145: 0 | BG145: 0 | BH145: 0 | BI145: 0 | BJ145: 0 | BL145: 0 | BM145: 0 | BN145: 0 | BO145: 0 | BP145: 0 | BQ145: 0 | BS145: 0 | BT145: 0 | BU145: 0 | BV145: 0 | BW145: 0 | BX145: 0 | BY145: 0 | BZ145: 0 | CA145: 0 | CB145: 0 | CC145: 0
A146: =IF(A145>TbSobrVAL!$H$1,"-",EDATE(A145,1)) -> - | B146: 1 | C146: =IF(A146="-", A146, INT((A146-'Anexo I - Parametros'!$K$9)/365.25)) -> - | D146: 0 | F146: 0 | G146: 0 | H146: 0 | I146: 0 | J146: 0 | K146: 0 | L146: 0 | M146: 0 | N146: 0 | O146: 0 | P146: 0 | Q146: 0 | S146: 0 | T146: 0 | U146: 0 | V146: 0 | W146: 0 | X146: 0 | Y146: 0 | Z146: 0 | AA146: 0 | AB146: 0 | AC146: 0 | AD146: 0 | AE146: 0 | AF146: 0 | AG146: 0 | AH146: 0 | AI146: 0 | AJ146: 0 | AK146: 0 | AM146: 0 | AN146: 0 | AO146: 0 | AP146: 0 | AQ146: 0 | AR146: 0 | AS146: 0 | AU146: 0 | AV146: 0 | AX146: 0 | AY146: 0 | AZ146: 0 | BA146: =IF(AX146<=0,0, IF(UPPER(ATENDIMENTO!$C$51)="S", IF(MONTH(A146)<> 1, BA145, VLOOKUP(C146,Premios!$G$4:$I$104,2,FALSE)), 0)) -> 0 | BB146: =IF(AX146<=0,0, IF(UPPER(ATENDIMENTO!$C$52)="S", IF(MONTH(A146)<> 1, BB145, VLOOKUP(C146,Premios!$G$4:$I$104,3,FALSE)), 0)) -> 0 | BC146: =IF(AX146=0,0, MIN( 30, IF($G$18="M", ROUND(VLOOKUP(C146,TbSobrVAL!$A$4:$K$134,10,FALSE),0), ROUND(VLOOKUP(C146,TbSobrVAL!$M$4:$W$134,10,FALSE),0))) ) -> 0 | BD146: =IF(AX146=0,0, 1/PMT($G$7,BC146*12,-1,0,0) + (1/PMT($G$6,BC146,-1,0,1)) / (1+$G$7)^(12-MONTH('Anexo I - Parametros'!$K$9)) ) -> 0 | BE146: 0 | BG146: 0 | BH146: 0 | BI146: 0 | BJ146: 0 | BL146: 0 | BM146: 0 | BN146: 0 | BO146: 0 | BP146: 0 | BQ146: 0 | BS146: 0 | BT146: 0 | BU146: 0 | BV146: 0 | BW146: 0 | BX146: 0 | BY146: 0 | BZ146: 0 | CA146: 0 | CB146: 0 | CC146: 0
A147: =IF(A146>TbSobrVAL!$H$1,"-",EDATE(A146,1)) -> - | B147: 1 | C147: =IF(A147="-", A147, INT((A147-'Anexo I - Parametros'!$K$9)/365.25)) -> - | D147: 0 | F147: 0 | G147: 0 | H147: 0 | I147: 0 | J147: 0 | K147: 0 | L147: 0 | M147: 0 | N147: 0 | O147: 0 | P147: 0 | Q147: 0 | S147: 0 | T147: 0 | U147: 0 | V147: 0 | W147: 0 | X147: 0 | Y147: 0 | Z147: 0 | AA147: 0 | AB147: 0 | AC147: 0 | AD147: 0 | AE147: 0 | AF147: 0 | AG147: 0 | AH147: 0 | AI147: 0 | AJ147: 0 | AK147: 0 | AM147: 0 | AN147: 0 | AO147: 0 | AP147: 0 | AQ147: 0 | AR147: 0 | AS147: 0 | AU147: 0 | AV147: 0 | AX147: 0 | AY147: 0 | AZ147: 0 | BA147: =IF(AX147<=0,0, IF(UPPER(ATENDIMENTO!$C$51)="S", IF(MONTH(A147)<> 1, BA146, VLOOKUP(C147,Premios!$G$4:$I$104,2,FALSE)), 0)) -> 0 | BB147: =IF(AX147<=0,0, IF(UPPER(ATENDIMENTO!$C$52)="S", IF(MONTH(A147)<> 1, BB146, VLOOKUP(C147,Premios!$G$4:$I$104,3,FALSE)), 0)) -> 0 | BC147: =IF(AX147=0,0, MIN( 30, IF($G$18="M", ROUND(VLOOKUP(C147,TbSobrVAL!$A$4:$K$134,10,FALSE),0), ROUND(VLOOKUP(C147,TbSobrVAL!$M$4:$W$134,10,FALSE),0))) ) -> 0 | BD147: =IF(AX147=0,0, 1/PMT($G$7,BC147*12,-1,0,0) + (1/PMT($G$6,BC147,-1,0,1)) / (1+$G$7)^(12-MONTH('Anexo I - Parametros'!$K$9)) ) -> 0 | BE147: 0 | BG147: 0 | BH147: 0 | BI147: 0 | BJ147: 0 | BL147: 0 | BM147: 0 | BN147: 0 | BO147: 0 | BP147: 0 | BQ147: 0 | BS147: 0 | BT147: 0 | BU147: 0 | BV147: 0 | BW147: 0 | BX147: 0 | BY147: 0 | BZ147: 0 | CA147: 0 | CB147: 0 | CC147: 0
A148: =IF(A147>TbSobrVAL!$H$1,"-",EDATE(A147,1)) -> - | B148: 1 | C148: =IF(A148="-", A148, INT((A148-'Anexo I - Parametros'!$K$9)/365.25)) -> - | D148: 0 | F148: 0 | G148: 0 | H148: 0 | I148: 0 | J148: 0 | K148: 0 | L148: 0 | M148: 0 | N148: 0 | O148: 0 | P148: 0 | Q148: 0 | S148: 0 | T148: 0 | U148: 0 | V148: 0 | W148: 0 | X148: 0 | Y148: 0 | Z148: 0 | AA148: 0 | AB148: 0 | AC148: 0 | AD148: 0 | AE148: 0 | AF148: 0 | AG148: 0 | AH148: 0 | AI148: 0 | AJ148: 0 | AK148: 0 | AM148: 0 | AN148: 0 | AO148: 0 | AP148: 0 | AQ148: 0 | AR148: 0 | AS148: 0 | AU148: 0 | AV148: 0 | AX148: 0 | AY148: 0 | AZ148: 0 | BA148: =IF(AX148<=0,0, IF(UPPER(ATENDIMENTO!$C$51)="S", IF(MONTH(A148)<> 1, BA147, VLOOKUP(C148,Premios!$G$4:$I$104,2,FALSE)), 0)) -> 0 | BB148: =IF(AX148<=0,0, IF(UPPER(ATENDIMENTO!$C$52)="S", IF(MONTH(A148)<> 1, BB147, VLOOKUP(C148,Premios!$G$4:$I$104,3,FALSE)), 0)) -> 0 | BC148: =IF(AX148=0,0, MIN( 30, IF($G$18="M", ROUND(VLOOKUP(C148,TbSobrVAL!$A$4:$K$134,10,FALSE),0), ROUND(VLOOKUP(C148,TbSobrVAL!$M$4:$W$134,10,FALSE),0))) ) -> 0 | BD148: =IF(AX148=0,0, 1/PMT($G$7,BC148*12,-1,0,0) + (1/PMT($G$6,BC148,-1,0,1)) / (1+$G$7)^(12-MONTH('Anexo I - Parametros'!$K$9)) ) -> 0 | BE148: 0 | BG148: 0 | BH148: 0 | BI148: 0 | BJ148: 0 | BL148: 0 | BM148: 0 | BN148: 0 | BO148: 0 | BP148: 0 | BQ148: 0 | BS148: 0 | BT148: 0 | BU148: 0 | BV148: 0 | BW148: 0 | BX148: 0 | BY148: 0 | BZ148: 0 | CA148: 0 | CB148: 0 | CC148: 0
A149: =IF(A148>TbSobrVAL!$H$1,"-",EDATE(A148,1)) -> - | B149: 1 | C149: =IF(A149="-", A149, INT((A149-'Anexo I - Parametros'!$K$9)/365.25)) -> - | D149: 0 | F149: 0 | G149: 0 | H149: 0 | I149: 0 | J149: 0 | K149: 0 | L149: 0 | M149: 0 | N149: 0 | O149: 0 | P149: 0 | Q149: 0 | S149: 0 | T149: 0 | U149: 0 | V149: 0 | W149: 0 | X149: 0 | Y149: 0 | Z149: 0 | AA149: 0 | AB149: 0 | AC149: 0 | AD149: 0 | AE149: 0 | AF149: 0 | AG149: 0 | AH149: 0 | AI149: 0 | AJ149: 0 | AK149: 0 | AM149: 0 | AN149: 0 | AO149: 0 | AP149: 0 | AQ149: 0 | AR149: 0 | AS149: 0 | AU149: 0 | AV149: 0 | AX149: 0 | AY149: 0 | AZ149: 0 | BA149: =IF(AX149<=0,0, IF(UPPER(ATENDIMENTO!$C$51)="S", IF(MONTH(A149)<> 1, BA148, VLOOKUP(C149,Premios!$G$4:$I$104,2,FALSE)), 0)) -> 0 | BB149: =IF(AX149<=0,0, IF(UPPER(ATENDIMENTO!$C$52)="S", IF(MONTH(A149)<> 1, BB148, VLOOKUP(C149,Premios!$G$4:$I$104,3,FALSE)), 0)) -> 0 | BC149: =IF(AX149=0,0, MIN( 30, IF($G$18="M", ROUND(VLOOKUP(C149,TbSobrVAL!$A$4:$K$134,10,FALSE),0), ROUND(VLOOKUP(C149,TbSobrVAL!$M$4:$W$134,10,FALSE),0))) ) -> 0 | BD149: =IF(AX149=0,0, 1/PMT($G$7,BC149*12,-1,0,0) + (1/PMT($G$6,BC149,-1,0,1)) / (1+$G$7)^(12-MONTH('Anexo I - Parametros'!$K$9)) ) -> 0 | BE149: 0 | BG149: 0 | BH149: 0 | BI149: 0 | BJ149: 0 | BL149: 0 | BM149: 0 | BN149: 0 | BO149: 0 | BP149: 0 | BQ149: 0 | BS149: 0 | BT149: 0 | BU149: 0 | BV149: 0 | BW149: 0 | BX149: 0 | BY149: 0 | BZ149: 0 | CA149: 0 | CB149: 0 | CC149: 0
A150: =IF(A149>TbSobrVAL!$H$1,"-",EDATE(A149,1)) -> - | B150: 1 | C150: =IF(A150="-", A150, INT((A150-'Anexo I - Parametros'!$K$9)/365.25)) -> - | D150: 0 | F150: 0 | G150: 0 | H150: 0 | I150: 0 | J150: 0 | K150: 0 | L150: 0 | M150: 0 | N150: 0 | O150: 0 | P150: 0 | Q150: 0 | S150: 0 | T150: 0 | U150: 0 | V150: 0 | W150: 0 | X150: 0 | Y150: 0 | Z150: 0 | AA150: 0 | AB150: 0 | AC150: 0 | AD150: 0 | AE150: 0 | AF150: 0 | AG150: 0 | AH150: 0 | AI150: 0 | AJ150: 0 | AK150: 0 | AM150: 0 | AN150: 0 | AO150: 0 | AP150: 0 | AQ150: 0 | AR150: 0 | AS150: 0 | AU150: 0 | AV150: 0 | AX150: 0 | AY150: 0 | AZ150: 0 | BA150: =IF(AX150<=0,0, IF(UPPER(ATENDIMENTO!$C$51)="S", IF(MONTH(A150)<> 1, BA149, VLOOKUP(C150,Premios!$G$4:$I$104,2,FALSE)), 0)) -> 0 | BB150: =IF(AX150<=0,0, IF(UPPER(ATENDIMENTO!$C$52)="S", IF(MONTH(A150)<> 1, BB149, VLOOKUP(C150,Premios!$G$4:$I$104,3,FALSE)), 0)) -> 0 | BC150: =IF(AX150=0,0, MIN( 30, IF($G$18="M", ROUND(VLOOKUP(C150,TbSobrVAL!$A$4:$K$134,10,FALSE),0), ROUND(VLOOKUP(C150,TbSobrVAL!$M$4:$W$134,10,FALSE),0))) ) -> 0 | BD150: =IF(AX150=0,0, 1/PMT($G$7,BC150*12,-1,0,0) + (1/PMT($G$6,BC150,-1,0,1)) / (1+$G$7)^(12-MONTH('Anexo I - Parametros'!$K$9)) ) -> 0 | BE150: 0 | BG150: 0 | BH150: 0 | BI150: 0 | BJ150: 0 | BL150: 0 | BM150: 0 | BN150: 0 | BO150: 0 | BP150: 0 | BQ150: 0 | BS150: 0 | BT150: 0 | BU150: 0 | BV150: 0 | BW150: 0 | BX150: 0 | BY150: 0 | BZ150: 0 | CA150: 0 | CB150: 0 | CC150: 0
A151: =IF(A150>TbSobrVAL!$H$1,"-",EDATE(A150,1)) -> - | B151: 1 | C151: =IF(A151="-", A151, INT((A151-'Anexo I - Parametros'!$K$9)/365.25)) -> - | D151: 0 | F151: 0 | G151: 0 | H151: 0 | I151: 0 | J151: 0 | K151: 0 | L151: 0 | M151: 0 | N151: 0 | O151: 0 | P151: 0 | Q151: 0 | S151: 0 | T151: 0 | U151: 0 | V151: 0 | W151: 0 | X151: 0 | Y151: 0 | Z151: 0 | AA151: 0 | AB151: 0 | AC151: 0 | AD151: 0 | AE151: 0 | AF151: 0 | AG151: 0 | AH151: 0 | AI151: 0 | AJ151: 0 | AK151: 0 | AM151: 0 | AN151: 0 | AO151: 0 | AP151: 0 | AQ151: 0 | AR151: 0 | AS151: 0 | AU151: 0 | AV151: 0 | AX151: 0 | AY151: 0 | AZ151: 0 | BA151: =IF(AX151<=0,0, IF(UPPER(ATENDIMENTO!$C$51)="S", IF(MONTH(A151)<> 1, BA150, VLOOKUP(C151,Premios!$G$4:$I$104,2,FALSE)), 0)) -> 0 | BB151: =IF(AX151<=0,0, IF(UPPER(ATENDIMENTO!$C$52)="S", IF(MONTH(A151)<> 1, BB150, VLOOKUP(C151,Premios!$G$4:$I$104,3,FALSE)), 0)) -> 0 | BC151: =IF(AX151=0,0, MIN( 30, IF($G$18="M", ROUND(VLOOKUP(C151,TbSobrVAL!$A$4:$K$134,10,FALSE),0), ROUND(VLOOKUP(C151,TbSobrVAL!$M$4:$W$134,10,FALSE),0))) ) -> 0 | BD151: =IF(AX151=0,0, 1/PMT($G$7,BC151*12,-1,0,0) + (1/PMT($G$6,BC151,-1,0,1)) / (1+$G$7)^(12-MONTH('Anexo I - Parametros'!$K$9)) ) -> 0 | BE151: 0 | BG151: 0 | BH151: 0 | BI151: 0 | BJ151: 0 | BL151: 0 | BM151: 0 | BN151: 0 | BO151: 0 | BP151: 0 | BQ151: 0 | BS151: 0 | BT151: 0 | BU151: 0 | BV151: 0 | BW151: 0 | BX151: 0 | BY151: 0 | BZ151: 0 | CA151: 0 | CB151: 0 | CC151: 0
A152: =IF(A151>TbSobrVAL!$H$1,"-",EDATE(A151,1)) -> - | B152: 1 | C152: =IF(A152="-", A152, INT((A152-'Anexo I - Parametros'!$K$9)/365.25)) -> - | D152: 0 | F152: 0 | G152: 0 | H152: 0 | I152: 0 | J152: 0 | K152: 0 | L152: 0 | M152: 0 | N152: 0 | O152: 0 | P152: 0 | Q152: 0 | S152: 0 | T152: 0 | U152: 0 | V152: 0 | W152: 0 | X152: 0 | Y152: 0 | Z152: 0 | AA152: 0 | AB152: 0 | AC152: 0 | AD152: 0 | AE152: 0 | AF152: 0 | AG152: 0 | AH152: 0 | AI152: 0 | AJ152: 0 | AK152: 0 | AM152: 0 | AN152: 0 | AO152: 0 | AP152: 0 | AQ152: 0 | AR152: 0 | AS152: 0 | AU152: 0 | AV152: 0 | AX152: 0 | AY152: 0 | AZ152: 0 | BA152: =IF(AX152<=0,0, IF(UPPER(ATENDIMENTO!$C$51)="S", IF(MONTH(A152)<> 1, BA151, VLOOKUP(C152,Premios!$G$4:$I$104,2,FALSE)), 0)) -> 0 | BB152: =IF(AX152<=0,0, IF(UPPER(ATENDIMENTO!$C$52)="S", IF(MONTH(A152)<> 1, BB151, VLOOKUP(C152,Premios!$G$4:$I$104,3,FALSE)), 0)) -> 0 | BC152: =IF(AX152=0,0, MIN( 30, IF($G$18="M", ROUND(VLOOKUP(C152,TbSobrVAL!$A$4:$K$134,10,FALSE),0), ROUND(VLOOKUP(C152,TbSobrVAL!$M$4:$W$134,10,FALSE),0))) ) -> 0 | BD152: =IF(AX152=0,0, 1/PMT($G$7,BC152*12,-1,0,0) + (1/PMT($G$6,BC152,-1,0,1)) / (1+$G$7)^(12-MONTH('Anexo I - Parametros'!$K$9)) ) -> 0 | BE152: 0 | BG152: 0 | BH152: 0 | BI152: 0 | BJ152: 0 | BL152: 0 | BM152: 0 | BN152: 0 | BO152: 0 | BP152: 0 | BQ152: 0 | BS152: 0 | BT152: 0 | BU152: 0 | BV152: 0 | BW152: 0 | BX152: 0 | BY152: 0 | BZ152: 0 | CA152: 0 | CB152: 0 | CC152: 0
A153: =IF(A152>TbSobrVAL!$H$1,"-",EDATE(A152,1)) -> - | B153: 1 | C153: =IF(A153="-", A153, INT((A153-'Anexo I - Parametros'!$K$9)/365.25)) -> - | D153: 0 | F153: 0 | G153: 0 | H153: 0 | I153: 0 | J153: 0 | K153: 0 | L153: 0 | M153: 0 | N153: 0 | O153: 0 | P153: 0 | Q153: 0 | S153: 0 | T153: 0 | U153: 0 | V153: 0 | W153: 0 | X153: 0 | Y153: 0 | Z153: 0 | AA153: 0 | AB153: 0 | AC153: 0 | AD153: 0 | AE153: 0 | AF153: 0 | AG153: 0 | AH153: 0 | AI153: 0 | AJ153: 0 | AK153: 0 | AM153: 0 | AN153: 0 | AO153: 0 | AP153: 0 | AQ153: 0 | AR153: 0 | AS153: 0 | AU153: 0 | AV153: 0 | AX153: 0 | AY153: 0 | AZ153: 0 | BA153: =IF(AX153<=0,0, IF(UPPER(ATENDIMENTO!$C$51)="S", IF(MONTH(A153)<> 1, BA152, VLOOKUP(C153,Premios!$G$4:$I$104,2,FALSE)), 0)) -> 0 | BB153: =IF(AX153<=0,0, IF(UPPER(ATENDIMENTO!$C$52)="S", IF(MONTH(A153)<> 1, BB152, VLOOKUP(C153,Premios!$G$4:$I$104,3,FALSE)), 0)) -> 0 | BC153: =IF(AX153=0,0, MIN( 30, IF($G$18="M", ROUND(VLOOKUP(C153,TbSobrVAL!$A$4:$K$134,10,FALSE),0), ROUND(VLOOKUP(C153,TbSobrVAL!$M$4:$W$134,10,FALSE),0))) ) -> 0 | BD153: =IF(AX153=0,0, 1/PMT($G$7,BC153*12,-1,0,0) + (1/PMT($G$6,BC153,-1,0,1)) / (1+$G$7)^(12-MONTH('Anexo I - Parametros'!$K$9)) ) -> 0 | BE153: 0 | BG153: 0 | BH153: 0 | BI153: 0 | BJ153: 0 | BL153: 0 | BM153: 0 | BN153: 0 | BO153: 0 | BP153: 0 | BQ153: 0 | BS153: 0 | BT153: 0 | BU153: 0 | BV153: 0 | BW153: 0 | BX153: 0 | BY153: 0 | BZ153: 0 | CA153: 0 | CB153: 0 | CC153: 0
A154: =IF(A153>TbSobrVAL!$H$1,"-",EDATE(A153,1)) -> - | B154: 1 | C154: =IF(A154="-", A154, INT((A154-'Anexo I - Parametros'!$K$9)/365.25)) -> - | D154: 0 | F154: 0 | G154: 0 | H154: 0 | I154: 0 | J154: 0 | K154: 0 | L154: 0 | M154: 0 | N154: 0 | O154: 0 | P154: 0 | Q154: 0 | S154: 0 | T154: 0 | U154: 0 | V154: 0 | W154: 0 | X154: 0 | Y154: 0 | Z154: 0 | AA154: 0 | AB154: 0 | AC154: 0 | AD154: 0 | AE154: 0 | AF154: 0 | AG154: 0 | AH154: 0 | AI154: 0 | AJ154: 0 | AK154: 0 | AM154: 0 | AN154: 0 | AO154: 0 | AP154: 0 | AQ154: 0 | AR154: 0 | AS154: 0 | AU154: 0 | AV154: 0 | AX154: 0 | AY154: 0 | AZ154: 0 | BA154: =IF(AX154<=0,0, IF(UPPER(ATENDIMENTO!$C$51)="S", IF(MONTH(A154)<> 1, BA153, VLOOKUP(C154,Premios!$G$4:$I$104,2,FALSE)), 0)) -> 0 | BB154: =IF(AX154<=0,0, IF(UPPER(ATENDIMENTO!$C$52)="S", IF(MONTH(A154)<> 1, BB153, VLOOKUP(C154,Premios!$G$4:$I$104,3,FALSE)), 0)) -> 0 | BC154: =IF(AX154=0,0, MIN( 30, IF($G$18="M", ROUND(VLOOKUP(C154,TbSobrVAL!$A$4:$K$134,10,FALSE),0), ROUND(VLOOKUP(C154,TbSobrVAL!$M$4:$W$134,10,FALSE),0))) ) -> 0 | BD154: =IF(AX154=0,0, 1/PMT($G$7,BC154*12,-1,0,0) + (1/PMT($G$6,BC154,-1,0,1)) / (1+$G$7)^(12-MONTH('Anexo I - Parametros'!$K$9)) ) -> 0 | BE154: 0 | BG154: 0 | BH154: 0 | BI154: 0 | BJ154: 0 | BL154: 0 | BM154: 0 | BN154: 0 | BO154: 0 | BP154: 0 | BQ154: 0 | BS154: 0 | BT154: 0 | BU154: 0 | BV154: 0 | BW154: 0 | BX154: 0 | BY154: 0 | BZ154: 0 | CA154: 0 | CB154: 0 | CC154: 0
A155: =IF(A154>TbSobrVAL!$H$1,"-",EDATE(A154,1)) -> - | B155: 1 | C155: =IF(A155="-", A155, INT((A155-'Anexo I - Parametros'!$K$9)/365.25)) -> - | D155: 0 | F155: 0 | G155: 0 | H155: 0 | I155: 0 | J155: 0 | K155: 0 | L155: 0 | M155: 0 | N155: 0 | O155: 0 | P155: 0 | Q155: 0 | S155: 0 | T155: 0 | U155: 0 | V155: 0 | W155: 0 | X155: 0 | Y155: 0 | Z155: 0 | AA155: 0 | AB155: 0 | AC155: 0 | AD155: 0 | AE155: 0 | AF155: 0 | AG155: 0 | AH155: 0 | AI155: 0 | AJ155: 0 | AK155: 0 | AM155: 0 | AN155: 0 | AO155: 0 | AP155: 0 | AQ155: 0 | AR155: 0 | AS155: 0 | AU155: 0 | AV155: 0 | AX155: 0 | AY155: 0 | AZ155: 0 | BA155: =IF(AX155<=0,0, IF(UPPER(ATENDIMENTO!$C$51)="S", IF(MONTH(A155)<> 1, BA154, VLOOKUP(C155,Premios!$G$4:$I$104,2,FALSE)), 0)) -> 0 | BB155: =IF(AX155<=0,0, IF(UPPER(ATENDIMENTO!$C$52)="S", IF(MONTH(A155)<> 1, BB154, VLOOKUP(C155,Premios!$G$4:$I$104,3,FALSE)), 0)) -> 0 | BC155: =IF(AX155=0,0, MIN( 30, IF($G$18="M", ROUND(VLOOKUP(C155,TbSobrVAL!$A$4:$K$134,10,FALSE),0), ROUND(VLOOKUP(C155,TbSobrVAL!$M$4:$W$134,10,FALSE),0))) ) -> 0 | BD155: =IF(AX155=0,0, 1/PMT($G$7,BC155*12,-1,0,0) + (1/PMT($G$6,BC155,-1,0,1)) / (1+$G$7)^(12-MONTH('Anexo I - Parametros'!$K$9)) ) -> 0 | BE155: 0 | BG155: 0 | BH155: 0 | BI155: 0 | BJ155: 0 | BL155: 0 | BM155: 0 | BN155: 0 | BO155: 0 | BP155: 0 | BQ155: 0 | BS155: 0 | BT155: 0 | BU155: 0 | BV155: 0 | BW155: 0 | BX155: 0 | BY155: 0 | BZ155: 0 | CA155: 0 | CB155: 0 | CC155: 0
A156: =IF(A155>TbSobrVAL!$H$1,"-",EDATE(A155,1)) -> - | B156: 1 | C156: =IF(A156="-", A156, INT((A156-'Anexo I - Parametros'!$K$9)/365.25)) -> - | D156: 0 | F156: 0 | G156: 0 | H156: 0 | I156: 0 | J156: 0 | K156: 0 | L156: 0 | M156: 0 | N156: 0 | O156: 0 | P156: 0 | Q156: 0 | S156: 0 | T156: 0 | U156: 0 | V156: 0 | W156: 0 | X156: 0 | Y156: 0 | Z156: 0 | AA156: 0 | AB156: 0 | AC156: 0 | AD156: 0 | AE156: 0 | AF156: 0 | AG156: 0 | AH156: 0 | AI156: 0 | AJ156: 0 | AK156: 0 | AM156: 0 | AN156: 0 | AO156: 0 | AP156: 0 | AQ156: 0 | AR156: 0 | AS156: 0 | AU156: 0 | AV156: 0 | AX156: 0 | AY156: 0 | AZ156: 0 | BA156: =IF(AX156<=0,0, IF(UPPER(ATENDIMENTO!$C$51)="S", IF(MONTH(A156)<> 1, BA155, VLOOKUP(C156,Premios!$G$4:$I$104,2,FALSE)), 0)) -> 0 | BB156: =IF(AX156<=0,0, IF(UPPER(ATENDIMENTO!$C$52)="S", IF(MONTH(A156)<> 1, BB155, VLOOKUP(C156,Premios!$G$4:$I$104,3,FALSE)), 0)) -> 0 | BC156: =IF(AX156=0,0, MIN( 30, IF($G$18="M", ROUND(VLOOKUP(C156,TbSobrVAL!$A$4:$K$134,10,FALSE),0), ROUND(VLOOKUP(C156,TbSobrVAL!$M$4:$W$134,10,FALSE),0))) ) -> 0 | BD156: =IF(AX156=0,0, 1/PMT($G$7,BC156*12,-1,0,0) + (1/PMT($G$6,BC156,-1,0,1)) / (1+$G$7)^(12-MONTH('Anexo I - Parametros'!$K$9)) ) -> 0 | BE156: 0 | BG156: 0 | BH156: 0 | BI156: 0 | BJ156: 0 | BL156: 0 | BM156: 0 | BN156: 0 | BO156: 0 | BP156: 0 | BQ156: 0 | BS156: 0 | BT156: 0 | BU156: 0 | BV156: 0 | BW156: 0 | BX156: 0 | BY156: 0 | BZ156: 0 | CA156: 0 | CB156: 0 | CC156: 0
A157: =IF(A156>TbSobrVAL!$H$1,"-",EDATE(A156,1)) -> - | B157: 1 | C157: =IF(A157="-", A157, INT((A157-'Anexo I - Parametros'!$K$9)/365.25)) -> - | D157: 0 | F157: 0 | G157: 0 | H157: 0 | I157: 0 | J157: 0 | K157: 0 | L157: 0 | M157: 0 | N157: 0 | O157: 0 | P157: 0 | Q157: 0 | S157: 0 | T157: 0 | U157: 0 | V157: 0 | W157: 0 | X157: 0 | Y157: 0 | Z157: 0 | AA157: 0 | AB157: 0 | AC157: 0 | AD157: 0 | AE157: 0 | AF157: 0 | AG157: 0 | AH157: 0 | AI157: 0 | AJ157: 0 | AK157: 0 | AM157: 0 | AN157: 0 | AO157: 0 | AP157: 0 | AQ157: 0 | AR157: 0 | AS157: 0 | AU157: 0 | AV157: 0 | AX157: 0 | AY157: 0 | AZ157: 0 | BA157: =IF(AX157<=0,0, IF(UPPER(ATENDIMENTO!$C$51)="S", IF(MONTH(A157)<> 1, BA156, VLOOKUP(C157,Premios!$G$4:$I$104,2,FALSE)), 0)) -> 0 | BB157: =IF(AX157<=0,0, IF(UPPER(ATENDIMENTO!$C$52)="S", IF(MONTH(A157)<> 1, BB156, VLOOKUP(C157,Premios!$G$4:$I$104,3,FALSE)), 0)) -> 0 | BC157: =IF(AX157=0,0, MIN( 30, IF($G$18="M", ROUND(VLOOKUP(C157,TbSobrVAL!$A$4:$K$134,10,FALSE),0), ROUND(VLOOKUP(C157,TbSobrVAL!$M$4:$W$134,10,FALSE),0))) ) -> 0 | BD157: =IF(AX157=0,0, 1/PMT($G$7,BC157*12,-1,0,0) + (1/PMT($G$6,BC157,-1,0,1)) / (1+$G$7)^(12-MONTH('Anexo I - Parametros'!$K$9)) ) -> 0 | BE157: 0 | BG157: 0 | BH157: 0 | BI157: 0 | BJ157: 0 | BL157: 0 | BM157: 0 | BN157: 0 | BO157: 0 | BP157: 0 | BQ157: 0 | BS157: 0 | BT157: 0 | BU157: 0 | BV157: 0 | BW157: 0 | BX157: 0 | BY157: 0 | BZ157: 0 | CA157: 0 | CB157: 0 | CC157: 0
A158: =IF(A157>TbSobrVAL!$H$1,"-",EDATE(A157,1)) -> - | B158: 1 | C158: =IF(A158="-", A158, INT((A158-'Anexo I - Parametros'!$K$9)/365.25)) -> - | D158: 0 | F158: 0 | G158: 0 | H158: 0 | I158: 0 | J158: 0 | K158: 0 | L158: 0 | M158: 0 | N158: 0 | O158: 0 | P158: 0 | Q158: 0 | S158: 0 | T158: 0 | U158: 0 | V158: 0 | W158: 0 | X158: 0 | Y158: 0 | Z158: 0 | AA158: 0 | AB158: 0 | AC158: 0 | AD158: 0 | AE158: 0 | AF158: 0 | AG158: 0 | AH158: 0 | AI158: 0 | AJ158: 0 | AK158: 0 | AM158: 0 | AN158: 0 | AO158: 0 | AP158: 0 | AQ158: 0 | AR158: 0 | AS158: 0 | AU158: 0 | AV158: 0 | AX158: 0 | AY158: 0 | AZ158: 0 | BA158: =IF(AX158<=0,0, IF(UPPER(ATENDIMENTO!$C$51)="S", IF(MONTH(A158)<> 1, BA157, VLOOKUP(C158,Premios!$G$4:$I$104,2,FALSE)), 0)) -> 0 | BB158: =IF(AX158<=0,0, IF(UPPER(ATENDIMENTO!$C$52)="S", IF(MONTH(A158)<> 1, BB157, VLOOKUP(C158,Premios!$G$4:$I$104,3,FALSE)), 0)) -> 0 | BC158: =IF(AX158=0,0, MIN( 30, IF($G$18="M", ROUND(VLOOKUP(C158,TbSobrVAL!$A$4:$K$134,10,FALSE),0), ROUND(VLOOKUP(C158,TbSobrVAL!$M$4:$W$134,10,FALSE),0))) ) -> 0 | BD158: =IF(AX158=0,0, 1/PMT($G$7,BC158*12,-1,0,0) + (1/PMT($G$6,BC158,-1,0,1)) / (1+$G$7)^(12-MONTH('Anexo I - Parametros'!$K$9)) ) -> 0 | BE158: 0 | BG158: 0 | BH158: 0 | BI158: 0 | BJ158: 0 | BL158: 0 | BM158: 0 | BN158: 0 | BO158: 0 | BP158: 0 | BQ158: 0 | BS158: 0 | BT158: 0 | BU158: 0 | BV158: 0 | BW158: 0 | BX158: 0 | BY158: 0 | BZ158: 0 | CA158: 0 | CB158: 0 | CC158: 0
A159: =IF(A158>TbSobrVAL!$H$1,"-",EDATE(A158,1)) -> - | B159: 1 | C159: =IF(A159="-", A159, INT((A159-'Anexo I - Parametros'!$K$9)/365.25)) -> - | D159: 0 | F159: 0 | G159: 0 | H159: 0 | I159: 0 | J159: 0 | K159: 0 | L159: 0 | M159: 0 | N159: 0 | O159: 0 | P159: 0 | Q159: 0 | S159: 0 | T159: 0 | U159: 0 | V159: 0 | W159: 0 | X159: 0 | Y159: 0 | Z159: 0 | AA159: 0 | AB159: 0 | AC159: 0 | AD159: 0 | AE159: 0 | AF159: 0 | AG159: 0 | AH159: 0 | AI159: 0 | AJ159: 0 | AK159: 0 | AM159: 0 | AN159: 0 | AO159: 0 | AP159: 0 | AQ159: 0 | AR159: 0 | AS159: 0 | AU159: 0 | AV159: 0 | AX159: 0 | AY159: 0 | AZ159: 0 | BA159: =IF(AX159<=0,0, IF(UPPER(ATENDIMENTO!$C$51)="S", IF(MONTH(A159)<> 1, BA158, VLOOKUP(C159,Premios!$G$4:$I$104,2,FALSE)), 0)) -> 0 | BB159: =IF(AX159<=0,0, IF(UPPER(ATENDIMENTO!$C$52)="S", IF(MONTH(A159)<> 1, BB158, VLOOKUP(C159,Premios!$G$4:$I$104,3,FALSE)), 0)) -> 0 | BC159: =IF(AX159=0,0, MIN( 30, IF($G$18="M", ROUND(VLOOKUP(C159,TbSobrVAL!$A$4:$K$134,10,FALSE),0), ROUND(VLOOKUP(C159,TbSobrVAL!$M$4:$W$134,10,FALSE),0))) ) -> 0 | BD159: =IF(AX159=0,0, 1/PMT($G$7,BC159*12,-1,0,0) + (1/PMT($G$6,BC159,-1,0,1)) / (1+$G$7)^(12-MONTH('Anexo I - Parametros'!$K$9)) ) -> 0 | BE159: 0 | BG159: 0 | BH159: 0 | BI159: 0 | BJ159: 0 | BL159: 0 | BM159: 0 | BN159: 0 | BO159: 0 | BP159: 0 | BQ159: 0 | BS159: 0 | BT159: 0 | BU159: 0 | BV159: 0 | BW159: 0 | BX159: 0 | BY159: 0 | BZ159: 0 | CA159: 0 | CB159: 0 | CC159: 0
A160: =IF(A159>TbSobrVAL!$H$1,"-",EDATE(A159,1)) -> - | B160: 1 | C160: =IF(A160="-", A160, INT((A160-'Anexo I - Parametros'!$K$9)/365.25)) -> - | D160: 0 | F160: 0 | G160: 0 | H160: 0 | I160: 0 | J160: 0 | K160: 0 | L160: 0 | M160: 0 | N160: 0 | O160: 0 | P160: 0 | Q160: 0 | S160: 0 | T160: 0 | U160: 0 | V160: 0 | W160: 0 | X160: 0 | Y160: 0 | Z160: 0 | AA160: 0 | AB160: 0 | AC160: 0 | AD160: 0 | AE160: 0 | AF160: 0 | AG160: 0 | AH160: 0 | AI160: 0 | AJ160: 0 | AK160: 0 | AM160: 0 | AN160: 0 | AO160: 0 | AP160: 0 | AQ160: 0 | AR160: 0 | AS160: 0 | AU160: 0 | AV160: 0 | AX160: 0 | AY160: 0 | AZ160: 0 | BA160: =IF(AX160<=0,0, IF(UPPER(ATENDIMENTO!$C$51)="S", IF(MONTH(A160)<> 1, BA159, VLOOKUP(C160,Premios!$G$4:$I$104,2,FALSE)), 0)) -> 0 | BB160: =IF(AX160<=0,0, IF(UPPER(ATENDIMENTO!$C$52)="S", IF(MONTH(A160)<> 1, BB159, VLOOKUP(C160,Premios!$G$4:$I$104,3,FALSE)), 0)) -> 0 | BC160: =IF(AX160=0,0, MIN( 30, IF($G$18="M", ROUND(VLOOKUP(C160,TbSobrVAL!$A$4:$K$134,10,FALSE),0), ROUND(VLOOKUP(C160,TbSobrVAL!$M$4:$W$134,10,FALSE),0))) ) -> 0 | BD160: =IF(AX160=0,0, 1/PMT($G$7,BC160*12,-1,0,0) + (1/PMT($G$6,BC160,-1,0,1)) / (1+$G$7)^(12-MONTH('Anexo I - Parametros'!$K$9)) ) -> 0 | BE160: 0 | BG160: 0 | BH160: 0 | BI160: 0 | BJ160: 0 | BL160: 0 | BM160: 0 | BN160: 0 | BO160: 0 | BP160: 0 | BQ160: 0 | BS160: 0 | BT160: 0 | BU160: 0 | BV160: 0 | BW160: 0 | BX160: 0 | BY160: 0 | BZ160: 0 | CA160: 0 | CB160: 0 | CC160: 0
A161: =IF(A160>TbSobrVAL!$H$1,"-",EDATE(A160,1)) -> - | B161: 1 | C161: =IF(A161="-", A161, INT((A161-'Anexo I - Parametros'!$K$9)/365.25)) -> - | D161: 0 | F161: 0 | G161: 0 | H161: 0 | I161: 0 | J161: 0 | K161: 0 | L161: 0 | M161: 0 | N161: 0 | O161: 0 | P161: 0 | Q161: 0 | S161: 0 | T161: 0 | U161: 0 | V161: 0 | W161: 0 | X161: 0 | Y161: 0 | Z161: 0 | AA161: 0 | AB161: 0 | AC161: 0 | AD161: 0 | AE161: 0 | AF161: 0 | AG161: 0 | AH161: 0 | AI161: 0 | AJ161: 0 | AK161: 0 | AM161: 0 | AN161: 0 | AO161: 0 | AP161: 0 | AQ161: 0 | AR161: 0 | AS161: 0 | AU161: 0 | AV161: 0 | AX161: 0 | AY161: 0 | AZ161: 0 | BA161: =IF(AX161<=0,0, IF(UPPER(ATENDIMENTO!$C$51)="S", IF(MONTH(A161)<> 1, BA160, VLOOKUP(C161,Premios!$G$4:$I$104,2,FALSE)), 0)) -> 0 | BB161: =IF(AX161<=0,0, IF(UPPER(ATENDIMENTO!$C$52)="S", IF(MONTH(A161)<> 1, BB160, VLOOKUP(C161,Premios!$G$4:$I$104,3,FALSE)), 0)) -> 0 | BC161: =IF(AX161=0,0, MIN( 30, IF($G$18="M", ROUND(VLOOKUP(C161,TbSobrVAL!$A$4:$K$134,10,FALSE),0), ROUND(VLOOKUP(C161,TbSobrVAL!$M$4:$W$134,10,FALSE),0))) ) -> 0 | BD161: =IF(AX161=0,0, 1/PMT($G$7,BC161*12,-1,0,0) + (1/PMT($G$6,BC161,-1,0,1)) / (1+$G$7)^(12-MONTH('Anexo I - Parametros'!$K$9)) ) -> 0 | BE161: 0 | BG161: 0 | BH161: 0 | BI161: 0 | BJ161: 0 | BL161: 0 | BM161: 0 | BN161: 0 | BO161: 0 | BP161: 0 | BQ161: 0 | BS161: 0 | BT161: 0 | BU161: 0 | BV161: 0 | BW161: 0 | BX161: 0 | BY161: 0 | BZ161: 0 | CA161: 0 | CB161: 0 | CC161: 0
